Workbook

Sheet Riskk (hidden)
A1: linda | B1: UPSW | H1: =COUNT(H3:H20) -> 0 | I1: FALSE
B2: Userid | H2: Main/sub | I2: Caption | J2: On Action | K2: NewGroup | M2: 6 mths b4 | N2: =EOMONTH(BOM,-6) -> 2017-03-31 | P2: Company | Q2: TA | S2: TAICP
A3: 3 | B3: UserLevel | P3: Report Curr | Q3: MYR | S3: TACP
A4: 2006-05-09T11:19:39 | B4: LoginTime | S4: TADF
B5: LogoutTime | S5: TAEURO
S6: TAGAAF
S7: TAGTF
S8: TASTIA
S9: TAACCI
S10: TAAUII
S11: TAAUSI
A25: =(SUMIF(#REF!,"=CSHMYR",#REF!)+SUM(#REF!))/1000000 -> 

Sheet Login (hidden)
B2: Riskk . Com
B3: Sdn Bhd (CN 388306K)
H4: Box 389, Lot 7.16, Wisma Central, Jln Ampang, 50450 Kuala Lumpur
B9: FMC Monthly Report
J18: `

Sheet Main
C2: =C5 -> TA Investment Management
B4: * Step 1 : Change Only If Necessary
B5: Company : | C5: TA Investment Management
B6: Start Of Month : | C6: =EOMONTH(EOM,-1)+1 -> 2017-09-01
B8: * Step 2 : Enter Report Date
B9: Report As At : | C9: 2017-09-30
B11: * Step 3 : Refresh Data
B15: * Step 4 : Print Report

Sheet 420.12
D4: Number of Funds and Clients (Local)
D13: Jurisdiction | E13: Product | F13: Source of AUM | Clients - Conventional | G13: Source of AUM | Clients - Shariah | H13: Source of AUM | Delegated from FMC and PRS Provider - Conventional | I13: Source of AUM | Delegated from FMC and PRS Provider - Shariah | J13: Delegated to FMC - Conventional | K13: Delegated to FMC - Shariah | L13: Delegated to Foreign-Established fund manager - Conventional | M13: Delegated to Foreign-Established fund manager - Shariah
D15: Local | E15: Collective Investment Scheme | F15: =COUNTIFS(FundSdf!$J:$J,'420.12'!$E15,FundSdf!$D:$D,0,FundSdf!$E:$E,0,FundSdf!F:F,0) -> 0 | G15: =COUNTIFS(FundSdf!$J:$J,'420.12'!$E15,FundSdf!$D:$D,0,FundSdf!$E:$E,1,FundSdf!F:F,0) -> 0 | J15: =COUNTIFS(FundSdf!$J:$J,'420.12'!$E15,FundSdf!$D:$D,1,FundSdf!$E:$E,0,FundSdf!F:F,0) -> 0 | K15: =COUNTIFS(FundSdf!$J:$J,'420.12'!$E15,FundSdf!$D:$D,1,FundSdf!$E:$E,1,FundSdf!F:F,0) -> 0
D16: Local | E16: Unit Trust Funds | F16: =COUNTIFS(FundSdf!$J:$J,'420.12'!$E16,FundSdf!$D:$D,0,FundSdf!$E:$E,0,FundSdf!F:F,0) -> 0 | G16: =COUNTIFS(FundSdf!$J:$J,'420.12'!$E16,FundSdf!$D:$D,0,FundSdf!$E:$E,1,FundSdf!F:F,0) -> 7 | J16: =COUNTIFS(FundSdf!$J:$J,'420.12'!$E16,FundSdf!$D:$D,1,FundSdf!$E:$E,0,FundSdf!F:F,0) -> 0 | K16: =COUNTIFS(FundSdf!$J:$J,'420.12'!$E16,FundSdf!$D:$D,1,FundSdf!$E:$E,1,FundSdf!F:F,0) -> 0
D17: Local | E17: Wholesale Funds | F17: =COUNTIFS(FundSdf!$J:$J,'420.12'!$E17,FundSdf!$D:$D,0,FundSdf!$E:$E,0,FundSdf!F:F,0) -> 0 | G17: =COUNTIFS(FundSdf!$J:$J,'420.12'!$E17,FundSdf!$D:$D,0,FundSdf!$E:$E,1,FundSdf!F:F,0) -> 3 | J17: =COUNTIFS(FundSdf!$J:$J,'420.12'!$E17,FundSdf!$D:$D,1,FundSdf!$E:$E,0,FundSdf!F:F,0) -> 0 | K17: =COUNTIFS(FundSdf!$J:$J,'420.12'!$E17,FundSdf!$D:$D,1,FundSdf!$E:$E,1,FundSdf!F:F,0) -> 0
D18: Local | E18: Exchange-traded Funds | F18: =COUNTIFS(FundSdf!$J:$J,'420.12'!$E18,FundSdf!$D:$D,0,FundSdf!$E:$E,0,FundSdf!F:F,0) -> 0 | G18: =COUNTIFS(FundSdf!$J:$J,'420.12'!$E18,FundSdf!$D:$D,0,FundSdf!$E:$E,1,FundSdf!F:F,0) -> 0 | J18: =COUNTIFS(FundSdf!$J:$J,'420.12'!$E18,FundSdf!$D:$D,1,FundSdf!$E:$E,0,FundSdf!F:F,0) -> 0 | K18: =COUNTIFS(FundSdf!$J:$J,'420.12'!$E18,FundSdf!$D:$D,1,FundSdf!$E:$E,1,FundSdf!F:F,0) -> 0
D19: Local | E19: Listed Closed-end Funds | F19: =COUNTIFS(FundSdf!$J:$J,'420.12'!$E19,FundSdf!$D:$D,0,FundSdf!$E:$E,0,FundSdf!F:F,0) -> 0 | G19: =COUNTIFS(FundSdf!$J:$J,'420.12'!$E19,FundSdf!$D:$D,0,FundSdf!$E:$E,1,FundSdf!F:F,0) -> 0 | J19: =COUNTIFS(FundSdf!$J:$J,'420.12'!$E19,FundSdf!$D:$D,1,FundSdf!$E:$E,0,FundSdf!F:F,0) -> 0 | K19: =COUNTIFS(FundSdf!$J:$J,'420.12'!$E19,FundSdf!$D:$D,1,FundSdf!$E:$E,1,FundSdf!F:F,0) -> 0
D20: Local | E20: Private Retirement Scheme | F20: =COUNTIFS(FundSdf!$J:$J,'420.12'!$E20,FundSdf!$D:$D,0,FundSdf!$E:$E,0,FundSdf!F:F,0) -> 0 | G20: =COUNTIFS(FundSdf!$J:$J,'420.12'!$E20,FundSdf!$D:$D,0,FundSdf!$E:$E,1,FundSdf!F:F,0) -> 0 | J20: =COUNTIFS(FundSdf!$J:$J,'420.12'!$E20,FundSdf!$D:$D,1,FundSdf!$E:$E,0,FundSdf!F:F,0) -> 0 | K20: =COUNTIFS(FundSdf!$J:$J,'420.12'!$E20,FundSdf!$D:$D,1,FundSdf!$E:$E,1,FundSdf!F:F,0) -> 0
D21: Local | E21: Private Mandate | F21: =COUNTIFS(FundSdf!$J:$J,'420.12'!$E21,FundSdf!$D:$D,0,FundSdf!$E:$E,0,FundSdf!F:F,0) -> 0 | G21: =COUNTIFS(FundSdf!$J:$J,'420.12'!$E21,FundSdf!$D:$D,0,FundSdf!$E:$E,1,FundSdf!F:F,0) -> 0 | J21: =COUNTIFS(FundSdf!$J:$J,'420.12'!$E21,FundSdf!$D:$D,1,FundSdf!$E:$E,0,FundSdf!F:F,0) -> 0 | K21: =COUNTIFS(FundSdf!$J:$J,'420.12'!$E21,FundSdf!$D:$D,1,FundSdf!$E:$E,1,FundSdf!F:F,0) -> 0
D22: Local | E22: Corporate Bodies | F22: =COUNTIFS(FundSdf!$J:$J,'420.12'!$E22,FundSdf!$D:$D,0,FundSdf!$E:$E,0,FundSdf!F:F,0) -> 0 | G22: =COUNTIFS(FundSdf!$J:$J,'420.12'!$E22,FundSdf!$D:$D,0,FundSdf!$E:$E,1,FundSdf!F:F,0) -> 0 | J22: =COUNTIFS(FundSdf!$J:$J,'420.12'!$E22,FundSdf!$D:$D,1,FundSdf!$E:$E,0,FundSdf!F:F,0) -> 0 | K22: =COUNTIFS(FundSdf!$J:$J,'420.12'!$E22,FundSdf!$D:$D,1,FundSdf!$E:$E,1,FundSdf!F:F,0) -> 0
D23: Local | E23: Charitable Organisations | F23: =COUNTIFS(FundSdf!$J:$J,'420.12'!$E23,FundSdf!$D:$D,0,FundSdf!$E:$E,0,FundSdf!F:F,0) -> 0 | G23: =COUNTIFS(FundSdf!$J:$J,'420.12'!$E23,FundSdf!$D:$D,0,FundSdf!$E:$E,1,FundSdf!F:F,0) -> 0 | J23: =COUNTIFS(FundSdf!$J:$J,'420.12'!$E23,FundSdf!$D:$D,1,FundSdf!$E:$E,0,FundSdf!F:F,0) -> 0 | K23: =COUNTIFS(FundSdf!$J:$J,'420.12'!$E23,FundSdf!$D:$D,1,FundSdf!$E:$E,1,FundSdf!F:F,0) -> 0
D24: Local | E24: Individual - Skim Pelaburan Ahli - KWSP | F24: =COUNTIFS(FundSdf!$J:$J,'420.12'!$E24,FundSdf!$D:$D,0,FundSdf!$E:$E,0,FundSdf!F:F,0) -> 0 | G24: =COUNTIFS(FundSdf!$J:$J,'420.12'!$E24,FundSdf!$D:$D,0,FundSdf!$E:$E,1,FundSdf!F:F,0) -> 0 | J24: =COUNTIFS(FundSdf!$J:$J,'420.12'!$E24,FundSdf!$D:$D,1,FundSdf!$E:$E,0,FundSdf!F:F,0) -> 0 | K24: =COUNTIFS(FundSdf!$J:$J,'420.12'!$E24,FundSdf!$D:$D,1,FundSdf!$E:$E,1,FundSdf!F:F,0) -> 0
D25: Local | E25: Individual - Individual Private Mandates | F25: =COUNTIFS(FundSdf!$J:$J,'420.12'!$E25,FundSdf!$D:$D,0,FundSdf!$E:$E,0,FundSdf!F:F,0) -> 0 | G25: =COUNTIFS(FundSdf!$J:$J,'420.12'!$E25,FundSdf!$D:$D,0,FundSdf!$E:$E,1,FundSdf!F:F,0) -> 0 | J25: =COUNTIFS(FundSdf!$J:$J,'420.12'!$E25,FundSdf!$D:$D,1,FundSdf!$E:$E,0,FundSdf!F:F,0) -> 0 | K25: =COUNTIFS(FundSdf!$J:$J,'420.12'!$E25,FundSdf!$D:$D,1,FundSdf!$E:$E,1,FundSdf!F:F,0) -> 0
D26: Local | E26: Private Pension Funds | F26: =COUNTIFS(FundSdf!$J:$J,'420.12'!$E26,FundSdf!$D:$D,0,FundSdf!$E:$E,0,FundSdf!F:F,0) -> 0 | G26: =COUNTIFS(FundSdf!$J:$J,'420.12'!$E26,FundSdf!$D:$D,0,FundSdf!$E:$E,1,FundSdf!F:F,0) -> 0 | J26: =COUNTIFS(FundSdf!$J:$J,'420.12'!$E26,FundSdf!$D:$D,1,FundSdf!$E:$E,0,FundSdf!F:F,0) -> 0 | K26: =COUNTIFS(FundSdf!$J:$J,'420.12'!$E26,FundSdf!$D:$D,1,FundSdf!$E:$E,1,FundSdf!F:F,0) -> 0
D27: Local | E27: Statutory Bodies and Government Agencies | F27: =COUNTIFS(FundSdf!$J:$J,'420.12'!$E27,FundSdf!$D:$D,0,FundSdf!$E:$E,0,FundSdf!F:F,0) -> 0 | G27: =COUNTIFS(FundSdf!$J:$J,'420.12'!$E27,FundSdf!$D:$D,0,FundSdf!$E:$E,1,FundSdf!F:F,0) -> 0 | J27: =COUNTIFS(FundSdf!$J:$J,'420.12'!$E27,FundSdf!$D:$D,1,FundSdf!$E:$E,0,FundSdf!F:F,0) -> 0 | K27: =COUNTIFS(FundSdf!$J:$J,'420.12'!$E27,FundSdf!$D:$D,1,FundSdf!$E:$E,1,FundSdf!F:F,0) -> 0
D28: Local | E28: BNM | F28: =COUNTIFS(FundSdf!$J:$J,'420.12'!$E28,FundSdf!$D:$D,0,FundSdf!$E:$E,0,FundSdf!F:F,0) -> 0 | G28: =COUNTIFS(FundSdf!$J:$J,'420.12'!$E28,FundSdf!$D:$D,0,FundSdf!$E:$E,1,FundSdf!F:F,0) -> 0 | J28: =COUNTIFS(FundSdf!$J:$J,'420.12'!$E28,FundSdf!$D:$D,1,FundSdf!$E:$E,0,FundSdf!F:F,0) -> 0 | K28: =COUNTIFS(FundSdf!$J:$J,'420.12'!$E28,FundSdf!$D:$D,1,FundSdf!$E:$E,1,FundSdf!F:F,0) -> 0
D29: Local | E29: KWAP | F29: =COUNTIFS(FundSdf!$J:$J,'420.12'!$E29,FundSdf!$D:$D,0,FundSdf!$E:$E,0,FundSdf!F:F,0) -> 0 | G29: =COUNTIFS(FundSdf!$J:$J,'420.12'!$E29,FundSdf!$D:$D,0,FundSdf!$E:$E,1,FundSdf!F:F,0) -> 0 | J29: =COUNTIFS(FundSdf!$J:$J,'420.12'!$E29,FundSdf!$D:$D,1,FundSdf!$E:$E,0,FundSdf!F:F,0) -> 0 | K29: =COUNTIFS(FundSdf!$J:$J,'420.12'!$E29,FundSdf!$D:$D,1,FundSdf!$E:$E,1,FundSdf!F:F,0) -> 0
D30: Local | E30: PERKESO | F30: =COUNTIFS(FundSdf!$J:$J,'420.12'!$E30,FundSdf!$D:$D,0,FundSdf!$E:$E,0,FundSdf!F:F,0) -> 0 | G30: =COUNTIFS(FundSdf!$J:$J,'420.12'!$E30,FundSdf!$D:$D,0,FundSdf!$E:$E,1,FundSdf!F:F,0) -> 0 | J30: =COUNTIFS(FundSdf!$J:$J,'420.12'!$E30,FundSdf!$D:$D,1,FundSdf!$E:$E,0,FundSdf!F:F,0) -> 0 | K30: =COUNTIFS(FundSdf!$J:$J,'420.12'!$E30,FundSdf!$D:$D,1,FundSdf!$E:$E,1,FundSdf!F:F,0) -> 0
D31: Local | E31: LTAT | F31: =COUNTIFS(FundSdf!$J:$J,'420.12'!$E31,FundSdf!$D:$D,0,FundSdf!$E:$E,0,FundSdf!F:F,0) -> 0 | G31: =COUNTIFS(FundSdf!$J:$J,'420.12'!$E31,FundSdf!$D:$D,0,FundSdf!$E:$E,1,FundSdf!F:F,0) -> 0 | J31: =COUNTIFS(FundSdf!$J:$J,'420.12'!$E31,FundSdf!$D:$D,1,FundSdf!$E:$E,0,FundSdf!F:F,0) -> 0 | K31: =COUNTIFS(FundSdf!$J:$J,'420.12'!$E31,FundSdf!$D:$D,1,FundSdf!$E:$E,1,FundSdf!F:F,0) -> 0
D32: Local | E32: KWSP | F32: =COUNTIFS(FundSdf!$J:$J,'420.12'!$E32,FundSdf!$D:$D,0,FundSdf!$E:$E,0,FundSdf!F:F,0) -> 0 | G32: =COUNTIFS(FundSdf!$J:$J,'420.12'!$E32,FundSdf!$D:$D,0,FundSdf!$E:$E,1,FundSdf!F:F,0) -> 0 | J32: =COUNTIFS(FundSdf!$J:$J,'420.12'!$E32,FundSdf!$D:$D,1,FundSdf!$E:$E,0,FundSdf!F:F,0) -> 0 | K32: =COUNTIFS(FundSdf!$J:$J,'420.12'!$E32,FundSdf!$D:$D,1,FundSdf!$E:$E,1,FundSdf!F:F,0) -> 0
D33: Local | E33: LTH | F33: =COUNTIFS(FundSdf!$J:$J,'420.12'!$E33,FundSdf!$D:$D,0,FundSdf!$E:$E,0,FundSdf!F:F,0) -> 0 | G33: =COUNTIFS(FundSdf!$J:$J,'420.12'!$E33,FundSdf!$D:$D,0,FundSdf!$E:$E,1,FundSdf!F:F,0) -> 0 | J33: =COUNTIFS(FundSdf!$J:$J,'420.12'!$E33,FundSdf!$D:$D,1,FundSdf!$E:$E,0,FundSdf!F:F,0) -> 0 | K33: =COUNTIFS(FundSdf!$J:$J,'420.12'!$E33,FundSdf!$D:$D,1,FundSdf!$E:$E,1,FundSdf!F:F,0) -> 0
D34: Local | E34: Other Statutory Bodies and Government Agencies | F34: =COUNTIFS(FundSdf!$J:$J,'420.12'!$E34,FundSdf!$D:$D,0,FundSdf!$E:$E,0,FundSdf!F:F,0) -> 0 | G34: =COUNTIFS(FundSdf!$J:$J,'420.12'!$E34,FundSdf!$D:$D,0,FundSdf!$E:$E,1,FundSdf!F:F,0) -> 0 | J34: =COUNTIFS(FundSdf!$J:$J,'420.12'!$E34,FundSdf!$D:$D,1,FundSdf!$E:$E,0,FundSdf!F:F,0) -> 0 | K34: =COUNTIFS(FundSdf!$J:$J,'420.12'!$E34,FundSdf!$D:$D,1,FundSdf!$E:$E,1,FundSdf!F:F,0) -> 0
D35: Local | E35: Other Type of Funds | F35: =COUNTIFS(FundSdf!$J:$J,'420.12'!$E35,FundSdf!$D:$D,0,FundSdf!$E:$E,0,FundSdf!F:F,0) -> 0 | G35: =COUNTIFS(FundSdf!$J:$J,'420.12'!$E35,FundSdf!$D:$D,0,FundSdf!$E:$E,1,FundSdf!F:F,0) -> 0 | J35: =COUNTIFS(FundSdf!$J:$J,'420.12'!$E35,FundSdf!$D:$D,1,FundSdf!$E:$E,0,FundSdf!F:F,0) -> 0 | K35: =COUNTIFS(FundSdf!$J:$J,'420.12'!$E35,FundSdf!$D:$D,1,FundSdf!$E:$E,1,FundSdf!F:F,0) -> 0
D36: Local | E36: Other Type of Funds | F36: =COUNTIFS(FundSdf!$J:$J,'420.12'!$E36,FundSdf!$D:$D,0,FundSdf!$E:$E,0,FundSdf!F:F,0) -> 0 | G36: =COUNTIFS(FundSdf!$J:$J,'420.12'!$E36,FundSdf!$D:$D,0,FundSdf!$E:$E,1,FundSdf!F:F,0) -> 0 | J36: =COUNTIFS(FundSdf!$J:$J,'420.12'!$E36,FundSdf!$D:$D,1,FundSdf!$E:$E,0,FundSdf!F:F,0) -> 0 | K36: =COUNTIFS(FundSdf!$J:$J,'420.12'!$E36,FundSdf!$D:$D,1,FundSdf!$E:$E,1,FundSdf!F:F,0) -> 0

Sheet 430.12
D2: Number of Funds / Clients (Foreign)
D13: Jurisdiction | E13: Product | F13: Source of AUM | Clients - Conventional | G13: Source of AUM | Clients - Shariah | H13: Source of AUM | Delegated from Foreign-established Fund Manager - Conventional | I13: Source of AUM | Delegated from Foreign-established Fund Manager - Shariah | J13: Delegated to FMC - Conventional | K13: Delegated to FMC - Shariah | L13: Delegated to Foreign-Established fund manager - Conventional | M13: Delegated to Foreign-Established fund manager - Shariah
D15: Foreign | E15: Collective Investment Scheme | F15: =COUNTIFS(FundSdf!$J:$J,$E15,FundSdf!$D:$D,0,FundSdf!$E:$E,0,FundSdf!F:F,1) -> 0 | G15: =COUNTIFS(FundSdf!$J:$J,$E15,FundSdf!$D:$D,0,FundSdf!$E:$E,1,FundSdf!F:F,1) -> 0 | J15: =COUNTIFS(FundSdf!$J:$J,$E15,FundSdf!$D:$D,1,FundSdf!$E:$E,0,FundSdf!F:F,1) -> 0 | K15: =COUNTIFS(FundSdf!$J:$J,$E15,FundSdf!$D:$D,1,FundSdf!$E:$E,1,FundSdf!F:F,1) -> 0
D16: Foreign | E16: Unit Trust Funds | F16: =COUNTIFS(FundSdf!$J:$J,$E16,FundSdf!$D:$D,0,FundSdf!$E:$E,0,FundSdf!F:F,1) -> 0 | G16: =COUNTIFS(FundSdf!$J:$J,$E16,FundSdf!$D:$D,0,FundSdf!$E:$E,1,FundSdf!F:F,1) -> 0 | J16: =COUNTIFS(FundSdf!$J:$J,$E16,FundSdf!$D:$D,1,FundSdf!$E:$E,0,FundSdf!F:F,1) -> 0 | K16: =COUNTIFS(FundSdf!$J:$J,$E16,FundSdf!$D:$D,1,FundSdf!$E:$E,1,FundSdf!F:F,1) -> 0
D17: Foreign | E17: Wholesale Funds | F17: =COUNTIFS(FundSdf!$J:$J,$E17,FundSdf!$D:$D,0,FundSdf!$E:$E,0,FundSdf!F:F,1) -> 0 | G17: =COUNTIFS(FundSdf!$J:$J,$E17,FundSdf!$D:$D,0,FundSdf!$E:$E,1,FundSdf!F:F,1) -> 0 | J17: =COUNTIFS(FundSdf!$J:$J,$E17,FundSdf!$D:$D,1,FundSdf!$E:$E,0,FundSdf!F:F,1) -> 0 | K17: =COUNTIFS(FundSdf!$J:$J,$E17,FundSdf!$D:$D,1,FundSdf!$E:$E,1,FundSdf!F:F,1) -> 0
D18: Foreign | E18: Exchange-traded Funds | F18: =COUNTIFS(FundSdf!$J:$J,$E18,FundSdf!$D:$D,0,FundSdf!$E:$E,0,FundSdf!F:F,1) -> 0 | G18: =COUNTIFS(FundSdf!$J:$J,$E18,FundSdf!$D:$D,0,FundSdf!$E:$E,1,FundSdf!F:F,1) -> 0 | J18: =COUNTIFS(FundSdf!$J:$J,$E18,FundSdf!$D:$D,1,FundSdf!$E:$E,0,FundSdf!F:F,1) -> 0 | K18: =COUNTIFS(FundSdf!$J:$J,$E18,FundSdf!$D:$D,1,FundSdf!$E:$E,1,FundSdf!F:F,1) -> 0
D19: Foreign | E19: Listed Closed-end Funds | F19: =COUNTIFS(FundSdf!$J:$J,$E19,FundSdf!$D:$D,0,FundSdf!$E:$E,0,FundSdf!F:F,1) -> 0 | G19: =COUNTIFS(FundSdf!$J:$J,$E19,FundSdf!$D:$D,0,FundSdf!$E:$E,1,FundSdf!F:F,1) -> 0 | J19: =COUNTIFS(FundSdf!$J:$J,$E19,FundSdf!$D:$D,1,FundSdf!$E:$E,0,FundSdf!F:F,1) -> 0 | K19: =COUNTIFS(FundSdf!$J:$J,$E19,FundSdf!$D:$D,1,FundSdf!$E:$E,1,FundSdf!F:F,1) -> 0
D20: Foreign | E20: Private Retirement Scheme | F20: =COUNTIFS(FundSdf!$J:$J,$E20,FundSdf!$D:$D,0,FundSdf!$E:$E,0,FundSdf!F:F,1) -> 0 | G20: =COUNTIFS(FundSdf!$J:$J,$E20,FundSdf!$D:$D,0,FundSdf!$E:$E,1,FundSdf!F:F,1) -> 0 | J20: =COUNTIFS(FundSdf!$J:$J,$E20,FundSdf!$D:$D,1,FundSdf!$E:$E,0,FundSdf!F:F,1) -> 0 | K20: =COUNTIFS(FundSdf!$J:$J,$E20,FundSdf!$D:$D,1,FundSdf!$E:$E,1,FundSdf!F:F,1) -> 0
D21: Foreign | E21: Private Retirement Scheme | F21: =COUNTIFS(FundSdf!$J:$J,$E21,FundSdf!$D:$D,0,FundSdf!$E:$E,0,FundSdf!F:F,1) -> 0 | G21: =COUNTIFS(FundSdf!$J:$J,$E21,FundSdf!$D:$D,0,FundSdf!$E:$E,1,FundSdf!F:F,1) -> 0 | J21: =COUNTIFS(FundSdf!$J:$J,$E21,FundSdf!$D:$D,1,FundSdf!$E:$E,0,FundSdf!F:F,1) -> 0 | K21: =COUNTIFS(FundSdf!$J:$J,$E21,FundSdf!$D:$D,1,FundSdf!$E:$E,1,FundSdf!F:F,1) -> 0
D22: Foreign | E22: Private Mandate | F22: =COUNTIFS(FundSdf!$J:$J,$E22,FundSdf!$D:$D,0,FundSdf!$E:$E,0,FundSdf!F:F,1) -> 0 | G22: =COUNTIFS(FundSdf!$J:$J,$E22,FundSdf!$D:$D,0,FundSdf!$E:$E,1,FundSdf!F:F,1) -> 0 | J22: =COUNTIFS(FundSdf!$J:$J,$E22,FundSdf!$D:$D,1,FundSdf!$E:$E,0,FundSdf!F:F,1) -> 0 | K22: =COUNTIFS(FundSdf!$J:$J,$E22,FundSdf!$D:$D,1,FundSdf!$E:$E,1,FundSdf!F:F,1) -> 0
D23: Foreign | E23: Corporate Bodies | F23: =COUNTIFS(FundSdf!$J:$J,$E23,FundSdf!$D:$D,0,FundSdf!$E:$E,0,FundSdf!F:F,1) -> 0 | G23: =COUNTIFS(FundSdf!$J:$J,$E23,FundSdf!$D:$D,0,FundSdf!$E:$E,1,FundSdf!F:F,1) -> 0 | J23: =COUNTIFS(FundSdf!$J:$J,$E23,FundSdf!$D:$D,1,FundSdf!$E:$E,0,FundSdf!F:F,1) -> 0 | K23: =COUNTIFS(FundSdf!$J:$J,$E23,FundSdf!$D:$D,1,FundSdf!$E:$E,1,FundSdf!F:F,1) -> 0
D24: Foreign | E24: Charitable Organisations | F24: =COUNTIFS(FundSdf!$J:$J,$E24,FundSdf!$D:$D,0,FundSdf!$E:$E,0,FundSdf!F:F,1) -> 0 | G24: =COUNTIFS(FundSdf!$J:$J,$E24,FundSdf!$D:$D,0,FundSdf!$E:$E,1,FundSdf!F:F,1) -> 0 | J24: =COUNTIFS(FundSdf!$J:$J,$E24,FundSdf!$D:$D,1,FundSdf!$E:$E,0,FundSdf!F:F,1) -> 0 | K24: =COUNTIFS(FundSdf!$J:$J,$E24,FundSdf!$D:$D,1,FundSdf!$E:$E,1,FundSdf!F:F,1) -> 0
D25: Foreign | E25: Individual - Skim Pelaburan Ahli - KWSP | F25: =COUNTIFS(FundSdf!$J:$J,$E25,FundSdf!$D:$D,0,FundSdf!$E:$E,0,FundSdf!F:F,1) -> 0 | G25: =COUNTIFS(FundSdf!$J:$J,$E25,FundSdf!$D:$D,0,FundSdf!$E:$E,1,FundSdf!F:F,1) -> 0 | J25: =COUNTIFS(FundSdf!$J:$J,$E25,FundSdf!$D:$D,1,FundSdf!$E:$E,0,FundSdf!F:F,1) -> 0 | K25: =COUNTIFS(FundSdf!$J:$J,$E25,FundSdf!$D:$D,1,FundSdf!$E:$E,1,FundSdf!F:F,1) -> 0
D26: Foreign | E26: Individual - Individual Private Mandates | F26: =COUNTIFS(FundSdf!$J:$J,$E26,FundSdf!$D:$D,0,FundSdf!$E:$E,0,FundSdf!F:F,1) -> 0 | G26: =COUNTIFS(FundSdf!$J:$J,$E26,FundSdf!$D:$D,0,FundSdf!$E:$E,1,FundSdf!F:F,1) -> 0 | J26: =COUNTIFS(FundSdf!$J:$J,$E26,FundSdf!$D:$D,1,FundSdf!$E:$E,0,FundSdf!F:F,1) -> 0 | K26: =COUNTIFS(FundSdf!$J:$J,$E26,FundSdf!$D:$D,1,FundSdf!$E:$E,1,FundSdf!F:F,1) -> 0
D27: Foreign | E27: Private Pension Funds | F27: =COUNTIFS(FundSdf!$J:$J,$E27,FundSdf!$D:$D,0,FundSdf!$E:$E,0,FundSdf!F:F,1) -> 0 | G27: =COUNTIFS(FundSdf!$J:$J,$E27,FundSdf!$D:$D,0,FundSdf!$E:$E,1,FundSdf!F:F,1) -> 0 | J27: =COUNTIFS(FundSdf!$J:$J,$E27,FundSdf!$D:$D,1,FundSdf!$E:$E,0,FundSdf!F:F,1) -> 0 | K27: =COUNTIFS(FundSdf!$J:$J,$E27,FundSdf!$D:$D,1,FundSdf!$E:$E,1,FundSdf!F:F,1) -> 0
D28: Foreign | E28: Statutory Bodies and Government Agencies | F28: =COUNTIFS(FundSdf!$J:$J,$E28,FundSdf!$D:$D,0,FundSdf!$E:$E,0,FundSdf!F:F,1) -> 0 | G28: =COUNTIFS(FundSdf!$J:$J,$E28,FundSdf!$D:$D,0,FundSdf!$E:$E,1,FundSdf!F:F,1) -> 0 | J28: =COUNTIFS(FundSdf!$J:$J,$E28,FundSdf!$D:$D,1,FundSdf!$E:$E,0,FundSdf!F:F,1) -> 0 | K28: =COUNTIFS(FundSdf!$J:$J,$E28,FundSdf!$D:$D,1,FundSdf!$E:$E,1,FundSdf!F:F,1) -> 0
D29: Foreign | E29: BNM | F29: =COUNTIFS(FundSdf!$J:$J,$E29,FundSdf!$D:$D,0,FundSdf!$E:$E,0,FundSdf!F:F,1) -> 0 | G29: =COUNTIFS(FundSdf!$J:$J,$E29,FundSdf!$D:$D,0,FundSdf!$E:$E,1,FundSdf!F:F,1) -> 0 | J29: =COUNTIFS(FundSdf!$J:$J,$E29,FundSdf!$D:$D,1,FundSdf!$E:$E,0,FundSdf!F:F,1) -> 0 | K29: =COUNTIFS(FundSdf!$J:$J,$E29,FundSdf!$D:$D,1,FundSdf!$E:$E,1,FundSdf!F:F,1) -> 0
D30: Foreign | E30: KWAP | F30: =COUNTIFS(FundSdf!$J:$J,$E30,FundSdf!$D:$D,0,FundSdf!$E:$E,0,FundSdf!F:F,1) -> 0 | G30: =COUNTIFS(FundSdf!$J:$J,$E30,FundSdf!$D:$D,0,FundSdf!$E:$E,1,FundSdf!F:F,1) -> 0 | J30: =COUNTIFS(FundSdf!$J:$J,$E30,FundSdf!$D:$D,1,FundSdf!$E:$E,0,FundSdf!F:F,1) -> 0 | K30: =COUNTIFS(FundSdf!$J:$J,$E30,FundSdf!$D:$D,1,FundSdf!$E:$E,1,FundSdf!F:F,1) -> 0
D31: Foreign | E31: PERKESO | F31: =COUNTIFS(FundSdf!$J:$J,$E31,FundSdf!$D:$D,0,FundSdf!$E:$E,0,FundSdf!F:F,1) -> 0 | G31: =COUNTIFS(FundSdf!$J:$J,$E31,FundSdf!$D:$D,0,FundSdf!$E:$E,1,FundSdf!F:F,1) -> 0 | J31: =COUNTIFS(FundSdf!$J:$J,$E31,FundSdf!$D:$D,1,FundSdf!$E:$E,0,FundSdf!F:F,1) -> 0 | K31: =COUNTIFS(FundSdf!$J:$J,$E31,FundSdf!$D:$D,1,FundSdf!$E:$E,1,FundSdf!F:F,1) -> 0
D32: Foreign | E32: LTAT | F32: =COUNTIFS(FundSdf!$J:$J,$E32,FundSdf!$D:$D,0,FundSdf!$E:$E,0,FundSdf!F:F,1) -> 0 | G32: =COUNTIFS(FundSdf!$J:$J,$E32,FundSdf!$D:$D,0,FundSdf!$E:$E,1,FundSdf!F:F,1) -> 0 | J32: =COUNTIFS(FundSdf!$J:$J,$E32,FundSdf!$D:$D,1,FundSdf!$E:$E,0,FundSdf!F:F,1) -> 0 | K32: =COUNTIFS(FundSdf!$J:$J,$E32,FundSdf!$D:$D,1,FundSdf!$E:$E,1,FundSdf!F:F,1) -> 0
D33: Foreign | E33: KWSP | F33: =COUNTIFS(FundSdf!$J:$J,$E33,FundSdf!$D:$D,0,FundSdf!$E:$E,0,FundSdf!F:F,1) -> 0 | G33: =COUNTIFS(FundSdf!$J:$J,$E33,FundSdf!$D:$D,0,FundSdf!$E:$E,1,FundSdf!F:F,1) -> 0 | J33: =COUNTIFS(FundSdf!$J:$J,$E33,FundSdf!$D:$D,1,FundSdf!$E:$E,0,FundSdf!F:F,1) -> 0 | K33: =COUNTIFS(FundSdf!$J:$J,$E33,FundSdf!$D:$D,1,FundSdf!$E:$E,1,FundSdf!F:F,1) -> 0
D34: Foreign | E34: LTH | F34: =COUNTIFS(FundSdf!$J:$J,$E34,FundSdf!$D:$D,0,FundSdf!$E:$E,0,FundSdf!F:F,1) -> 0 | G34: =COUNTIFS(FundSdf!$J:$J,$E34,FundSdf!$D:$D,0,FundSdf!$E:$E,1,FundSdf!F:F,1) -> 0 | J34: =COUNTIFS(FundSdf!$J:$J,$E34,FundSdf!$D:$D,1,FundSdf!$E:$E,0,FundSdf!F:F,1) -> 0 | K34: =COUNTIFS(FundSdf!$J:$J,$E34,FundSdf!$D:$D,1,FundSdf!$E:$E,1,FundSdf!F:F,1) -> 0
D35: Foreign | E35: Other Statutory Bodies and Government Agencies | F35: =COUNTIFS(FundSdf!$J:$J,$E35,FundSdf!$D:$D,0,FundSdf!$E:$E,0,FundSdf!F:F,1) -> 0 | G35: =COUNTIFS(FundSdf!$J:$J,$E35,FundSdf!$D:$D,0,FundSdf!$E:$E,1,FundSdf!F:F,1) -> 0 | J35: =COUNTIFS(FundSdf!$J:$J,$E35,FundSdf!$D:$D,1,FundSdf!$E:$E,0,FundSdf!F:F,1) -> 0 | K35: =COUNTIFS(FundSdf!$J:$J,$E35,FundSdf!$D:$D,1,FundSdf!$E:$E,1,FundSdf!F:F,1) -> 0
D36: Foreign | E36: Other Type of Funds | F36: =COUNTIFS(FundSdf!$J:$J,$E36,FundSdf!$D:$D,0,FundSdf!$E:$E,0,FundSdf!F:F,1) -> 0 | G36: =COUNTIFS(FundSdf!$J:$J,$E36,FundSdf!$D:$D,0,FundSdf!$E:$E,1,FundSdf!F:F,1) -> 0 | J36: =COUNTIFS(FundSdf!$J:$J,$E36,FundSdf!$D:$D,1,FundSdf!$E:$E,0,FundSdf!F:F,1) -> 0 | K36: =COUNTIFS(FundSdf!$J:$J,$E36,FundSdf!$D:$D,1,FundSdf!$E:$E,1,FundSdf!F:F,1) -> 0
D37: Foreign | E37: Other Type of Funds | F37: =COUNTIFS(FundSdf!$J:$J,$E37,FundSdf!$D:$D,0,FundSdf!$E:$E,0,FundSdf!F:F,1) -> 0 | G37: =COUNTIFS(FundSdf!$J:$J,$E37,FundSdf!$D:$D,0,FundSdf!$E:$E,1,FundSdf!F:F,1) -> 0 | J37: =COUNTIFS(FundSdf!$J:$J,$E37,FundSdf!$D:$D,1,FundSdf!$E:$E,0,FundSdf!F:F,1) -> 0 | K37: =COUNTIFS(FundSdf!$J:$J,$E37,FundSdf!$D:$D,1,FundSdf!$E:$E,1,FundSdf!F:F,1) -> 0

Sheet 440.12
D2: Breakdown of Source of Assets under Management (AUM) - Local
D13: Jurisdiction | E13: Product | F13: Conventional - Related Parties (RM) | G13: Conventional - Non-Related Parties (RM) | H13: Shariah - Related Parties (RM) | I13: Shariah - Non-Related Parties (RM)
D15: Local | E15: Collective Investment Scheme | F15: =SUMIFS(InPort!$BM:$BM,InPort!$BO:$BO,'440.12'!$E15,InPort!$BP:$BP,1,InPort!$AJ:$AJ,"MY",InPort!$AK:$AK,0) -> 0 | G15: =SUMIFS(InPort!$BM:$BM,InPort!$BO:$BO,'440.12'!$E15,InPort!$BP:$BP,0,InPort!$AJ:$AJ,"MY",InPort!$AK:$AK,0) -> 0 | H15: =SUMIFS(InPort!$BM:$BM,InPort!$BO:$BO,'440.12'!$E15,InPort!$BP:$BP,1,InPort!$AJ:$AJ,"MY",InPort!$AK:$AK,1) -> 0 | I15: =SUMIFS(InPort!$BM:$BM,InPort!$BO:$BO,'440.12'!$E15,InPort!$BP:$BP,0,InPort!$AJ:$AJ,"=MY",InPort!$AK:$AK,1) -> 0
D16: Local | E16: Unit Trust Funds | F16: =SUMIFS(InPort!$BM:$BM,InPort!$BO:$BO,'440.12'!$E16,InPort!$BP:$BP,1,InPort!$AJ:$AJ,"MY",InPort!$AK:$AK,0) -> 0 | G16: =SUMIFS(InPort!$BM:$BM,InPort!$BO:$BO,'440.12'!$E16,InPort!$BP:$BP,0,InPort!$AJ:$AJ,"MY",InPort!$AK:$AK,0) -> 0 | H16: =SUMIFS(InPort!$BM:$BM,InPort!$BO:$BO,'440.12'!$E16,InPort!$BP:$BP,1,InPort!$AJ:$AJ,"MY",InPort!$AK:$AK,1) -> 0 | I16: =SUMIFS(InPort!$BM:$BM,InPort!$BO:$BO,'440.12'!$E16,InPort!$BP:$BP,0,InPort!$AJ:$AJ,"=MY",InPort!$AK:$AK,1) -> 281284934.2
D17: Local | E17: Wholesale Funds | F17: =SUMIFS(InPort!$BM:$BM,InPort!$BO:$BO,'440.12'!$E17,InPort!$BP:$BP,1,InPort!$AJ:$AJ,"MY",InPort!$AK:$AK,0) -> 0 | G17: =SUMIFS(InPort!$BM:$BM,InPort!$BO:$BO,'440.12'!$E17,InPort!$BP:$BP,0,InPort!$AJ:$AJ,"MY",InPort!$AK:$AK,0) -> 0 | H17: =SUMIFS(InPort!$BM:$BM,InPort!$BO:$BO,'440.12'!$E17,InPort!$BP:$BP,1,InPort!$AJ:$AJ,"MY",InPort!$AK:$AK,1) -> 0 | I17: =SUMIFS(InPort!$BM:$BM,InPort!$BO:$BO,'440.12'!$E17,InPort!$BP:$BP,0,InPort!$AJ:$AJ,"=MY",InPort!$AK:$AK,1) -> 1567865990
D18: Local | E18: Exchange-traded Funds | F18: =SUMIFS(InPort!$BM:$BM,InPort!$BO:$BO,'440.12'!$E18,InPort!$BP:$BP,1,InPort!$AJ:$AJ,"MY",InPort!$AK:$AK,0) -> 0 | G18: =SUMIFS(InPort!$BM:$BM,InPort!$BO:$BO,'440.12'!$E18,InPort!$BP:$BP,0,InPort!$AJ:$AJ,"MY",InPort!$AK:$AK,0) -> 0 | H18: =SUMIFS(InPort!$BM:$BM,InPort!$BO:$BO,'440.12'!$E18,InPort!$BP:$BP,1,InPort!$AJ:$AJ,"MY",InPort!$AK:$AK,1) -> 0 | I18: =SUMIFS(InPort!$BM:$BM,InPort!$BO:$BO,'440.12'!$E18,InPort!$BP:$BP,0,InPort!$AJ:$AJ,"=MY",InPort!$AK:$AK,1) -> 0
D19: Local | E19: Listed Closed-end Funds | F19: =SUMIFS(InPort!$BM:$BM,InPort!$BO:$BO,'440.12'!$E19,InPort!$BP:$BP,1,InPort!$AJ:$AJ,"MY",InPort!$AK:$AK,0) -> 0 | G19: =SUMIFS(InPort!$BM:$BM,InPort!$BO:$BO,'440.12'!$E19,InPort!$BP:$BP,0,InPort!$AJ:$AJ,"MY",InPort!$AK:$AK,0) -> 0 | H19: =SUMIFS(InPort!$BM:$BM,InPort!$BO:$BO,'440.12'!$E19,InPort!$BP:$BP,1,InPort!$AJ:$AJ,"MY",InPort!$AK:$AK,1) -> 0 | I19: =SUMIFS(InPort!$BM:$BM,InPort!$BO:$BO,'440.12'!$E19,InPort!$BP:$BP,0,InPort!$AJ:$AJ,"=MY",InPort!$AK:$AK,1) -> 0
D20: Local | E20: Private Retirement Scheme | F20: =SUMIFS(InPort!$BM:$BM,InPort!$BO:$BO,'440.12'!$E20,InPort!$BP:$BP,1,InPort!$AJ:$AJ,"MY",InPort!$AK:$AK,0) -> 0 | G20: =SUMIFS(InPort!$BM:$BM,InPort!$BO:$BO,'440.12'!$E20,InPort!$BP:$BP,0,InPort!$AJ:$AJ,"MY",InPort!$AK:$AK,0) -> 0 | H20: =SUMIFS(InPort!$BM:$BM,InPort!$BO:$BO,'440.12'!$E20,InPort!$BP:$BP,1,InPort!$AJ:$AJ,"MY",InPort!$AK:$AK,1) -> 0 | I20: =SUMIFS(InPort!$BM:$BM,InPort!$BO:$BO,'440.12'!$E20,InPort!$BP:$BP,0,InPort!$AJ:$AJ,"=MY",InPort!$AK:$AK,1) -> 0
D21: Local | E21: PRS issued in-House | F21: =SUMIFS(InPort!$BM:$BM,InPort!$BO:$BO,'440.12'!$E21,InPort!$BP:$BP,1,InPort!$AJ:$AJ,"MY",InPort!$AK:$AK,0) -> 0 | G21: =SUMIFS(InPort!$BM:$BM,InPort!$BO:$BO,'440.12'!$E21,InPort!$BP:$BP,0,InPort!$AJ:$AJ,"MY",InPort!$AK:$AK,0) -> 0 | H21: =SUMIFS(InPort!$BM:$BM,InPort!$BO:$BO,'440.12'!$E21,InPort!$BP:$BP,1,InPort!$AJ:$AJ,"MY",InPort!$AK:$AK,1) -> 0 | I21: =SUMIFS(InPort!$BM:$BM,InPort!$BO:$BO,'440.12'!$E21,InPort!$BP:$BP,0,InPort!$AJ:$AJ,"=MY",InPort!$AK:$AK,1) -> 0
D22: Local | E22: PRS issued by Third Party PRS Providers | F22: =SUMIFS(InPort!$BM:$BM,InPort!$BO:$BO,'440.12'!$E22,InPort!$BP:$BP,1,InPort!$AJ:$AJ,"MY",InPort!$AK:$AK,0) -> 0 | G22: =SUMIFS(InPort!$BM:$BM,InPort!$BO:$BO,'440.12'!$E22,InPort!$BP:$BP,0,InPort!$AJ:$AJ,"MY",InPort!$AK:$AK,0) -> 0 | H22: =SUMIFS(InPort!$BM:$BM,InPort!$BO:$BO,'440.12'!$E22,InPort!$BP:$BP,1,InPort!$AJ:$AJ,"MY",InPort!$AK:$AK,1) -> 0 | I22: =SUMIFS(InPort!$BM:$BM,InPort!$BO:$BO,'440.12'!$E22,InPort!$BP:$BP,0,InPort!$AJ:$AJ,"=MY",InPort!$AK:$AK,1) -> 0
D23: Local | E23: Private Mandate | F23: =SUMIFS(InPort!$BM:$BM,InPort!$BO:$BO,'440.12'!$E23,InPort!$BP:$BP,1,InPort!$AJ:$AJ,"MY",InPort!$AK:$AK,0) -> 0 | G23: =SUMIFS(InPort!$BM:$BM,InPort!$BO:$BO,'440.12'!$E23,InPort!$BP:$BP,0,InPort!$AJ:$AJ,"MY",InPort!$AK:$AK,0) -> 0 | H23: =SUMIFS(InPort!$BM:$BM,InPort!$BO:$BO,'440.12'!$E23,InPort!$BP:$BP,1,InPort!$AJ:$AJ,"MY",InPort!$AK:$AK,1) -> 0 | I23: =SUMIFS(InPort!$BM:$BM,InPort!$BO:$BO,'440.12'!$E23,InPort!$BP:$BP,0,InPort!$AJ:$AJ,"=MY",InPort!$AK:$AK,1) -> 0
D24: Local | E24: Corporate Bodies | F24: =SUMIFS(InPort!$BM:$BM,InPort!$BO:$BO,'440.12'!$E24,InPort!$BP:$BP,1,InPort!$AJ:$AJ,"MY",InPort!$AK:$AK,0) -> 0 | G24: =SUMIFS(InPort!$BM:$BM,InPort!$BO:$BO,'440.12'!$E24,InPort!$BP:$BP,0,InPort!$AJ:$AJ,"MY",InPort!$AK:$AK,0) -> 0 | H24: =SUMIFS(InPort!$BM:$BM,InPort!$BO:$BO,'440.12'!$E24,InPort!$BP:$BP,1,InPort!$AJ:$AJ,"MY",InPort!$AK:$AK,1) -> 0 | I24: =SUMIFS(InPort!$BM:$BM,InPort!$BO:$BO,'440.12'!$E24,InPort!$BP:$BP,0,InPort!$AJ:$AJ,"=MY",InPort!$AK:$AK,1) -> 0
D25: Local | E25: Charitable Organisations | F25: =SUMIFS(InPort!$BM:$BM,InPort!$BO:$BO,'440.12'!$E25,InPort!$BP:$BP,1,InPort!$AJ:$AJ,"MY",InPort!$AK:$AK,0) -> 0 | G25: =SUMIFS(InPort!$BM:$BM,InPort!$BO:$BO,'440.12'!$E25,InPort!$BP:$BP,0,InPort!$AJ:$AJ,"MY",InPort!$AK:$AK,0) -> 0 | H25: =SUMIFS(InPort!$BM:$BM,InPort!$BO:$BO,'440.12'!$E25,InPort!$BP:$BP,1,InPort!$AJ:$AJ,"MY",InPort!$AK:$AK,1) -> 0 | I25: =SUMIFS(InPort!$BM:$BM,InPort!$BO:$BO,'440.12'!$E25,InPort!$BP:$BP,0,InPort!$AJ:$AJ,"=MY",InPort!$AK:$AK,1) -> 0
D26: Local | E26: Individual - Skim Pelaburan Ahli - KWSP | F26: =SUMIFS(InPort!$BM:$BM,InPort!$BO:$BO,'440.12'!$E26,InPort!$BP:$BP,1,InPort!$AJ:$AJ,"MY",InPort!$AK:$AK,0) -> 0 | G26: =SUMIFS(InPort!$BM:$BM,InPort!$BO:$BO,'440.12'!$E26,InPort!$BP:$BP,0,InPort!$AJ:$AJ,"MY",InPort!$AK:$AK,0) -> 0 | H26: =SUMIFS(InPort!$BM:$BM,InPort!$BO:$BO,'440.12'!$E26,InPort!$BP:$BP,1,InPort!$AJ:$AJ,"MY",InPort!$AK:$AK,1) -> 0 | I26: =SUMIFS(InPort!$BM:$BM,InPort!$BO:$BO,'440.12'!$E26,InPort!$BP:$BP,0,InPort!$AJ:$AJ,"=MY",InPort!$AK:$AK,1) -> 0
D27: Local | E27: Individual - Individual Private Mandates | F27: =SUMIFS(InPort!$BM:$BM,InPort!$BO:$BO,'440.12'!$E27,InPort!$BP:$BP,1,InPort!$AJ:$AJ,"MY",InPort!$AK:$AK,0) -> 0 | G27: =SUMIFS(InPort!$BM:$BM,InPort!$BO:$BO,'440.12'!$E27,InPort!$BP:$BP,0,InPort!$AJ:$AJ,"MY",InPort!$AK:$AK,0) -> 0 | H27: =SUMIFS(InPort!$BM:$BM,InPort!$BO:$BO,'440.12'!$E27,InPort!$BP:$BP,1,InPort!$AJ:$AJ,"MY",InPort!$AK:$AK,1) -> 0 | I27: =SUMIFS(InPort!$BM:$BM,InPort!$BO:$BO,'440.12'!$E27,InPort!$BP:$BP,0,InPort!$AJ:$AJ,"=MY",InPort!$AK:$AK,1) -> 0
D28: Local | E28: Private Pension Funds | F28: =SUMIFS(InPort!$BM:$BM,InPort!$BO:$BO,'440.12'!$E28,InPort!$BP:$BP,1,InPort!$AJ:$AJ,"MY",InPort!$AK:$AK,0) -> 0 | G28: =SUMIFS(InPort!$BM:$BM,InPort!$BO:$BO,'440.12'!$E28,InPort!$BP:$BP,0,InPort!$AJ:$AJ,"MY",InPort!$AK:$AK,0) -> 0 | H28: =SUMIFS(InPort!$BM:$BM,InPort!$BO:$BO,'440.12'!$E28,InPort!$BP:$BP,1,InPort!$AJ:$AJ,"MY",InPort!$AK:$AK,1) -> 0 | I28: =SUMIFS(InPort!$BM:$BM,InPort!$BO:$BO,'440.12'!$E28,InPort!$BP:$BP,0,InPort!$AJ:$AJ,"=MY",InPort!$AK:$AK,1) -> 0
D29: Local | E29: Statutory Bodies and Government Agencies | F29: =SUMIFS(InPort!$BM:$BM,InPort!$BO:$BO,'440.12'!$E29,InPort!$BP:$BP,1,InPort!$AJ:$AJ,"MY",InPort!$AK:$AK,0) -> 0 | G29: =SUMIFS(InPort!$BM:$BM,InPort!$BO:$BO,'440.12'!$E29,InPort!$BP:$BP,0,InPort!$AJ:$AJ,"MY",InPort!$AK:$AK,0) -> 0 | H29: =SUMIFS(InPort!$BM:$BM,InPort!$BO:$BO,'440.12'!$E29,InPort!$BP:$BP,1,InPort!$AJ:$AJ,"MY",InPort!$AK:$AK,1) -> 0 | I29: =SUMIFS(InPort!$BM:$BM,InPort!$BO:$BO,'440.12'!$E29,InPort!$BP:$BP,0,InPort!$AJ:$AJ,"=MY",InPort!$AK:$AK,1) -> 0
D30: Local | E30: BNM | F30: =SUMIFS(InPort!$BM:$BM,InPort!$BO:$BO,'440.12'!$E30,InPort!$BP:$BP,1,InPort!$AJ:$AJ,"MY",InPort!$AK:$AK,0) -> 0 | G30: =SUMIFS(InPort!$BM:$BM,InPort!$BO:$BO,'440.12'!$E30,InPort!$BP:$BP,0,InPort!$AJ:$AJ,"MY",InPort!$AK:$AK,0) -> 0 | H30: =SUMIFS(InPort!$BM:$BM,InPort!$BO:$BO,'440.12'!$E30,InPort!$BP:$BP,1,InPort!$AJ:$AJ,"MY",InPort!$AK:$AK,1) -> 0 | I30: =SUMIFS(InPort!$BM:$BM,InPort!$BO:$BO,'440.12'!$E30,InPort!$BP:$BP,0,InPort!$AJ:$AJ,"=MY",InPort!$AK:$AK,1) -> 0
D31: Local | E31: KWAP | F31: =SUMIFS(InPort!$BM:$BM,InPort!$BO:$BO,'440.12'!$E31,InPort!$BP:$BP,1,InPort!$AJ:$AJ,"MY",InPort!$AK:$AK,0) -> 0 | G31: =SUMIFS(InPort!$BM:$BM,InPort!$BO:$BO,'440.12'!$E31,InPort!$BP:$BP,0,InPort!$AJ:$AJ,"MY",InPort!$AK:$AK,0) -> 0 | H31: =SUMIFS(InPort!$BM:$BM,InPort!$BO:$BO,'440.12'!$E31,InPort!$BP:$BP,1,InPort!$AJ:$AJ,"MY",InPort!$AK:$AK,1) -> 0 | I31: =SUMIFS(InPort!$BM:$BM,InPort!$BO:$BO,'440.12'!$E31,InPort!$BP:$BP,0,InPort!$AJ:$AJ,"=MY",InPort!$AK:$AK,1) -> 0
D32: Local | E32: PERKESO | F32: =SUMIFS(InPort!$BM:$BM,InPort!$BO:$BO,'440.12'!$E32,InPort!$BP:$BP,1,InPort!$AJ:$AJ,"MY",InPort!$AK:$AK,0) -> 0 | G32: =SUMIFS(InPort!$BM:$BM,InPort!$BO:$BO,'440.12'!$E32,InPort!$BP:$BP,0,InPort!$AJ:$AJ,"MY",InPort!$AK:$AK,0) -> 0 | H32: =SUMIFS(InPort!$BM:$BM,InPort!$BO:$BO,'440.12'!$E32,InPort!$BP:$BP,1,InPort!$AJ:$AJ,"MY",InPort!$AK:$AK,1) -> 0 | I32: =SUMIFS(InPort!$BM:$BM,InPort!$BO:$BO,'440.12'!$E32,InPort!$BP:$BP,0,InPort!$AJ:$AJ,"=MY",InPort!$AK:$AK,1) -> 0
D33: Local | E33: LTAT | F33: =SUMIFS(InPort!$BM:$BM,InPort!$BO:$BO,'440.12'!$E33,InPort!$BP:$BP,1,InPort!$AJ:$AJ,"MY",InPort!$AK:$AK,0) -> 0 | G33: =SUMIFS(InPort!$BM:$BM,InPort!$BO:$BO,'440.12'!$E33,InPort!$BP:$BP,0,InPort!$AJ:$AJ,"MY",InPort!$AK:$AK,0) -> 0 | H33: =SUMIFS(InPort!$BM:$BM,InPort!$BO:$BO,'440.12'!$E33,InPort!$BP:$BP,1,InPort!$AJ:$AJ,"MY",InPort!$AK:$AK,1) -> 0 | I33: =SUMIFS(InPort!$BM:$BM,InPort!$BO:$BO,'440.12'!$E33,InPort!$BP:$BP,0,InPort!$AJ:$AJ,"=MY",InPort!$AK:$AK,1) -> 0
D34: Local | E34: KWSP | F34: =SUMIFS(InPort!$BM:$BM,InPort!$BO:$BO,'440.12'!$E34,InPort!$BP:$BP,1,InPort!$AJ:$AJ,"MY",InPort!$AK:$AK,0) -> 0 | G34: =SUMIFS(InPort!$BM:$BM,InPort!$BO:$BO,'440.12'!$E34,InPort!$BP:$BP,0,InPort!$AJ:$AJ,"MY",InPort!$AK:$AK,0) -> 0 | H34: =SUMIFS(InPort!$BM:$BM,InPort!$BO:$BO,'440.12'!$E34,InPort!$BP:$BP,1,InPort!$AJ:$AJ,"MY",InPort!$AK:$AK,1) -> 0 | I34: =SUMIFS(InPort!$BM:$BM,InPort!$BO:$BO,'440.12'!$E34,InPort!$BP:$BP,0,InPort!$AJ:$AJ,"=MY",InPort!$AK:$AK,1) -> 0
D35: Local | E35: LTH | F35: =SUMIFS(InPort!$BM:$BM,InPort!$BO:$BO,'440.12'!$E35,InPort!$BP:$BP,1,InPort!$AJ:$AJ,"MY",InPort!$AK:$AK,0) -> 0 | G35: =SUMIFS(InPort!$BM:$BM,InPort!$BO:$BO,'440.12'!$E35,InPort!$BP:$BP,0,InPort!$AJ:$AJ,"MY",InPort!$AK:$AK,0) -> 0 | H35: =SUMIFS(InPort!$BM:$BM,InPort!$BO:$BO,'440.12'!$E35,InPort!$BP:$BP,1,InPort!$AJ:$AJ,"MY",InPort!$AK:$AK,1) -> 0 | I35: =SUMIFS(InPort!$BM:$BM,InPort!$BO:$BO,'440.12'!$E35,InPort!$BP:$BP,0,InPort!$AJ:$AJ,"=MY",InPort!$AK:$AK,1) -> 0
D36: Local | E36: Other Statutory Bodies and Government Agencies | F36: =SUMIFS(InPort!$BM:$BM,InPort!$BO:$BO,'440.12'!$E36,InPort!$BP:$BP,1,InPort!$AJ:$AJ,"MY",InPort!$AK:$AK,0) -> 0 | G36: =SUMIFS(InPort!$BM:$BM,InPort!$BO:$BO,'440.12'!$E36,InPort!$BP:$BP,0,InPort!$AJ:$AJ,"MY",InPort!$AK:$AK,0) -> 0 | H36: =SUMIFS(InPort!$BM:$BM,InPort!$BO:$BO,'440.12'!$E36,InPort!$BP:$BP,1,InPort!$AJ:$AJ,"MY",InPort!$AK:$AK,1) -> 0 | I36: =SUMIFS(InPort!$BM:$BM,InPort!$BO:$BO,'440.12'!$E36,InPort!$BP:$BP,0,InPort!$AJ:$AJ,"=MY",InPort!$AK:$AK,1) -> 0
D37: Local | E37: Other Type of Funds | F37: =SUMIFS(InPort!$BM:$BM,InPort!$BO:$BO,'440.12'!$E37,InPort!$BP:$BP,1,InPort!$AJ:$AJ,"MY",InPort!$AK:$AK,0) -> 0 | G37: =SUMIFS(InPort!$BM:$BM,InPort!$BO:$BO,'440.12'!$E37,InPort!$BP:$BP,0,InPort!$AJ:$AJ,"MY",InPort!$AK:$AK,0) -> 0 | H37: =SUMIFS(InPort!$BM:$BM,InPort!$BO:$BO,'440.12'!$E37,InPort!$BP:$BP,1,InPort!$AJ:$AJ,"MY",InPort!$AK:$AK,1) -> 0 | I37: =SUMIFS(InPort!$BM:$BM,InPort!$BO:$BO,'440.12'!$E37,InPort!$BP:$BP,0,InPort!$AJ:$AJ,"=MY",InPort!$AK:$AK,1) -> 0

Sheet 450.12
D2: Breakdown of Source of Assets under Management (AUM) - Foreign
D9: Breakdown of Source of Assets under Management (AUM) - Foreign
D12: =ROW()-14 -> -2 | E12: =T12 -> FundCountryID | F12: =U12 -> (blank) | G12: =V12+L12 -> 0 | H12: =W12+M12 -> 0 | I12: 0 | J12: 0 | T12: FundCountryID | U12: (blank)
D13: Line Number | E13: Source of Funds | F13: Country | G13: Conventional - Related Parties (RM) | H13: Conventional - Non-Related Parties (RM) | I13: Shariah - Related Parties (RM) | J13: Shariah - Non-Related Parties (RM) | L13: Conventional - Related Parties (RM) | M13: Conventional - Non-Related Parties (RM) | N13: Shariah - Related Parties (RM) | O13: Shariah - Non-Related Parties (RM)
T14: Row Labels | U14: CountryName | V14: Sum of C-Related | W14: Sum of CNonRelated | X14: Sum of IslamicRelated | Y14: Sum of IslamicNonRelated
D15: =ROW()-14 -> 1 | E15: =T15 -> (blank) | F15: =U15 -> (blank) | G15: =V15+L15 -> 0 | H15: =W15+M15 -> 0 | I15: =X15+N15 -> 0 | J15: =Y15+O15 -> 0 | T15: (blank) | U15: (blank) | V15: 0 | W15: 0 | X15: 0 | Y15: 0

Sheet 500.12
D4: Breakdown of AUM delegated to other companies
F12: =X12 -> 0
D13: Line Number | E13: Source of Funds | F13: Company Registration Number | G13: Company Name | H13: Type of Company | I13: Country | J13: Conventional - Related Parties (RM) | K13: Conventional - Non-Related Parties (RM) | L13: Shariah - Related Parties (RM) | M13: Shariah - Non-Related Parties (RM) | V13: InternalExternalFund | W13: 1
D15: 1 | E15: qProductType | F15: (Multiple Items) | V15: Unit Trust Funds | W15: (blank) | X15: LION GLOBAL-TASEA
E16: InternalExternalFund | F16: (Multiple Items) | V16: Unit Trust Funds | W16: (blank) | X16: OPUS ASSET MGT SB
E18: Row Labels | F18: a | G18: ManageName | H18: TypeofCompany | I18: b | J18: Sum of ConventionalRelated | K18: Sum of ConventionalNonRelated | L18: Sum of ShariahRelated | M18: Sum of ShariahNonRelated

Sheet 510.12
D4: Movement of AUM
J5: Different from previous month
E6: Previous month's AUM | F6: 932816760 | G6: Current month's AUM | H6: =SUM('440.12'!F15:I37) + IF(ISNA(SUM('450.12'!G15:J1048576)),0,SUM('450.12'!G15:J1048576)) -> 1849150924 | J6: =H6-F6 -> 916334164.2
E7: Previous Month's Conventional AUM | F7: 737229849.1 | G7: Current Month's Conventional AUM | H7: =SUM('440.12'!F15:G37) + IF(ISNA(SUM('450.12'!G15:H1048576)),0,SUM('450.12'!G15:H1048576)) -> 0 | J7: =H7-F7 -> -737229849.1
E8: Previous month Shariah AUM | F8: 195586911.6 | G8: Current Month Shariah AUM | H8: =SUM('440.12'!H15:I37) + IF(ISNA(SUM('450.12'!I15:J1048576)),0, SUM('450.12'!I15:J1048576)) -> 1849150924 | J8: =H8-F8 -> 1653564013
D13: Reason for movement of AUM | E13: All Excluding PRS - Conventional (RM) | F13: All Excluding PRS - Shariah Mandates (RM) | G13: All Excluding PRS - Explanation Notes | H13: PRS - Conventional (RM) | I13: PRS - Shariah Mandates (RM) | J13: PRS - Explanation Notes | L13: All Excluding PRS - Conventional (RM) PM | M13: All Excluding PRS - Shariah Mandates (RM) PM | N13: All Excluding PRS - Conventional (RM) UT | O13: All Excluding PRS - Shariah Mandates (RM) UT | Q13: All Excluding PRS - Conventional (RM) PM | R13: All Excluding PRS - Shariah Mandates (RM) PM | S13: All Excluding PRS - Conventional (RM) UT | T13: All Excluding PRS - Shariah Mandates (RM) UT
D15: Funds from new clients | E15: =L15+N15 -> 0 | F15: =M15+O15 -> 0 | L15: =SUMIFS(PosTrn!$F:$F,PosTrn!$L:$L,0,PosTrn!$J:$J,"CB",PosTrn!$Q:$Q,"<=31",PosTrn!$N:$N,0) + SUMIFS(PosTrn!$F:$F,PosTrn!$L:$L,0,PosTrn!$J:$J,"CR",PosTrn!$Q:$Q,"<=31",PosTrn!$N:$N,0) +Q15 -> 0 | M15: =SUMIFS(PosTrn!$F:$F,PosTrn!$L:$L,0,PosTrn!$J:$J,"CB",PosTrn!$Q:$Q,"<=31",PosTrn!$N:$N,1) + SUMIFS(PosTrn!$F:$F,PosTrn!$L:$L,0,PosTrn!$J:$J,"CR",PosTrn!$Q:$Q,"<=31",PosTrn!$N:$N,1)+R15 -> 0 | N15: =SUMIFS(PosTrn!$F:$F,PosTrn!$L:$L,1,PosTrn!$J:$J,"CB",PosTrn!$Q:$Q,"<=31",PosTrn!$N:$N,0) + SUMIFS(PosTrn!$F:$F,PosTrn!$L:$L,1,PosTrn!$J:$J,"CR",PosTrn!$Q:$Q,"<=31",PosTrn!$N:$N,0)+S15 -> 0 | O15: =SUMIFS(PosTrn!$F:$F,PosTrn!$L:$L,1,PosTrn!$J:$J,"CB",PosTrn!$Q:$Q,"<=31",PosTrn!$N:$N,1) + SUMIFS(PosTrn!$F:$F,PosTrn!$L:$L,1,PosTrn!$J:$J,"CR",PosTrn!$Q:$Q,"<=31",PosTrn!$N:$N,1)+T15 -> 0
D16: Injection of funds by existing clients | E16: =L16+N16 -> 0 | F16: =M16+O16 -> 134616190 | L16: =SUMIFS(PosTrn!$F:$F,PosTrn!$L:$L,0,PosTrn!$J:$J,"CB",PosTrn!$Q:$Q,">31",PosTrn!$N:$N,0) + SUMIFS(PosTrn!$F:$F,PosTrn!$L:$L,0,PosTrn!$J:$J,"CR",PosTrn!$Q:$Q,">31",PosTrn!$N:$N,0)+Q16 -> 0 | M16: =SUMIFS(PosTrn!$F:$F,PosTrn!$L:$L,0,PosTrn!$J:$J,"CB",PosTrn!$Q:$Q,">31",PosTrn!$N:$N,1) + SUMIFS(PosTrn!$F:$F,PosTrn!$L:$L,0,PosTrn!$J:$J,"CR",PosTrn!$Q:$Q,">31",PosTrn!$N:$N,1)+R16 -> 0 | N16: =SUMIFS(PosTrn!$F:$F,PosTrn!$L:$L,1,PosTrn!$J:$J,"CB",PosTrn!$Q:$Q,">31",PosTrn!$N:$N,0) + SUMIFS(PosTrn!$F:$F,PosTrn!$L:$L,1,PosTrn!$J:$J,"CR",PosTrn!$Q:$Q,">31",PosTrn!$N:$N,0)+S16 -> 0 | O16: =SUMIFS(PosTrn!$F:$F,PosTrn!$L:$L,1,PosTrn!$J:$J,"CB",PosTrn!$Q:$Q,">31",PosTrn!$N:$N,1) + SUMIFS(PosTrn!$F:$F,PosTrn!$L:$L,1,PosTrn!$J:$J,"CR",PosTrn!$Q:$Q,">31",PosTrn!$N:$N,1)+T16 -> 134616190
D17: Partial withdrawal of funds by clients | E17: 0 | F17: =M17+O17 -> -25101723.8 | L17: =SUMIFS(PosTrn!$F:$F,PosTrn!$L:$L,0,PosTrn!$J:$J,"CN",PosTrn!$Q:$Q,">31",PosTrn!$N:$N,0,PosTrn!$M:$M,"<>0") + SUMIFS(PosTrn!$F:$F,PosTrn!$L:$L,0,PosTrn!$J:$J,"CC",PosTrn!$Q:$Q,">31",PosTrn!$N:$N,0,PosTrn!$M:$M,"<>0")+Q17 -> 0 | M17: =SUMIFS(PosTrn!$F:$F,PosTrn!$L:$L,0,PosTrn!$J:$J,"CN",PosTrn!$Q:$Q,">31",PosTrn!$N:$N,1,PosTrn!$M:$M,"<>0") + SUMIFS(PosTrn!$F:$F,PosTrn!$L:$L,0,PosTrn!$J:$J,"CC",PosTrn!$Q:$Q,">31",PosTrn!$N:$N,1,PosTrn!$M:$M,"<>0")+R17 -> 0 | N17: =SUMIFS(PosTrn!$F:$F,PosTrn!$L:$L,1,PosTrn!$J:$J,"CC",PosTrn!$Q:$Q,">31",PosTrn!$N:$N,0,PosTrn!$M:$M,"<>0") + SUMIFS(PosTrn!$F:$F,PosTrn!$L:$L,1,PosTrn!$J:$J,"CN",PosTrn!$Q:$Q,">31",PosTrn!$N:$N,0,PosTrn!$M:$M,"<>0")+S17 -> 0 | O17: =SUMIFS(PosTrn!$F:$F,PosTrn!$L:$L,1,PosTrn!$J:$J,"CC",PosTrn!$Q:$Q,">31",PosTrn!$N:$N,1,PosTrn!$M:$M,"<>0") + SUMIFS(PosTrn!$F:$F,PosTrn!$L:$L,1,PosTrn!$J:$J,"CN",PosTrn!$Q:$Q,">31",PosTrn!$N:$N,1,PosTrn!$M:$M,"<>0")+T17 -> -25101723.8
D18: Full withdrawal of funds by clients | E18: 0 | F18: =M18+O18 -> 0 | L18: =SUMIFS(PosTrn!$F:$F,PosTrn!$L:$L,0,PosTrn!$J:$J,"CN",PosTrn!$Q:$Q,">31",PosTrn!$N:$N,0,PosTrn!$M:$M,0) + SUMIFS(PosTrn!$F:$F,PosTrn!$L:$L,0,PosTrn!$J:$J,"CC",PosTrn!$Q:$Q,">31",PosTrn!$N:$N,0,PosTrn!$M:$M,0)+Q18 -> 0 | M18: =SUMIFS(PosTrn!$F:$F,PosTrn!$L:$L,0,PosTrn!$J:$J,"CN",PosTrn!$Q:$Q,">31",PosTrn!$N:$N,1,PosTrn!$M:$M,0) + SUMIFS(PosTrn!$F:$F,PosTrn!$L:$L,0,PosTrn!$J:$J,"CC",PosTrn!$Q:$Q,">31",PosTrn!$N:$N,1,PosTrn!$M:$M,0)+R18 -> 0 | N18: =SUMIFS(PosTrn!$F:$F,PosTrn!$L:$L,1,PosTrn!$J:$J,"CC",PosTrn!$Q:$Q,">31",PosTrn!$N:$N,0,PosTrn!$M:$M,0) + SUMIFS(PosTrn!$F:$F,PosTrn!$L:$L,1,PosTrn!$J:$J,"CN",PosTrn!$Q:$Q,">31",PosTrn!$N:$N,0,PosTrn!$M:$M,0)+S18 -> 0 | O18: =SUMIFS(PosTrn!$F:$F,PosTrn!$L:$L,1,PosTrn!$J:$J,"CC",PosTrn!$Q:$Q,">31",PosTrn!$N:$N,1,PosTrn!$M:$M,0) + SUMIFS(PosTrn!$F:$F,PosTrn!$L:$L,1,PosTrn!$J:$J,"CN",PosTrn!$Q:$Q,">31",PosTrn!$N:$N,1,PosTrn!$M:$M,0)+T18 -> 0
D19: Changes in Market Values | E19: =(H7-F7) - SUM(E15:E18) -> -737229849.1 | F19: =(H8-F8) -SUM(F15:F18) -> 1544049546
D20: Others | E20: 0 | F20: 0

Sheet 520.12
D4: Allocation of AUM - Local
R12: =SUMIFS(InPort!$BM:$BM,InPort!$C:$C,"BankVal",InPort!$AK:$AK,0,InPort!$AI:$AI,1) +SUMIFS(InPort!$BM:$BM,InPort!$BL:$BL,"Interest Receivables",InPort!$AK:$AK,0,InPort!$AI:$AI,1)+SUMIFS(InPort!$BM:$BM,InPort!$BL:$BL,"Other Liabilities ",InPort!$AK:$AK,0,InPort!$AI:$AI,1)+SUMIFS(InPort!$BM:$BM,InPort!$BL:$BL,"Profit Receivables",InPort!$AK:$AK,0,InPort!$AI:$AI,1) +SUMIFS(InPort!$BM:$BM,InPort!$BL:$BL,"Other Receivables",InPort!$AK:$AK,0,InPort!$AI:$AI,1) -> 0 | S12: =SUMIFS(InPort!$BM:$BM,InPort!$C:$C,"BankVal",InPort!$AK:$AK,1,InPort!$AI:$AI,1) + SUMIFS(InPort!$BM:$BM,InPort!$BL:$BL,"Interest Receivables",InPort!$AK:$AK,1,InPort!$AI:$AI,1) + SUMIFS(InPort!$BM:$BM,InPort!$BL:$BL,"Other Liabilities ",InPort!$AK:$AK,1,InPort!$AI:$AI,1) + SUMIFS(InPort!$BM:$BM,InPort!$BL:$BL,"Profit Receivables",InPort!$AK:$AK,1,InPort!$AI:$AI,1) + SUMIFS(InPort!$BM:$BM,InPort!$BL:$BL,"Other Receivables",InPort!$AK:$AK,1,InPort!$AI:$AI,1) -> 15926083.05 | T12: =SUMIFS(InPort!$BM:$BM,InPort!$C:$C,"BankVal",InPort!$AK:$AK,0,InPort!$AI:$AI,0) +SUMIFS(InPort!$BM:$BM,InPort!$BL:$BL,"Interest Receivables",InPort!$AK:$AK,0,InPort!$AI:$AI,0)+SUMIFS(InPort!$BM:$BM,InPort!$BL:$BL,"Other Liabilities ",InPort!$AK:$AK,0,InPort!$AI:$AI,0)+SUMIFS(InPort!$BM:$BM,InPort!$BL:$BL,"Profit Receivables",InPort!$AK:$AK,0,InPort!$AI:$AI,0)+SUMIFS(InPort!$BM:$BM,InPort!$BL:$BL,"Other Receivables",InPort!$AK:$AK,0,InPort!$AI:$AI,0) -> 0 | U12: =SUMIFS(InPort!$BM:$BM,InPort!$C:$C,"BankVal",InPort!$AK:$AK,1,InPort!$AI:$AI,0) -> 0
D13: Jurisdiction | E13: Main Categories | F13: Proprietary Investments - Conventional Investments (RM ) | G13: Proprietary Investments - Shariah Mandates (RM) | H13: Clients' Investments excluding PRS - Conventional Investments (RM ) | I13: Clients' Investments excluding PRS - Shariah Mandates (RM) | J13: Investments of PRS Issued & Managed In-House - Conventional Investments (RM) | K13: Investments of PRS Issued & Managed In-House - Shariah Mandates (RM) | L13: Investments of PRS Issued by Third Party PRS Providers - Conventional Investments (RM) | M13: Investments of PRS Issued by Third Party PRS Providers - Shariah Mandates (RM) | R13: Clients' Investments excluding PRS - Conventional Investments (RM ) - UTFund | S13: Clients' Investments excluding PRS - Shariah Mandates (RM) - UTFund | T13: Clients' Investments excluding PRS - Conventional Investments (RM ) - PM | U13: Clients' Investments excluding PRS - Shariah Mandates (RM) - PM
D15: Local | E15: Uninvested funds/cash | H15: =R15+T15 -> 0 | I15: =S15+U15 -> 7684043.91 | R15: =SUMIFS(InPort!$BM:$BM,InPort!$C:$C,"BankVal",InPort!$AK:$AK,0,InPort!$AI:$AI,1) -> 0 | S15: =SUMIFS(InPort!$BM:$BM,InPort!$C:$C,"BankVal",InPort!$AK:$AK,1,InPort!$AI:$AI,1) -> 7684043.91 | T15: =SUMIFS(InPort!$BM:$BM,InPort!$C:$C,"BankVal",InPort!$AK:$AK,0,InPort!$AI:$AI,0) -> 0 | U15: =SUMIFS(InPort!$BM:$BM,InPort!$C:$C,"BankVal",InPort!$AK:$AK,1,InPort!$AI:$AI,0) -> 0
D16: Local | E16: Money Market Instruments | H16: =R16+T16 -> 0 | I16: =S16+U16 -> 1438480029 | R16: =SUMIFS(InPort!$BM:$BM,InPort!$BL:$BL,'520.12'!$E16,InPort!$AK:$AK,0,InPort!$AI:$AI,1,InPort!$S:$S,"MYR") +SUMIFS(InPort!$BM:$BM,InPort!$BL:$BL,"Placement of Deposit",InPort!$AK:$AK,0,InPort!$AI:$AI,1,InPort!$S:$S,"MYR") -> 0 | S16: =SUMIFS(InPort!$BM:$BM,InPort!$BL:$BL,$E16,InPort!$AK:$AK,1,InPort!$AI:$AI,1,InPort!$S:$S,"MYR") +SUMIFS(InPort!$BM:$BM,InPort!$BL:$BL,"Placement of Deposit",InPort!$AK:$AK,1,InPort!$AI:$AI,1,InPort!$S:$S,"MYR") -> 1438480029 | T16: =SUMIFS(InPort!$BM:$BM,InPort!$BL:$BL,$E16,InPort!$AK:$AK,0,InPort!$AI:$AI,0,InPort!$S:$S,"MYR") + SUMIFS(InPort!$BM:$BM,InPort!$BL:$BL,"Placement of Deposit",InPort!$AK:$AK,0,InPort!$AI:$AI,0,InPort!$S:$S,"MYR") -> 0 | U16: =SUMIFS(InPort!$BM:$BM,InPort!$BL:$BL,$E16,InPort!$AK:$AK,1,InPort!$AI:$AI,0,InPort!$AN:$AN,"MYR") +SUMIFS(InPort!$BM:$BM,InPort!$BL:$BL,"Placement of Deposit",InPort!$AK:$AK,1,InPort!$AI:$AI,0,InPort!$AN:$AN,"MYR") -> 0 | V16: =SUM(R16:T16) -> 1438480029
D17: Local | E17: Debentures | H17: 0 | I17: 15230847.94 | R17: =SUMIFS(InPort!$BM:$BM,InPort!$BL:$BL,'520.12'!$E17,InPort!$AK:$AK,0,InPort!$AI:$AI,1,InPort!$S:$S,"MYR") -> 0 | S17: =SUMIFS(InPort!$BM:$BM,InPort!$BL:$BL,$E17,InPort!$AK:$AK,1,InPort!$AI:$AI,1,InPort!$S:$S,"MYR") -> 15230847.94 | T17: =SUMIFS(InPort!$BM:$BM,InPort!$BL:$BL,$E17,InPort!$AK:$AK,0,InPort!$AI:$AI,0,InPort!$S:$S,"MYR") -> 0 | U17: =SUMIFS(InPort!$BM:$BM,InPort!$BL:$BL,$E17,InPort!$AK:$AK,1,InPort!$AI:$AI,0,InPort!$AN:$AN,"MYR") -> 0 | V17: =SUM(R17:T17) -> 15230847.94
D18: Local | E18: Unit Trust Fund | H18: 0 | I18: 0 | R18: =SUMIFS(InPort!$BM:$BM,InPort!$BL:$BL,'520.12'!$E18,InPort!$AK:$AK,0,InPort!$AI:$AI,1,InPort!$S:$S,"MYR") -> 0 | S18: =SUMIFS(InPort!$BM:$BM,InPort!$BL:$BL,$E18,InPort!$AK:$AK,1,InPort!$AI:$AI,1,InPort!$S:$S,"MYR") -> 0 | T18: =SUMIFS(InPort!$BM:$BM,InPort!$BL:$BL,$E18,InPort!$AK:$AK,0,InPort!$AI:$AI,0,InPort!$S:$S,"MYR") -> 0 | U18: =SUMIFS(InPort!$BM:$BM,InPort!$BL:$BL,$E18,InPort!$AK:$AK,1,InPort!$AI:$AI,0,InPort!$AN:$AN,"MYR") -> 0 | V18: 0
D19: Local | E19: Wholesale Fund | H19: 0 | I19: 0 | R19: =SUMIFS(InPort!$BM:$BM,InPort!$BL:$BL,'520.12'!$E19,InPort!$AK:$AK,0,InPort!$AI:$AI,1,InPort!$S:$S,"MYR") -> 0 | S19: =SUMIFS(InPort!$BM:$BM,InPort!$BL:$BL,$E19,InPort!$AK:$AK,1,InPort!$AI:$AI,1,InPort!$S:$S,"MYR") -> 0 | T19: =SUMIFS(InPort!$BM:$BM,InPort!$BL:$BL,$E19,InPort!$AK:$AK,0,InPort!$AI:$AI,0,InPort!$S:$S,"MYR") -> 0 | U19: =SUMIFS(InPort!$BM:$BM,InPort!$BL:$BL,$E19,InPort!$AK:$AK,1,InPort!$AI:$AI,0,InPort!$AN:$AN,"MYR") -> 0 | V19: 0
D20: Local | E20: Real-estate investment trust | H20: 0 | I20: 0 | R20: =SUMIFS(InPort!$BM:$BM,InPort!$BL:$BL,'520.12'!$E20,InPort!$AK:$AK,0,InPort!$AI:$AI,1,InPort!$S:$S,"MYR") -> 0 | S20: =SUMIFS(InPort!$BM:$BM,InPort!$BL:$BL,$E20,InPort!$AK:$AK,1,InPort!$AI:$AI,1,InPort!$S:$S,"MYR") -> 0 | T20: =SUMIFS(InPort!$BM:$BM,InPort!$BL:$BL,$E20,InPort!$AK:$AK,0,InPort!$AI:$AI,0,InPort!$S:$S,"MYR") -> 0 | U20: =SUMIFS(InPort!$BM:$BM,InPort!$BL:$BL,$E20,InPort!$AK:$AK,1,InPort!$AI:$AI,0,InPort!$AN:$AN,"MYR") -> 0 | V20: 0
D21: Local | E21: Closed-End Fund | H21: 0 | I21: 0 | R21: =SUMIFS(InPort!$BM:$BM,InPort!$BL:$BL,'520.12'!$E21,InPort!$AK:$AK,0,InPort!$AI:$AI,1,InPort!$S:$S,"MYR") -> 0 | S21: =SUMIFS(InPort!$BM:$BM,InPort!$BL:$BL,$E21,InPort!$AK:$AK,1,InPort!$AI:$AI,1,InPort!$S:$S,"MYR") -> 0 | T21: =SUMIFS(InPort!$BM:$BM,InPort!$BL:$BL,$E21,InPort!$AK:$AK,0,InPort!$AI:$AI,0,InPort!$S:$S,"MYR") -> 0 | U21: =SUMIFS(InPort!$BM:$BM,InPort!$BL:$BL,$E21,InPort!$AK:$AK,1,InPort!$AI:$AI,0,InPort!$AN:$AN,"MYR") -> 0 | V21: 0
D22: Local | E22: Exchange-traded fund | H22: 0 | I22: 0 | R22: =SUMIFS(InPort!$BM:$BM,InPort!$BL:$BL,'520.12'!$E22,InPort!$AK:$AK,0,InPort!$AI:$AI,1,InPort!$S:$S,"MYR") -> 0 | S22: =SUMIFS(InPort!$BM:$BM,InPort!$BL:$BL,$E22,InPort!$AK:$AK,1,InPort!$AI:$AI,1,InPort!$S:$S,"MYR") -> 0 | T22: =SUMIFS(InPort!$BM:$BM,InPort!$BL:$BL,$E22,InPort!$AK:$AK,0,InPort!$AI:$AI,0,InPort!$S:$S,"MYR") -> 0 | U22: =SUMIFS(InPort!$BM:$BM,InPort!$BL:$BL,$E22,InPort!$AK:$AK,1,InPort!$AI:$AI,0,InPort!$AN:$AN,"MYR") -> 0 | V22: 0
D23: Local | E23: Equities | H23: 0 | I23: 230236353.6 | R23: =SUMIFS(InPort!$BM:$BM,InPort!$BL:$BL,'520.12'!$E23,InPort!$AK:$AK,0,InPort!$AI:$AI,1,InPort!$S:$S,"MYR") -> 0 | S23: =SUMIFS(InPort!$BM:$BM,InPort!$BL:$BL,$E23,InPort!$AK:$AK,1,InPort!$AI:$AI,1,InPort!$S:$S,"MYR") -> 230236353.6 | T23: =SUMIFS(InPort!$BM:$BM,InPort!$BL:$BL,$E23,InPort!$AK:$AK,0,InPort!$AI:$AI,0,InPort!$S:$S,"MYR") -> 0 | U23: =SUMIFS(InPort!$BM:$BM,InPort!$BL:$BL,$E23,InPort!$AK:$AK,1,InPort!$AI:$AI,0,InPort!$AN:$AN,"MYR") -> 0 | V23: 230236353.6
D24: Local | E24: Business Trust | H24: 0 | I24: 0 | R24: =SUMIFS(InPort!$BM:$BM,InPort!$BL:$BL,'520.12'!$E24,InPort!$AK:$AK,0,InPort!$AI:$AI,1,InPort!$S:$S,"MYR") -> 0 | S24: =SUMIFS(InPort!$BM:$BM,InPort!$BL:$BL,$E24,InPort!$AK:$AK,1,InPort!$AI:$AI,1,InPort!$S:$S,"MYR") -> 0 | T24: =SUMIFS(InPort!$BM:$BM,InPort!$BL:$BL,$E24,InPort!$AK:$AK,0,InPort!$AI:$AI,0,InPort!$S:$S,"MYR") -> 0 | U24: =SUMIFS(InPort!$BM:$BM,InPort!$BL:$BL,$E24,InPort!$AK:$AK,1,InPort!$AI:$AI,0,InPort!$AN:$AN,"MYR") -> 0 | V24: 0
D25: Local | E25: OTC Derivative | H25: 0 | I25: 0 | R25: =SUMIFS(InPort!$BM:$BM,InPort!$BL:$BL,'520.12'!$E25,InPort!$AK:$AK,0,InPort!$AI:$AI,1,InPort!$S:$S,"MYR") -> 0 | S25: =SUMIFS(InPort!$BM:$BM,InPort!$BL:$BL,$E25,InPort!$AK:$AK,1,InPort!$AI:$AI,1,InPort!$S:$S,"MYR") -> 0 | T25: =SUMIFS(InPort!$BM:$BM,InPort!$BL:$BL,$E25,InPort!$AK:$AK,0,InPort!$AI:$AI,0,InPort!$S:$S,"MYR") -> 0 | U25: =SUMIFS(InPort!$BM:$BM,InPort!$BL:$BL,$E25,InPort!$AK:$AK,1,InPort!$AI:$AI,0,InPort!$AN:$AN,"MYR") -> 0 | V25: 0
D26: Local | E26: Exchange Traded Derivative | H26: 0 | I26: 0 | R26: =SUMIFS(InPort!$BM:$BM,InPort!$BL:$BL,'520.12'!$E26,InPort!$AK:$AK,0,InPort!$AI:$AI,1,InPort!$S:$S,"MYR") -> 0 | S26: =SUMIFS(InPort!$BM:$BM,InPort!$BL:$BL,$E26,InPort!$AK:$AK,1,InPort!$AI:$AI,1,InPort!$S:$S,"MYR") -> 0 | T26: =SUMIFS(InPort!$BM:$BM,InPort!$BL:$BL,$E26,InPort!$AK:$AK,0,InPort!$AI:$AI,0,InPort!$S:$S,"MYR") -> 0 | U26: =SUMIFS(InPort!$BM:$BM,InPort!$BL:$BL,$E26,InPort!$AK:$AK,1,InPort!$AI:$AI,0,InPort!$AN:$AN,"MYR") -> 0 | V26: 0
D27: Local | E27: Private Equity / Unquoted Stocks | H27: 0 | I27: 0 | R27: =SUMIFS(InPort!$BM:$BM,InPort!$BL:$BL,'520.12'!$E27,InPort!$AK:$AK,0,InPort!$AI:$AI,1,InPort!$S:$S,"MYR") -> 0 | S27: =SUMIFS(InPort!$BM:$BM,InPort!$BL:$BL,$E27,InPort!$AK:$AK,1,InPort!$AI:$AI,1,InPort!$S:$S,"MYR") -> 0 | T27: =SUMIFS(InPort!$BM:$BM,InPort!$BL:$BL,$E27,InPort!$AK:$AK,0,InPort!$AI:$AI,0,InPort!$S:$S,"MYR") -> 0 | U27: =SUMIFS(InPort!$BM:$BM,InPort!$BL:$BL,$E27,InPort!$AK:$AK,1,InPort!$AI:$AI,0,InPort!$AN:$AN,"MYR") -> 0 | V27: 0
D28: Local | E28: Other investments | H28: 0 | I28: -3531565.94 | R28: =SUMIFS(InPort!$BM:$BM,InPort!$AK:$AK,0,InPort!$AI:$AI,1,InPort!$S:$S,"MYR") - SUM(R15:R27) -> 0 | S28: =SUMIFS(InPort!$BM:$BM,InPort!$AK:$AK,1,InPort!$AI:$AI,1,InPort!$S:$S,"MYR")-SUM(S15:S27) -> -3531565.94 | T28: =SUMIFS(InPort!$BM:$BM,InPort!$AK:$AK,0,InPort!$AI:$AI,0,InPort!$S:$S,"MYR") - SUM(T15:T27) -> 0 | U28: =SUMIFS(InPort!$BM:$BM,InPort!$AK:$AK,1,InPort!$AI:$AI,0,InPort!$AN:$AN,"MYR") - SUM(U15:U27) -> 0 | V28: -3531565.94

Sheet 530.12
D4: Allocation of AUM - Foreign
D12: =ROW()-17 -> -5
D13: Line Number | E13: Asset Classes | F13: Country | G13: Proprietary Investments - Conventional Investments (RM) | H13: Proprietary Investments - Shariah mandates (RM) | I13: Clients' Investments excluding PRS - Conventional Investments (RM) | J13: Clients' Investments excluding PRS - Shariah mandates (RM) | K13: Investments of PRS Issued & Managed In-House - Conventional Investments (RM) | L13: Investments of PRS Issued & Managed In-House - Shariah Mandates (RM) | M13: Investments of PRS Issued by Third Party PRS Providers - Conventional Investments (RM) | N13: Investments of PRS Issued by Third Party PRS Providers - Shariah Mandates (RM) | U13: Clients' Investments excluding PRS - Conventional Investments (RM) - UT | V13: Clients' Investments excluding PRS - Shariah mandates (RM) - UT | W13: Clients' Investments excluding PRS - Conventional Investments (RM) - PM | X13: Clients' Investments excluding PRS - Shariah mandates (RM) - PM
Q14: qProductType | R14: (Multiple Items)
D15: 1 | E15: SCurrency | F15: (Multiple Items) | Q15: SCurrency | R15: (Multiple Items)
D17: =ROW()-17 -> 0 | E17: Row Labels | F17: CountryName | G17: a | H17: b | I17: Sum of AUMConventional | J17: Sum of AUMIslamic | Q17: Row Labels | R17: CountryName | S17: a | T17: b | U17: Sum of AUMConventionalUT | V17: Sum of AUMIslamicUT | W17: Sum of AUMConventionalPM | X17: Sum of AUMIslamicPM
D18: 1 | E18: Cash | F18: Singapore | G18: (blank) | H18: (blank) | I18: 0 | J18: 591987.99 | Q18: Equities | R18: Australia | S18: (blank) | T18: (blank) | U18: 0 | V18: 513058.43 | W18: 0 | X18: 0
D19: 2 | E19: Cash | F19: United States Of America | G19: (blank) | H19: (blank) | I19: 0 | J19: 1049644.28 | Q19: Equities | R19: Hong Kong | S19: (blank) | T19: (blank) | U19: 0 | V19: 248283.32 | W19: 0 | X19: 0
D20: 3 | E20: Cash | F20: Europe | G20: (blank) | H20: (blank) | I20: 0 | J20: 4889.07 | Q20: Equities | R20: Singapore | S20: (blank) | T20: (blank) | U20: 0 | V20: 433725.49 | W20: 0 | X20: 0
D21: 4 | E21: Equities | F21: Australia | G21: (blank) | H21: (blank) | I21: 0 | J21: 513058.43 | Q21: Equities | R21: UNITED KINGDOM | S21: (blank) | T21: (blank) | U21: 0 | V21: 1666907.86 | W21: 0 | X21: 0
D22: 5 | E22: Equities | F22: Hong Kong | G22: (blank) | H22: (blank) | I22: 0 | J22: 248283.32 | Q22: Equities | R22: United States Of America | S22: (blank) | T22: (blank) | U22: 0 | V22: 2990658.47 | W22: 0 | X22: 0
D23: 6 | E23: Equities | F23: Singapore | G23: (blank) | H23: (blank) | I23: 0 | J23: 433725.49 | Q23: Equities | R23: Europe | S23: (blank) | T23: (blank) | U23: 0 | V23: 588390.12 | W23: 0 | X23: 0
D24: 7 | E24: Equities | F24: UNITED KINGDOM | G24: (blank) | H24: (blank) | I24: 0 | J24: 1666907.86 | Q24: Other investments | R24: United States Of America | S24: (blank) | T24: (blank) | U24: 0 | V24: -136536.07 | W24: 0 | X24: 0
D25: 8 | E25: Equities | F25: United States Of America | G25: (blank) | H25: (blank) | I25: 0 | J25: 2990658.47 | Q25: Cash | R25: Singapore | S25: (blank) | T25: (blank) | U25: 0 | V25: 591987.99 | W25: 0 | X25: 0
D26: 9 | E26: Equities | F26: Europe | G26: (blank) | H26: (blank) | I26: 0 | J26: 588390.12 | Q26: Cash | R26: United States Of America | S26: (blank) | T26: (blank) | U26: 0 | V26: 1049644.28 | W26: 0 | X26: 0
D27: 10 | E27: Other investments | F27: United States Of America | G27: (blank) | H27: (blank) | I27: 0 | J27: -136536.07 | Q27: Cash | R27: Europe | S27: (blank) | T27: (blank) | U27: 0 | V27: 4889.07 | W27: 0 | X27: 0
D28: 11 | E28: Unit trust fund | F28: United States Of America | G28: (blank) | H28: (blank) | I28: 0 | J28: 152837329.3 | Q28: Unit trust fund | R28: United States Of America | S28: (blank) | T28: (blank) | U28: 0 | V28: 152837329.3 | W28: 0 | X28: 0
D29: 12 | E29: (blank) | F29: (blank) | G29: (blank) | H29: (blank)

Sheet InPort
BL1: =IF(B1="TBI",OFFSET(CshFlagMap!$E$1,MATCH(C1,CshFlagMap!$C:$C,0)-1,0),IF(ISNA(OFFSET(InvestmentType!$D$1,MATCH(AQ1,InvestmentType!$A:$A,0)-1,0)),"",IF(OFFSET(InvestmentType!$D$1,MATCH(AQ1,InvestmentType!$A:$A,0)-1,0) = "Collective Investment Scheme", OFFSET(InvestmentType!$E$1,MATCH(AQ1,InvestmentType!$A:$A,0)-1,0),IF(OFFSET(InvestmentType!$D$1,MATCH(AQ1,InvestmentType!$A:$A,0)-1,0) = "Derivatives",$BT1,OFFSET(InvestmentType!$D$1,MATCH(AQ1,InvestmentType!$A:$A,0)-1,0))))) -> Exchange Traded Derivative | BM1: =ROUND(H1/AF1,2) ->  | BN1: =OFFSET(Fund!$B$1,MATCH(A1,Fund!$A:$A,0)-1,0) ->  | BO1: =OFFSET(FundSdf!$J$1,MATCH(A1,FundSdf!$A:$A,0)-1,0) ->  | BP1: =OFFSET(FundSdf!$K$1,MATCH(A1,FundSdf!$A:$A,0)-1,0) ->  | BQ1: =OFFSET(FundSdf!$D$1,MATCH(A1,FundSdf!$A:$A,0)-1,0) ->  | BR1: =OFFSET(FundSdf!$G$1,MATCH(A1,FundSdf!$A:$A,0)-1,0) ->  | BS1: =OFFSET(InvestmentType!$D$1,MATCH(AQ1,InvestmentType!$A:$A,0)-1,0) -> Derivatives | BT1: =IF(OFFSET(InvestmentType!$D$1,MATCH(AQ1,InvestmentType!$A:$A,0)-1,0)= "Derivatives",IF(AW1="OTC","OTC Derivative", "Exchange Traded Derivative"),"") -> Exchange Traded Derivative | BU1: =IF(B1="TBI", IF(OR(C1="BankVal-FX",BL1="Interest Receivables",BL1="Other Liabilities ",BL1="Other Receivables",BL1="Profit Receivables"),"Cash","Other investments"),BL1) -> Exchange Traded Derivative | BV1: =OFFSET(EXTManageSdf!$C$1,MATCH(BR1,EXTManageSdf!$B:$B,0)-1,0) ->  | BW1: =IF(AND(AK1=0,BP1= 1),BM1,0) ->  | BX1: =IF(AND(AK1=0,BP1= 0),BM1,0) ->  | BY1: =IF(AND(AK1=1,BP1= 1),BM1,0) ->  | BZ1: =IF(AND(AK1=1,BP1= 0),BM1,0) ->  | CA1: =IF(AK1=0,BM1,0) ->  | CB1: =IF(AK1=1,BM1,0) -> 0 | CC1: =IF(AK1=0,IF(AI1=1,BM1,0),0) -> 0 | CD1: =IF(AK1=1,IF(AI1=1,BM1,0),0) -> 0 | CE1: =IF(AK1=0,IF(AI1=0,BM1,0),0) ->  | CF1: =IF(AK1=1,IF(AI1=0,BM1,0),0) -> 0
A2: qFundCode | B2: qProductType | C2: qStockCode | D2: qMasterID | E2: UnrealisedGainsStock | F2: UnrealisedGainsExchg | G2: MarketValueFC | H2: MarketValueSC | I2: MaturityDate | J2: UnitFaceValue | K2: PriceCurr | L2: ExchgRate | M2: AccruedInterest | N2: AmortAccreation | O2: CostFC | P2: CostSC | Q2: ExPreAcq | R2: ExPreAcqSC | S2: SCurrency | T2: PurchaseYTM | U2: PurchaseDate | V2: ValueYTM | W2: BookValue1Int | X2: ValGains | Y2: MarketValueDate | Z2: PreAcqSC | AA2: PreAcqFC | AB2: LastMarketValue | AC2: LCD | AD2: NCD | AE2: Diminution | AF2: RptCurrRate | AG2: PercNAV | AH2: NAV | AI2: UTFlag | AJ2: FundCountryID | AK2: FundIslamic | AL2: StockName | AM2: qIntSector | AN2: StockCurrency | AO2: qCountryID | AP2: IslamicFlag | AQ2: SecurityType | AR2: ProdDesc | AS2: InvestmentClass | AT2: IssuedSize | AU2: FundCategory | AV2: CountryName | AW2: DerExchg | AX2: ExchgName | AY2: IssuedSize | AZ2: Rating | BA2: RatingAgency | BB2: IssuerComply | BC2: DEVCPName | BD2: DEVCPGROUP | BE2: DEVExchange | BF2: DEVCPCountry | BG2: RebatableFlag | BH2: RebateFeeRate | BI2: IDSource | BJ2: b | BK2: a | BL2: FinancialIttem | BM2: RptCurrMarketvalue | BN2: Fund Code | BO2: FundCategory | BP2: RelatedParty | BQ2: InternalExternalFund | BR2: ManageName | BS2: InvestmentProduct | BT2: Derivatives category | BU2: ForeignAssetClass | BV2: TypeofCompany | BW2: C-Related | BX2: CNonRelated | BY2: IslamicRelated | BZ2: IslamicNonRelated | CA2: AUMConventional | CB2: AUMIslamic | CC2: AUMConventionalUT | CD2: AUMIslamicUT | CE2: AUMConventionalPM | CF2: AUMIslamicPM
A3: BICMF3 | B3: CSH | C3: RPF*MYR*MBBISL | D3: CSH*170900319 | E3: 0 | F3: 0 | G3: 200189041.1 | H3: 200189041.1 | I3: 2017-10-06 | J3: 200000000 | K3: 0 | L3: 1 | M3: 189041.1 | N3: 0 | O3: 200000000 | P3: 200000000 | Q3: 0 | R3: 0 | S3: MYR | T3: 0.0345 | U3: 2017-09-21 | V3: 0 | W3: 200189041.1 | X3: 37808.22 | Y3: 2017-09-30 | Z3: 0 | AA3: 0 | AB3: 0 | AC3: 3000-01-01 | AD3: 3000-01-01 | AE3: 0 | AF3: 1 | AG3: 66.72060347 | AH3: 300040813 | AI3: 1 | AJ3: MY | AK3: 1 | AL3: MAYBANK ISLAMIC BANK | AM3: 0 | AN3: MYR | AO3: MY | AP3: 1 | AQ3: RPF | AR3: CSH | AS3: Unlisted | AT3: 0 | AU3: WF | AV3: Malaysia | BL3: =IF(B3="TBI",OFFSET(CshFlagMap!$E$1,MATCH(C3,CshFlagMap!$C:$C,0)-1,0),IF(ISNA(OFFSET(InvestmentType!$D$1,MATCH(AQ3,InvestmentType!$A:$A,0)-1,0)),"",IF(OFFSET(InvestmentType!$D$1,MATCH(AQ3,InvestmentType!$A:$A,0)-1,0) = "Collective Investment Scheme", OFFSET(InvestmentType!$E$1,MATCH(AQ3,InvestmentType!$A:$A,0)-1,0),IF(OFFSET(InvestmentType!$D$1,MATCH(AQ3,InvestmentType!$A:$A,0)-1,0) = "Derivatives",$BT3,OFFSET(InvestmentType!$D$1,MATCH(AQ3,InvestmentType!$A:$A,0)-1,0))))) -> Money Market Instruments | BM3: =ROUND(H3/AF3,2) -> 200189041.1 | BN3: =OFFSET(Fund!$B$1,MATCH(A3,Fund!$A:$A,0)-1,0) -> C037A00004 | BO3: =OFFSET(FundSdf!$J$1,MATCH(A3,FundSdf!$A:$A,0)-1,0) -> Wholesale Funds | BP3: =OFFSET(FundSdf!$K$1,MATCH(A3,FundSdf!$A:$A,0)-1,0) -> 0 | BQ3: =OFFSET(FundSdf!$D$1,MATCH(A3,FundSdf!$A:$A,0)-1,0) -> 0 | BR3: =OFFSET(FundSdf!$G$1,MATCH(A3,FundSdf!$A:$A,0)-1,0) -> Noorul Azila Kamaruzzaman | BS3: =OFFSET(InvestmentType!$D$1,MATCH(AQ3,InvestmentType!$A:$A,0)-1,0) -> Money Market Instruments | BT3: =IF(OFFSET(InvestmentType!$D$1,MATCH(AQ3,InvestmentType!$A:$A,0)-1,0)= "Derivatives",IF(AW3="OTC","OTC Derivative", "Exchange Traded Derivative"),"") ->  | BU3: =IF(B3="TBI", IF(OR(C3="BankVal-FX",BL3="Interest Receivables",BL3="Other Liabilities ",BL3="Other Receivables",BL3="Profit Receivables"),"Cash","Other investments"),BL3) -> Money Market Instruments | BV3: =OFFSET(EXTManageSdf!$C$1,MATCH(BR3,EXTManageSdf!$B:$B,0)-1,0) ->  | BW3: =IF(AND(AK3=0,BP3= 1),BM3,0) -> 0 | BX3: =IF(AND(AK3=0,BP3= 0),BM3,0) -> 0 | BY3: =IF(AND(AK3=1,BP3= 1),BM3,0) -> 0 | BZ3: =IF(AND(AK3=1,BP3= 0),BM3,0) -> 200189041.1 | CA3: =IF(AK3=0,BM3,0) -> 0 | CB3: =IF(AK3=1,BM3,0) -> 200189041.1 | CC3: =IF(AK3=0,IF(AI3=1,BM3,0),0) -> 0 | CD3: =IF(AK3=1,IF(AI3=1,BM3,0),0) -> 200189041.1 | CE3: =IF(AK3=0,IF(AI3=0,BM3,0),0) -> 0 | CF3: =IF(AK3=1,IF(AI3=0,BM3,0),0) -> 0
A4: BICMF3 | B4: CSH | C4: RPF*MYR*RHBISL | D4: CSH*170900358 | E4: 0 | F4: 0 | G4: 100057534.2 | H4: 100057534.2 | I4: 2017-10-09 | J4: 100000000 | K4: 0 | L4: 1 | M4: 57534.25 | N4: 0 | O4: 100000000 | P4: 100000000 | Q4: 0 | R4: 0 | S4: MYR | T4: 0.035 | U4: 2017-09-25 | V4: 0 | W4: 100057534.2 | X4: 19178.08 | Y4: 2017-09-30 | Z4: 0 | AA4: 0 | AB4: 0 | AC4: 3000-01-01 | AD4: 3000-01-01 | AE4: 0 | AF4: 1 | AG4: 33.34797465 | AH4: 300040813 | AI4: 1 | AJ4: MY | AK4: 1 | AL4: RHB ISLAMIC BANK BHD | AM4: 0 | AN4: MYR | AO4: MY | AP4: 1 | AQ4: RPF | AR4: CSH | AS4: Unlisted | AT4: 0 | AU4: WF | AV4: Malaysia | BL4: =IF(B4="TBI",OFFSET(CshFlagMap!$E$1,MATCH(C4,CshFlagMap!$C:$C,0)-1,0),IF(ISNA(OFFSET(InvestmentType!$D$1,MATCH(AQ4,InvestmentType!$A:$A,0)-1,0)),"",IF(OFFSET(InvestmentType!$D$1,MATCH(AQ4,InvestmentType!$A:$A,0)-1,0) = "Collective Investment Scheme", OFFSET(InvestmentType!$E$1,MATCH(AQ4,InvestmentType!$A:$A,0)-1,0),IF(OFFSET(InvestmentType!$D$1,MATCH(AQ4,InvestmentType!$A:$A,0)-1,0) = "Derivatives",$BT4,OFFSET(InvestmentType!$D$1,MATCH(AQ4,InvestmentType!$A:$A,0)-1,0))))) -> Money Market Instruments | BM4: 100057534.2 | BN4: =OFFSET(Fund!$B$1,MATCH(A4,Fund!$A:$A,0)-1,0) -> C037A00004 | BO4: =OFFSET(FundSdf!$J$1,MATCH(A4,FundSdf!$A:$A,0)-1,0) -> Wholesale Funds | BP4: =OFFSET(FundSdf!$K$1,MATCH(A4,FundSdf!$A:$A,0)-1,0) -> 0 | BQ4: =OFFSET(FundSdf!$D$1,MATCH(A4,FundSdf!$A:$A,0)-1,0) -> 0 | BR4: =OFFSET(FundSdf!$G$1,MATCH(A4,FundSdf!$A:$A,0)-1,0) -> Noorul Azila Kamaruzzaman | BS4: =OFFSET(InvestmentType!$D$1,MATCH(AQ4,InvestmentType!$A:$A,0)-1,0) -> Money Market Instruments | BT4: =IF(OFFSET(InvestmentType!$D$1,MATCH(AQ4,InvestmentType!$A:$A,0)-1,0)= "Derivatives",IF(AW4="OTC","OTC Derivative", "Exchange Traded Derivative"),"") ->  | BU4: Money Market Instruments | BV4: =OFFSET(EXTManageSdf!$C$1,MATCH(BR4,EXTManageSdf!$B:$B,0)-1,0) ->  | BW4: 0 | BX4: 0 | BY4: 0 | BZ4: 100057534.2 | CA4: 0 | CB4: 100057534.2 | CC4: 0 | CD4: 100057534.2 | CE4: 0 | CF4: 0
A5: BIMMF | B5: CSH | C5: RPF*MYR*AFBB | D5: CSH*170500499 | E5: 0 | F5: 0 | G5: 6253965.91 | H5: 6253965.91 | I5: 2017-10-12 | J5: 6168936 | K5: 0 | L5: 1 | M5: 85029.91 | N5: 0 | O5: 6168936 | P5: 6168936 | Q5: 0 | R5: 0 | S5: MYR | T5: 0.039 | U5: 2017-05-25 | V5: 0 | W5: 6253965.91 | X5: 1318.29 | Y5: 2017-09-30 | Z5: 0 | AA5: 0 | AB5: 0 | AC5: 3000-01-01 | AD5: 3000-01-01 | AE5: 0 | AF5: 1 | AG5: 1.208309458 | AH5: 517579819.6 | AI5: 1 | AJ5: MY | AK5: 1 | AL5: ASIAN FINANCE BANK | AM5: 0 | AN5: MYR | AO5: MY | AP5: 1 | AQ5: RPF | AR5: CSH | AS5: Unlisted | AT5: 0 | AU5: WF | AV5: Malaysia | BL5: =IF(B5="TBI",OFFSET(CshFlagMap!$E$1,MATCH(C5,CshFlagMap!$C:$C,0)-1,0),IF(ISNA(OFFSET(InvestmentType!$D$1,MATCH(AQ5,InvestmentType!$A:$A,0)-1,0)),"",IF(OFFSET(InvestmentType!$D$1,MATCH(AQ5,InvestmentType!$A:$A,0)-1,0) = "Collective Investment Scheme", OFFSET(InvestmentType!$E$1,MATCH(AQ5,InvestmentType!$A:$A,0)-1,0),IF(OFFSET(InvestmentType!$D$1,MATCH(AQ5,InvestmentType!$A:$A,0)-1,0) = "Derivatives",$BT5,OFFSET(InvestmentType!$D$1,MATCH(AQ5,InvestmentType!$A:$A,0)-1,0))))) -> Money Market Instruments | BM5: 6253965.91 | BN5: =OFFSET(Fund!$B$1,MATCH(A5,Fund!$A:$A,0)-1,0) -> C037A00001 | BO5: =OFFSET(FundSdf!$J$1,MATCH(A5,FundSdf!$A:$A,0)-1,0) -> Wholesale Funds | BP5: =OFFSET(FundSdf!$K$1,MATCH(A5,FundSdf!$A:$A,0)-1,0) -> 0 | BQ5: =OFFSET(FundSdf!$D$1,MATCH(A5,FundSdf!$A:$A,0)-1,0) -> 0 | BR5: =OFFSET(FundSdf!$G$1,MATCH(A5,FundSdf!$A:$A,0)-1,0) -> Noorul Azila Kamaruzzaman | BS5: =OFFSET(InvestmentType!$D$1,MATCH(AQ5,InvestmentType!$A:$A,0)-1,0) -> Money Market Instruments | BT5: =IF(OFFSET(InvestmentType!$D$1,MATCH(AQ5,InvestmentType!$A:$A,0)-1,0)= "Derivatives",IF(AW5="OTC","OTC Derivative", "Exchange Traded Derivative"),"") ->  | BU5: Money Market Instruments | BV5: =OFFSET(EXTManageSdf!$C$1,MATCH(BR5,EXTManageSdf!$B:$B,0)-1,0) ->  | BW5: 0 | BX5: 0 | BY5: 0 | BZ5: 6253965.91 | CA5: 0 | CB5: 6253965.91 | CC5: 0 | CD5: 6253965.91 | CE5: 0 | CF5: 0
A6: BIMMF | B6: CSH | C6: RPF*MYR*AFBB | D6: CSH*170600023 | E6: 0 | F6: 0 | G6: 6207275.45 | H6: 6207275.45 | I6: 2017-11-09 | J6: 6127401 | K6: 0 | L6: 1 | M6: 79874.45 | N6: 0 | O6: 6127401 | P6: 6127401 | Q6: 0 | R6: 0 | S6: MYR | T6: 0.039 | U6: 2017-06-01 | V6: 0 | W6: 6207275.45 | X6: 1309.42 | Y6: 2017-09-30 | Z6: 0 | AA6: 0 | AB6: 0 | AC6: 3000-01-01 | AD6: 3000-01-01 | AE6: 0 | AF6: 1 | AG6: 1.199288538 | AH6: 517579819.6 | AI6: 1 | AJ6: MY | AK6: 1 | AL6: ASIAN FINANCE BANK | AM6: 0 | AN6: MYR | AO6: MY | AP6: 1 | AQ6: RPF | AR6: CSH | AS6: Unlisted | AT6: 0 | AU6: WF | AV6: Malaysia | BL6: =IF(B6="TBI",OFFSET(CshFlagMap!$E$1,MATCH(C6,CshFlagMap!$C:$C,0)-1,0),IF(ISNA(OFFSET(InvestmentType!$D$1,MATCH(AQ6,InvestmentType!$A:$A,0)-1,0)),"",IF(OFFSET(InvestmentType!$D$1,MATCH(AQ6,InvestmentType!$A:$A,0)-1,0) = "Collective Investment Scheme", OFFSET(InvestmentType!$E$1,MATCH(AQ6,InvestmentType!$A:$A,0)-1,0),IF(OFFSET(InvestmentType!$D$1,MATCH(AQ6,InvestmentType!$A:$A,0)-1,0) = "Derivatives",$BT6,OFFSET(InvestmentType!$D$1,MATCH(AQ6,InvestmentType!$A:$A,0)-1,0))))) -> Money Market Instruments | BM6: 6207275.45 | BN6: =OFFSET(Fund!$B$1,MATCH(A6,Fund!$A:$A,0)-1,0) -> C037A00001 | BO6: =OFFSET(FundSdf!$J$1,MATCH(A6,FundSdf!$A:$A,0)-1,0) -> Wholesale Funds | BP6: =OFFSET(FundSdf!$K$1,MATCH(A6,FundSdf!$A:$A,0)-1,0) -> 0 | BQ6: =OFFSET(FundSdf!$D$1,MATCH(A6,FundSdf!$A:$A,0)-1,0) -> 0 | BR6: =OFFSET(FundSdf!$G$1,MATCH(A6,FundSdf!$A:$A,0)-1,0) -> Noorul Azila Kamaruzzaman | BS6: =OFFSET(InvestmentType!$D$1,MATCH(AQ6,InvestmentType!$A:$A,0)-1,0) -> Money Market Instruments | BT6: =IF(OFFSET(InvestmentType!$D$1,MATCH(AQ6,InvestmentType!$A:$A,0)-1,0)= "Derivatives",IF(AW6="OTC","OTC Derivative", "Exchange Traded Derivative"),"") ->  | BU6: Money Market Instruments | BV6: =OFFSET(EXTManageSdf!$C$1,MATCH(BR6,EXTManageSdf!$B:$B,0)-1,0) ->  | BW6: 0 | BX6: 0 | BY6: 0 | BZ6: 6207275.45 | CA6: 0 | CB6: 6207275.45 | CC6: 0 | CD6: 6207275.45 | CE6: 0 | CF6: 0
A7: BIMMF | B7: CSH | C7: RPF*MYR*AFBB | D7: CSH*170600090 | E7: 0 | F7: 0 | G7: 5147877.53 | H7: 5147877.53 | I7: 2017-10-25 | J7: 5083780.12 | K7: 0 | L7: 1 | M7: 64097.41 | N7: 0 | O7: 5083780.12 | P7: 5083780.12 | Q7: 0 | R7: 0 | S7: MYR | T7: 0.039 | U7: 2017-06-05 | V7: 0 | W7: 5147877.53 | X7: 1086.4 | Y7: 2017-09-30 | Z7: 0 | AA7: 0 | AB7: 0 | AC7: 3000-01-01 | AD7: 3000-01-01 | AE7: 0 | AF7: 1 | AG7: 0.9946055344 | AH7: 517579819.6 | AI7: 1 | AJ7: MY | AK7: 1 | AL7: ASIAN FINANCE BANK | AM7: 0 | AN7: MYR | AO7: MY | AP7: 1 | AQ7: RPF | AR7: CSH | AS7: Unlisted | AT7: 0 | AU7: WF | AV7: Malaysia | BL7: =IF(B7="TBI",OFFSET(CshFlagMap!$E$1,MATCH(C7,CshFlagMap!$C:$C,0)-1,0),IF(ISNA(OFFSET(InvestmentType!$D$1,MATCH(AQ7,InvestmentType!$A:$A,0)-1,0)),"",IF(OFFSET(InvestmentType!$D$1,MATCH(AQ7,InvestmentType!$A:$A,0)-1,0) = "Collective Investment Scheme", OFFSET(InvestmentType!$E$1,MATCH(AQ7,InvestmentType!$A:$A,0)-1,0),IF(OFFSET(InvestmentType!$D$1,MATCH(AQ7,InvestmentType!$A:$A,0)-1,0) = "Derivatives",$BT7,OFFSET(InvestmentType!$D$1,MATCH(AQ7,InvestmentType!$A:$A,0)-1,0))))) -> Money Market Instruments | BM7: 5147877.53 | BN7: =OFFSET(Fund!$B$1,MATCH(A7,Fund!$A:$A,0)-1,0) -> C037A00001 | BO7: =OFFSET(FundSdf!$J$1,MATCH(A7,FundSdf!$A:$A,0)-1,0) -> Wholesale Funds | BP7: =OFFSET(FundSdf!$K$1,MATCH(A7,FundSdf!$A:$A,0)-1,0) -> 0 | BQ7: =OFFSET(FundSdf!$D$1,MATCH(A7,FundSdf!$A:$A,0)-1,0) -> 0 | BR7: =OFFSET(FundSdf!$G$1,MATCH(A7,FundSdf!$A:$A,0)-1,0) -> Noorul Azila Kamaruzzaman | BS7: =OFFSET(InvestmentType!$D$1,MATCH(AQ7,InvestmentType!$A:$A,0)-1,0) -> Money Market Instruments | BT7: =IF(OFFSET(InvestmentType!$D$1,MATCH(AQ7,InvestmentType!$A:$A,0)-1,0)= "Derivatives",IF(AW7="OTC","OTC Derivative", "Exchange Traded Derivative"),"") ->  | BU7: Money Market Instruments | BV7: =OFFSET(EXTManageSdf!$C$1,MATCH(BR7,EXTManageSdf!$B:$B,0)-1,0) ->  | BW7: 0 | BX7: 0 | BY7: 0 | BZ7: 5147877.53 | CA7: 0 | CB7: 5147877.53 | CC7: 0 | CD7: 5147877.53 | CE7: 0 | CF7: 0
A8: BIMMF | B8: CSH | C8: RPF*MYR*AFBB | D8: CSH*170600152 | E8: 0 | F8: 0 | G8: 6074367.12 | H8: 6074367.12 | I8: 2017-10-27 | J8: 6000000 | K8: 0 | L8: 1 | M8: 74367.12 | N8: 0 | O8: 6000000 | P8: 6000000 | Q8: 0 | R8: 0 | S8: MYR | T8: 0.039 | U8: 2017-06-07 | V8: 0 | W8: 6074367.12 | X8: 1282.2 | Y8: 2017-09-30 | Z8: 0 | AA8: 0 | AB8: 0 | AC8: 3000-01-01 | AD8: 3000-01-01 | AE8: 0 | AF8: 1 | AG8: 1.173609729 | AH8: 517579819.6 | AI8: 1 | AJ8: MY | AK8: 1 | AL8: ASIAN FINANCE BANK | AM8: 0 | AN8: MYR | AO8: MY | AP8: 1 | AQ8: RPF | AR8: CSH | AS8: Unlisted | AT8: 0 | AU8: WF | AV8: Malaysia | BL8: =IF(B8="TBI",OFFSET(CshFlagMap!$E$1,MATCH(C8,CshFlagMap!$C:$C,0)-1,0),IF(ISNA(OFFSET(InvestmentType!$D$1,MATCH(AQ8,InvestmentType!$A:$A,0)-1,0)),"",IF(OFFSET(InvestmentType!$D$1,MATCH(AQ8,InvestmentType!$A:$A,0)-1,0) = "Collective Investment Scheme", OFFSET(InvestmentType!$E$1,MATCH(AQ8,InvestmentType!$A:$A,0)-1,0),IF(OFFSET(InvestmentType!$D$1,MATCH(AQ8,InvestmentType!$A:$A,0)-1,0) = "Derivatives",$BT8,OFFSET(InvestmentType!$D$1,MATCH(AQ8,InvestmentType!$A:$A,0)-1,0))))) -> Money Market Instruments | BM8: 6074367.12 | BN8: =OFFSET(Fund!$B$1,MATCH(A8,Fund!$A:$A,0)-1,0) -> C037A00001 | BO8: =OFFSET(FundSdf!$J$1,MATCH(A8,FundSdf!$A:$A,0)-1,0) -> Wholesale Funds | BP8: =OFFSET(FundSdf!$K$1,MATCH(A8,FundSdf!$A:$A,0)-1,0) -> 0 | BQ8: =OFFSET(FundSdf!$D$1,MATCH(A8,FundSdf!$A:$A,0)-1,0) -> 0 | BR8: =OFFSET(FundSdf!$G$1,MATCH(A8,FundSdf!$A:$A,0)-1,0) -> Noorul Azila Kamaruzzaman | BS8: =OFFSET(InvestmentType!$D$1,MATCH(AQ8,InvestmentType!$A:$A,0)-1,0) -> Money Market Instruments | BT8: =IF(OFFSET(InvestmentType!$D$1,MATCH(AQ8,InvestmentType!$A:$A,0)-1,0)= "Derivatives",IF(AW8="OTC","OTC Derivative", "Exchange Traded Derivative"),"") ->  | BU8: Money Market Instruments | BV8: =OFFSET(EXTManageSdf!$C$1,MATCH(BR8,EXTManageSdf!$B:$B,0)-1,0) ->  | BW8: 0 | BX8: 0 | BY8: 0 | BZ8: 6074367.12 | CA8: 0 | CB8: 6074367.12 | CC8: 0 | CD8: 6074367.12 | CE8: 0 | CF8: 0
A9: BIMMF | B9: CSH | C9: RPF*MYR*AFBB | D9: CSH*170600230 | E9: 0 | F9: 0 | G9: 7020061.06 | H9: 7020061.06 | I9: 2017-11-13 | J9: 6935580 | K9: 0 | L9: 1 | M9: 84481.06 | N9: 0 | O9: 6935580 | P9: 6935580 | Q9: 0 | R9: 0 | S9: MYR | T9: 0.039 | U9: 2017-06-09 | V9: 0 | W9: 7020061.06 | X9: 1482.13 | Y9: 2017-09-30 | Z9: 0 | AA9: 0 | AB9: 0 | AC9: 3000-01-01 | AD9: 3000-01-01 | AE9: 0 | AF9: 1 | AG9: 1.356324338 | AH9: 517579819.6 | AI9: 1 | AJ9: MY | AK9: 1 | AL9: ASIAN FINANCE BANK | AM9: 0 | AN9: MYR | AO9: MY | AP9: 1 | AQ9: RPF | AR9: CSH | AS9: Unlisted | AT9: 0 | AU9: WF | AV9: Malaysia | BL9: =IF(B9="TBI",OFFSET(CshFlagMap!$E$1,MATCH(C9,CshFlagMap!$C:$C,0)-1,0),IF(ISNA(OFFSET(InvestmentType!$D$1,MATCH(AQ9,InvestmentType!$A:$A,0)-1,0)),"",IF(OFFSET(InvestmentType!$D$1,MATCH(AQ9,InvestmentType!$A:$A,0)-1,0) = "Collective Investment Scheme", OFFSET(InvestmentType!$E$1,MATCH(AQ9,InvestmentType!$A:$A,0)-1,0),IF(OFFSET(InvestmentType!$D$1,MATCH(AQ9,InvestmentType!$A:$A,0)-1,0) = "Derivatives",$BT9,OFFSET(InvestmentType!$D$1,MATCH(AQ9,InvestmentType!$A:$A,0)-1,0))))) -> Money Market Instruments | BM9: 7020061.06 | BN9: =OFFSET(Fund!$B$1,MATCH(A9,Fund!$A:$A,0)-1,0) -> C037A00001 | BO9: =OFFSET(FundSdf!$J$1,MATCH(A9,FundSdf!$A:$A,0)-1,0) -> Wholesale Funds | BP9: =OFFSET(FundSdf!$K$1,MATCH(A9,FundSdf!$A:$A,0)-1,0) -> 0 | BQ9: =OFFSET(FundSdf!$D$1,MATCH(A9,FundSdf!$A:$A,0)-1,0) -> 0 | BR9: =OFFSET(FundSdf!$G$1,MATCH(A9,FundSdf!$A:$A,0)-1,0) -> Noorul Azila Kamaruzzaman | BS9: =OFFSET(InvestmentType!$D$1,MATCH(AQ9,InvestmentType!$A:$A,0)-1,0) -> Money Market Instruments | BT9: =IF(OFFSET(InvestmentType!$D$1,MATCH(AQ9,InvestmentType!$A:$A,0)-1,0)= "Derivatives",IF(AW9="OTC","OTC Derivative", "Exchange Traded Derivative"),"") ->  | BU9: Money Market Instruments | BV9: =OFFSET(EXTManageSdf!$C$1,MATCH(BR9,EXTManageSdf!$B:$B,0)-1,0) ->  | BW9: 0 | BX9: 0 | BY9: 0 | BZ9: 7020061.06 | CA9: 0 | CB9: 7020061.06 | CC9: 0 | CD9: 7020061.06 | CE9: 0 | CF9: 0
A10: BIMMF | B10: CSH | C10: RPF*MYR*AFBB | D10: CSH*170600364 | E10: 0 | F10: 0 | G10: 4197586.32 | H10: 4197586.32 | I10: 2017-11-15 | J10: 4151454 | K10: 0 | L10: 1 | M10: 46132.32 | N10: 0 | O10: 4151454 | P10: 4151454 | Q10: 0 | R10: 0 | S10: MYR | T10: 0.039 | U10: 2017-06-19 | V10: 0 | W10: 4197586.32 | X10: 887.16 | Y10: 2017-09-30 | Z10: 0 | AA10: 0 | AB10: 0 | AC10: 3000-01-01 | AD10: 3000-01-01 | AE10: 0 | AF10: 1 | AG10: 0.8110027017 | AH10: 517579819.6 | AI10: 1 | AJ10: MY | AK10: 1 | AL10: ASIAN FINANCE BANK | AM10: 0 | AN10: MYR | AO10: MY | AP10: 1 | AQ10: RPF | AR10: CSH | AS10: Unlisted | AT10: 0 | AU10: WF | AV10: Malaysia | BL10: =IF(B10="TBI",OFFSET(CshFlagMap!$E$1,MATCH(C10,CshFlagMap!$C:$C,0)-1,0),IF(ISNA(OFFSET(InvestmentType!$D$1,MATCH(AQ10,InvestmentType!$A:$A,0)-1,0)),"",IF(OFFSET(InvestmentType!$D$1,MATCH(AQ10,InvestmentType!$A:$A,0)-1,0) = "Collective Investment Scheme", OFFSET(InvestmentType!$E$1,MATCH(AQ10,InvestmentType!$A:$A,0)-1,0),IF(OFFSET(InvestmentType!$D$1,MATCH(AQ10,InvestmentType!$A:$A,0)-1,0) = "Derivatives",$BT10,OFFSET(InvestmentType!$D$1,MATCH(AQ10,InvestmentType!$A:$A,0)-1,0))))) -> Money Market Instruments | BM10: 4197586.32 | BN10: =OFFSET(Fund!$B$1,MATCH(A10,Fund!$A:$A,0)-1,0) -> C037A00001 | BO10: =OFFSET(FundSdf!$J$1,MATCH(A10,FundSdf!$A:$A,0)-1,0) -> Wholesale Funds | BP10: =OFFSET(FundSdf!$K$1,MATCH(A10,FundSdf!$A:$A,0)-1,0) -> 0 | BQ10: =OFFSET(FundSdf!$D$1,MATCH(A10,FundSdf!$A:$A,0)-1,0) -> 0 | BR10: =OFFSET(FundSdf!$G$1,MATCH(A10,FundSdf!$A:$A,0)-1,0) -> Noorul Azila Kamaruzzaman | BS10: =OFFSET(InvestmentType!$D$1,MATCH(AQ10,InvestmentType!$A:$A,0)-1,0) -> Money Market Instruments | BT10: =IF(OFFSET(InvestmentType!$D$1,MATCH(AQ10,InvestmentType!$A:$A,0)-1,0)= "Derivatives",IF(AW10="OTC","OTC Derivative", "Exchange Traded Derivative"),"") ->  | BU10: Money Market Instruments | BV10: =OFFSET(EXTManageSdf!$C$1,MATCH(BR10,EXTManageSdf!$B:$B,0)-1,0) ->  | BW10: 0 | BX10: 0 | BY10: 0 | BZ10: 4197586.32 | CA10: 0 | CB10: 4197586.32 | CC10: 0 | CD10: 4197586.32 | CE10: 0 | CF10: 0
A11: BIMMF | B11: CSH | C11: RPF*MYR*AFBB | D11: CSH*170600404 | E11: 0 | F11: 0 | G11: 3358111.32 | H11: 3358111.32 | I11: 2017-11-15 | J11: 3321556 | K11: 0 | L11: 1 | M11: 36555.32 | N11: 0 | O11: 3321556 | P11: 3321556 | Q11: 0 | R11: 0 | S11: MYR | T11: 0.039 | U11: 2017-06-20 | V11: 0 | W11: 3358111.32 | X11: 709.81 | Y11: 2017-09-30 | Z11: 0 | AA11: 0 | AB11: 0 | AC11: 3000-01-01 | AD11: 3000-01-01 | AE11: 0 | AF11: 1 | AG11: 0.6488103271 | AH11: 517579819.6 | AI11: 1 | AJ11: MY | AK11: 1 | AL11: ASIAN FINANCE BANK | AM11: 0 | AN11: MYR | AO11: MY | AP11: 1 | AQ11: RPF | AR11: CSH | AS11: Unlisted | AT11: 0 | AU11: WF | AV11: Malaysia | BL11: =IF(B11="TBI",OFFSET(CshFlagMap!$E$1,MATCH(C11,CshFlagMap!$C:$C,0)-1,0),IF(ISNA(OFFSET(InvestmentType!$D$1,MATCH(AQ11,InvestmentType!$A:$A,0)-1,0)),"",IF(OFFSET(InvestmentType!$D$1,MATCH(AQ11,InvestmentType!$A:$A,0)-1,0) = "Collective Investment Scheme", OFFSET(InvestmentType!$E$1,MATCH(AQ11,InvestmentType!$A:$A,0)-1,0),IF(OFFSET(InvestmentType!$D$1,MATCH(AQ11,InvestmentType!$A:$A,0)-1,0) = "Derivatives",$BT11,OFFSET(InvestmentType!$D$1,MATCH(AQ11,InvestmentType!$A:$A,0)-1,0))))) -> Money Market Instruments | BM11: 3358111.32 | BN11: =OFFSET(Fund!$B$1,MATCH(A11,Fund!$A:$A,0)-1,0) -> C037A00001 | BO11: =OFFSET(FundSdf!$J$1,MATCH(A11,FundSdf!$A:$A,0)-1,0) -> Wholesale Funds | BP11: =OFFSET(FundSdf!$K$1,MATCH(A11,FundSdf!$A:$A,0)-1,0) -> 0 | BQ11: =OFFSET(FundSdf!$D$1,MATCH(A11,FundSdf!$A:$A,0)-1,0) -> 0 | BR11: =OFFSET(FundSdf!$G$1,MATCH(A11,FundSdf!$A:$A,0)-1,0) -> Noorul Azila Kamaruzzaman | BS11: =OFFSET(InvestmentType!$D$1,MATCH(AQ11,InvestmentType!$A:$A,0)-1,0) -> Money Market Instruments | BT11: =IF(OFFSET(InvestmentType!$D$1,MATCH(AQ11,InvestmentType!$A:$A,0)-1,0)= "Derivatives",IF(AW11="OTC","OTC Derivative", "Exchange Traded Derivative"),"") ->  | BU11: Money Market Instruments | BV11: =OFFSET(EXTManageSdf!$C$1,MATCH(BR11,EXTManageSdf!$B:$B,0)-1,0) ->  | BW11: 0 | BX11: 0 | BY11: 0 | BZ11: 3358111.32 | CA11: 0 | CB11: 3358111.32 | CC11: 0 | CD11: 3358111.32 | CE11: 0 | CF11: 0
A12: BIMMF | B12: CSH | C12: RPF*MYR*AFBB | D12: CSH*170600495 | E12: 0 | F12: 0 | G12: 7365362.4 | H12: 7365362.4 | I12: 2017-11-17 | J12: 7287496 | K12: 0 | L12: 1 | M12: 77866.4 | N12: 0 | O12: 7287496 | P12: 7287496 | Q12: 0 | R12: 0 | S12: MYR | T12: 0.039 | U12: 2017-06-23 | V12: 0 | W12: 7365362.4 | X12: 1557.32 | Y12: 2017-09-30 | Z12: 0 | AA12: 0 | AB12: 0 | AC12: 3000-01-01 | AD12: 3000-01-01 | AE12: 0 | AF12: 1 | AG12: 1.423038944 | AH12: 517579819.6 | AI12: 1 | AJ12: MY | AK12: 1 | AL12: ASIAN FINANCE BANK | AM12: 0 | AN12: MYR | AO12: MY | AP12: 1 | AQ12: RPF | AR12: CSH | AS12: Unlisted | AT12: 0 | AU12: WF | AV12: Malaysia | BL12: =IF(B12="TBI",OFFSET(CshFlagMap!$E$1,MATCH(C12,CshFlagMap!$C:$C,0)-1,0),IF(ISNA(OFFSET(InvestmentType!$D$1,MATCH(AQ12,InvestmentType!$A:$A,0)-1,0)),"",IF(OFFSET(InvestmentType!$D$1,MATCH(AQ12,InvestmentType!$A:$A,0)-1,0) = "Collective Investment Scheme", OFFSET(InvestmentType!$E$1,MATCH(AQ12,InvestmentType!$A:$A,0)-1,0),IF(OFFSET(InvestmentType!$D$1,MATCH(AQ12,InvestmentType!$A:$A,0)-1,0) = "Derivatives",$BT12,OFFSET(InvestmentType!$D$1,MATCH(AQ12,InvestmentType!$A:$A,0)-1,0))))) -> Money Market Instruments | BM12: 7365362.4 | BN12: =OFFSET(Fund!$B$1,MATCH(A12,Fund!$A:$A,0)-1,0) -> C037A00001 | BO12: =OFFSET(FundSdf!$J$1,MATCH(A12,FundSdf!$A:$A,0)-1,0) -> Wholesale Funds | BP12: =OFFSET(FundSdf!$K$1,MATCH(A12,FundSdf!$A:$A,0)-1,0) -> 0 | BQ12: =OFFSET(FundSdf!$D$1,MATCH(A12,FundSdf!$A:$A,0)-1,0) -> 0 | BR12: =OFFSET(FundSdf!$G$1,MATCH(A12,FundSdf!$A:$A,0)-1,0) -> Noorul Azila Kamaruzzaman | BS12: =OFFSET(InvestmentType!$D$1,MATCH(AQ12,InvestmentType!$A:$A,0)-1,0) -> Money Market Instruments | BT12: =IF(OFFSET(InvestmentType!$D$1,MATCH(AQ12,InvestmentType!$A:$A,0)-1,0)= "Derivatives",IF(AW12="OTC","OTC Derivative", "Exchange Traded Derivative"),"") ->  | BU12: Money Market Instruments | BV12: =OFFSET(EXTManageSdf!$C$1,MATCH(BR12,EXTManageSdf!$B:$B,0)-1,0) ->  | BW12: 0 | BX12: 0 | BY12: 0 | BZ12: 7365362.4 | CA12: 0 | CB12: 7365362.4 | CC12: 0 | CD12: 7365362.4 | CE12: 0 | CF12: 0
A13: BIMMF | B13: CSH | C13: RPF*MYR*AFBB | D13: CSH*170600496 | E13: 0 | F13: 0 | G13: 7365362.4 | H13: 7365362.4 | I13: 2017-12-06 | J13: 7287496 | K13: 0 | L13: 1 | M13: 77866.4 | N13: 0 | O13: 7287496 | P13: 7287496 | Q13: 0 | R13: 0 | S13: MYR | T13: 0.039 | U13: 2017-06-23 | V13: 0 | W13: 7365362.4 | X13: 1557.32 | Y13: 2017-09-30 | Z13: 0 | AA13: 0 | AB13: 0 | AC13: 3000-01-01 | AD13: 3000-01-01 | AE13: 0 | AF13: 1 | AG13: 1.423038944 | AH13: 517579819.6 | AI13: 1 | AJ13: MY | AK13: 1 | AL13: ASIAN FINANCE BANK | AM13: 0 | AN13: MYR | AO13: MY | AP13: 1 | AQ13: RPF | AR13: CSH | AS13: Unlisted | AT13: 0 | AU13: WF | AV13: Malaysia | BL13: =IF(B13="TBI",OFFSET(CshFlagMap!$E$1,MATCH(C13,CshFlagMap!$C:$C,0)-1,0),IF(ISNA(OFFSET(InvestmentType!$D$1,MATCH(AQ13,InvestmentType!$A:$A,0)-1,0)),"",IF(OFFSET(InvestmentType!$D$1,MATCH(AQ13,InvestmentType!$A:$A,0)-1,0) = "Collective Investment Scheme", OFFSET(InvestmentType!$E$1,MATCH(AQ13,InvestmentType!$A:$A,0)-1,0),IF(OFFSET(InvestmentType!$D$1,MATCH(AQ13,InvestmentType!$A:$A,0)-1,0) = "Derivatives",$BT13,OFFSET(InvestmentType!$D$1,MATCH(AQ13,InvestmentType!$A:$A,0)-1,0))))) -> Money Market Instruments | BM13: 7365362.4 | BN13: =OFFSET(Fund!$B$1,MATCH(A13,Fund!$A:$A,0)-1,0) -> C037A00001 | BO13: =OFFSET(FundSdf!$J$1,MATCH(A13,FundSdf!$A:$A,0)-1,0) -> Wholesale Funds | BP13: =OFFSET(FundSdf!$K$1,MATCH(A13,FundSdf!$A:$A,0)-1,0) -> 0 | BQ13: =OFFSET(FundSdf!$D$1,MATCH(A13,FundSdf!$A:$A,0)-1,0) -> 0 | BR13: =OFFSET(FundSdf!$G$1,MATCH(A13,FundSdf!$A:$A,0)-1,0) -> Noorul Azila Kamaruzzaman | BS13: =OFFSET(InvestmentType!$D$1,MATCH(AQ13,InvestmentType!$A:$A,0)-1,0) -> Money Market Instruments | BT13: =IF(OFFSET(InvestmentType!$D$1,MATCH(AQ13,InvestmentType!$A:$A,0)-1,0)= "Derivatives",IF(AW13="OTC","OTC Derivative", "Exchange Traded Derivative"),"") ->  | BU13: Money Market Instruments | BV13: =OFFSET(EXTManageSdf!$C$1,MATCH(BR13,EXTManageSdf!$B:$B,0)-1,0) ->  | BW13: 0 | BX13: 0 | BY13: 0 | BZ13: 7365362.4 | CA13: 0 | CB13: 7365362.4 | CC13: 0 | CD13: 7365362.4 | CE13: 0 | CF13: 0
A14: BIMMF | B14: CSH | C14: RPF*MYR*AFBB | D14: CSH*170600531 | E14: 0 | F14: 0 | G14: 5050753.42 | H14: 5050753.42 | I14: 2017-11-21 | J14: 5000000 | K14: 0 | L14: 1 | M14: 50753.42 | N14: 0 | O14: 5000000 | P14: 5000000 | Q14: 0 | R14: 0 | S14: MYR | T14: 0.039 | U14: 2017-06-28 | V14: 0 | W14: 5050753.42 | X14: 1068.5 | Y14: 2017-09-30 | Z14: 0 | AA14: 0 | AB14: 0 | AC14: 3000-01-01 | AD14: 3000-01-01 | AE14: 0 | AF14: 1 | AG14: 0.9758404847 | AH14: 517579819.6 | AI14: 1 | AJ14: MY | AK14: 1 | AL14: ASIAN FINANCE BANK | AM14: 0 | AN14: MYR | AO14: MY | AP14: 1 | AQ14: RPF | AR14: CSH | AS14: Unlisted | AT14: 0 | AU14: WF | AV14: Malaysia | BL14: =IF(B14="TBI",OFFSET(CshFlagMap!$E$1,MATCH(C14,CshFlagMap!$C:$C,0)-1,0),IF(ISNA(OFFSET(InvestmentType!$D$1,MATCH(AQ14,InvestmentType!$A:$A,0)-1,0)),"",IF(OFFSET(InvestmentType!$D$1,MATCH(AQ14,InvestmentType!$A:$A,0)-1,0) = "Collective Investment Scheme", OFFSET(InvestmentType!$E$1,MATCH(AQ14,InvestmentType!$A:$A,0)-1,0),IF(OFFSET(InvestmentType!$D$1,MATCH(AQ14,InvestmentType!$A:$A,0)-1,0) = "Derivatives",$BT14,OFFSET(InvestmentType!$D$1,MATCH(AQ14,InvestmentType!$A:$A,0)-1,0))))) -> Money Market Instruments | BM14: 5050753.42 | BN14: =OFFSET(Fund!$B$1,MATCH(A14,Fund!$A:$A,0)-1,0) -> C037A00001 | BO14: =OFFSET(FundSdf!$J$1,MATCH(A14,FundSdf!$A:$A,0)-1,0) -> Wholesale Funds | BP14: =OFFSET(FundSdf!$K$1,MATCH(A14,FundSdf!$A:$A,0)-1,0) -> 0 | BQ14: =OFFSET(FundSdf!$D$1,MATCH(A14,FundSdf!$A:$A,0)-1,0) -> 0 | BR14: =OFFSET(FundSdf!$G$1,MATCH(A14,FundSdf!$A:$A,0)-1,0) -> Noorul Azila Kamaruzzaman | BS14: =OFFSET(InvestmentType!$D$1,MATCH(AQ14,InvestmentType!$A:$A,0)-1,0) -> Money Market Instruments | BT14: =IF(OFFSET(InvestmentType!$D$1,MATCH(AQ14,InvestmentType!$A:$A,0)-1,0)= "Derivatives",IF(AW14="OTC","OTC Derivative", "Exchange Traded Derivative"),"") ->  | BU14: Money Market Instruments | BV14: =OFFSET(EXTManageSdf!$C$1,MATCH(BR14,EXTManageSdf!$B:$B,0)-1,0) ->  | BW14: 0 | BX14: 0 | BY14: 0 | BZ14: 5050753.42 | CA14: 0 | CB14: 5050753.42 | CC14: 0 | CD14: 5050753.42 | CE14: 0 | CF14: 0
A15: BIMMF | B15: CSH | C15: RPF*MYR*AFBB | D15: CSH*170600532 | E15: 0 | F15: 0 | G15: 5339028.46 | H15: 5339028.46 | I15: 2017-11-21 | J15: 5285378.25 | K15: 0 | L15: 1 | M15: 53650.21 | N15: 0 | O15: 5285378.25 | P15: 5285378.25 | Q15: 0 | R15: 0 | S15: MYR | T15: 0.039 | U15: 2017-06-28 | V15: 0 | W15: 5339028.46 | X15: 1129.48 | Y15: 2017-09-30 | Z15: 0 | AA15: 0 | AB15: 0 | AC15: 3000-01-01 | AD15: 3000-01-01 | AE15: 0 | AF15: 1 | AG15: 1.031537216 | AH15: 517579819.6 | AI15: 1 | AJ15: MY | AK15: 1 | AL15: ASIAN FINANCE BANK | AM15: 0 | AN15: MYR | AO15: MY | AP15: 1 | AQ15: RPF | AR15: CSH | AS15: Unlisted | AT15: 0 | AU15: WF | AV15: Malaysia | BL15: =IF(B15="TBI",OFFSET(CshFlagMap!$E$1,MATCH(C15,CshFlagMap!$C:$C,0)-1,0),IF(ISNA(OFFSET(InvestmentType!$D$1,MATCH(AQ15,InvestmentType!$A:$A,0)-1,0)),"",IF(OFFSET(InvestmentType!$D$1,MATCH(AQ15,InvestmentType!$A:$A,0)-1,0) = "Collective Investment Scheme", OFFSET(InvestmentType!$E$1,MATCH(AQ15,InvestmentType!$A:$A,0)-1,0),IF(OFFSET(InvestmentType!$D$1,MATCH(AQ15,InvestmentType!$A:$A,0)-1,0) = "Derivatives",$BT15,OFFSET(InvestmentType!$D$1,MATCH(AQ15,InvestmentType!$A:$A,0)-1,0))))) -> Money Market Instruments | BM15: 5339028.46 | BN15: =OFFSET(Fund!$B$1,MATCH(A15,Fund!$A:$A,0)-1,0) -> C037A00001 | BO15: =OFFSET(FundSdf!$J$1,MATCH(A15,FundSdf!$A:$A,0)-1,0) -> Wholesale Funds | BP15: =OFFSET(FundSdf!$K$1,MATCH(A15,FundSdf!$A:$A,0)-1,0) -> 0 | BQ15: =OFFSET(FundSdf!$D$1,MATCH(A15,FundSdf!$A:$A,0)-1,0) -> 0 | BR15: =OFFSET(FundSdf!$G$1,MATCH(A15,FundSdf!$A:$A,0)-1,0) -> Noorul Azila Kamaruzzaman | BS15: =OFFSET(InvestmentType!$D$1,MATCH(AQ15,InvestmentType!$A:$A,0)-1,0) -> Money Market Instruments | BT15: =IF(OFFSET(InvestmentType!$D$1,MATCH(AQ15,InvestmentType!$A:$A,0)-1,0)= "Derivatives",IF(AW15="OTC","OTC Derivative", "Exchange Traded Derivative"),"") ->  | BU15: Money Market Instruments | BV15: =OFFSET(EXTManageSdf!$C$1,MATCH(BR15,EXTManageSdf!$B:$B,0)-1,0) ->  | BW15: 0 | BX15: 0 | BY15: 0 | BZ15: 5339028.46 | CA15: 0 | CB15: 5339028.46 | CC15: 0 | CD15: 5339028.46 | CE15: 0 | CF15: 0
A16: BIMMF | B16: CSH | C16: RPF*MYR*AFBB | D16: CSH*170700304 | E16: 0 | F16: 0 | G16: 8938041.34 | H16: 8938041.34 | I16: 2017-12-21 | J16: 8867924 | K16: 0 | L16: 1 | M16: 70117.34 | N16: 0 | O16: 8867924 | P16: 8867924 | Q16: 0 | R16: 0 | S16: MYR | T16: 0.039 | U16: 2017-07-19 | V16: 0 | W16: 8938041.34 | X16: 1895.06 | Y16: 2017-09-30 | Z16: 0 | AA16: 0 | AB16: 0 | AC16: 3000-01-01 | AD16: 3000-01-01 | AE16: 0 | AF16: 1 | AG16: 1.72689139 | AH16: 517579819.6 | AI16: 1 | AJ16: MY | AK16: 1 | AL16: ASIAN FINANCE BANK | AM16: 0 | AN16: MYR | AO16: MY | AP16: 1 | AQ16: RPF | AR16: CSH | AS16: Unlisted | AT16: 0 | AU16: WF | AV16: Malaysia | BL16: =IF(B16="TBI",OFFSET(CshFlagMap!$E$1,MATCH(C16,CshFlagMap!$C:$C,0)-1,0),IF(ISNA(OFFSET(InvestmentType!$D$1,MATCH(AQ16,InvestmentType!$A:$A,0)-1,0)),"",IF(OFFSET(InvestmentType!$D$1,MATCH(AQ16,InvestmentType!$A:$A,0)-1,0) = "Collective Investment Scheme", OFFSET(InvestmentType!$E$1,MATCH(AQ16,InvestmentType!$A:$A,0)-1,0),IF(OFFSET(InvestmentType!$D$1,MATCH(AQ16,InvestmentType!$A:$A,0)-1,0) = "Derivatives",$BT16,OFFSET(InvestmentType!$D$1,MATCH(AQ16,InvestmentType!$A:$A,0)-1,0))))) -> Money Market Instruments | BM16: 8938041.34 | BN16: =OFFSET(Fund!$B$1,MATCH(A16,Fund!$A:$A,0)-1,0) -> C037A00001 | BO16: =OFFSET(FundSdf!$J$1,MATCH(A16,FundSdf!$A:$A,0)-1,0) -> Wholesale Funds | BP16: =OFFSET(FundSdf!$K$1,MATCH(A16,FundSdf!$A:$A,0)-1,0) -> 0 | BQ16: =OFFSET(FundSdf!$D$1,MATCH(A16,FundSdf!$A:$A,0)-1,0) -> 0 | BR16: =OFFSET(FundSdf!$G$1,MATCH(A16,FundSdf!$A:$A,0)-1,0) -> Noorul Azila Kamaruzzaman | BS16: =OFFSET(InvestmentType!$D$1,MATCH(AQ16,InvestmentType!$A:$A,0)-1,0) -> Money Market Instruments | BT16: =IF(OFFSET(InvestmentType!$D$1,MATCH(AQ16,InvestmentType!$A:$A,0)-1,0)= "Derivatives",IF(AW16="OTC","OTC Derivative", "Exchange Traded Derivative"),"") ->  | BU16: Money Market Instruments | BV16: =OFFSET(EXTManageSdf!$C$1,MATCH(BR16,EXTManageSdf!$B:$B,0)-1,0) ->  | BW16: 0 | BX16: 0 | BY16: 0 | BZ16: 8938041.34 | CA16: 0 | CB16: 8938041.34 | CC16: 0 | CD16: 8938041.34 | CE16: 0 | CF16: 0
A17: BIMMF | B17: CSH | C17: RPF*MYR*AFBB | D17: CSH*170700398 | E17: 0 | F17: 0 | G17: 9140842.03 | H17: 9140842.03 | I17: 2017-12-26 | J17: 9074906 | K17: 0 | L17: 1 | M17: 65936.03 | N17: 0 | O17: 9074906 | P17: 9074906 | Q17: 0 | R17: 0 | S17: MYR | T17: 0.039 | U17: 2017-07-25 | V17: 0 | W17: 9140842.03 | X17: 1939.29 | Y17: 2017-09-30 | Z17: 0 | AA17: 0 | AB17: 0 | AC17: 3000-01-01 | AD17: 3000-01-01 | AE17: 0 | AF17: 1 | AG17: 1.766073886 | AH17: 517579819.6 | AI17: 1 | AJ17: MY | AK17: 1 | AL17: ASIAN FINANCE BANK | AM17: 0 | AN17: MYR | AO17: MY | AP17: 1 | AQ17: RPF | AR17: CSH | AS17: Unlisted | AT17: 0 | AU17: WF | AV17: Malaysia | BL17: =IF(B17="TBI",OFFSET(CshFlagMap!$E$1,MATCH(C17,CshFlagMap!$C:$C,0)-1,0),IF(ISNA(OFFSET(InvestmentType!$D$1,MATCH(AQ17,InvestmentType!$A:$A,0)-1,0)),"",IF(OFFSET(InvestmentType!$D$1,MATCH(AQ17,InvestmentType!$A:$A,0)-1,0) = "Collective Investment Scheme", OFFSET(InvestmentType!$E$1,MATCH(AQ17,InvestmentType!$A:$A,0)-1,0),IF(OFFSET(InvestmentType!$D$1,MATCH(AQ17,InvestmentType!$A:$A,0)-1,0) = "Derivatives",$BT17,OFFSET(InvestmentType!$D$1,MATCH(AQ17,InvestmentType!$A:$A,0)-1,0))))) -> Money Market Instruments | BM17: 9140842.03 | BN17: =OFFSET(Fund!$B$1,MATCH(A17,Fund!$A:$A,0)-1,0) -> C037A00001 | BO17: =OFFSET(FundSdf!$J$1,MATCH(A17,FundSdf!$A:$A,0)-1,0) -> Wholesale Funds | BP17: =OFFSET(FundSdf!$K$1,MATCH(A17,FundSdf!$A:$A,0)-1,0) -> 0 | BQ17: =OFFSET(FundSdf!$D$1,MATCH(A17,FundSdf!$A:$A,0)-1,0) -> 0 | BR17: =OFFSET(FundSdf!$G$1,MATCH(A17,FundSdf!$A:$A,0)-1,0) -> Noorul Azila Kamaruzzaman | BS17: =OFFSET(InvestmentType!$D$1,MATCH(AQ17,InvestmentType!$A:$A,0)-1,0) -> Money Market Instruments | BT17: =IF(OFFSET(InvestmentType!$D$1,MATCH(AQ17,InvestmentType!$A:$A,0)-1,0)= "Derivatives",IF(AW17="OTC","OTC Derivative", "Exchange Traded Derivative"),"") ->  | BU17: Money Market Instruments | BV17: =OFFSET(EXTManageSdf!$C$1,MATCH(BR17,EXTManageSdf!$B:$B,0)-1,0) ->  | BW17: 0 | BX17: 0 | BY17: 0 | BZ17: 9140842.03 | CA17: 0 | CB17: 9140842.03 | CC17: 0 | CD17: 9140842.03 | CE17: 0 | CF17: 0
A18: BIMMF | B18: CSH | C18: RPF*MYR*AFBB | D18: CSH*170800104 | E18: 0 | F18: 0 | G18: 3557601.86 | H18: 3557601.86 | I18: 2017-12-27 | J18: 3536817 | K18: 0 | L18: 1 | M18: 20784.86 | N18: 0 | O18: 3536817 | P18: 3536817 | Q18: 0 | R18: 0 | S18: MYR | T18: 0.039 | U18: 2017-08-07 | V18: 0 | W18: 3557601.86 | X18: 755.81 | Y18: 2017-09-30 | Z18: 0 | AA18: 0 | AB18: 0 | AC18: 3000-01-01 | AD18: 3000-01-01 | AE18: 0 | AF18: 1 | AG18: 0.6873532788 | AH18: 517579819.6 | AI18: 1 | AJ18: MY | AK18: 1 | AL18: ASIAN FINANCE BANK | AM18: 0 | AN18: MYR | AO18: MY | AP18: 1 | AQ18: RPF | AR18: CSH | AS18: Unlisted | AT18: 0 | AU18: WF | AV18: Malaysia | BL18: =IF(B18="TBI",OFFSET(CshFlagMap!$E$1,MATCH(C18,CshFlagMap!$C:$C,0)-1,0),IF(ISNA(OFFSET(InvestmentType!$D$1,MATCH(AQ18,InvestmentType!$A:$A,0)-1,0)),"",IF(OFFSET(InvestmentType!$D$1,MATCH(AQ18,InvestmentType!$A:$A,0)-1,0) = "Collective Investment Scheme", OFFSET(InvestmentType!$E$1,MATCH(AQ18,InvestmentType!$A:$A,0)-1,0),IF(OFFSET(InvestmentType!$D$1,MATCH(AQ18,InvestmentType!$A:$A,0)-1,0) = "Derivatives",$BT18,OFFSET(InvestmentType!$D$1,MATCH(AQ18,InvestmentType!$A:$A,0)-1,0))))) -> Money Market Instruments | BM18: 3557601.86 | BN18: =OFFSET(Fund!$B$1,MATCH(A18,Fund!$A:$A,0)-1,0) -> C037A00001 | BO18: =OFFSET(FundSdf!$J$1,MATCH(A18,FundSdf!$A:$A,0)-1,0) -> Wholesale Funds | BP18: =OFFSET(FundSdf!$K$1,MATCH(A18,FundSdf!$A:$A,0)-1,0) -> 0 | BQ18: =OFFSET(FundSdf!$D$1,MATCH(A18,FundSdf!$A:$A,0)-1,0) -> 0 | BR18: =OFFSET(FundSdf!$G$1,MATCH(A18,FundSdf!$A:$A,0)-1,0) -> Noorul Azila Kamaruzzaman | BS18: =OFFSET(InvestmentType!$D$1,MATCH(AQ18,InvestmentType!$A:$A,0)-1,0) -> Money Market Instruments | BT18: =IF(OFFSET(InvestmentType!$D$1,MATCH(AQ18,InvestmentType!$A:$A,0)-1,0)= "Derivatives",IF(AW18="OTC","OTC Derivative", "Exchange Traded Derivative"),"") ->  | BU18: Money Market Instruments | BV18: =OFFSET(EXTManageSdf!$C$1,MATCH(BR18,EXTManageSdf!$B:$B,0)-1,0) ->  | BW18: 0 | BX18: 0 | BY18: 0 | BZ18: 3557601.86 | CA18: 0 | CB18: 3557601.86 | CC18: 0 | CD18: 3557601.86 | CE18: 0 | CF18: 0
A19: BIMMF | B19: CSH | C19: RPF*MYR*AFBB | D19: CSH*170800199 | E19: 0 | F19: 0 | G19: 10585908.3 | H19: 10585908.3 | I19: 2018-01-04 | J19: 10528535 | K19: 0 | L19: 1 | M19: 57373.3 | N19: 0 | O19: 10528535 | P19: 10528535 | Q19: 0 | R19: 0 | S19: MYR | T19: 0.039 | U19: 2017-08-11 | V19: 0 | W19: 10585908.3 | X19: 2249.94 | Y19: 2017-09-30 | Z19: 0 | AA19: 0 | AB19: 0 | AC19: 3000-01-01 | AD19: 3000-01-01 | AE19: 0 | AF19: 1 | AG19: 2.045270681 | AH19: 517579819.6 | AI19: 1 | AJ19: MY | AK19: 1 | AL19: ASIAN FINANCE BANK | AM19: 0 | AN19: MYR | AO19: MY | AP19: 1 | AQ19: RPF | AR19: CSH | AS19: Unlisted | AT19: 0 | AU19: WF | AV19: Malaysia | BL19: =IF(B19="TBI",OFFSET(CshFlagMap!$E$1,MATCH(C19,CshFlagMap!$C:$C,0)-1,0),IF(ISNA(OFFSET(InvestmentType!$D$1,MATCH(AQ19,InvestmentType!$A:$A,0)-1,0)),"",IF(OFFSET(InvestmentType!$D$1,MATCH(AQ19,InvestmentType!$A:$A,0)-1,0) = "Collective Investment Scheme", OFFSET(InvestmentType!$E$1,MATCH(AQ19,InvestmentType!$A:$A,0)-1,0),IF(OFFSET(InvestmentType!$D$1,MATCH(AQ19,InvestmentType!$A:$A,0)-1,0) = "Derivatives",$BT19,OFFSET(InvestmentType!$D$1,MATCH(AQ19,InvestmentType!$A:$A,0)-1,0))))) -> Money Market Instruments | BM19: 10585908.3 | BN19: =OFFSET(Fund!$B$1,MATCH(A19,Fund!$A:$A,0)-1,0) -> C037A00001 | BO19: =OFFSET(FundSdf!$J$1,MATCH(A19,FundSdf!$A:$A,0)-1,0) -> Wholesale Funds | BP19: =OFFSET(FundSdf!$K$1,MATCH(A19,FundSdf!$A:$A,0)-1,0) -> 0 | BQ19: =OFFSET(FundSdf!$D$1,MATCH(A19,FundSdf!$A:$A,0)-1,0) -> 0 | BR19: =OFFSET(FundSdf!$G$1,MATCH(A19,FundSdf!$A:$A,0)-1,0) -> Noorul Azila Kamaruzzaman | BS19: =OFFSET(InvestmentType!$D$1,MATCH(AQ19,InvestmentType!$A:$A,0)-1,0) -> Money Market Instruments | BT19: =IF(OFFSET(InvestmentType!$D$1,MATCH(AQ19,InvestmentType!$A:$A,0)-1,0)= "Derivatives",IF(AW19="OTC","OTC Derivative", "Exchange Traded Derivative"),"") ->  | BU19: Money Market Instruments | BV19: =OFFSET(EXTManageSdf!$C$1,MATCH(BR19,EXTManageSdf!$B:$B,0)-1,0) ->  | BW19: 0 | BX19: 0 | BY19: 0 | BZ19: 10585908.3 | CA19: 0 | CB19: 10585908.3 | CC19: 0 | CD19: 10585908.3 | CE19: 0 | CF19: 0
A20: BIMMF | B20: CSH | C20: RPF*MYR*AFBB | D20: CSH*170800508 | E20: 0 | F20: 0 | G20: 5536718.3 | H20: 5536718.3 | I20: 2018-01-15 | J20: 5517851.78 | K20: 0 | L20: 1 | M20: 18866.52 | N20: 0 | O20: 5517851.78 | P20: 5517851.78 | Q20: 0 | R20: 0 | S20: MYR | T20: 0.039 | U20: 2017-08-30 | V20: 0 | W20: 5536718.3 | X20: 1179.16 | Y20: 2017-09-30 | Z20: 0 | AA20: 0 | AB20: 0 | AC20: 3000-01-01 | AD20: 3000-01-01 | AE20: 0 | AF20: 1 | AG20: 1.06973226 | AH20: 517579819.6 | AI20: 1 | AJ20: MY | AK20: 1 | AL20: ASIAN FINANCE BANK | AM20: 0 | AN20: MYR | AO20: MY | AP20: 1 | AQ20: RPF | AR20: CSH | AS20: Unlisted | AT20: 0 | AU20: WF | AV20: Malaysia | BL20: =IF(B20="TBI",OFFSET(CshFlagMap!$E$1,MATCH(C20,CshFlagMap!$C:$C,0)-1,0),IF(ISNA(OFFSET(InvestmentType!$D$1,MATCH(AQ20,InvestmentType!$A:$A,0)-1,0)),"",IF(OFFSET(InvestmentType!$D$1,MATCH(AQ20,InvestmentType!$A:$A,0)-1,0) = "Collective Investment Scheme", OFFSET(InvestmentType!$E$1,MATCH(AQ20,InvestmentType!$A:$A,0)-1,0),IF(OFFSET(InvestmentType!$D$1,MATCH(AQ20,InvestmentType!$A:$A,0)-1,0) = "Derivatives",$BT20,OFFSET(InvestmentType!$D$1,MATCH(AQ20,InvestmentType!$A:$A,0)-1,0))))) -> Money Market Instruments | BM20: 5536718.3 | BN20: =OFFSET(Fund!$B$1,MATCH(A20,Fund!$A:$A,0)-1,0) -> C037A00001 | BO20: =OFFSET(FundSdf!$J$1,MATCH(A20,FundSdf!$A:$A,0)-1,0) -> Wholesale Funds | BP20: =OFFSET(FundSdf!$K$1,MATCH(A20,FundSdf!$A:$A,0)-1,0) -> 0 | BQ20: =OFFSET(FundSdf!$D$1,MATCH(A20,FundSdf!$A:$A,0)-1,0) -> 0 | BR20: =OFFSET(FundSdf!$G$1,MATCH(A20,FundSdf!$A:$A,0)-1,0) -> Noorul Azila Kamaruzzaman | BS20: =OFFSET(InvestmentType!$D$1,MATCH(AQ20,InvestmentType!$A:$A,0)-1,0) -> Money Market Instruments | BT20: =IF(OFFSET(InvestmentType!$D$1,MATCH(AQ20,InvestmentType!$A:$A,0)-1,0)= "Derivatives",IF(AW20="OTC","OTC Derivative", "Exchange Traded Derivative"),"") ->  | BU20: Money Market Instruments | BV20: =OFFSET(EXTManageSdf!$C$1,MATCH(BR20,EXTManageSdf!$B:$B,0)-1,0) ->  | BW20: 0 | BX20: 0 | BY20: 0 | BZ20: 5536718.3 | CA20: 0 | CB20: 5536718.3 | CC20: 0 | CD20: 5536718.3 | CE20: 0 | CF20: 0
A21: BIMMF | B21: CSH | C21: RPF*MYR*ALRAJ | D21: CSH*170500519 | E21: 0 | F21: 0 | G21: 14702400.49 | H21: 14702400.49 | I21: 2017-11-07 | J21: 14504033 | K21: 0 | L21: 1 | M21: 198367.49 | N21: 0 | O21: 14504033 | P21: 14504033 | Q21: 0 | R21: 0 | S21: MYR | T21: 0.039 | U21: 2017-05-26 | V21: 0 | W21: 14702400.49 | X21: 3099.49 | Y21: 2017-09-30 | Z21: 0 | AA21: 0 | AB21: 0 | AC21: 3000-01-01 | AD21: 3000-01-01 | AE21: 0 | AF21: 1 | AG21: 2.840605436 | AH21: 517579819.6 | AI21: 1 | AJ21: MY | AK21: 1 | AL21: AL RAJHI BANKING & INVESTMENT | AM21: 0 | AN21: MYR | AO21: MY | AP21: 1 | AQ21: RPF | AR21: CSH | AS21: Unlisted | AT21: 0 | AU21: WF | AV21: Malaysia | BL21: =IF(B21="TBI",OFFSET(CshFlagMap!$E$1,MATCH(C21,CshFlagMap!$C:$C,0)-1,0),IF(ISNA(OFFSET(InvestmentType!$D$1,MATCH(AQ21,InvestmentType!$A:$A,0)-1,0)),"",IF(OFFSET(InvestmentType!$D$1,MATCH(AQ21,InvestmentType!$A:$A,0)-1,0) = "Collective Investment Scheme", OFFSET(InvestmentType!$E$1,MATCH(AQ21,InvestmentType!$A:$A,0)-1,0),IF(OFFSET(InvestmentType!$D$1,MATCH(AQ21,InvestmentType!$A:$A,0)-1,0) = "Derivatives",$BT21,OFFSET(InvestmentType!$D$1,MATCH(AQ21,InvestmentType!$A:$A,0)-1,0))))) -> Money Market Instruments | BM21: 14702400.49 | BN21: =OFFSET(Fund!$B$1,MATCH(A21,Fund!$A:$A,0)-1,0) -> C037A00001 | BO21: =OFFSET(FundSdf!$J$1,MATCH(A21,FundSdf!$A:$A,0)-1,0) -> Wholesale Funds | BP21: =OFFSET(FundSdf!$K$1,MATCH(A21,FundSdf!$A:$A,0)-1,0) -> 0 | BQ21: =OFFSET(FundSdf!$D$1,MATCH(A21,FundSdf!$A:$A,0)-1,0) -> 0 | BR21: =OFFSET(FundSdf!$G$1,MATCH(A21,FundSdf!$A:$A,0)-1,0) -> Noorul Azila Kamaruzzaman | BS21: =OFFSET(InvestmentType!$D$1,MATCH(AQ21,InvestmentType!$A:$A,0)-1,0) -> Money Market Instruments | BT21: =IF(OFFSET(InvestmentType!$D$1,MATCH(AQ21,InvestmentType!$A:$A,0)-1,0)= "Derivatives",IF(AW21="OTC","OTC Derivative", "Exchange Traded Derivative"),"") ->  | BU21: Money Market Instruments | BV21: =OFFSET(EXTManageSdf!$C$1,MATCH(BR21,EXTManageSdf!$B:$B,0)-1,0) ->  | BW21: 0 | BX21: 0 | BY21: 0 | BZ21: 14702400.49 | CA21: 0 | CB21: 14702400.49 | CC21: 0 | CD21: 14702400.49 | CE21: 0 | CF21: 0
A22: BIMMF | B22: CSH | C22: RPF*MYR*ALRAJ | D22: CSH*170700063 | E22: 0 | F22: 0 | G22: 10465545.84 | H22: 10465545.84 | I22: 2017-12-11 | J22: 10368553 | K22: 0 | L22: 1 | M22: 96992.84 | N22: 0 | O22: 10368553 | P22: 10368553 | Q22: 0 | R22: 0 | S22: MYR | T22: 0.0388 | U22: 2017-07-05 | V22: 0 | W22: 10465545.84 | X22: 2204.38 | Y22: 2017-09-30 | Z22: 0 | AA22: 0 | AB22: 0 | AC22: 3000-01-01 | AD22: 3000-01-01 | AE22: 0 | AF22: 1 | AG22: 2.022015821 | AH22: 517579819.6 | AI22: 1 | AJ22: MY | AK22: 1 | AL22: AL RAJHI BANKING & INVESTMENT | AM22: 0 | AN22: MYR | AO22: MY | AP22: 1 | AQ22: RPF | AR22: CSH | AS22: Unlisted | AT22: 0 | AU22: WF | AV22: Malaysia | BL22: =IF(B22="TBI",OFFSET(CshFlagMap!$E$1,MATCH(C22,CshFlagMap!$C:$C,0)-1,0),IF(ISNA(OFFSET(InvestmentType!$D$1,MATCH(AQ22,InvestmentType!$A:$A,0)-1,0)),"",IF(OFFSET(InvestmentType!$D$1,MATCH(AQ22,InvestmentType!$A:$A,0)-1,0) = "Collective Investment Scheme", OFFSET(InvestmentType!$E$1,MATCH(AQ22,InvestmentType!$A:$A,0)-1,0),IF(OFFSET(InvestmentType!$D$1,MATCH(AQ22,InvestmentType!$A:$A,0)-1,0) = "Derivatives",$BT22,OFFSET(InvestmentType!$D$1,MATCH(AQ22,InvestmentType!$A:$A,0)-1,0))))) -> Money Market Instruments | BM22: 10465545.84 | BN22: =OFFSET(Fund!$B$1,MATCH(A22,Fund!$A:$A,0)-1,0) -> C037A00001 | BO22: =OFFSET(FundSdf!$J$1,MATCH(A22,FundSdf!$A:$A,0)-1,0) -> Wholesale Funds | BP22: =OFFSET(FundSdf!$K$1,MATCH(A22,FundSdf!$A:$A,0)-1,0) -> 0 | BQ22: =OFFSET(FundSdf!$D$1,MATCH(A22,FundSdf!$A:$A,0)-1,0) -> 0 | BR22: =OFFSET(FundSdf!$G$1,MATCH(A22,FundSdf!$A:$A,0)-1,0) -> Noorul Azila Kamaruzzaman | BS22: =OFFSET(InvestmentType!$D$1,MATCH(AQ22,InvestmentType!$A:$A,0)-1,0) -> Money Market Instruments | BT22: =IF(OFFSET(InvestmentType!$D$1,MATCH(AQ22,InvestmentType!$A:$A,0)-1,0)= "Derivatives",IF(AW22="OTC","OTC Derivative", "Exchange Traded Derivative"),"") ->  | BU22: Money Market Instruments | BV22: =OFFSET(EXTManageSdf!$C$1,MATCH(BR22,EXTManageSdf!$B:$B,0)-1,0) ->  | BW22: 0 | BX22: 0 | BY22: 0 | BZ22: 10465545.84 | CA22: 0 | CB22: 10465545.84 | CC22: 0 | CD22: 10465545.84 | CE22: 0 | CF22: 0
A23: BIMMF | B23: CSH | C23: RPF*MYR*ALRAJ | D23: CSH*170700352 | E23: 0 | F23: 0 | G23: 8688865.2 | H23: 8688865.2 | I23: 2017-12-22 | J23: 8624219 | K23: 0 | L23: 1 | M23: 64646.2 | N23: 0 | O23: 8624219 | P23: 8624219 | Q23: 0 | R23: 0 | S23: MYR | T23: 0.038 | U23: 2017-07-21 | V23: 0 | W23: 8688865.2 | X23: 1795.73 | Y23: 2017-09-30 | Z23: 0 | AA23: 0 | AB23: 0 | AC23: 3000-01-01 | AD23: 3000-01-01 | AE23: 0 | AF23: 1 | AG23: 1.678748837 | AH23: 517579819.6 | AI23: 1 | AJ23: MY | AK23: 1 | AL23: AL RAJHI BANKING & INVESTMENT | AM23: 0 | AN23: MYR | AO23: MY | AP23: 1 | AQ23: RPF | AR23: CSH | AS23: Unlisted | AT23: 0 | AU23: WF | AV23: Malaysia | BL23: =IF(B23="TBI",OFFSET(CshFlagMap!$E$1,MATCH(C23,CshFlagMap!$C:$C,0)-1,0),IF(ISNA(OFFSET(InvestmentType!$D$1,MATCH(AQ23,InvestmentType!$A:$A,0)-1,0)),"",IF(OFFSET(InvestmentType!$D$1,MATCH(AQ23,InvestmentType!$A:$A,0)-1,0) = "Collective Investment Scheme", OFFSET(InvestmentType!$E$1,MATCH(AQ23,InvestmentType!$A:$A,0)-1,0),IF(OFFSET(InvestmentType!$D$1,MATCH(AQ23,InvestmentType!$A:$A,0)-1,0) = "Derivatives",$BT23,OFFSET(InvestmentType!$D$1,MATCH(AQ23,InvestmentType!$A:$A,0)-1,0))))) -> Money Market Instruments | BM23: 8688865.2 | BN23: =OFFSET(Fund!$B$1,MATCH(A23,Fund!$A:$A,0)-1,0) -> C037A00001 | BO23: =OFFSET(FundSdf!$J$1,MATCH(A23,FundSdf!$A:$A,0)-1,0) -> Wholesale Funds | BP23: =OFFSET(FundSdf!$K$1,MATCH(A23,FundSdf!$A:$A,0)-1,0) -> 0 | BQ23: =OFFSET(FundSdf!$D$1,MATCH(A23,FundSdf!$A:$A,0)-1,0) -> 0 | BR23: =OFFSET(FundSdf!$G$1,MATCH(A23,FundSdf!$A:$A,0)-1,0) -> Noorul Azila Kamaruzzaman | BS23: =OFFSET(InvestmentType!$D$1,MATCH(AQ23,InvestmentType!$A:$A,0)-1,0) -> Money Market Instruments | BT23: =IF(OFFSET(InvestmentType!$D$1,MATCH(AQ23,InvestmentType!$A:$A,0)-1,0)= "Derivatives",IF(AW23="OTC","OTC Derivative", "Exchange Traded Derivative"),"") ->  | BU23: Money Market Instruments | BV23: =OFFSET(EXTManageSdf!$C$1,MATCH(BR23,EXTManageSdf!$B:$B,0)-1,0) ->  | BW23: 0 | BX23: 0 | BY23: 0 | BZ23: 8688865.2 | CA23: 0 | CB23: 8688865.2 | CC23: 0 | CD23: 8688865.2 | CE23: 0 | CF23: 0
A24: BIMMF | B24: CSH | C24: RPF*MYR*ALRAJ | D24: CSH*170800149 | E24: 0 | F24: 0 | G24: 4906611.95 | H24: 4906611.95 | I24: 2018-01-02 | J24: 4878630 | K24: 0 | L24: 1 | M24: 27981.95 | N24: 0 | O24: 4878630 | P24: 4878630 | Q24: 0 | R24: 0 | S24: MYR | T24: 0.0395 | U24: 2017-08-09 | V24: 0 | W24: 4906611.95 | X24: 1055.92 | Y24: 2017-09-30 | Z24: 0 | AA24: 0 | AB24: 0 | AC24: 3000-01-01 | AD24: 3000-01-01 | AE24: 0 | AF24: 1 | AG24: 0.9479913561 | AH24: 517579819.6 | AI24: 1 | AJ24: MY | AK24: 1 | AL24: AL RAJHI BANKING & INVESTMENT | AM24: 0 | AN24: MYR | AO24: MY | AP24: 1 | AQ24: RPF | AR24: CSH | AS24: Unlisted | AT24: 0 | AU24: WF | AV24: Malaysia | BL24: =IF(B24="TBI",OFFSET(CshFlagMap!$E$1,MATCH(C24,CshFlagMap!$C:$C,0)-1,0),IF(ISNA(OFFSET(InvestmentType!$D$1,MATCH(AQ24,InvestmentType!$A:$A,0)-1,0)),"",IF(OFFSET(InvestmentType!$D$1,MATCH(AQ24,InvestmentType!$A:$A,0)-1,0) = "Collective Investment Scheme", OFFSET(InvestmentType!$E$1,MATCH(AQ24,InvestmentType!$A:$A,0)-1,0),IF(OFFSET(InvestmentType!$D$1,MATCH(AQ24,InvestmentType!$A:$A,0)-1,0) = "Derivatives",$BT24,OFFSET(InvestmentType!$D$1,MATCH(AQ24,InvestmentType!$A:$A,0)-1,0))))) -> Money Market Instruments | BM24: 4906611.95 | BN24: =OFFSET(Fund!$B$1,MATCH(A24,Fund!$A:$A,0)-1,0) -> C037A00001 | BO24: =OFFSET(FundSdf!$J$1,MATCH(A24,FundSdf!$A:$A,0)-1,0) -> Wholesale Funds | BP24: =OFFSET(FundSdf!$K$1,MATCH(A24,FundSdf!$A:$A,0)-1,0) -> 0 | BQ24: =OFFSET(FundSdf!$D$1,MATCH(A24,FundSdf!$A:$A,0)-1,0) -> 0 | BR24: =OFFSET(FundSdf!$G$1,MATCH(A24,FundSdf!$A:$A,0)-1,0) -> Noorul Azila Kamaruzzaman | BS24: =OFFSET(InvestmentType!$D$1,MATCH(AQ24,InvestmentType!$A:$A,0)-1,0) -> Money Market Instruments | BT24: =IF(OFFSET(InvestmentType!$D$1,MATCH(AQ24,InvestmentType!$A:$A,0)-1,0)= "Derivatives",IF(AW24="OTC","OTC Derivative", "Exchange Traded Derivative"),"") ->  | BU24: Money Market Instruments | BV24: =OFFSET(EXTManageSdf!$C$1,MATCH(BR24,EXTManageSdf!$B:$B,0)-1,0) ->  | BW24: 0 | BX24: 0 | BY24: 0 | BZ24: 4906611.95 | CA24: 0 | CB24: 4906611.95 | CC24: 0 | CD24: 4906611.95 | CE24: 0 | CF24: 0
A25: BIMMF | B25: CSH | C25: RPF*MYR*ALRAJ | D25: CSH*170900048 | E25: 0 | F25: 0 | G25: 10372547.67 | H25: 10372547.67 | I25: 2018-01-19 | J25: 10344914 | K25: 0 | L25: 1 | M25: 27633.67 | N25: 0 | O25: 10344914 | P25: 10344914 | Q25: 0 | R25: 0 | S25: MYR | T25: 0.039 | U25: 2017-09-06 | V25: 0 | W25: 10372547.67 | X25: 2210.7 | Y25: 2017-09-30 | Z25: 0 | AA25: 0 | AB25: 0 | AC25: 3000-01-01 | AD25: 3000-01-01 | AE25: 0 | AF25: 1 | AG25: 2.004047932 | AH25: 517579819.6 | AI25: 1 | AJ25: MY | AK25: 1 | AL25: AL RAJHI BANKING & INVESTMENT | AM25: 0 | AN25: MYR | AO25: MY | AP25: 1 | AQ25: RPF | AR25: CSH | AS25: Unlisted | AT25: 0 | AU25: WF | AV25: Malaysia | BL25: =IF(B25="TBI",OFFSET(CshFlagMap!$E$1,MATCH(C25,CshFlagMap!$C:$C,0)-1,0),IF(ISNA(OFFSET(InvestmentType!$D$1,MATCH(AQ25,InvestmentType!$A:$A,0)-1,0)),"",IF(OFFSET(InvestmentType!$D$1,MATCH(AQ25,InvestmentType!$A:$A,0)-1,0) = "Collective Investment Scheme", OFFSET(InvestmentType!$E$1,MATCH(AQ25,InvestmentType!$A:$A,0)-1,0),IF(OFFSET(InvestmentType!$D$1,MATCH(AQ25,InvestmentType!$A:$A,0)-1,0) = "Derivatives",$BT25,OFFSET(InvestmentType!$D$1,MATCH(AQ25,InvestmentType!$A:$A,0)-1,0))))) -> Money Market Instruments | BM25: 10372547.67 | BN25: =OFFSET(Fund!$B$1,MATCH(A25,Fund!$A:$A,0)-1,0) -> C037A00001 | BO25: =OFFSET(FundSdf!$J$1,MATCH(A25,FundSdf!$A:$A,0)-1,0) -> Wholesale Funds | BP25: =OFFSET(FundSdf!$K$1,MATCH(A25,FundSdf!$A:$A,0)-1,0) -> 0 | BQ25: =OFFSET(FundSdf!$D$1,MATCH(A25,FundSdf!$A:$A,0)-1,0) -> 0 | BR25: =OFFSET(FundSdf!$G$1,MATCH(A25,FundSdf!$A:$A,0)-1,0) -> Noorul Azila Kamaruzzaman | BS25: =OFFSET(InvestmentType!$D$1,MATCH(AQ25,InvestmentType!$A:$A,0)-1,0) -> Money Market Instruments | BT25: =IF(OFFSET(InvestmentType!$D$1,MATCH(AQ25,InvestmentType!$A:$A,0)-1,0)= "Derivatives",IF(AW25="OTC","OTC Derivative", "Exchange Traded Derivative"),"") ->  | BU25: Money Market Instruments | BV25: =OFFSET(EXTManageSdf!$C$1,MATCH(BR25,EXTManageSdf!$B:$B,0)-1,0) ->  | BW25: 0 | BX25: 0 | BY25: 0 | BZ25: 10372547.67 | CA25: 0 | CB25: 10372547.67 | CC25: 0 | CD25: 10372547.67 | CE25: 0 | CF25: 0
A26: BIMMF | B26: CSH | C26: RPF*MYR*ALRAJ | D26: CSH*170900453 | E26: 0 | F26: 0 | G26: 9173581.95 | H26: 9173581.95 | I26: 2018-02-12 | J26: 9170680 | K26: 0 | L26: 1 | M26: 2901.95 | N26: 0 | O26: 9170680 | P26: 9170680 | Q26: 0 | R26: 0 | S26: MYR | T26: 0.0385 | U26: 2017-09-28 | V26: 0 | W26: 9173581.95 | X26: 1934.64 | Y26: 2017-09-30 | Z26: 0 | AA26: 0 | AB26: 0 | AC26: 3000-01-01 | AD26: 3000-01-01 | AE26: 0 | AF26: 1 | AG26: 1.772399464 | AH26: 517579819.6 | AI26: 1 | AJ26: MY | AK26: 1 | AL26: AL RAJHI BANKING & INVESTMENT | AM26: 0 | AN26: MYR | AO26: MY | AP26: 1 | AQ26: RPF | AR26: CSH | AS26: Unlisted | AT26: 0 | AU26: WF | AV26: Malaysia | BL26: =IF(B26="TBI",OFFSET(CshFlagMap!$E$1,MATCH(C26,CshFlagMap!$C:$C,0)-1,0),IF(ISNA(OFFSET(InvestmentType!$D$1,MATCH(AQ26,InvestmentType!$A:$A,0)-1,0)),"",IF(OFFSET(InvestmentType!$D$1,MATCH(AQ26,InvestmentType!$A:$A,0)-1,0) = "Collective Investment Scheme", OFFSET(InvestmentType!$E$1,MATCH(AQ26,InvestmentType!$A:$A,0)-1,0),IF(OFFSET(InvestmentType!$D$1,MATCH(AQ26,InvestmentType!$A:$A,0)-1,0) = "Derivatives",$BT26,OFFSET(InvestmentType!$D$1,MATCH(AQ26,InvestmentType!$A:$A,0)-1,0))))) -> Money Market Instruments | BM26: 9173581.95 | BN26: =OFFSET(Fund!$B$1,MATCH(A26,Fund!$A:$A,0)-1,0) -> C037A00001 | BO26: =OFFSET(FundSdf!$J$1,MATCH(A26,FundSdf!$A:$A,0)-1,0) -> Wholesale Funds | BP26: =OFFSET(FundSdf!$K$1,MATCH(A26,FundSdf!$A:$A,0)-1,0) -> 0 | BQ26: =OFFSET(FundSdf!$D$1,MATCH(A26,FundSdf!$A:$A,0)-1,0) -> 0 | BR26: =OFFSET(FundSdf!$G$1,MATCH(A26,FundSdf!$A:$A,0)-1,0) -> Noorul Azila Kamaruzzaman | BS26: =OFFSET(InvestmentType!$D$1,MATCH(AQ26,InvestmentType!$A:$A,0)-1,0) -> Money Market Instruments | BT26: =IF(OFFSET(InvestmentType!$D$1,MATCH(AQ26,InvestmentType!$A:$A,0)-1,0)= "Derivatives",IF(AW26="OTC","OTC Derivative", "Exchange Traded Derivative"),"") ->  | BU26: Money Market Instruments | BV26: =OFFSET(EXTManageSdf!$C$1,MATCH(BR26,EXTManageSdf!$B:$B,0)-1,0) ->  | BW26: 0 | BX26: 0 | BY26: 0 | BZ26: 9173581.95 | CA26: 0 | CB26: 9173581.95 | CC26: 0 | CD26: 9173581.95 | CE26: 0 | CF26: 0
A27: BIMMF | B27: CSH | C27: RPF*MYR*BKRM | D27: CSH*170500306 | E27: 0 | F27: 0 | G27: 10735713.97 | H27: 10735713.97 | I27: 2017-10-02 | J27: 10579394 | K27: 0 | L27: 1 | M27: 156319.97 | N27: 0 | O27: 10579394 | P27: 10579394 | Q27: 0 | R27: 0 | S27: MYR | T27: 0.0388 | U27: 2017-05-15 | V27: 0 | W27: 10735713.97 | X27: 1124.6 | Y27: 2017-09-30 | Z27: 0 | AA27: 0 | AB27: 0 | AC27: 3000-01-01 | AD27: 3000-01-01 | AE27: 0 | AF27: 1 | AG27: 2.074214172 | AH27: 517579819.6 | AI27: 1 | AJ27: MY | AK27: 1 | AL27: BANK KERJASAMA RAKYAT MALAYSIA BHD | AM27: 0 | AN27: MYR | AO27: MY | AP27: 1 | AQ27: RPF | AR27: CSH | AS27: Unlisted | AT27: 0 | AU27: WF | AV27: Malaysia | BL27: =IF(B27="TBI",OFFSET(CshFlagMap!$E$1,MATCH(C27,CshFlagMap!$C:$C,0)-1,0),IF(ISNA(OFFSET(InvestmentType!$D$1,MATCH(AQ27,InvestmentType!$A:$A,0)-1,0)),"",IF(OFFSET(InvestmentType!$D$1,MATCH(AQ27,InvestmentType!$A:$A,0)-1,0) = "Collective Investment Scheme", OFFSET(InvestmentType!$E$1,MATCH(AQ27,InvestmentType!$A:$A,0)-1,0),IF(OFFSET(InvestmentType!$D$1,MATCH(AQ27,InvestmentType!$A:$A,0)-1,0) = "Derivatives",$BT27,OFFSET(InvestmentType!$D$1,MATCH(AQ27,InvestmentType!$A:$A,0)-1,0))))) -> Money Market Instruments | BM27: 10735713.97 | BN27: =OFFSET(Fund!$B$1,MATCH(A27,Fund!$A:$A,0)-1,0) -> C037A00001 | BO27: =OFFSET(FundSdf!$J$1,MATCH(A27,FundSdf!$A:$A,0)-1,0) -> Wholesale Funds | BP27: =OFFSET(FundSdf!$K$1,MATCH(A27,FundSdf!$A:$A,0)-1,0) -> 0 | BQ27: =OFFSET(FundSdf!$D$1,MATCH(A27,FundSdf!$A:$A,0)-1,0) -> 0 | BR27: =OFFSET(FundSdf!$G$1,MATCH(A27,FundSdf!$A:$A,0)-1,0) -> Noorul Azila Kamaruzzaman | BS27: =OFFSET(InvestmentType!$D$1,MATCH(AQ27,InvestmentType!$A:$A,0)-1,0) -> Money Market Instruments | BT27: =IF(OFFSET(InvestmentType!$D$1,MATCH(AQ27,InvestmentType!$A:$A,0)-1,0)= "Derivatives",IF(AW27="OTC","OTC Derivative", "Exchange Traded Derivative"),"") ->  | BU27: Money Market Instruments | BV27: =OFFSET(EXTManageSdf!$C$1,MATCH(BR27,EXTManageSdf!$B:$B,0)-1,0) ->  | BW27: 0 | BX27: 0 | BY27: 0 | BZ27: 10735713.97 | CA27: 0 | CB27: 10735713.97 | CC27: 0 | CD27: 10735713.97 | CE27: 0 | CF27: 0
A28: BIMMF | B28: CSH | C28: RPF*MYR*BKRM | D28: CSH*170700158 | E28: 0 | F28: 0 | G28: 9662697.11 | H28: 9662697.11 | I28: 2017-12-14 | J28: 9579198 | K28: 0 | L28: 1 | M28: 83499.11 | N28: 0 | O28: 9579198 | P28: 9579198 | Q28: 0 | R28: 0 | S28: MYR | T28: 0.0388 | U28: 2017-07-11 | V28: 0 | W28: 9662697.11 | X28: 2036.57 | Y28: 2017-09-30 | Z28: 0 | AA28: 0 | AB28: 0 | AC28: 3000-01-01 | AD28: 3000-01-01 | AE28: 0 | AF28: 1 | AG28: 1.866899895 | AH28: 517579819.6 | AI28: 1 | AJ28: MY | AK28: 1 | AL28: BANK KERJASAMA RAKYAT MALAYSIA BHD | AM28: 0 | AN28: MYR | AO28: MY | AP28: 1 | AQ28: RPF | AR28: CSH | AS28: Unlisted | AT28: 0 | AU28: WF | AV28: Malaysia | BL28: =IF(B28="TBI",OFFSET(CshFlagMap!$E$1,MATCH(C28,CshFlagMap!$C:$C,0)-1,0),IF(ISNA(OFFSET(InvestmentType!$D$1,MATCH(AQ28,InvestmentType!$A:$A,0)-1,0)),"",IF(OFFSET(InvestmentType!$D$1,MATCH(AQ28,InvestmentType!$A:$A,0)-1,0) = "Collective Investment Scheme", OFFSET(InvestmentType!$E$1,MATCH(AQ28,InvestmentType!$A:$A,0)-1,0),IF(OFFSET(InvestmentType!$D$1,MATCH(AQ28,InvestmentType!$A:$A,0)-1,0) = "Derivatives",$BT28,OFFSET(InvestmentType!$D$1,MATCH(AQ28,InvestmentType!$A:$A,0)-1,0))))) -> Money Market Instruments | BM28: 9662697.11 | BN28: =OFFSET(Fund!$B$1,MATCH(A28,Fund!$A:$A,0)-1,0) -> C037A00001 | BO28: =OFFSET(FundSdf!$J$1,MATCH(A28,FundSdf!$A:$A,0)-1,0) -> Wholesale Funds | BP28: =OFFSET(FundSdf!$K$1,MATCH(A28,FundSdf!$A:$A,0)-1,0) -> 0 | BQ28: =OFFSET(FundSdf!$D$1,MATCH(A28,FundSdf!$A:$A,0)-1,0) -> 0 | BR28: =OFFSET(FundSdf!$G$1,MATCH(A28,FundSdf!$A:$A,0)-1,0) -> Noorul Azila Kamaruzzaman | BS28: =OFFSET(InvestmentType!$D$1,MATCH(AQ28,InvestmentType!$A:$A,0)-1,0) -> Money Market Instruments | BT28: =IF(OFFSET(InvestmentType!$D$1,MATCH(AQ28,InvestmentType!$A:$A,0)-1,0)= "Derivatives",IF(AW28="OTC","OTC Derivative", "Exchange Traded Derivative"),"") ->  | BU28: Money Market Instruments | BV28: =OFFSET(EXTManageSdf!$C$1,MATCH(BR28,EXTManageSdf!$B:$B,0)-1,0) ->  | BW28: 0 | BX28: 0 | BY28: 0 | BZ28: 9662697.11 | CA28: 0 | CB28: 9662697.11 | CC28: 0 | CD28: 9662697.11 | CE28: 0 | CF28: 0
A29: BIMMF | B29: CSH | C29: RPF*MYR*BKRM | D29: CSH*170700159 | E29: 0 | F29: 0 | G29: 9662697.11 | H29: 9662697.11 | I29: 2017-12-15 | J29: 9579198 | K29: 0 | L29: 1 | M29: 83499.11 | N29: 0 | O29: 9579198 | P29: 9579198 | Q29: 0 | R29: 0 | S29: MYR | T29: 0.0388 | U29: 2017-07-11 | V29: 0 | W29: 9662697.11 | X29: 2036.57 | Y29: 2017-09-30 | Z29: 0 | AA29: 0 | AB29: 0 | AC29: 3000-01-01 | AD29: 3000-01-01 | AE29: 0 | AF29: 1 | AG29: 1.866899895 | AH29: 517579819.6 | AI29: 1 | AJ29: MY | AK29: 1 | AL29: BANK KERJASAMA RAKYAT MALAYSIA BHD | AM29: 0 | AN29: MYR | AO29: MY | AP29: 1 | AQ29: RPF | AR29: CSH | AS29: Unlisted | AT29: 0 | AU29: WF | AV29: Malaysia | BL29: =IF(B29="TBI",OFFSET(CshFlagMap!$E$1,MATCH(C29,CshFlagMap!$C:$C,0)-1,0),IF(ISNA(OFFSET(InvestmentType!$D$1,MATCH(AQ29,InvestmentType!$A:$A,0)-1,0)),"",IF(OFFSET(InvestmentType!$D$1,MATCH(AQ29,InvestmentType!$A:$A,0)-1,0) = "Collective Investment Scheme", OFFSET(InvestmentType!$E$1,MATCH(AQ29,InvestmentType!$A:$A,0)-1,0),IF(OFFSET(InvestmentType!$D$1,MATCH(AQ29,InvestmentType!$A:$A,0)-1,0) = "Derivatives",$BT29,OFFSET(InvestmentType!$D$1,MATCH(AQ29,InvestmentType!$A:$A,0)-1,0))))) -> Money Market Instruments | BM29: 9662697.11 | BN29: =OFFSET(Fund!$B$1,MATCH(A29,Fund!$A:$A,0)-1,0) -> C037A00001 | BO29: =OFFSET(FundSdf!$J$1,MATCH(A29,FundSdf!$A:$A,0)-1,0) -> Wholesale Funds | BP29: =OFFSET(FundSdf!$K$1,MATCH(A29,FundSdf!$A:$A,0)-1,0) -> 0 | BQ29: =OFFSET(FundSdf!$D$1,MATCH(A29,FundSdf!$A:$A,0)-1,0) -> 0 | BR29: =OFFSET(FundSdf!$G$1,MATCH(A29,FundSdf!$A:$A,0)-1,0) -> Noorul Azila Kamaruzzaman | BS29: =OFFSET(InvestmentType!$D$1,MATCH(AQ29,InvestmentType!$A:$A,0)-1,0) -> Money Market Instruments | BT29: =IF(OFFSET(InvestmentType!$D$1,MATCH(AQ29,InvestmentType!$A:$A,0)-1,0)= "Derivatives",IF(AW29="OTC","OTC Derivative", "Exchange Traded Derivative"),"") ->  | BU29: Money Market Instruments | BV29: =OFFSET(EXTManageSdf!$C$1,MATCH(BR29,EXTManageSdf!$B:$B,0)-1,0) ->  | BW29: 0 | BX29: 0 | BY29: 0 | BZ29: 9662697.11 | CA29: 0 | CB29: 9662697.11 | CC29: 0 | CD29: 9662697.11 | CE29: 0 | CF29: 0
A30: BIMMF | B30: CSH | C30: RPF*MYR*BKRM | D30: CSH*170800054 | E30: 0 | F30: 0 | G30: 10464665.43 | H30: 10464665.43 | I30: 2017-12-26 | J30: 10400779 | K30: 0 | L30: 1 | M30: 63886.43 | N30: 0 | O30: 10400779 | P30: 10400779 | Q30: 0 | R30: 0 | S30: MYR | T30: 0.038 | U30: 2017-08-03 | V30: 0 | W30: 10464665.43 | X30: 2165.64 | Y30: 2017-09-30 | Z30: 0 | AA30: 0 | AB30: 0 | AC30: 3000-01-01 | AD30: 3000-01-01 | AE30: 0 | AF30: 1 | AG30: 2.02184572 | AH30: 517579819.6 | AI30: 1 | AJ30: MY | AK30: 1 | AL30: BANK KERJASAMA RAKYAT MALAYSIA BHD | AM30: 0 | AN30: MYR | AO30: MY | AP30: 1 | AQ30: RPF | AR30: CSH | AS30: Unlisted | AT30: 0 | AU30: WF | AV30: Malaysia | BL30: =IF(B30="TBI",OFFSET(CshFlagMap!$E$1,MATCH(C30,CshFlagMap!$C:$C,0)-1,0),IF(ISNA(OFFSET(InvestmentType!$D$1,MATCH(AQ30,InvestmentType!$A:$A,0)-1,0)),"",IF(OFFSET(InvestmentType!$D$1,MATCH(AQ30,InvestmentType!$A:$A,0)-1,0) = "Collective Investment Scheme", OFFSET(InvestmentType!$E$1,MATCH(AQ30,InvestmentType!$A:$A,0)-1,0),IF(OFFSET(InvestmentType!$D$1,MATCH(AQ30,InvestmentType!$A:$A,0)-1,0) = "Derivatives",$BT30,OFFSET(InvestmentType!$D$1,MATCH(AQ30,InvestmentType!$A:$A,0)-1,0))))) -> Money Market Instruments | BM30: 10464665.43 | BN30: =OFFSET(Fund!$B$1,MATCH(A30,Fund!$A:$A,0)-1,0) -> C037A00001 | BO30: =OFFSET(FundSdf!$J$1,MATCH(A30,FundSdf!$A:$A,0)-1,0) -> Wholesale Funds | BP30: =OFFSET(FundSdf!$K$1,MATCH(A30,FundSdf!$A:$A,0)-1,0) -> 0 | BQ30: =OFFSET(FundSdf!$D$1,MATCH(A30,FundSdf!$A:$A,0)-1,0) -> 0 | BR30: =OFFSET(FundSdf!$G$1,MATCH(A30,FundSdf!$A:$A,0)-1,0) -> Noorul Azila Kamaruzzaman | BS30: =OFFSET(InvestmentType!$D$1,MATCH(AQ30,InvestmentType!$A:$A,0)-1,0) -> Money Market Instruments | BT30: =IF(OFFSET(InvestmentType!$D$1,MATCH(AQ30,InvestmentType!$A:$A,0)-1,0)= "Derivatives",IF(AW30="OTC","OTC Derivative", "Exchange Traded Derivative"),"") ->  | BU30: Money Market Instruments | BV30: =OFFSET(EXTManageSdf!$C$1,MATCH(BR30,EXTManageSdf!$B:$B,0)-1,0) ->  | BW30: 0 | BX30: 0 | BY30: 0 | BZ30: 10464665.43 | CA30: 0 | CB30: 10464665.43 | CC30: 0 | CD30: 10464665.43 | CE30: 0 | CF30: 0
A31: BIMMF | B31: CSH | C31: RPF*MYR*BKRM | D31: CSH*170800341 | E31: 0 | F31: 0 | G31: 7656746.03 | H31: 7656746.03 | I31: 2018-01-08 | J31: 7622497 | K31: 0 | L31: 1 | M31: 34249.03 | N31: 0 | O31: 7622497 | P31: 7622497 | Q31: 0 | R31: 0 | S31: MYR | T31: 0.04 | U31: 2017-08-21 | V31: 0 | W31: 7656746.03 | X31: 1670.68 | Y31: 2017-09-30 | Z31: 0 | AA31: 0 | AB31: 0 | AC31: 3000-01-01 | AD31: 3000-01-01 | AE31: 0 | AF31: 1 | AG31: 1.479336276 | AH31: 517579819.6 | AI31: 1 | AJ31: MY | AK31: 1 | AL31: BANK KERJASAMA RAKYAT MALAYSIA BHD | AM31: 0 | AN31: MYR | AO31: MY | AP31: 1 | AQ31: RPF | AR31: CSH | AS31: Unlisted | AT31: 0 | AU31: WF | AV31: Malaysia | BL31: =IF(B31="TBI",OFFSET(CshFlagMap!$E$1,MATCH(C31,CshFlagMap!$C:$C,0)-1,0),IF(ISNA(OFFSET(InvestmentType!$D$1,MATCH(AQ31,InvestmentType!$A:$A,0)-1,0)),"",IF(OFFSET(InvestmentType!$D$1,MATCH(AQ31,InvestmentType!$A:$A,0)-1,0) = "Collective Investment Scheme", OFFSET(InvestmentType!$E$1,MATCH(AQ31,InvestmentType!$A:$A,0)-1,0),IF(OFFSET(InvestmentType!$D$1,MATCH(AQ31,InvestmentType!$A:$A,0)-1,0) = "Derivatives",$BT31,OFFSET(InvestmentType!$D$1,MATCH(AQ31,InvestmentType!$A:$A,0)-1,0))))) -> Money Market Instruments | BM31: 7656746.03 | BN31: =OFFSET(Fund!$B$1,MATCH(A31,Fund!$A:$A,0)-1,0) -> C037A00001 | BO31: =OFFSET(FundSdf!$J$1,MATCH(A31,FundSdf!$A:$A,0)-1,0) -> Wholesale Funds | BP31: =OFFSET(FundSdf!$K$1,MATCH(A31,FundSdf!$A:$A,0)-1,0) -> 0 | BQ31: =OFFSET(FundSdf!$D$1,MATCH(A31,FundSdf!$A:$A,0)-1,0) -> 0 | BR31: =OFFSET(FundSdf!$G$1,MATCH(A31,FundSdf!$A:$A,0)-1,0) -> Noorul Azila Kamaruzzaman | BS31: =OFFSET(InvestmentType!$D$1,MATCH(AQ31,InvestmentType!$A:$A,0)-1,0) -> Money Market Instruments | BT31: =IF(OFFSET(InvestmentType!$D$1,MATCH(AQ31,InvestmentType!$A:$A,0)-1,0)= "Derivatives",IF(AW31="OTC","OTC Derivative", "Exchange Traded Derivative"),"") ->  | BU31: Money Market Instruments | BV31: =OFFSET(EXTManageSdf!$C$1,MATCH(BR31,EXTManageSdf!$B:$B,0)-1,0) ->  | BW31: 0 | BX31: 0 | BY31: 0 | BZ31: 7656746.03 | CA31: 0 | CB31: 7656746.03 | CC31: 0 | CD31: 7656746.03 | CE31: 0 | CF31: 0
A32: BIMMF | B32: CSH | C32: RPF*MYR*BKRM | D32: CSH*170800444 | E32: 0 | F32: 0 | G32: 7143660.92 | H32: 7143660.92 | I32: 2018-01-10 | J32: 7115171 | K32: 0 | L32: 1 | M32: 28489.92 | N32: 0 | O32: 7115171 | P32: 7115171 | Q32: 0 | R32: 0 | S32: MYR | T32: 0.0395 | U32: 2017-08-25 | V32: 0 | W32: 7143660.92 | X32: 1540 | Y32: 2017-09-30 | Z32: 0 | AA32: 0 | AB32: 0 | AC32: 3000-01-01 | AD32: 3000-01-01 | AE32: 0 | AF32: 1 | AG32: 1.380204685 | AH32: 517579819.6 | AI32: 1 | AJ32: MY | AK32: 1 | AL32: BANK KERJASAMA RAKYAT MALAYSIA BHD | AM32: 0 | AN32: MYR | AO32: MY | AP32: 1 | AQ32: RPF | AR32: CSH | AS32: Unlisted | AT32: 0 | AU32: WF | AV32: Malaysia | BL32: =IF(B32="TBI",OFFSET(CshFlagMap!$E$1,MATCH(C32,CshFlagMap!$C:$C,0)-1,0),IF(ISNA(OFFSET(InvestmentType!$D$1,MATCH(AQ32,InvestmentType!$A:$A,0)-1,0)),"",IF(OFFSET(InvestmentType!$D$1,MATCH(AQ32,InvestmentType!$A:$A,0)-1,0) = "Collective Investment Scheme", OFFSET(InvestmentType!$E$1,MATCH(AQ32,InvestmentType!$A:$A,0)-1,0),IF(OFFSET(InvestmentType!$D$1,MATCH(AQ32,InvestmentType!$A:$A,0)-1,0) = "Derivatives",$BT32,OFFSET(InvestmentType!$D$1,MATCH(AQ32,InvestmentType!$A:$A,0)-1,0))))) -> Money Market Instruments | BM32: 7143660.92 | BN32: =OFFSET(Fund!$B$1,MATCH(A32,Fund!$A:$A,0)-1,0) -> C037A00001 | BO32: =OFFSET(FundSdf!$J$1,MATCH(A32,FundSdf!$A:$A,0)-1,0) -> Wholesale Funds | BP32: =OFFSET(FundSdf!$K$1,MATCH(A32,FundSdf!$A:$A,0)-1,0) -> 0 | BQ32: =OFFSET(FundSdf!$D$1,MATCH(A32,FundSdf!$A:$A,0)-1,0) -> 0 | BR32: =OFFSET(FundSdf!$G$1,MATCH(A32,FundSdf!$A:$A,0)-1,0) -> Noorul Azila Kamaruzzaman | BS32: =OFFSET(InvestmentType!$D$1,MATCH(AQ32,InvestmentType!$A:$A,0)-1,0) -> Money Market Instruments | BT32: =IF(OFFSET(InvestmentType!$D$1,MATCH(AQ32,InvestmentType!$A:$A,0)-1,0)= "Derivatives",IF(AW32="OTC","OTC Derivative", "Exchange Traded Derivative"),"") ->  | BU32: Money Market Instruments | BV32: =OFFSET(EXTManageSdf!$C$1,MATCH(BR32,EXTManageSdf!$B:$B,0)-1,0) ->  | BW32: 0 | BX32: 0 | BY32: 0 | BZ32: 7143660.92 | CA32: 0 | CB32: 7143660.92 | CC32: 0 | CD32: 7143660.92 | CE32: 0 | CF32: 0
A33: BIMMF | B33: CSH | C33: RPF*MYR*BKRM | D33: CSH*170900093 | E33: 0 | F33: 0 | G33: 15104594.06 | H33: 15104594.06 | I33: 2018-01-23 | J33: 15067565 | K33: 0 | L33: 1 | M33: 37029.06 | N33: 0 | O33: 15067565 | P33: 15067565 | Q33: 0 | R33: 0 | S33: MYR | T33: 0.039 | U33: 2017-09-08 | V33: 0 | W33: 15104594.06 | X33: 3219.91 | Y33: 2017-09-30 | Z33: 0 | AA33: 0 | AB33: 0 | AC33: 3000-01-01 | AD33: 3000-01-01 | AE33: 0 | AF33: 1 | AG33: 2.918312015 | AH33: 517579819.6 | AI33: 1 | AJ33: MY | AK33: 1 | AL33: BANK KERJASAMA RAKYAT MALAYSIA BHD | AM33: 0 | AN33: MYR | AO33: MY | AP33: 1 | AQ33: RPF | AR33: CSH | AS33: Unlisted | AT33: 0 | AU33: WF | AV33: Malaysia | BL33: =IF(B33="TBI",OFFSET(CshFlagMap!$E$1,MATCH(C33,CshFlagMap!$C:$C,0)-1,0),IF(ISNA(OFFSET(InvestmentType!$D$1,MATCH(AQ33,InvestmentType!$A:$A,0)-1,0)),"",IF(OFFSET(InvestmentType!$D$1,MATCH(AQ33,InvestmentType!$A:$A,0)-1,0) = "Collective Investment Scheme", OFFSET(InvestmentType!$E$1,MATCH(AQ33,InvestmentType!$A:$A,0)-1,0),IF(OFFSET(InvestmentType!$D$1,MATCH(AQ33,InvestmentType!$A:$A,0)-1,0) = "Derivatives",$BT33,OFFSET(InvestmentType!$D$1,MATCH(AQ33,InvestmentType!$A:$A,0)-1,0))))) -> Money Market Instruments | BM33: 15104594.06 | BN33: =OFFSET(Fund!$B$1,MATCH(A33,Fund!$A:$A,0)-1,0) -> C037A00001 | BO33: =OFFSET(FundSdf!$J$1,MATCH(A33,FundSdf!$A:$A,0)-1,0) -> Wholesale Funds | BP33: =OFFSET(FundSdf!$K$1,MATCH(A33,FundSdf!$A:$A,0)-1,0) -> 0 | BQ33: =OFFSET(FundSdf!$D$1,MATCH(A33,FundSdf!$A:$A,0)-1,0) -> 0 | BR33: =OFFSET(FundSdf!$G$1,MATCH(A33,FundSdf!$A:$A,0)-1,0) -> Noorul Azila Kamaruzzaman | BS33: =OFFSET(InvestmentType!$D$1,MATCH(AQ33,InvestmentType!$A:$A,0)-1,0) -> Money Market Instruments | BT33: =IF(OFFSET(InvestmentType!$D$1,MATCH(AQ33,InvestmentType!$A:$A,0)-1,0)= "Derivatives",IF(AW33="OTC","OTC Derivative", "Exchange Traded Derivative"),"") ->  | BU33: Money Market Instruments | BV33: =OFFSET(EXTManageSdf!$C$1,MATCH(BR33,EXTManageSdf!$B:$B,0)-1,0) ->  | BW33: 0 | BX33: 0 | BY33: 0 | BZ33: 15104594.06 | CA33: 0 | CB33: 15104594.06 | CC33: 0 | CD33: 15104594.06 | CE33: 0 | CF33: 0
A34: BIMMF | B34: CSH | C34: RPF*MYR*BKRM | D34: CSH*170900094 | E34: 0 | F34: 0 | G34: 15105068.79 | H34: 15105068.79 | I34: 2018-03-09 | J34: 15067565 | K34: 0 | L34: 1 | M34: 37503.79 | N34: 0 | O34: 15067565 | P34: 15067565 | Q34: 0 | R34: 0 | S34: MYR | T34: 0.0395 | U34: 2017-09-08 | V34: 0 | W34: 15105068.79 | X34: 3261.2 | Y34: 2017-09-30 | Z34: 0 | AA34: 0 | AB34: 0 | AC34: 3000-01-01 | AD34: 3000-01-01 | AE34: 0 | AF34: 1 | AG34: 2.918403736 | AH34: 517579819.6 | AI34: 1 | AJ34: MY | AK34: 1 | AL34: BANK KERJASAMA RAKYAT MALAYSIA BHD | AM34: 0 | AN34: MYR | AO34: MY | AP34: 1 | AQ34: RPF | AR34: CSH | AS34: Unlisted | AT34: 0 | AU34: WF | AV34: Malaysia | BL34: =IF(B34="TBI",OFFSET(CshFlagMap!$E$1,MATCH(C34,CshFlagMap!$C:$C,0)-1,0),IF(ISNA(OFFSET(InvestmentType!$D$1,MATCH(AQ34,InvestmentType!$A:$A,0)-1,0)),"",IF(OFFSET(InvestmentType!$D$1,MATCH(AQ34,InvestmentType!$A:$A,0)-1,0) = "Collective Investment Scheme", OFFSET(InvestmentType!$E$1,MATCH(AQ34,InvestmentType!$A:$A,0)-1,0),IF(OFFSET(InvestmentType!$D$1,MATCH(AQ34,InvestmentType!$A:$A,0)-1,0) = "Derivatives",$BT34,OFFSET(InvestmentType!$D$1,MATCH(AQ34,InvestmentType!$A:$A,0)-1,0))))) -> Money Market Instruments | BM34: 15105068.79 | BN34: =OFFSET(Fund!$B$1,MATCH(A34,Fund!$A:$A,0)-1,0) -> C037A00001 | BO34: =OFFSET(FundSdf!$J$1,MATCH(A34,FundSdf!$A:$A,0)-1,0) -> Wholesale Funds | BP34: =OFFSET(FundSdf!$K$1,MATCH(A34,FundSdf!$A:$A,0)-1,0) -> 0 | BQ34: =OFFSET(FundSdf!$D$1,MATCH(A34,FundSdf!$A:$A,0)-1,0) -> 0 | BR34: =OFFSET(FundSdf!$G$1,MATCH(A34,FundSdf!$A:$A,0)-1,0) -> Noorul Azila Kamaruzzaman | BS34: =OFFSET(InvestmentType!$D$1,MATCH(AQ34,InvestmentType!$A:$A,0)-1,0) -> Money Market Instruments | BT34: =IF(OFFSET(InvestmentType!$D$1,MATCH(AQ34,InvestmentType!$A:$A,0)-1,0)= "Derivatives",IF(AW34="OTC","OTC Derivative", "Exchange Traded Derivative"),"") ->  | BU34: Money Market Instruments | BV34: =OFFSET(EXTManageSdf!$C$1,MATCH(BR34,EXTManageSdf!$B:$B,0)-1,0) ->  | BW34: 0 | BX34: 0 | BY34: 0 | BZ34: 15105068.79 | CA34: 0 | CB34: 15105068.79 | CC34: 0 | CD34: 15105068.79 | CE34: 0 | CF34: 0
A35: BIMMF | B35: CSH | C35: RPF*MYR*BKRM | D35: CSH*170900152 | E35: 0 | F35: 0 | G35: 7970619.27 | H35: 7970619.27 | I35: 2018-01-25 | J35: 7954264 | K35: 0 | L35: 1 | M35: 16355.27 | N35: 0 | O35: 7954264 | P35: 7954264 | Q35: 0 | R35: 0 | S35: MYR | T35: 0.0395 | U35: 2017-09-12 | V35: 0 | W35: 7970619.27 | X35: 1721.61 | Y35: 2017-09-30 | Z35: 0 | AA35: 0 | AB35: 0 | AC35: 3000-01-01 | AD35: 3000-01-01 | AE35: 0 | AF35: 1 | AG35: 1.539978757 | AH35: 517579819.6 | AI35: 1 | AJ35: MY | AK35: 1 | AL35: BANK KERJASAMA RAKYAT MALAYSIA BHD | AM35: 0 | AN35: MYR | AO35: MY | AP35: 1 | AQ35: RPF | AR35: CSH | AS35: Unlisted | AT35: 0 | AU35: WF | AV35: Malaysia | BL35: =IF(B35="TBI",OFFSET(CshFlagMap!$E$1,MATCH(C35,CshFlagMap!$C:$C,0)-1,0),IF(ISNA(OFFSET(InvestmentType!$D$1,MATCH(AQ35,InvestmentType!$A:$A,0)-1,0)),"",IF(OFFSET(InvestmentType!$D$1,MATCH(AQ35,InvestmentType!$A:$A,0)-1,0) = "Collective Investment Scheme", OFFSET(InvestmentType!$E$1,MATCH(AQ35,InvestmentType!$A:$A,0)-1,0),IF(OFFSET(InvestmentType!$D$1,MATCH(AQ35,InvestmentType!$A:$A,0)-1,0) = "Derivatives",$BT35,OFFSET(InvestmentType!$D$1,MATCH(AQ35,InvestmentType!$A:$A,0)-1,0))))) -> Money Market Instruments | BM35: 7970619.27 | BN35: =OFFSET(Fund!$B$1,MATCH(A35,Fund!$A:$A,0)-1,0) -> C037A00001 | BO35: =OFFSET(FundSdf!$J$1,MATCH(A35,FundSdf!$A:$A,0)-1,0) -> Wholesale Funds | BP35: =OFFSET(FundSdf!$K$1,MATCH(A35,FundSdf!$A:$A,0)-1,0) -> 0 | BQ35: =OFFSET(FundSdf!$D$1,MATCH(A35,FundSdf!$A:$A,0)-1,0) -> 0 | BR35: =OFFSET(FundSdf!$G$1,MATCH(A35,FundSdf!$A:$A,0)-1,0) -> Noorul Azila Kamaruzzaman | BS35: =OFFSET(InvestmentType!$D$1,MATCH(AQ35,InvestmentType!$A:$A,0)-1,0) -> Money Market Instruments | BT35: =IF(OFFSET(InvestmentType!$D$1,MATCH(AQ35,InvestmentType!$A:$A,0)-1,0)= "Derivatives",IF(AW35="OTC","OTC Derivative", "Exchange Traded Derivative"),"") ->  | BU35: Money Market Instruments | BV35: =OFFSET(EXTManageSdf!$C$1,MATCH(BR35,EXTManageSdf!$B:$B,0)-1,0) ->  | BW35: 0 | BX35: 0 | BY35: 0 | BZ35: 7970619.27 | CA35: 0 | CB35: 7970619.27 | CC35: 0 | CD35: 7970619.27 | CE35: 0 | CF35: 0
A36: BIMMF | B36: CSH | C36: RPF*MYR*BKRM | D36: CSH*170900160 | E36: 0 | F36: 0 | G36: 4008224.66 | H36: 4008224.66 | I36: 2018-01-25 | J36: 4000000 | K36: 0 | L36: 1 | M36: 8224.66 | N36: 0 | O36: 4000000 | P36: 4000000 | Q36: 0 | R36: 0 | S36: MYR | T36: 0.0395 | U36: 2017-09-12 | V36: 0 | W36: 4008224.66 | X36: 865.75 | Y36: 2017-09-30 | Z36: 0 | AA36: 0 | AB36: 0 | AC36: 3000-01-01 | AD36: 3000-01-01 | AE36: 0 | AF36: 1 | AG36: 0.7744167196 | AH36: 517579819.6 | AI36: 1 | AJ36: MY | AK36: 1 | AL36: BANK KERJASAMA RAKYAT MALAYSIA BHD | AM36: 0 | AN36: MYR | AO36: MY | AP36: 1 | AQ36: RPF | AR36: CSH | AS36: Unlisted | AT36: 0 | AU36: WF | AV36: Malaysia | BL36: =IF(B36="TBI",OFFSET(CshFlagMap!$E$1,MATCH(C36,CshFlagMap!$C:$C,0)-1,0),IF(ISNA(OFFSET(InvestmentType!$D$1,MATCH(AQ36,InvestmentType!$A:$A,0)-1,0)),"",IF(OFFSET(InvestmentType!$D$1,MATCH(AQ36,InvestmentType!$A:$A,0)-1,0) = "Collective Investment Scheme", OFFSET(InvestmentType!$E$1,MATCH(AQ36,InvestmentType!$A:$A,0)-1,0),IF(OFFSET(InvestmentType!$D$1,MATCH(AQ36,InvestmentType!$A:$A,0)-1,0) = "Derivatives",$BT36,OFFSET(InvestmentType!$D$1,MATCH(AQ36,InvestmentType!$A:$A,0)-1,0))))) -> Money Market Instruments | BM36: 4008224.66 | BN36: =OFFSET(Fund!$B$1,MATCH(A36,Fund!$A:$A,0)-1,0) -> C037A00001 | BO36: =OFFSET(FundSdf!$J$1,MATCH(A36,FundSdf!$A:$A,0)-1,0) -> Wholesale Funds | BP36: =OFFSET(FundSdf!$K$1,MATCH(A36,FundSdf!$A:$A,0)-1,0) -> 0 | BQ36: =OFFSET(FundSdf!$D$1,MATCH(A36,FundSdf!$A:$A,0)-1,0) -> 0 | BR36: =OFFSET(FundSdf!$G$1,MATCH(A36,FundSdf!$A:$A,0)-1,0) -> Noorul Azila Kamaruzzaman | BS36: =OFFSET(InvestmentType!$D$1,MATCH(AQ36,InvestmentType!$A:$A,0)-1,0) -> Money Market Instruments | BT36: =IF(OFFSET(InvestmentType!$D$1,MATCH(AQ36,InvestmentType!$A:$A,0)-1,0)= "Derivatives",IF(AW36="OTC","OTC Derivative", "Exchange Traded Derivative"),"") ->  | BU36: Money Market Instruments | BV36: =OFFSET(EXTManageSdf!$C$1,MATCH(BR36,EXTManageSdf!$B:$B,0)-1,0) ->  | BW36: 0 | BX36: 0 | BY36: 0 | BZ36: 4008224.66 | CA36: 0 | CB36: 4008224.66 | CC36: 0 | CD36: 4008224.66 | CE36: 0 | CF36: 0
A37: BIMMF | B37: CSH | C37: RPF*MYR*BKRM | D37: CSH*170900197 | E37: 0 | F37: 0 | G37: 10514504.29 | H37: 10514504.29 | I37: 2018-01-29 | J37: 10495196 | K37: 0 | L37: 1 | M37: 19308.29 | N37: 0 | O37: 10495196 | P37: 10495196 | Q37: 0 | R37: 0 | S37: MYR | T37: 0.0395 | U37: 2017-09-14 | V37: 0 | W37: 10514504.29 | X37: 2271.56 | Y37: 2017-09-30 | Z37: 0 | AA37: 0 | AB37: 0 | AC37: 3000-01-01 | AD37: 3000-01-01 | AE37: 0 | AF37: 1 | AG37: 2.031474933 | AH37: 517579819.6 | AI37: 1 | AJ37: MY | AK37: 1 | AL37: BANK KERJASAMA RAKYAT MALAYSIA BHD | AM37: 0 | AN37: MYR | AO37: MY | AP37: 1 | AQ37: RPF | AR37: CSH | AS37: Unlisted | AT37: 0 | AU37: WF | AV37: Malaysia | BL37: =IF(B37="TBI",OFFSET(CshFlagMap!$E$1,MATCH(C37,CshFlagMap!$C:$C,0)-1,0),IF(ISNA(OFFSET(InvestmentType!$D$1,MATCH(AQ37,InvestmentType!$A:$A,0)-1,0)),"",IF(OFFSET(InvestmentType!$D$1,MATCH(AQ37,InvestmentType!$A:$A,0)-1,0) = "Collective Investment Scheme", OFFSET(InvestmentType!$E$1,MATCH(AQ37,InvestmentType!$A:$A,0)-1,0),IF(OFFSET(InvestmentType!$D$1,MATCH(AQ37,InvestmentType!$A:$A,0)-1,0) = "Derivatives",$BT37,OFFSET(InvestmentType!$D$1,MATCH(AQ37,InvestmentType!$A:$A,0)-1,0))))) -> Money Market Instruments | BM37: 10514504.29 | BN37: =OFFSET(Fund!$B$1,MATCH(A37,Fund!$A:$A,0)-1,0) -> C037A00001 | BO37: =OFFSET(FundSdf!$J$1,MATCH(A37,FundSdf!$A:$A,0)-1,0) -> Wholesale Funds | BP37: =OFFSET(FundSdf!$K$1,MATCH(A37,FundSdf!$A:$A,0)-1,0) -> 0 | BQ37: =OFFSET(FundSdf!$D$1,MATCH(A37,FundSdf!$A:$A,0)-1,0) -> 0 | BR37: =OFFSET(FundSdf!$G$1,MATCH(A37,FundSdf!$A:$A,0)-1,0) -> Noorul Azila Kamaruzzaman | BS37: =OFFSET(InvestmentType!$D$1,MATCH(AQ37,InvestmentType!$A:$A,0)-1,0) -> Money Market Instruments | BT37: =IF(OFFSET(InvestmentType!$D$1,MATCH(AQ37,InvestmentType!$A:$A,0)-1,0)= "Derivatives",IF(AW37="OTC","OTC Derivative", "Exchange Traded Derivative"),"") ->  | BU37: Money Market Instruments | BV37: =OFFSET(EXTManageSdf!$C$1,MATCH(BR37,EXTManageSdf!$B:$B,0)-1,0) ->  | BW37: 0 | BX37: 0 | BY37: 0 | BZ37: 10514504.29 | CA37: 0 | CB37: 10514504.29 | CC37: 0 | CD37: 10514504.29 | CE37: 0 | CF37: 0
A38: BIMMF | B38: CSH | C38: RPF*MYR*KFH | D38: CSH*170900249 | E38: 0 | F38: 0 | G38: 5156549.3 | H38: 5156549.3 | I38: 2018-02-02 | J38: 5149305 | K38: 0 | L38: 1 | M38: 7244.3 | N38: 0 | O38: 5149305 | P38: 5149305 | Q38: 0 | R38: 0 | S38: MYR | T38: 0.0395 | U38: 2017-09-18 | V38: 0 | W38: 5156549.3 | X38: 1114.5 | Y38: 2017-09-30 | Z38: 0 | AA38: 0 | AB38: 0 | AC38: 3000-01-01 | AD38: 3000-01-01 | AE38: 0 | AF38: 1 | AG38: 0.9962809803 | AH38: 517579819.6 | AI38: 1 | AJ38: MY | AK38: 1 | AL38: Kuwait Finance House (Malaysia) Berhad | AM38: 0 | AN38: MYR | AO38: MY | AP38: 1 | AQ38: RPF | AR38: CSH | AS38: Unlisted | AT38: 0 | AU38: WF | AV38: Malaysia | BL38: =IF(B38="TBI",OFFSET(CshFlagMap!$E$1,MATCH(C38,CshFlagMap!$C:$C,0)-1,0),IF(ISNA(OFFSET(InvestmentType!$D$1,MATCH(AQ38,InvestmentType!$A:$A,0)-1,0)),"",IF(OFFSET(InvestmentType!$D$1,MATCH(AQ38,InvestmentType!$A:$A,0)-1,0) = "Collective Investment Scheme", OFFSET(InvestmentType!$E$1,MATCH(AQ38,InvestmentType!$A:$A,0)-1,0),IF(OFFSET(InvestmentType!$D$1,MATCH(AQ38,InvestmentType!$A:$A,0)-1,0) = "Derivatives",$BT38,OFFSET(InvestmentType!$D$1,MATCH(AQ38,InvestmentType!$A:$A,0)-1,0))))) -> Money Market Instruments | BM38: 5156549.3 | BN38: =OFFSET(Fund!$B$1,MATCH(A38,Fund!$A:$A,0)-1,0) -> C037A00001 | BO38: =OFFSET(FundSdf!$J$1,MATCH(A38,FundSdf!$A:$A,0)-1,0) -> Wholesale Funds | BP38: =OFFSET(FundSdf!$K$1,MATCH(A38,FundSdf!$A:$A,0)-1,0) -> 0 | BQ38: =OFFSET(FundSdf!$D$1,MATCH(A38,FundSdf!$A:$A,0)-1,0) -> 0 | BR38: =OFFSET(FundSdf!$G$1,MATCH(A38,FundSdf!$A:$A,0)-1,0) -> Noorul Azila Kamaruzzaman | BS38: =OFFSET(InvestmentType!$D$1,MATCH(AQ38,InvestmentType!$A:$A,0)-1,0) -> Money Market Instruments | BT38: =IF(OFFSET(InvestmentType!$D$1,MATCH(AQ38,InvestmentType!$A:$A,0)-1,0)= "Derivatives",IF(AW38="OTC","OTC Derivative", "Exchange Traded Derivative"),"") ->  | BU38: Money Market Instruments | BV38: =OFFSET(EXTManageSdf!$C$1,MATCH(BR38,EXTManageSdf!$B:$B,0)-1,0) ->  | BW38: 0 | BX38: 0 | BY38: 0 | BZ38: 5156549.3 | CA38: 0 | CB38: 5156549.3 | CC38: 0 | CD38: 5156549.3 | CE38: 0 | CF38: 0
A39: BIMMF | B39: CSH | C39: RPF*MYR*KFH | D39: CSH*170900292 | E39: 0 | F39: 0 | G39: 6083843.66 | H39: 6083843.66 | I39: 2018-02-06 | J39: 6076610 | K39: 0 | L39: 1 | M39: 7233.66 | N39: 0 | O39: 6076610 | P39: 6076610 | Q39: 0 | R39: 0 | S39: MYR | T39: 0.0395 | U39: 2017-09-20 | V39: 0 | W39: 6083843.66 | X39: 1315.21 | Y39: 2017-09-30 | Z39: 0 | AA39: 0 | AB39: 0 | AC39: 3000-01-01 | AD39: 3000-01-01 | AE39: 0 | AF39: 1 | AG39: 1.175440663 | AH39: 517579819.6 | AI39: 1 | AJ39: MY | AK39: 1 | AL39: Kuwait Finance House (Malaysia) Berhad | AM39: 0 | AN39: MYR | AO39: MY | AP39: 1 | AQ39: RPF | AR39: CSH | AS39: Unlisted | AT39: 0 | AU39: WF | AV39: Malaysia | BL39: =IF(B39="TBI",OFFSET(CshFlagMap!$E$1,MATCH(C39,CshFlagMap!$C:$C,0)-1,0),IF(ISNA(OFFSET(InvestmentType!$D$1,MATCH(AQ39,InvestmentType!$A:$A,0)-1,0)),"",IF(OFFSET(InvestmentType!$D$1,MATCH(AQ39,InvestmentType!$A:$A,0)-1,0) = "Collective Investment Scheme", OFFSET(InvestmentType!$E$1,MATCH(AQ39,InvestmentType!$A:$A,0)-1,0),IF(OFFSET(InvestmentType!$D$1,MATCH(AQ39,InvestmentType!$A:$A,0)-1,0) = "Derivatives",$BT39,OFFSET(InvestmentType!$D$1,MATCH(AQ39,InvestmentType!$A:$A,0)-1,0))))) -> Money Market Instruments | BM39: 6083843.66 | BN39: =OFFSET(Fund!$B$1,MATCH(A39,Fund!$A:$A,0)-1,0) -> C037A00001 | BO39: =OFFSET(FundSdf!$J$1,MATCH(A39,FundSdf!$A:$A,0)-1,0) -> Wholesale Funds | BP39: =OFFSET(FundSdf!$K$1,MATCH(A39,FundSdf!$A:$A,0)-1,0) -> 0 | BQ39: =OFFSET(FundSdf!$D$1,MATCH(A39,FundSdf!$A:$A,0)-1,0) -> 0 | BR39: =OFFSET(FundSdf!$G$1,MATCH(A39,FundSdf!$A:$A,0)-1,0) -> Noorul Azila Kamaruzzaman | BS39: =OFFSET(InvestmentType!$D$1,MATCH(AQ39,InvestmentType!$A:$A,0)-1,0) -> Money Market Instruments | BT39: =IF(OFFSET(InvestmentType!$D$1,MATCH(AQ39,InvestmentType!$A:$A,0)-1,0)= "Derivatives",IF(AW39="OTC","OTC Derivative", "Exchange Traded Derivative"),"") ->  | BU39: Money Market Instruments | BV39: =OFFSET(EXTManageSdf!$C$1,MATCH(BR39,EXTManageSdf!$B:$B,0)-1,0) ->  | BW39: 0 | BX39: 0 | BY39: 0 | BZ39: 6083843.66 | CA39: 0 | CB39: 6083843.66 | CC39: 0 | CD39: 6083843.66 | CE39: 0 | CF39: 0
A40: BIMMF | B40: CSH | C40: RPF*MYR*KFH | D40: CSH*170900390 | E40: 0 | F40: 0 | G40: 7435132.94 | H40: 7435132.94 | I40: 2018-02-08 | J40: 7431112 | K40: 0 | L40: 1 | M40: 4020.94 | N40: 0 | O40: 7431112 | P40: 7431112 | Q40: 0 | R40: 0 | S40: MYR | T40: 0.0395 | U40: 2017-09-26 | V40: 0 | W40: 7435132.94 | X40: 1608.38 | Y40: 2017-09-30 | Z40: 0 | AA40: 0 | AB40: 0 | AC40: 3000-01-01 | AD40: 3000-01-01 | AE40: 0 | AF40: 1 | AG40: 1.436519095 | AH40: 517579819.6 | AI40: 1 | AJ40: MY | AK40: 1 | AL40: Kuwait Finance House (Malaysia) Berhad | AM40: 0 | AN40: MYR | AO40: MY | AP40: 1 | AQ40: RPF | AR40: CSH | AS40: Unlisted | AT40: 0 | AU40: WF | AV40: Malaysia | BL40: =IF(B40="TBI",OFFSET(CshFlagMap!$E$1,MATCH(C40,CshFlagMap!$C:$C,0)-1,0),IF(ISNA(OFFSET(InvestmentType!$D$1,MATCH(AQ40,InvestmentType!$A:$A,0)-1,0)),"",IF(OFFSET(InvestmentType!$D$1,MATCH(AQ40,InvestmentType!$A:$A,0)-1,0) = "Collective Investment Scheme", OFFSET(InvestmentType!$E$1,MATCH(AQ40,InvestmentType!$A:$A,0)-1,0),IF(OFFSET(InvestmentType!$D$1,MATCH(AQ40,InvestmentType!$A:$A,0)-1,0) = "Derivatives",$BT40,OFFSET(InvestmentType!$D$1,MATCH(AQ40,InvestmentType!$A:$A,0)-1,0))))) -> Money Market Instruments | BM40: 7435132.94 | BN40: =OFFSET(Fund!$B$1,MATCH(A40,Fund!$A:$A,0)-1,0) -> C037A00001 | BO40: =OFFSET(FundSdf!$J$1,MATCH(A40,FundSdf!$A:$A,0)-1,0) -> Wholesale Funds | BP40: =OFFSET(FundSdf!$K$1,MATCH(A40,FundSdf!$A:$A,0)-1,0) -> 0 | BQ40: =OFFSET(FundSdf!$D$1,MATCH(A40,FundSdf!$A:$A,0)-1,0) -> 0 | BR40: =OFFSET(FundSdf!$G$1,MATCH(A40,FundSdf!$A:$A,0)-1,0) -> Noorul Azila Kamaruzzaman | BS40: =OFFSET(InvestmentType!$D$1,MATCH(AQ40,InvestmentType!$A:$A,0)-1,0) -> Money Market Instruments | BT40: =IF(OFFSET(InvestmentType!$D$1,MATCH(AQ40,InvestmentType!$A:$A,0)-1,0)= "Derivatives",IF(AW40="OTC","OTC Derivative", "Exchange Traded Derivative"),"") ->  | BU40: Money Market Instruments | BV40: =OFFSET(EXTManageSdf!$C$1,MATCH(BR40,EXTManageSdf!$B:$B,0)-1,0) ->  | BW40: 0 | BX40: 0 | BY40: 0 | BZ40: 7435132.94 | CA40: 0 | CB40: 7435132.94 | CC40: 0 | CD40: 7435132.94 | CE40: 0 | CF40: 0
A41: BIMMF | B41: CSH | C41: RPF*MYR*MBSB | D41: CSH*170500353 | E41: 0 | F41: 0 | G41: 8461824.31 | H41: 8461824.31 | I41: 2017-10-04 | J41: 8341287 | K41: 0 | L41: 1 | M41: 120537.31 | N41: 0 | O41: 8341287 | P41: 8341287 | Q41: 0 | R41: 0 | S41: MYR | T41: 0.0385 | U41: 2017-05-17 | V41: 0 | W41: 8461824.31 | X41: 1759.67 | Y41: 2017-09-30 | Z41: 0 | AA41: 0 | AB41: 0 | AC41: 3000-01-01 | AD41: 3000-01-01 | AE41: 0 | AF41: 1 | AG41: 1.634882967 | AH41: 517579819.6 | AI41: 1 | AJ41: MY | AK41: 1 | AL41: MBSB | AM41: 0 | AN41: MYR | AO41: MY | AP41: 1 | AQ41: RPF | AR41: CSH | AS41: Unlisted | AT41: 0 | AU41: WF | AV41: Malaysia | BL41: =IF(B41="TBI",OFFSET(CshFlagMap!$E$1,MATCH(C41,CshFlagMap!$C:$C,0)-1,0),IF(ISNA(OFFSET(InvestmentType!$D$1,MATCH(AQ41,InvestmentType!$A:$A,0)-1,0)),"",IF(OFFSET(InvestmentType!$D$1,MATCH(AQ41,InvestmentType!$A:$A,0)-1,0) = "Collective Investment Scheme", OFFSET(InvestmentType!$E$1,MATCH(AQ41,InvestmentType!$A:$A,0)-1,0),IF(OFFSET(InvestmentType!$D$1,MATCH(AQ41,InvestmentType!$A:$A,0)-1,0) = "Derivatives",$BT41,OFFSET(InvestmentType!$D$1,MATCH(AQ41,InvestmentType!$A:$A,0)-1,0))))) -> Money Market Instruments | BM41: 8461824.31 | BN41: =OFFSET(Fund!$B$1,MATCH(A41,Fund!$A:$A,0)-1,0) -> C037A00001 | BO41: =OFFSET(FundSdf!$J$1,MATCH(A41,FundSdf!$A:$A,0)-1,0) -> Wholesale Funds | BP41: =OFFSET(FundSdf!$K$1,MATCH(A41,FundSdf!$A:$A,0)-1,0) -> 0 | BQ41: =OFFSET(FundSdf!$D$1,MATCH(A41,FundSdf!$A:$A,0)-1,0) -> 0 | BR41: =OFFSET(FundSdf!$G$1,MATCH(A41,FundSdf!$A:$A,0)-1,0) -> Noorul Azila Kamaruzzaman | BS41: =OFFSET(InvestmentType!$D$1,MATCH(AQ41,InvestmentType!$A:$A,0)-1,0) -> Money Market Instruments | BT41: =IF(OFFSET(InvestmentType!$D$1,MATCH(AQ41,InvestmentType!$A:$A,0)-1,0)= "Derivatives",IF(AW41="OTC","OTC Derivative", "Exchange Traded Derivative"),"") ->  | BU41: Money Market Instruments | BV41: =OFFSET(EXTManageSdf!$C$1,MATCH(BR41,EXTManageSdf!$B:$B,0)-1,0) ->  | BW41: 0 | BX41: 0 | BY41: 0 | BZ41: 8461824.31 | CA41: 0 | CB41: 8461824.31 | CC41: 0 | CD41: 8461824.31 | CE41: 0 | CF41: 0
A42: BIMMF | B42: CSH | C42: RPF*MYR*MBSB | D42: CSH*170500396 | E42: 0 | F42: 0 | G42: 5633732.49 | H42: 5633732.49 | I42: 2017-10-06 | J42: 5554636 | K42: 0 | L42: 1 | M42: 79096.49 | N42: 0 | O42: 5554636 | P42: 5554636 | Q42: 0 | R42: 0 | S42: MYR | T42: 0.0385 | U42: 2017-05-19 | V42: 0 | W42: 5633732.49 | X42: 1171.8 | Y42: 2017-09-30 | Z42: 0 | AA42: 0 | AB42: 0 | AC42: 3000-01-01 | AD42: 3000-01-01 | AE42: 0 | AF42: 1 | AG42: 1.088476072 | AH42: 517579819.6 | AI42: 1 | AJ42: MY | AK42: 1 | AL42: MBSB | AM42: 0 | AN42: MYR | AO42: MY | AP42: 1 | AQ42: RPF | AR42: CSH | AS42: Unlisted | AT42: 0 | AU42: WF | AV42: Malaysia | BL42: =IF(B42="TBI",OFFSET(CshFlagMap!$E$1,MATCH(C42,CshFlagMap!$C:$C,0)-1,0),IF(ISNA(OFFSET(InvestmentType!$D$1,MATCH(AQ42,InvestmentType!$A:$A,0)-1,0)),"",IF(OFFSET(InvestmentType!$D$1,MATCH(AQ42,InvestmentType!$A:$A,0)-1,0) = "Collective Investment Scheme", OFFSET(InvestmentType!$E$1,MATCH(AQ42,InvestmentType!$A:$A,0)-1,0),IF(OFFSET(InvestmentType!$D$1,MATCH(AQ42,InvestmentType!$A:$A,0)-1,0) = "Derivatives",$BT42,OFFSET(InvestmentType!$D$1,MATCH(AQ42,InvestmentType!$A:$A,0)-1,0))))) -> Money Market Instruments | BM42: 5633732.49 | BN42: =OFFSET(Fund!$B$1,MATCH(A42,Fund!$A:$A,0)-1,0) -> C037A00001 | BO42: =OFFSET(FundSdf!$J$1,MATCH(A42,FundSdf!$A:$A,0)-1,0) -> Wholesale Funds | BP42: =OFFSET(FundSdf!$K$1,MATCH(A42,FundSdf!$A:$A,0)-1,0) -> 0 | BQ42: =OFFSET(FundSdf!$D$1,MATCH(A42,FundSdf!$A:$A,0)-1,0) -> 0 | BR42: =OFFSET(FundSdf!$G$1,MATCH(A42,FundSdf!$A:$A,0)-1,0) -> Noorul Azila Kamaruzzaman | BS42: =OFFSET(InvestmentType!$D$1,MATCH(AQ42,InvestmentType!$A:$A,0)-1,0) -> Money Market Instruments | BT42: =IF(OFFSET(InvestmentType!$D$1,MATCH(AQ42,InvestmentType!$A:$A,0)-1,0)= "Derivatives",IF(AW42="OTC","OTC Derivative", "Exchange Traded Derivative"),"") ->  | BU42: Money Market Instruments | BV42: =OFFSET(EXTManageSdf!$C$1,MATCH(BR42,EXTManageSdf!$B:$B,0)-1,0) ->  | BW42: 0 | BX42: 0 | BY42: 0 | BZ42: 5633732.49 | CA42: 0 | CB42: 5633732.49 | CC42: 0 | CD42: 5633732.49 | CE42: 0 | CF42: 0
A43: BIMMF | B43: CSH | C43: RPF*MYR*MBSB | D43: CSH*170500441 | E43: 0 | F43: 0 | G43: 32439439.65 | H43: 32439439.65 | I43: 2017-10-10 | J43: 31997307 | K43: 0 | L43: 1 | M43: 442132.65 | N43: 0 | O43: 31997307 | P43: 31997307 | Q43: 0 | R43: 0 | S43: MYR | T43: 0.0385 | U43: 2017-05-23 | V43: 0 | W43: 32439439.65 | X43: 6750.12 | Y43: 2017-09-30 | Z43: 0 | AA43: 0 | AB43: 0 | AC43: 3000-01-01 | AD43: 3000-01-01 | AE43: 0 | AF43: 1 | AG43: 6.267524046 | AH43: 517579819.6 | AI43: 1 | AJ43: MY | AK43: 1 | AL43: MBSB | AM43: 0 | AN43: MYR | AO43: MY | AP43: 1 | AQ43: RPF | AR43: CSH | AS43: Unlisted | AT43: 0 | AU43: WF | AV43: Malaysia | BL43: =IF(B43="TBI",OFFSET(CshFlagMap!$E$1,MATCH(C43,CshFlagMap!$C:$C,0)-1,0),IF(ISNA(OFFSET(InvestmentType!$D$1,MATCH(AQ43,InvestmentType!$A:$A,0)-1,0)),"",IF(OFFSET(InvestmentType!$D$1,MATCH(AQ43,InvestmentType!$A:$A,0)-1,0) = "Collective Investment Scheme", OFFSET(InvestmentType!$E$1,MATCH(AQ43,InvestmentType!$A:$A,0)-1,0),IF(OFFSET(InvestmentType!$D$1,MATCH(AQ43,InvestmentType!$A:$A,0)-1,0) = "Derivatives",$BT43,OFFSET(InvestmentType!$D$1,MATCH(AQ43,InvestmentType!$A:$A,0)-1,0))))) -> Money Market Instruments | BM43: 32439439.65 | BN43: =OFFSET(Fund!$B$1,MATCH(A43,Fund!$A:$A,0)-1,0) -> C037A00001 | BO43: =OFFSET(FundSdf!$J$1,MATCH(A43,FundSdf!$A:$A,0)-1,0) -> Wholesale Funds | BP43: =OFFSET(FundSdf!$K$1,MATCH(A43,FundSdf!$A:$A,0)-1,0) -> 0 | BQ43: =OFFSET(FundSdf!$D$1,MATCH(A43,FundSdf!$A:$A,0)-1,0) -> 0 | BR43: =OFFSET(FundSdf!$G$1,MATCH(A43,FundSdf!$A:$A,0)-1,0) -> Noorul Azila Kamaruzzaman | BS43: =OFFSET(InvestmentType!$D$1,MATCH(AQ43,InvestmentType!$A:$A,0)-1,0) -> Money Market Instruments | BT43: =IF(OFFSET(InvestmentType!$D$1,MATCH(AQ43,InvestmentType!$A:$A,0)-1,0)= "Derivatives",IF(AW43="OTC","OTC Derivative", "Exchange Traded Derivative"),"") ->  | BU43: Money Market Instruments | BV43: =OFFSET(EXTManageSdf!$C$1,MATCH(BR43,EXTManageSdf!$B:$B,0)-1,0) ->  | BW43: 0 | BX43: 0 | BY43: 0 | BZ43: 32439439.65 | CA43: 0 | CB43: 32439439.65 | CC43: 0 | CD43: 32439439.65 | CE43: 0 | CF43: 0
A44: BIMMF | B44: CSH | C44: RPF*MYR*MBSB | D44: CSH*170500518 | E44: 0 | F44: 0 | G44: 14699857.31 | H44: 14699857.31 | I44: 2017-10-16 | J44: 14504033 | K44: 0 | L44: 1 | M44: 195824.31 | N44: 0 | O44: 14504033 | P44: 14504033 | Q44: 0 | R44: 0 | S44: MYR | T44: 0.0385 | U44: 2017-05-26 | V44: 0 | W44: 14699857.31 | X44: 3059.76 | Y44: 2017-09-30 | Z44: 0 | AA44: 0 | AB44: 0 | AC44: 3000-01-01 | AD44: 3000-01-01 | AE44: 0 | AF44: 1 | AG44: 2.840114076 | AH44: 517579819.6 | AI44: 1 | AJ44: MY | AK44: 1 | AL44: MBSB | AM44: 0 | AN44: MYR | AO44: MY | AP44: 1 | AQ44: RPF | AR44: CSH | AS44: Unlisted | AT44: 0 | AU44: WF | AV44: Malaysia | BL44: =IF(B44="TBI",OFFSET(CshFlagMap!$E$1,MATCH(C44,CshFlagMap!$C:$C,0)-1,0),IF(ISNA(OFFSET(InvestmentType!$D$1,MATCH(AQ44,InvestmentType!$A:$A,0)-1,0)),"",IF(OFFSET(InvestmentType!$D$1,MATCH(AQ44,InvestmentType!$A:$A,0)-1,0) = "Collective Investment Scheme", OFFSET(InvestmentType!$E$1,MATCH(AQ44,InvestmentType!$A:$A,0)-1,0),IF(OFFSET(InvestmentType!$D$1,MATCH(AQ44,InvestmentType!$A:$A,0)-1,0) = "Derivatives",$BT44,OFFSET(InvestmentType!$D$1,MATCH(AQ44,InvestmentType!$A:$A,0)-1,0))))) -> Money Market Instruments | BM44: 14699857.31 | BN44: =OFFSET(Fund!$B$1,MATCH(A44,Fund!$A:$A,0)-1,0) -> C037A00001 | BO44: =OFFSET(FundSdf!$J$1,MATCH(A44,FundSdf!$A:$A,0)-1,0) -> Wholesale Funds | BP44: =OFFSET(FundSdf!$K$1,MATCH(A44,FundSdf!$A:$A,0)-1,0) -> 0 | BQ44: =OFFSET(FundSdf!$D$1,MATCH(A44,FundSdf!$A:$A,0)-1,0) -> 0 | BR44: =OFFSET(FundSdf!$G$1,MATCH(A44,FundSdf!$A:$A,0)-1,0) -> Noorul Azila Kamaruzzaman | BS44: =OFFSET(InvestmentType!$D$1,MATCH(AQ44,InvestmentType!$A:$A,0)-1,0) -> Money Market Instruments | BT44: =IF(OFFSET(InvestmentType!$D$1,MATCH(AQ44,InvestmentType!$A:$A,0)-1,0)= "Derivatives",IF(AW44="OTC","OTC Derivative", "Exchange Traded Derivative"),"") ->  | BU44: Money Market Instruments | BV44: =OFFSET(EXTManageSdf!$C$1,MATCH(BR44,EXTManageSdf!$B:$B,0)-1,0) ->  | BW44: 0 | BX44: 0 | BY44: 0 | BZ44: 14699857.31 | CA44: 0 | CB44: 14699857.31 | CC44: 0 | CD44: 14699857.31 | CE44: 0 | CF44: 0
A45: BIMMF | B45: CSH | C45: RPF*MYR*MBSB | D45: CSH*170600317 | E45: 0 | F45: 0 | G45: 6290506.6 | H45: 6290506.6 | I45: 2017-11-02 | J45: 6218744 | K45: 0 | L45: 1 | M45: 71762.6 | N45: 0 | O45: 6218744 | P45: 6218744 | Q45: 0 | R45: 0 | S45: MYR | T45: 0.039 | U45: 2017-06-15 | V45: 0 | W45: 6290506.6 | X45: 1328.94 | Y45: 2017-09-30 | Z45: 0 | AA45: 0 | AB45: 0 | AC45: 3000-01-01 | AD45: 3000-01-01 | AE45: 0 | AF45: 1 | AG45: 1.215369372 | AH45: 517579819.6 | AI45: 1 | AJ45: MY | AK45: 1 | AL45: MBSB | AM45: 0 | AN45: MYR | AO45: MY | AP45: 1 | AQ45: RPF | AR45: CSH | AS45: Unlisted | AT45: 0 | AU45: WF | AV45: Malaysia | BL45: =IF(B45="TBI",OFFSET(CshFlagMap!$E$1,MATCH(C45,CshFlagMap!$C:$C,0)-1,0),IF(ISNA(OFFSET(InvestmentType!$D$1,MATCH(AQ45,InvestmentType!$A:$A,0)-1,0)),"",IF(OFFSET(InvestmentType!$D$1,MATCH(AQ45,InvestmentType!$A:$A,0)-1,0) = "Collective Investment Scheme", OFFSET(InvestmentType!$E$1,MATCH(AQ45,InvestmentType!$A:$A,0)-1,0),IF(OFFSET(InvestmentType!$D$1,MATCH(AQ45,InvestmentType!$A:$A,0)-1,0) = "Derivatives",$BT45,OFFSET(InvestmentType!$D$1,MATCH(AQ45,InvestmentType!$A:$A,0)-1,0))))) -> Money Market Instruments | BM45: 6290506.6 | BN45: =OFFSET(Fund!$B$1,MATCH(A45,Fund!$A:$A,0)-1,0) -> C037A00001 | BO45: =OFFSET(FundSdf!$J$1,MATCH(A45,FundSdf!$A:$A,0)-1,0) -> Wholesale Funds | BP45: =OFFSET(FundSdf!$K$1,MATCH(A45,FundSdf!$A:$A,0)-1,0) -> 0 | BQ45: =OFFSET(FundSdf!$D$1,MATCH(A45,FundSdf!$A:$A,0)-1,0) -> 0 | BR45: =OFFSET(FundSdf!$G$1,MATCH(A45,FundSdf!$A:$A,0)-1,0) -> Noorul Azila Kamaruzzaman | BS45: =OFFSET(InvestmentType!$D$1,MATCH(AQ45,InvestmentType!$A:$A,0)-1,0) -> Money Market Instruments | BT45: =IF(OFFSET(InvestmentType!$D$1,MATCH(AQ45,InvestmentType!$A:$A,0)-1,0)= "Derivatives",IF(AW45="OTC","OTC Derivative", "Exchange Traded Derivative"),"") ->  | BU45: Money Market Instruments | BV45: =OFFSET(EXTManageSdf!$C$1,MATCH(BR45,EXTManageSdf!$B:$B,0)-1,0) ->  | BW45: 0 | BX45: 0 | BY45: 0 | BZ45: 6290506.6 | CA45: 0 | CB45: 6290506.6 | CC45: 0 | CD45: 6290506.6 | CE45: 0 | CF45: 0
A46: BIMMF | B46: CSH | C46: RPF*MYR*MBSB | D46: CSH*170700017 | E46: 0 | F46: 0 | G46: 7281348.41 | H46: 7281348.41 | I46: 2017-12-08 | J46: 7212347 | K46: 0 | L46: 1 | M46: 69001.41 | N46: 0 | O46: 7212347 | P46: 7212347 | Q46: 0 | R46: 0 | S46: MYR | T46: 0.0388 | U46: 2017-07-03 | V46: 0 | W46: 7281348.41 | X46: 1533.37 | Y46: 2017-09-30 | Z46: 0 | AA46: 0 | AB46: 0 | AC46: 3000-01-01 | AD46: 3000-01-01 | AE46: 0 | AF46: 1 | AG46: 1.406806861 | AH46: 517579819.6 | AI46: 1 | AJ46: MY | AK46: 1 | AL46: MBSB | AM46: 0 | AN46: MYR | AO46: MY | AP46: 1 | AQ46: RPF | AR46: CSH | AS46: Unlisted | AT46: 0 | AU46: WF | AV46: Malaysia | BL46: =IF(B46="TBI",OFFSET(CshFlagMap!$E$1,MATCH(C46,CshFlagMap!$C:$C,0)-1,0),IF(ISNA(OFFSET(InvestmentType!$D$1,MATCH(AQ46,InvestmentType!$A:$A,0)-1,0)),"",IF(OFFSET(InvestmentType!$D$1,MATCH(AQ46,InvestmentType!$A:$A,0)-1,0) = "Collective Investment Scheme", OFFSET(InvestmentType!$E$1,MATCH(AQ46,InvestmentType!$A:$A,0)-1,0),IF(OFFSET(InvestmentType!$D$1,MATCH(AQ46,InvestmentType!$A:$A,0)-1,0) = "Derivatives",$BT46,OFFSET(InvestmentType!$D$1,MATCH(AQ46,InvestmentType!$A:$A,0)-1,0))))) -> Money Market Instruments | BM46: 7281348.41 | BN46: =OFFSET(Fund!$B$1,MATCH(A46,Fund!$A:$A,0)-1,0) -> C037A00001 | BO46: =OFFSET(FundSdf!$J$1,MATCH(A46,FundSdf!$A:$A,0)-1,0) -> Wholesale Funds | BP46: =OFFSET(FundSdf!$K$1,MATCH(A46,FundSdf!$A:$A,0)-1,0) -> 0 | BQ46: =OFFSET(FundSdf!$D$1,MATCH(A46,FundSdf!$A:$A,0)-1,0) -> 0 | BR46: =OFFSET(FundSdf!$G$1,MATCH(A46,FundSdf!$A:$A,0)-1,0) -> Noorul Azila Kamaruzzaman | BS46: =OFFSET(InvestmentType!$D$1,MATCH(AQ46,InvestmentType!$A:$A,0)-1,0) -> Money Market Instruments | BT46: =IF(OFFSET(InvestmentType!$D$1,MATCH(AQ46,InvestmentType!$A:$A,0)-1,0)= "Derivatives",IF(AW46="OTC","OTC Derivative", "Exchange Traded Derivative"),"") ->  | BU46: Money Market Instruments | BV46: =OFFSET(EXTManageSdf!$C$1,MATCH(BR46,EXTManageSdf!$B:$B,0)-1,0) ->  | BW46: 0 | BX46: 0 | BY46: 0 | BZ46: 7281348.41 | CA46: 0 | CB46: 7281348.41 | CC46: 0 | CD46: 7281348.41 | CE46: 0 | CF46: 0
A47: BIMMF | B47: CSH | C47: RPF*MYR*MBSB | D47: CSH*170800290 | E47: 0 | F47: 0 | G47: 1309532.46 | H47: 1309532.46 | I47: 2017-12-21 | J47: 1303426 | K47: 0 | L47: 1 | M47: 6106.46 | N47: 0 | O47: 1303426 | P47: 1303426 | Q47: 0 | R47: 0 | S47: MYR | T47: 0.038 | U47: 2017-08-17 | V47: 0 | W47: 1309532.46 | X47: 271.4 | Y47: 2017-09-30 | Z47: 0 | AA47: 0 | AB47: 0 | AC47: 3000-01-01 | AD47: 3000-01-01 | AE47: 0 | AF47: 1 | AG47: 0.2530107262 | AH47: 517579819.6 | AI47: 1 | AJ47: MY | AK47: 1 | AL47: MBSB | AM47: 0 | AN47: MYR | AO47: MY | AP47: 1 | AQ47: RPF | AR47: CSH | AS47: Unlisted | AT47: 0 | AU47: WF | AV47: Malaysia | BL47: =IF(B47="TBI",OFFSET(CshFlagMap!$E$1,MATCH(C47,CshFlagMap!$C:$C,0)-1,0),IF(ISNA(OFFSET(InvestmentType!$D$1,MATCH(AQ47,InvestmentType!$A:$A,0)-1,0)),"",IF(OFFSET(InvestmentType!$D$1,MATCH(AQ47,InvestmentType!$A:$A,0)-1,0) = "Collective Investment Scheme", OFFSET(InvestmentType!$E$1,MATCH(AQ47,InvestmentType!$A:$A,0)-1,0),IF(OFFSET(InvestmentType!$D$1,MATCH(AQ47,InvestmentType!$A:$A,0)-1,0) = "Derivatives",$BT47,OFFSET(InvestmentType!$D$1,MATCH(AQ47,InvestmentType!$A:$A,0)-1,0))))) -> Money Market Instruments | BM47: 1309532.46 | BN47: =OFFSET(Fund!$B$1,MATCH(A47,Fund!$A:$A,0)-1,0) -> C037A00001 | BO47: =OFFSET(FundSdf!$J$1,MATCH(A47,FundSdf!$A:$A,0)-1,0) -> Wholesale Funds | BP47: =OFFSET(FundSdf!$K$1,MATCH(A47,FundSdf!$A:$A,0)-1,0) -> 0 | BQ47: =OFFSET(FundSdf!$D$1,MATCH(A47,FundSdf!$A:$A,0)-1,0) -> 0 | BR47: =OFFSET(FundSdf!$G$1,MATCH(A47,FundSdf!$A:$A,0)-1,0) -> Noorul Azila Kamaruzzaman | BS47: =OFFSET(InvestmentType!$D$1,MATCH(AQ47,InvestmentType!$A:$A,0)-1,0) -> Money Market Instruments | BT47: =IF(OFFSET(InvestmentType!$D$1,MATCH(AQ47,InvestmentType!$A:$A,0)-1,0)= "Derivatives",IF(AW47="OTC","OTC Derivative", "Exchange Traded Derivative"),"") ->  | BU47: Money Market Instruments | BV47: =OFFSET(EXTManageSdf!$C$1,MATCH(BR47,EXTManageSdf!$B:$B,0)-1,0) ->  | BW47: 0 | BX47: 0 | BY47: 0 | BZ47: 1309532.46 | CA47: 0 | CB47: 1309532.46 | CC47: 0 | CD47: 1309532.46 | CE47: 0 | CF47: 0
A48: BIMMF | B48: CSH | C48: RPF*MYR*MBSB | D48: CSH*170800465 | E48: 0 | F48: 0 | G48: 8652621.49 | H48: 8652621.49 | I48: 2018-01-12 | J48: 8621301.37 | K48: 0 | L48: 1 | M48: 31320.12 | N48: 0 | O48: 8621301.37 | P48: 8621301.37 | Q48: 0 | R48: 0 | S48: MYR | T48: 0.039 | U48: 2017-08-28 | V48: 0 | W48: 8652621.49 | X48: 1842.37 | Y48: 2017-09-30 | Z48: 0 | AA48: 0 | AB48: 0 | AC48: 3000-01-01 | AD48: 3000-01-01 | AE48: 0 | AF48: 1 | AG48: 1.671746301 | AH48: 517579819.6 | AI48: 1 | AJ48: MY | AK48: 1 | AL48: MBSB | AM48: 0 | AN48: MYR | AO48: MY | AP48: 1 | AQ48: RPF | AR48: CSH | AS48: Unlisted | AT48: 0 | AU48: WF | AV48: Malaysia | BL48: =IF(B48="TBI",OFFSET(CshFlagMap!$E$1,MATCH(C48,CshFlagMap!$C:$C,0)-1,0),IF(ISNA(OFFSET(InvestmentType!$D$1,MATCH(AQ48,InvestmentType!$A:$A,0)-1,0)),"",IF(OFFSET(InvestmentType!$D$1,MATCH(AQ48,InvestmentType!$A:$A,0)-1,0) = "Collective Investment Scheme", OFFSET(InvestmentType!$E$1,MATCH(AQ48,InvestmentType!$A:$A,0)-1,0),IF(OFFSET(InvestmentType!$D$1,MATCH(AQ48,InvestmentType!$A:$A,0)-1,0) = "Derivatives",$BT48,OFFSET(InvestmentType!$D$1,MATCH(AQ48,InvestmentType!$A:$A,0)-1,0))))) -> Money Market Instruments | BM48: 8652621.49 | BN48: =OFFSET(Fund!$B$1,MATCH(A48,Fund!$A:$A,0)-1,0) -> C037A00001 | BO48: =OFFSET(FundSdf!$J$1,MATCH(A48,FundSdf!$A:$A,0)-1,0) -> Wholesale Funds | BP48: =OFFSET(FundSdf!$K$1,MATCH(A48,FundSdf!$A:$A,0)-1,0) -> 0 | BQ48: =OFFSET(FundSdf!$D$1,MATCH(A48,FundSdf!$A:$A,0)-1,0) -> 0 | BR48: =OFFSET(FundSdf!$G$1,MATCH(A48,FundSdf!$A:$A,0)-1,0) -> Noorul Azila Kamaruzzaman | BS48: =OFFSET(InvestmentType!$D$1,MATCH(AQ48,InvestmentType!$A:$A,0)-1,0) -> Money Market Instruments | BT48: =IF(OFFSET(InvestmentType!$D$1,MATCH(AQ48,InvestmentType!$A:$A,0)-1,0)= "Derivatives",IF(AW48="OTC","OTC Derivative", "Exchange Traded Derivative"),"") ->  | BU48: Money Market Instruments | BV48: =OFFSET(EXTManageSdf!$C$1,MATCH(BR48,EXTManageSdf!$B:$B,0)-1,0) ->  | BW48: 0 | BX48: 0 | BY48: 0 | BZ48: 8652621.49 | CA48: 0 | CB48: 8652621.49 | CC48: 0 | CD48: 8652621.49 | CE48: 0 | CF48: 0
A49: BIMMF | B49: CSH | C49: RPF*MYR*MBSB | D49: CSH*170800509 | E49: 0 | F49: 0 | G49: 6453310.39 | H49: 6453310.39 | I49: 2018-01-15 | J49: 6431320.56 | K49: 0 | L49: 1 | M49: 21989.83 | N49: 0 | O49: 6431320.56 | P49: 6431320.56 | Q49: 0 | R49: 0 | S49: MYR | T49: 0.039 | U49: 2017-08-30 | V49: 0 | W49: 6453310.39 | X49: 1374.36 | Y49: 2017-09-30 | Z49: 0 | AA49: 0 | AB49: 0 | AC49: 3000-01-01 | AD49: 3000-01-01 | AE49: 0 | AF49: 1 | AG49: 1.246824189 | AH49: 517579819.6 | AI49: 1 | AJ49: MY | AK49: 1 | AL49: MBSB | AM49: 0 | AN49: MYR | AO49: MY | AP49: 1 | AQ49: RPF | AR49: CSH | AS49: Unlisted | AT49: 0 | AU49: WF | AV49: Malaysia | BL49: =IF(B49="TBI",OFFSET(CshFlagMap!$E$1,MATCH(C49,CshFlagMap!$C:$C,0)-1,0),IF(ISNA(OFFSET(InvestmentType!$D$1,MATCH(AQ49,InvestmentType!$A:$A,0)-1,0)),"",IF(OFFSET(InvestmentType!$D$1,MATCH(AQ49,InvestmentType!$A:$A,0)-1,0) = "Collective Investment Scheme", OFFSET(InvestmentType!$E$1,MATCH(AQ49,InvestmentType!$A:$A,0)-1,0),IF(OFFSET(InvestmentType!$D$1,MATCH(AQ49,InvestmentType!$A:$A,0)-1,0) = "Derivatives",$BT49,OFFSET(InvestmentType!$D$1,MATCH(AQ49,InvestmentType!$A:$A,0)-1,0))))) -> Money Market Instruments | BM49: 6453310.39 | BN49: =OFFSET(Fund!$B$1,MATCH(A49,Fund!$A:$A,0)-1,0) -> C037A00001 | BO49: =OFFSET(FundSdf!$J$1,MATCH(A49,FundSdf!$A:$A,0)-1,0) -> Wholesale Funds | BP49: =OFFSET(FundSdf!$K$1,MATCH(A49,FundSdf!$A:$A,0)-1,0) -> 0 | BQ49: =OFFSET(FundSdf!$D$1,MATCH(A49,FundSdf!$A:$A,0)-1,0) -> 0 | BR49: =OFFSET(FundSdf!$G$1,MATCH(A49,FundSdf!$A:$A,0)-1,0) -> Noorul Azila Kamaruzzaman | BS49: =OFFSET(InvestmentType!$D$1,MATCH(AQ49,InvestmentType!$A:$A,0)-1,0) -> Money Market Instruments | BT49: =IF(OFFSET(InvestmentType!$D$1,MATCH(AQ49,InvestmentType!$A:$A,0)-1,0)= "Derivatives",IF(AW49="OTC","OTC Derivative", "Exchange Traded Derivative"),"") ->  | BU49: Money Market Instruments | BV49: =OFFSET(EXTManageSdf!$C$1,MATCH(BR49,EXTManageSdf!$B:$B,0)-1,0) ->  | BW49: 0 | BX49: 0 | BY49: 0 | BZ49: 6453310.39 | CA49: 0 | CB49: 6453310.39 | CC49: 0 | CD49: 6453310.39 | CE49: 0 | CF49: 0
A50: BIMMF | B50: CSH | C50: RPF*MYR*MBSB | D50: CSH*170900018 | E50: 0 | F50: 0 | G50: 10505356.89 | H50: 10505356.89 | I50: 2018-01-17 | J50: 10476253 | K50: 0 | L50: 1 | M50: 29103.89 | N50: 0 | O50: 10476253 | P50: 10476253 | Q50: 0 | R50: 0 | S50: MYR | T50: 0.039 | U50: 2017-09-05 | V50: 0 | W50: 10505356.89 | X50: 2238.76 | Y50: 2017-09-30 | Z50: 0 | AA50: 0 | AB50: 0 | AC50: 3000-01-01 | AD50: 3000-01-01 | AE50: 0 | AF50: 1 | AG50: 2.029707592 | AH50: 517579819.6 | AI50: 1 | AJ50: MY | AK50: 1 | AL50: MBSB | AM50: 0 | AN50: MYR | AO50: MY | AP50: 1 | AQ50: RPF | AR50: CSH | AS50: Unlisted | AT50: 0 | AU50: WF | AV50: Malaysia | BL50: =IF(B50="TBI",OFFSET(CshFlagMap!$E$1,MATCH(C50,CshFlagMap!$C:$C,0)-1,0),IF(ISNA(OFFSET(InvestmentType!$D$1,MATCH(AQ50,InvestmentType!$A:$A,0)-1,0)),"",IF(OFFSET(InvestmentType!$D$1,MATCH(AQ50,InvestmentType!$A:$A,0)-1,0) = "Collective Investment Scheme", OFFSET(InvestmentType!$E$1,MATCH(AQ50,InvestmentType!$A:$A,0)-1,0),IF(OFFSET(InvestmentType!$D$1,MATCH(AQ50,InvestmentType!$A:$A,0)-1,0) = "Derivatives",$BT50,OFFSET(InvestmentType!$D$1,MATCH(AQ50,InvestmentType!$A:$A,0)-1,0))))) -> Money Market Instruments | BM50: 10505356.89 | BN50: =OFFSET(Fund!$B$1,MATCH(A50,Fund!$A:$A,0)-1,0) -> C037A00001 | BO50: =OFFSET(FundSdf!$J$1,MATCH(A50,FundSdf!$A:$A,0)-1,0) -> Wholesale Funds | BP50: =OFFSET(FundSdf!$K$1,MATCH(A50,FundSdf!$A:$A,0)-1,0) -> 0 | BQ50: =OFFSET(FundSdf!$D$1,MATCH(A50,FundSdf!$A:$A,0)-1,0) -> 0 | BR50: =OFFSET(FundSdf!$G$1,MATCH(A50,FundSdf!$A:$A,0)-1,0) -> Noorul Azila Kamaruzzaman | BS50: =OFFSET(InvestmentType!$D$1,MATCH(AQ50,InvestmentType!$A:$A,0)-1,0) -> Money Market Instruments | BT50: =IF(OFFSET(InvestmentType!$D$1,MATCH(AQ50,InvestmentType!$A:$A,0)-1,0)= "Derivatives",IF(AW50="OTC","OTC Derivative", "Exchange Traded Derivative"),"") ->  | BU50: Money Market Instruments | BV50: =OFFSET(EXTManageSdf!$C$1,MATCH(BR50,EXTManageSdf!$B:$B,0)-1,0) ->  | BW50: 0 | BX50: 0 | BY50: 0 | BZ50: 10505356.89 | CA50: 0 | CB50: 10505356.89 | CC50: 0 | CD50: 10505356.89 | CE50: 0 | CF50: 0
A51: BIMMF | B51: CSH | C51: RPF*MYR*MBSB | D51: CSH*170900362 | E51: 0 | F51: 0 | G51: 1112219.45 | H51: 1112219.45 | I51: 2018-02-02 | J51: 1111516 | K51: 0 | L51: 1 | M51: 703.45 | N51: 0 | O51: 1111516 | P51: 1111516 | Q51: 0 | R51: 0 | S51: MYR | T51: 0.0385 | U51: 2017-09-25 | V51: 0 | W51: 1112219.45 | X51: 234.49 | Y51: 2017-09-30 | Z51: 0 | AA51: 0 | AB51: 0 | AC51: 3000-01-01 | AD51: 3000-01-01 | AE51: 0 | AF51: 1 | AG51: 0.2148884883 | AH51: 517579819.6 | AI51: 1 | AJ51: MY | AK51: 1 | AL51: MBSB | AM51: 0 | AN51: MYR | AO51: MY | AP51: 1 | AQ51: RPF | AR51: CSH | AS51: Unlisted | AT51: 0 | AU51: WF | AV51: Malaysia | BL51: =IF(B51="TBI",OFFSET(CshFlagMap!$E$1,MATCH(C51,CshFlagMap!$C:$C,0)-1,0),IF(ISNA(OFFSET(InvestmentType!$D$1,MATCH(AQ51,InvestmentType!$A:$A,0)-1,0)),"",IF(OFFSET(InvestmentType!$D$1,MATCH(AQ51,InvestmentType!$A:$A,0)-1,0) = "Collective Investment Scheme", OFFSET(InvestmentType!$E$1,MATCH(AQ51,InvestmentType!$A:$A,0)-1,0),IF(OFFSET(InvestmentType!$D$1,MATCH(AQ51,InvestmentType!$A:$A,0)-1,0) = "Derivatives",$BT51,OFFSET(InvestmentType!$D$1,MATCH(AQ51,InvestmentType!$A:$A,0)-1,0))))) -> Money Market Instruments | BM51: 1112219.45 | BN51: =OFFSET(Fund!$B$1,MATCH(A51,Fund!$A:$A,0)-1,0) -> C037A00001 | BO51: =OFFSET(FundSdf!$J$1,MATCH(A51,FundSdf!$A:$A,0)-1,0) -> Wholesale Funds | BP51: =OFFSET(FundSdf!$K$1,MATCH(A51,FundSdf!$A:$A,0)-1,0) -> 0 | BQ51: =OFFSET(FundSdf!$D$1,MATCH(A51,FundSdf!$A:$A,0)-1,0) -> 0 | BR51: =OFFSET(FundSdf!$G$1,MATCH(A51,FundSdf!$A:$A,0)-1,0) -> Noorul Azila Kamaruzzaman | BS51: =OFFSET(InvestmentType!$D$1,MATCH(AQ51,InvestmentType!$A:$A,0)-1,0) -> Money Market Instruments | BT51: =IF(OFFSET(InvestmentType!$D$1,MATCH(AQ51,InvestmentType!$A:$A,0)-1,0)= "Derivatives",IF(AW51="OTC","OTC Derivative", "Exchange Traded Derivative"),"") ->  | BU51: Money Market Instruments | BV51: =OFFSET(EXTManageSdf!$C$1,MATCH(BR51,EXTManageSdf!$B:$B,0)-1,0) ->  | BW51: 0 | BX51: 0 | BY51: 0 | BZ51: 1112219.45 | CA51: 0 | CB51: 1112219.45 | CC51: 0 | CD51: 1112219.45 | CE51: 0 | CF51: 0
A52: BIMMF | B52: CSH | C52: RPF*MYR*MBSB | D52: CSH*170900480 | E52: 0 | F52: 0 | G52: 10158030.56 | H52: 10158030.56 | I52: 2018-02-14 | J52: 10155860.27 | K52: 0 | L52: 1 | M52: 2170.29 | N52: 0 | O52: 10155860.27 | P52: 10155860.27 | Q52: 0 | R52: 0 | S52: MYR | T52: 0.039 | U52: 2017-09-29 | V52: 0 | W52: 10158030.56 | X52: 2170.3 | Y52: 2017-09-30 | Z52: 0 | AA52: 0 | AB52: 0 | AC52: 3000-01-01 | AD52: 3000-01-01 | AE52: 0 | AF52: 1 | AG52: 1.962601743 | AH52: 517579819.6 | AI52: 1 | AJ52: MY | AK52: 1 | AL52: MBSB | AM52: 0 | AN52: MYR | AO52: MY | AP52: 1 | AQ52: RPF | AR52: CSH | AS52: Unlisted | AT52: 0 | AU52: WF | AV52: Malaysia | BL52: =IF(B52="TBI",OFFSET(CshFlagMap!$E$1,MATCH(C52,CshFlagMap!$C:$C,0)-1,0),IF(ISNA(OFFSET(InvestmentType!$D$1,MATCH(AQ52,InvestmentType!$A:$A,0)-1,0)),"",IF(OFFSET(InvestmentType!$D$1,MATCH(AQ52,InvestmentType!$A:$A,0)-1,0) = "Collective Investment Scheme", OFFSET(InvestmentType!$E$1,MATCH(AQ52,InvestmentType!$A:$A,0)-1,0),IF(OFFSET(InvestmentType!$D$1,MATCH(AQ52,InvestmentType!$A:$A,0)-1,0) = "Derivatives",$BT52,OFFSET(InvestmentType!$D$1,MATCH(AQ52,InvestmentType!$A:$A,0)-1,0))))) -> Money Market Instruments | BM52: 10158030.56 | BN52: =OFFSET(Fund!$B$1,MATCH(A52,Fund!$A:$A,0)-1,0) -> C037A00001 | BO52: =OFFSET(FundSdf!$J$1,MATCH(A52,FundSdf!$A:$A,0)-1,0) -> Wholesale Funds | BP52: =OFFSET(FundSdf!$K$1,MATCH(A52,FundSdf!$A:$A,0)-1,0) -> 0 | BQ52: =OFFSET(FundSdf!$D$1,MATCH(A52,FundSdf!$A:$A,0)-1,0) -> 0 | BR52: =OFFSET(FundSdf!$G$1,MATCH(A52,FundSdf!$A:$A,0)-1,0) -> Noorul Azila Kamaruzzaman | BS52: =OFFSET(InvestmentType!$D$1,MATCH(AQ52,InvestmentType!$A:$A,0)-1,0) -> Money Market Instruments | BT52: =IF(OFFSET(InvestmentType!$D$1,MATCH(AQ52,InvestmentType!$A:$A,0)-1,0)= "Derivatives",IF(AW52="OTC","OTC Derivative", "Exchange Traded Derivative"),"") ->  | BU52: Money Market Instruments | BV52: =OFFSET(EXTManageSdf!$C$1,MATCH(BR52,EXTManageSdf!$B:$B,0)-1,0) ->  | BW52: 0 | BX52: 0 | BY52: 0 | BZ52: 10158030.56 | CA52: 0 | CB52: 10158030.56 | CC52: 0 | CD52: 10158030.56 | CE52: 0 | CF52: 0
A53: BIMMF | B53: CSH | C53: RPW*MYR*BISLAM | D53: CSH*170500547 | E53: 0 | F53: 0 | G53: 5914763.34 | H53: 5914763.34 | I53: 2017-10-19 | J53: 5836806 | K53: 0 | L53: 1 | M53: 77957.34 | N53: 0 | O53: 5836806 | P53: 5836806 | Q53: 0 | R53: 0 | S53: MYR | T53: 0.039 | U53: 2017-05-29 | V53: 0 | W53: 5914763.34 | X53: 1247.32 | Y53: 2017-09-30 | Z53: 0 | AA53: 0 | AB53: 0 | AC53: 3000-01-01 | AD53: 3000-01-01 | AE53: 0 | AF53: 1 | AG53: 1.142773176 | AH53: 517579819.6 | AI53: 1 | AJ53: MY | AK53: 1 | AL53: BANK ISLAM MALAYSIA BERHAD | AM53: 0 | AN53: MYR | AO53: MY | AP53: 1 | AQ53: RPW | AR53: CSH | AS53: Unlisted | AT53: 0 | AU53: WF | AV53: Malaysia | BL53: =IF(B53="TBI",OFFSET(CshFlagMap!$E$1,MATCH(C53,CshFlagMap!$C:$C,0)-1,0),IF(ISNA(OFFSET(InvestmentType!$D$1,MATCH(AQ53,InvestmentType!$A:$A,0)-1,0)),"",IF(OFFSET(InvestmentType!$D$1,MATCH(AQ53,InvestmentType!$A:$A,0)-1,0) = "Collective Investment Scheme", OFFSET(InvestmentType!$E$1,MATCH(AQ53,InvestmentType!$A:$A,0)-1,0),IF(OFFSET(InvestmentType!$D$1,MATCH(AQ53,InvestmentType!$A:$A,0)-1,0) = "Derivatives",$BT53,OFFSET(InvestmentType!$D$1,MATCH(AQ53,InvestmentType!$A:$A,0)-1,0))))) -> Money Market Instruments | BM53: 5914763.34 | BN53: =OFFSET(Fund!$B$1,MATCH(A53,Fund!$A:$A,0)-1,0) -> C037A00001 | BO53: =OFFSET(FundSdf!$J$1,MATCH(A53,FundSdf!$A:$A,0)-1,0) -> Wholesale Funds | BP53: =OFFSET(FundSdf!$K$1,MATCH(A53,FundSdf!$A:$A,0)-1,0) -> 0 | BQ53: =OFFSET(FundSdf!$D$1,MATCH(A53,FundSdf!$A:$A,0)-1,0) -> 0 | BR53: =OFFSET(FundSdf!$G$1,MATCH(A53,FundSdf!$A:$A,0)-1,0) -> Noorul Azila Kamaruzzaman | BS53: =OFFSET(InvestmentType!$D$1,MATCH(AQ53,InvestmentType!$A:$A,0)-1,0) -> Money Market Instruments | BT53: =IF(OFFSET(InvestmentType!$D$1,MATCH(AQ53,InvestmentType!$A:$A,0)-1,0)= "Derivatives",IF(AW53="OTC","OTC Derivative", "Exchange Traded Derivative"),"") ->  | BU53: Money Market Instruments | BV53: =OFFSET(EXTManageSdf!$C$1,MATCH(BR53,EXTManageSdf!$B:$B,0)-1,0) ->  | BW53: 0 | BX53: 0 | BY53: 0 | BZ53: 5914763.34 | CA53: 0 | CB53: 5914763.34 | CC53: 0 | CD53: 5914763.34 | CE53: 0 | CF53: 0
A54: BIMMF | B54: CSH | C54: RPW*MYR*BISLAM | D54: CSH*170600052 | E54: 0 | F54: 0 | G54: 20258575.34 | H54: 20258575.34 | I54: 2017-10-23 | J54: 20000000 | K54: 0 | L54: 1 | M54: 258575.34 | N54: 0 | O54: 20000000 | P54: 20000000 | Q54: 0 | R54: 0 | S54: MYR | T54: 0.039 | U54: 2017-06-02 | V54: 0 | W54: 20258575.34 | X54: 4273.98 | Y54: 2017-09-30 | Z54: 0 | AA54: 0 | AB54: 0 | AC54: 3000-01-01 | AD54: 3000-01-01 | AE54: 0 | AF54: 1 | AG54: 3.914096836 | AH54: 517579819.6 | AI54: 1 | AJ54: MY | AK54: 1 | AL54: BANK ISLAM MALAYSIA BERHAD | AM54: 0 | AN54: MYR | AO54: MY | AP54: 1 | AQ54: RPW | AR54: CSH | AS54: Unlisted | AT54: 0 | AU54: WF | AV54: Malaysia | BL54: =IF(B54="TBI",OFFSET(CshFlagMap!$E$1,MATCH(C54,CshFlagMap!$C:$C,0)-1,0),IF(ISNA(OFFSET(InvestmentType!$D$1,MATCH(AQ54,InvestmentType!$A:$A,0)-1,0)),"",IF(OFFSET(InvestmentType!$D$1,MATCH(AQ54,InvestmentType!$A:$A,0)-1,0) = "Collective Investment Scheme", OFFSET(InvestmentType!$E$1,MATCH(AQ54,InvestmentType!$A:$A,0)-1,0),IF(OFFSET(InvestmentType!$D$1,MATCH(AQ54,InvestmentType!$A:$A,0)-1,0) = "Derivatives",$BT54,OFFSET(InvestmentType!$D$1,MATCH(AQ54,InvestmentType!$A:$A,0)-1,0))))) -> Money Market Instruments | BM54: 20258575.34 | BN54: =OFFSET(Fund!$B$1,MATCH(A54,Fund!$A:$A,0)-1,0) -> C037A00001 | BO54: =OFFSET(FundSdf!$J$1,MATCH(A54,FundSdf!$A:$A,0)-1,0) -> Wholesale Funds | BP54: =OFFSET(FundSdf!$K$1,MATCH(A54,FundSdf!$A:$A,0)-1,0) -> 0 | BQ54: =OFFSET(FundSdf!$D$1,MATCH(A54,FundSdf!$A:$A,0)-1,0) -> 0 | BR54: =OFFSET(FundSdf!$G$1,MATCH(A54,FundSdf!$A:$A,0)-1,0) -> Noorul Azila Kamaruzzaman | BS54: =OFFSET(InvestmentType!$D$1,MATCH(AQ54,InvestmentType!$A:$A,0)-1,0) -> Money Market Instruments | BT54: =IF(OFFSET(InvestmentType!$D$1,MATCH(AQ54,InvestmentType!$A:$A,0)-1,0)= "Derivatives",IF(AW54="OTC","OTC Derivative", "Exchange Traded Derivative"),"") ->  | BU54: Money Market Instruments | BV54: =OFFSET(EXTManageSdf!$C$1,MATCH(BR54,EXTManageSdf!$B:$B,0)-1,0) ->  | BW54: 0 | BX54: 0 | BY54: 0 | BZ54: 20258575.34 | CA54: 0 | CB54: 20258575.34 | CC54: 0 | CD54: 20258575.34 | CE54: 0 | CF54: 0
A55: BIMMF | B55: CSH | C55: RPW*MYR*BISLAM | D55: CSH*170600262 | E55: 0 | F55: 0 | G55: 5570838.8 | H55: 5570838.8 | I55: 2017-10-31 | J55: 5506123 | K55: 0 | L55: 1 | M55: 64715.8 | N55: 0 | O55: 5506123 | P55: 5506123 | Q55: 0 | R55: 0 | S55: MYR | T55: 0.039 | U55: 2017-06-13 | V55: 0 | W55: 5570838.8 | X55: 1176.65 | Y55: 2017-09-30 | Z55: 0 | AA55: 0 | AB55: 0 | AC55: 3000-01-01 | AD55: 3000-01-01 | AE55: 0 | AF55: 1 | AG55: 1.076324576 | AH55: 517579819.6 | AI55: 1 | AJ55: MY | AK55: 1 | AL55: BANK ISLAM MALAYSIA BERHAD | AM55: 0 | AN55: MYR | AO55: MY | AP55: 1 | AQ55: RPW | AR55: CSH | AS55: Unlisted | AT55: 0 | AU55: WF | AV55: Malaysia | BL55: =IF(B55="TBI",OFFSET(CshFlagMap!$E$1,MATCH(C55,CshFlagMap!$C:$C,0)-1,0),IF(ISNA(OFFSET(InvestmentType!$D$1,MATCH(AQ55,InvestmentType!$A:$A,0)-1,0)),"",IF(OFFSET(InvestmentType!$D$1,MATCH(AQ55,InvestmentType!$A:$A,0)-1,0) = "Collective Investment Scheme", OFFSET(InvestmentType!$E$1,MATCH(AQ55,InvestmentType!$A:$A,0)-1,0),IF(OFFSET(InvestmentType!$D$1,MATCH(AQ55,InvestmentType!$A:$A,0)-1,0) = "Derivatives",$BT55,OFFSET(InvestmentType!$D$1,MATCH(AQ55,InvestmentType!$A:$A,0)-1,0))))) -> Money Market Instruments | BM55: 5570838.8 | BN55: =OFFSET(Fund!$B$1,MATCH(A55,Fund!$A:$A,0)-1,0) -> C037A00001 | BO55: =OFFSET(FundSdf!$J$1,MATCH(A55,FundSdf!$A:$A,0)-1,0) -> Wholesale Funds | BP55: =OFFSET(FundSdf!$K$1,MATCH(A55,FundSdf!$A:$A,0)-1,0) -> 0 | BQ55: =OFFSET(FundSdf!$D$1,MATCH(A55,FundSdf!$A:$A,0)-1,0) -> 0 | BR55: =OFFSET(FundSdf!$G$1,MATCH(A55,FundSdf!$A:$A,0)-1,0) -> Noorul Azila Kamaruzzaman | BS55: =OFFSET(InvestmentType!$D$1,MATCH(AQ55,InvestmentType!$A:$A,0)-1,0) -> Money Market Instruments | BT55: =IF(OFFSET(InvestmentType!$D$1,MATCH(AQ55,InvestmentType!$A:$A,0)-1,0)= "Derivatives",IF(AW55="OTC","OTC Derivative", "Exchange Traded Derivative"),"") ->  | BU55: Money Market Instruments | BV55: =OFFSET(EXTManageSdf!$C$1,MATCH(BR55,EXTManageSdf!$B:$B,0)-1,0) ->  | BW55: 0 | BX55: 0 | BY55: 0 | BZ55: 5570838.8 | CA55: 0 | CB55: 5570838.8 | CC55: 0 | CD55: 5570838.8 | CE55: 0 | CF55: 0
A56: BIMMF | B56: CSH | C56: RPW*MYR*BISLAM | D56: CSH*170600459 | E56: 0 | F56: 0 | G56: 7272895.5 | H56: 7272895.5 | I56: 2017-12-04 | J56: 7196231 | K56: 0 | L56: 1 | M56: 76664.5 | N56: 0 | O56: 7196231 | P56: 7196231 | Q56: 0 | R56: 0 | S56: MYR | T56: 0.0385 | U56: 2017-06-22 | V56: 0 | W56: 7272895.5 | X56: 1518.11 | Y56: 2017-09-30 | Z56: 0 | AA56: 0 | AB56: 0 | AC56: 3000-01-01 | AD56: 3000-01-01 | AE56: 0 | AF56: 1 | AG56: 1.4051737 | AH56: 517579819.6 | AI56: 1 | AJ56: MY | AK56: 1 | AL56: BANK ISLAM MALAYSIA BERHAD | AM56: 0 | AN56: MYR | AO56: MY | AP56: 1 | AQ56: RPW | AR56: CSH | AS56: Unlisted | AT56: 0 | AU56: WF | AV56: Malaysia | BL56: =IF(B56="TBI",OFFSET(CshFlagMap!$E$1,MATCH(C56,CshFlagMap!$C:$C,0)-1,0),IF(ISNA(OFFSET(InvestmentType!$D$1,MATCH(AQ56,InvestmentType!$A:$A,0)-1,0)),"",IF(OFFSET(InvestmentType!$D$1,MATCH(AQ56,InvestmentType!$A:$A,0)-1,0) = "Collective Investment Scheme", OFFSET(InvestmentType!$E$1,MATCH(AQ56,InvestmentType!$A:$A,0)-1,0),IF(OFFSET(InvestmentType!$D$1,MATCH(AQ56,InvestmentType!$A:$A,0)-1,0) = "Derivatives",$BT56,OFFSET(InvestmentType!$D$1,MATCH(AQ56,InvestmentType!$A:$A,0)-1,0))))) -> Money Market Instruments | BM56: 7272895.5 | BN56: =OFFSET(Fund!$B$1,MATCH(A56,Fund!$A:$A,0)-1,0) -> C037A00001 | BO56: =OFFSET(FundSdf!$J$1,MATCH(A56,FundSdf!$A:$A,0)-1,0) -> Wholesale Funds | BP56: =OFFSET(FundSdf!$K$1,MATCH(A56,FundSdf!$A:$A,0)-1,0) -> 0 | BQ56: =OFFSET(FundSdf!$D$1,MATCH(A56,FundSdf!$A:$A,0)-1,0) -> 0 | BR56: =OFFSET(FundSdf!$G$1,MATCH(A56,FundSdf!$A:$A,0)-1,0) -> Noorul Azila Kamaruzzaman | BS56: =OFFSET(InvestmentType!$D$1,MATCH(AQ56,InvestmentType!$A:$A,0)-1,0) -> Money Market Instruments | BT56: =IF(OFFSET(InvestmentType!$D$1,MATCH(AQ56,InvestmentType!$A:$A,0)-1,0)= "Derivatives",IF(AW56="OTC","OTC Derivative", "Exchange Traded Derivative"),"") ->  | BU56: Money Market Instruments | BV56: =OFFSET(EXTManageSdf!$C$1,MATCH(BR56,EXTManageSdf!$B:$B,0)-1,0) ->  | BW56: 0 | BX56: 0 | BY56: 0 | BZ56: 7272895.5 | CA56: 0 | CB56: 7272895.5 | CC56: 0 | CD56: 7272895.5 | CE56: 0 | CF56: 0
A57: BIMMF | B57: CSH | C57: RPW*MYR*BISLAM | D57: CSH*170600556 | E57: 0 | F57: 0 | G57: 6163047.83 | H57: 6163047.83 | I57: 2017-11-27 | J57: 6102540.72 | K57: 0 | L57: 1 | M57: 60507.11 | N57: 0 | O57: 6102540.72 | P57: 6102540.72 | Q57: 0 | R57: 0 | S57: MYR | T57: 0.0385 | U57: 2017-06-29 | V57: 0 | W57: 6163047.83 | X57: 1287.38 | Y57: 2017-09-30 | Z57: 0 | AA57: 0 | AB57: 0 | AC57: 3000-01-01 | AD57: 3000-01-01 | AE57: 0 | AF57: 1 | AG57: 1.190743456 | AH57: 517579819.6 | AI57: 1 | AJ57: MY | AK57: 1 | AL57: BANK ISLAM MALAYSIA BERHAD | AM57: 0 | AN57: MYR | AO57: MY | AP57: 1 | AQ57: RPW | AR57: CSH | AS57: Unlisted | AT57: 0 | AU57: WF | AV57: Malaysia | BL57: =IF(B57="TBI",OFFSET(CshFlagMap!$E$1,MATCH(C57,CshFlagMap!$C:$C,0)-1,0),IF(ISNA(OFFSET(InvestmentType!$D$1,MATCH(AQ57,InvestmentType!$A:$A,0)-1,0)),"",IF(OFFSET(InvestmentType!$D$1,MATCH(AQ57,InvestmentType!$A:$A,0)-1,0) = "Collective Investment Scheme", OFFSET(InvestmentType!$E$1,MATCH(AQ57,InvestmentType!$A:$A,0)-1,0),IF(OFFSET(InvestmentType!$D$1,MATCH(AQ57,InvestmentType!$A:$A,0)-1,0) = "Derivatives",$BT57,OFFSET(InvestmentType!$D$1,MATCH(AQ57,InvestmentType!$A:$A,0)-1,0))))) -> Money Market Instruments | BM57: 6163047.83 | BN57: =OFFSET(Fund!$B$1,MATCH(A57,Fund!$A:$A,0)-1,0) -> C037A00001 | BO57: =OFFSET(FundSdf!$J$1,MATCH(A57,FundSdf!$A:$A,0)-1,0) -> Wholesale Funds | BP57: =OFFSET(FundSdf!$K$1,MATCH(A57,FundSdf!$A:$A,0)-1,0) -> 0 | BQ57: =OFFSET(FundSdf!$D$1,MATCH(A57,FundSdf!$A:$A,0)-1,0) -> 0 | BR57: =OFFSET(FundSdf!$G$1,MATCH(A57,FundSdf!$A:$A,0)-1,0) -> Noorul Azila Kamaruzzaman | BS57: =OFFSET(InvestmentType!$D$1,MATCH(AQ57,InvestmentType!$A:$A,0)-1,0) -> Money Market Instruments | BT57: =IF(OFFSET(InvestmentType!$D$1,MATCH(AQ57,InvestmentType!$A:$A,0)-1,0)= "Derivatives",IF(AW57="OTC","OTC Derivative", "Exchange Traded Derivative"),"") ->  | BU57: Money Market Instruments | BV57: =OFFSET(EXTManageSdf!$C$1,MATCH(BR57,EXTManageSdf!$B:$B,0)-1,0) ->  | BW57: 0 | BX57: 0 | BY57: 0 | BZ57: 6163047.83 | CA57: 0 | CB57: 6163047.83 | CC57: 0 | CD57: 6163047.83 | CE57: 0 | CF57: 0
A58: BIMMF | B58: CSH | C58: RPW*MYR*BISLAM | D58: CSH*170600580 | E58: 0 | F58: 0 | G58: 10327281.16 | H58: 10327281.16 | I58: 2017-11-29 | J58: 10226958.9 | K58: 0 | L58: 1 | M58: 100322.26 | N58: 0 | O58: 10226958.9 | P58: 10226958.9 | Q58: 0 | R58: 0 | S58: MYR | T58: 0.0385 | U58: 2017-06-30 | V58: 0 | W58: 10327281.16 | X58: 2157.47 | Y58: 2017-09-30 | Z58: 0 | AA58: 0 | AB58: 0 | AC58: 3000-01-01 | AD58: 3000-01-01 | AE58: 0 | AF58: 1 | AG58: 1.995302129 | AH58: 517579819.6 | AI58: 1 | AJ58: MY | AK58: 1 | AL58: BANK ISLAM MALAYSIA BERHAD | AM58: 0 | AN58: MYR | AO58: MY | AP58: 1 | AQ58: RPW | AR58: CSH | AS58: Unlisted | AT58: 0 | AU58: WF | AV58: Malaysia | BL58: =IF(B58="TBI",OFFSET(CshFlagMap!$E$1,MATCH(C58,CshFlagMap!$C:$C,0)-1,0),IF(ISNA(OFFSET(InvestmentType!$D$1,MATCH(AQ58,InvestmentType!$A:$A,0)-1,0)),"",IF(OFFSET(InvestmentType!$D$1,MATCH(AQ58,InvestmentType!$A:$A,0)-1,0) = "Collective Investment Scheme", OFFSET(InvestmentType!$E$1,MATCH(AQ58,InvestmentType!$A:$A,0)-1,0),IF(OFFSET(InvestmentType!$D$1,MATCH(AQ58,InvestmentType!$A:$A,0)-1,0) = "Derivatives",$BT58,OFFSET(InvestmentType!$D$1,MATCH(AQ58,InvestmentType!$A:$A,0)-1,0))))) -> Money Market Instruments | BM58: 10327281.16 | BN58: =OFFSET(Fund!$B$1,MATCH(A58,Fund!$A:$A,0)-1,0) -> C037A00001 | BO58: =OFFSET(FundSdf!$J$1,MATCH(A58,FundSdf!$A:$A,0)-1,0) -> Wholesale Funds | BP58: =OFFSET(FundSdf!$K$1,MATCH(A58,FundSdf!$A:$A,0)-1,0) -> 0 | BQ58: =OFFSET(FundSdf!$D$1,MATCH(A58,FundSdf!$A:$A,0)-1,0) -> 0 | BR58: =OFFSET(FundSdf!$G$1,MATCH(A58,FundSdf!$A:$A,0)-1,0) -> Noorul Azila Kamaruzzaman | BS58: =OFFSET(InvestmentType!$D$1,MATCH(AQ58,InvestmentType!$A:$A,0)-1,0) -> Money Market Instruments | BT58: =IF(OFFSET(InvestmentType!$D$1,MATCH(AQ58,InvestmentType!$A:$A,0)-1,0)= "Derivatives",IF(AW58="OTC","OTC Derivative", "Exchange Traded Derivative"),"") ->  | BU58: Money Market Instruments | BV58: =OFFSET(EXTManageSdf!$C$1,MATCH(BR58,EXTManageSdf!$B:$B,0)-1,0) ->  | BW58: 0 | BX58: 0 | BY58: 0 | BZ58: 10327281.16 | CA58: 0 | CB58: 10327281.16 | CC58: 0 | CD58: 10327281.16 | CE58: 0 | CF58: 0
A59: BIMMF | B59: CSH | C59: RPW*MYR*BISLAM | D59: CSH*170700112 | E59: 0 | F59: 0 | G59: 10225568.64 | H59: 10225568.64 | I59: 2017-12-13 | J59: 10133644 | K59: 0 | L59: 1 | M59: 91924.64 | N59: 0 | O59: 10133644 | P59: 10133644 | Q59: 0 | R59: 0 | S59: MYR | T59: 0.0385 | U59: 2017-07-07 | V59: 0 | W59: 10225568.64 | X59: 2137.79 | Y59: 2017-09-30 | Z59: 0 | AA59: 0 | AB59: 0 | AC59: 3000-01-01 | AD59: 3000-01-01 | AE59: 0 | AF59: 1 | AG59: 1.975650567 | AH59: 517579819.6 | AI59: 1 | AJ59: MY | AK59: 1 | AL59: BANK ISLAM MALAYSIA BERHAD | AM59: 0 | AN59: MYR | AO59: MY | AP59: 1 | AQ59: RPW | AR59: CSH | AS59: Unlisted | AT59: 0 | AU59: WF | AV59: Malaysia | BL59: =IF(B59="TBI",OFFSET(CshFlagMap!$E$1,MATCH(C59,CshFlagMap!$C:$C,0)-1,0),IF(ISNA(OFFSET(InvestmentType!$D$1,MATCH(AQ59,InvestmentType!$A:$A,0)-1,0)),"",IF(OFFSET(InvestmentType!$D$1,MATCH(AQ59,InvestmentType!$A:$A,0)-1,0) = "Collective Investment Scheme", OFFSET(InvestmentType!$E$1,MATCH(AQ59,InvestmentType!$A:$A,0)-1,0),IF(OFFSET(InvestmentType!$D$1,MATCH(AQ59,InvestmentType!$A:$A,0)-1,0) = "Derivatives",$BT59,OFFSET(InvestmentType!$D$1,MATCH(AQ59,InvestmentType!$A:$A,0)-1,0))))) -> Money Market Instruments | BM59: 10225568.64 | BN59: =OFFSET(Fund!$B$1,MATCH(A59,Fund!$A:$A,0)-1,0) -> C037A00001 | BO59: =OFFSET(FundSdf!$J$1,MATCH(A59,FundSdf!$A:$A,0)-1,0) -> Wholesale Funds | BP59: =OFFSET(FundSdf!$K$1,MATCH(A59,FundSdf!$A:$A,0)-1,0) -> 0 | BQ59: =OFFSET(FundSdf!$D$1,MATCH(A59,FundSdf!$A:$A,0)-1,0) -> 0 | BR59: =OFFSET(FundSdf!$G$1,MATCH(A59,FundSdf!$A:$A,0)-1,0) -> Noorul Azila Kamaruzzaman | BS59: =OFFSET(InvestmentType!$D$1,MATCH(AQ59,InvestmentType!$A:$A,0)-1,0) -> Money Market Instruments | BT59: =IF(OFFSET(InvestmentType!$D$1,MATCH(AQ59,InvestmentType!$A:$A,0)-1,0)= "Derivatives",IF(AW59="OTC","OTC Derivative", "Exchange Traded Derivative"),"") ->  | BU59: Money Market Instruments | BV59: =OFFSET(EXTManageSdf!$C$1,MATCH(BR59,EXTManageSdf!$B:$B,0)-1,0) ->  | BW59: 0 | BX59: 0 | BY59: 0 | BZ59: 10225568.64 | CA59: 0 | CB59: 10225568.64 | CC59: 0 | CD59: 10225568.64 | CE59: 0 | CF59: 0
A60: BIMMF | B60: CSH | C60: RPW*MYR*BISLAM | D60: CSH*170700253 | E60: 0 | F60: 0 | G60: 9944119.48 | H60: 9944119.48 | I60: 2017-12-18 | J60: 9866056 | K60: 0 | L60: 1 | M60: 78063.48 | N60: 0 | O60: 9866056 | P60: 9866056 | Q60: 0 | R60: 0 | S60: MYR | T60: 0.038 | U60: 2017-07-17 | V60: 0 | W60: 9944119.48 | X60: 2054.3 | Y60: 2017-09-30 | Z60: 0 | AA60: 0 | AB60: 0 | AC60: 3000-01-01 | AD60: 3000-01-01 | AE60: 0 | AF60: 1 | AG60: 1.921272643 | AH60: 517579819.6 | AI60: 1 | AJ60: MY | AK60: 1 | AL60: BANK ISLAM MALAYSIA BERHAD | AM60: 0 | AN60: MYR | AO60: MY | AP60: 1 | AQ60: RPW | AR60: CSH | AS60: Unlisted | AT60: 0 | AU60: WF | AV60: Malaysia | BL60: =IF(B60="TBI",OFFSET(CshFlagMap!$E$1,MATCH(C60,CshFlagMap!$C:$C,0)-1,0),IF(ISNA(OFFSET(InvestmentType!$D$1,MATCH(AQ60,InvestmentType!$A:$A,0)-1,0)),"",IF(OFFSET(InvestmentType!$D$1,MATCH(AQ60,InvestmentType!$A:$A,0)-1,0) = "Collective Investment Scheme", OFFSET(InvestmentType!$E$1,MATCH(AQ60,InvestmentType!$A:$A,0)-1,0),IF(OFFSET(InvestmentType!$D$1,MATCH(AQ60,InvestmentType!$A:$A,0)-1,0) = "Derivatives",$BT60,OFFSET(InvestmentType!$D$1,MATCH(AQ60,InvestmentType!$A:$A,0)-1,0))))) -> Money Market Instruments | BM60: 9944119.48 | BN60: =OFFSET(Fund!$B$1,MATCH(A60,Fund!$A:$A,0)-1,0) -> C037A00001 | BO60: =OFFSET(FundSdf!$J$1,MATCH(A60,FundSdf!$A:$A,0)-1,0) -> Wholesale Funds | BP60: =OFFSET(FundSdf!$K$1,MATCH(A60,FundSdf!$A:$A,0)-1,0) -> 0 | BQ60: =OFFSET(FundSdf!$D$1,MATCH(A60,FundSdf!$A:$A,0)-1,0) -> 0 | BR60: =OFFSET(FundSdf!$G$1,MATCH(A60,FundSdf!$A:$A,0)-1,0) -> Noorul Azila Kamaruzzaman | BS60: =OFFSET(InvestmentType!$D$1,MATCH(AQ60,InvestmentType!$A:$A,0)-1,0) -> Money Market Instruments | BT60: =IF(OFFSET(InvestmentType!$D$1,MATCH(AQ60,InvestmentType!$A:$A,0)-1,0)= "Derivatives",IF(AW60="OTC","OTC Derivative", "Exchange Traded Derivative"),"") ->  | BU60: Money Market Instruments | BV60: =OFFSET(EXTManageSdf!$C$1,MATCH(BR60,EXTManageSdf!$B:$B,0)-1,0) ->  | BW60: 0 | BX60: 0 | BY60: 0 | BZ60: 9944119.48 | CA60: 0 | CB60: 9944119.48 | CC60: 0 | CD60: 9944119.48 | CE60: 0 | CF60: 0
A61: BIMMF | B61: CSH | C61: RPW*MYR*BISLAM | D61: CSH*170700277 | E61: 0 | F61: 0 | G61: 7559332.19 | H61: 7559332.19 | I61: 2017-12-19 | J61: 7500000 | K61: 0 | L61: 1 | M61: 59332.19 | N61: 0 | O61: 7500000 | P61: 7500000 | Q61: 0 | R61: 0 | S61: MYR | T61: 0.0385 | U61: 2017-07-18 | V61: 0 | W61: 7559332.19 | X61: 1582.19 | Y61: 2017-09-30 | Z61: 0 | AA61: 0 | AB61: 0 | AC61: 3000-01-01 | AD61: 3000-01-01 | AE61: 0 | AF61: 1 | AG61: 1.460515249 | AH61: 517579819.6 | AI61: 1 | AJ61: MY | AK61: 1 | AL61: BANK ISLAM MALAYSIA BERHAD | AM61: 0 | AN61: MYR | AO61: MY | AP61: 1 | AQ61: RPW | AR61: CSH | AS61: Unlisted | AT61: 0 | AU61: WF | AV61: Malaysia | BL61: =IF(B61="TBI",OFFSET(CshFlagMap!$E$1,MATCH(C61,CshFlagMap!$C:$C,0)-1,0),IF(ISNA(OFFSET(InvestmentType!$D$1,MATCH(AQ61,InvestmentType!$A:$A,0)-1,0)),"",IF(OFFSET(InvestmentType!$D$1,MATCH(AQ61,InvestmentType!$A:$A,0)-1,0) = "Collective Investment Scheme", OFFSET(InvestmentType!$E$1,MATCH(AQ61,InvestmentType!$A:$A,0)-1,0),IF(OFFSET(InvestmentType!$D$1,MATCH(AQ61,InvestmentType!$A:$A,0)-1,0) = "Derivatives",$BT61,OFFSET(InvestmentType!$D$1,MATCH(AQ61,InvestmentType!$A:$A,0)-1,0))))) -> Money Market Instruments | BM61: 7559332.19 | BN61: =OFFSET(Fund!$B$1,MATCH(A61,Fund!$A:$A,0)-1,0) -> C037A00001 | BO61: =OFFSET(FundSdf!$J$1,MATCH(A61,FundSdf!$A:$A,0)-1,0) -> Wholesale Funds | BP61: =OFFSET(FundSdf!$K$1,MATCH(A61,FundSdf!$A:$A,0)-1,0) -> 0 | BQ61: =OFFSET(FundSdf!$D$1,MATCH(A61,FundSdf!$A:$A,0)-1,0) -> 0 | BR61: =OFFSET(FundSdf!$G$1,MATCH(A61,FundSdf!$A:$A,0)-1,0) -> Noorul Azila Kamaruzzaman | BS61: =OFFSET(InvestmentType!$D$1,MATCH(AQ61,InvestmentType!$A:$A,0)-1,0) -> Money Market Instruments | BT61: =IF(OFFSET(InvestmentType!$D$1,MATCH(AQ61,InvestmentType!$A:$A,0)-1,0)= "Derivatives",IF(AW61="OTC","OTC Derivative", "Exchange Traded Derivative"),"") ->  | BU61: Money Market Instruments | BV61: =OFFSET(EXTManageSdf!$C$1,MATCH(BR61,EXTManageSdf!$B:$B,0)-1,0) ->  | BW61: 0 | BX61: 0 | BY61: 0 | BZ61: 7559332.19 | CA61: 0 | CB61: 7559332.19 | CC61: 0 | CD61: 7559332.19 | CE61: 0 | CF61: 0
A62: BIMMF | B62: CSH | C62: RPW*MYR*BISLAM | D62: CSH*170700278 | E62: 0 | F62: 0 | G62: 7559332.19 | H62: 7559332.19 | I62: 2017-12-20 | J62: 7500000 | K62: 0 | L62: 1 | M62: 59332.19 | N62: 0 | O62: 7500000 | P62: 7500000 | Q62: 0 | R62: 0 | S62: MYR | T62: 0.0385 | U62: 2017-07-18 | V62: 0 | W62: 7559332.19 | X62: 1582.19 | Y62: 2017-09-30 | Z62: 0 | AA62: 0 | AB62: 0 | AC62: 3000-01-01 | AD62: 3000-01-01 | AE62: 0 | AF62: 1 | AG62: 1.460515249 | AH62: 517579819.6 | AI62: 1 | AJ62: MY | AK62: 1 | AL62: BANK ISLAM MALAYSIA BERHAD | AM62: 0 | AN62: MYR | AO62: MY | AP62: 1 | AQ62: RPW | AR62: CSH | AS62: Unlisted | AT62: 0 | AU62: WF | AV62: Malaysia | BL62: =IF(B62="TBI",OFFSET(CshFlagMap!$E$1,MATCH(C62,CshFlagMap!$C:$C,0)-1,0),IF(ISNA(OFFSET(InvestmentType!$D$1,MATCH(AQ62,InvestmentType!$A:$A,0)-1,0)),"",IF(OFFSET(InvestmentType!$D$1,MATCH(AQ62,InvestmentType!$A:$A,0)-1,0) = "Collective Investment Scheme", OFFSET(InvestmentType!$E$1,MATCH(AQ62,InvestmentType!$A:$A,0)-1,0),IF(OFFSET(InvestmentType!$D$1,MATCH(AQ62,InvestmentType!$A:$A,0)-1,0) = "Derivatives",$BT62,OFFSET(InvestmentType!$D$1,MATCH(AQ62,InvestmentType!$A:$A,0)-1,0))))) -> Money Market Instruments | BM62: 7559332.19 | BN62: =OFFSET(Fund!$B$1,MATCH(A62,Fund!$A:$A,0)-1,0) -> C037A00001 | BO62: =OFFSET(FundSdf!$J$1,MATCH(A62,FundSdf!$A:$A,0)-1,0) -> Wholesale Funds | BP62: =OFFSET(FundSdf!$K$1,MATCH(A62,FundSdf!$A:$A,0)-1,0) -> 0 | BQ62: =OFFSET(FundSdf!$D$1,MATCH(A62,FundSdf!$A:$A,0)-1,0) -> 0 | BR62: =OFFSET(FundSdf!$G$1,MATCH(A62,FundSdf!$A:$A,0)-1,0) -> Noorul Azila Kamaruzzaman | BS62: =OFFSET(InvestmentType!$D$1,MATCH(AQ62,InvestmentType!$A:$A,0)-1,0) -> Money Market Instruments | BT62: =IF(OFFSET(InvestmentType!$D$1,MATCH(AQ62,InvestmentType!$A:$A,0)-1,0)= "Derivatives",IF(AW62="OTC","OTC Derivative", "Exchange Traded Derivative"),"") ->  | BU62: Money Market Instruments | BV62: =OFFSET(EXTManageSdf!$C$1,MATCH(BR62,EXTManageSdf!$B:$B,0)-1,0) ->  | BW62: 0 | BX62: 0 | BY62: 0 | BZ62: 7559332.19 | CA62: 0 | CB62: 7559332.19 | CC62: 0 | CD62: 7559332.19 | CE62: 0 | CF62: 0
A63: BIMMF | B63: CSH | C63: RPW*MYR*BISLAM | D63: CSH*170700448 | E63: 0 | F63: 0 | G63: 6949042.3 | H63: 6949042.3 | I63: 2017-12-27 | J63: 6901000 | K63: 0 | L63: 1 | M63: 48042.3 | N63: 0 | O63: 6901000 | P63: 6901000 | Q63: 0 | R63: 0 | S63: MYR | T63: 0.0385 | U63: 2017-07-27 | V63: 0 | W63: 6949042.3 | X63: 1455.83 | Y63: 2017-09-30 | Z63: 0 | AA63: 0 | AB63: 0 | AC63: 3000-01-01 | AD63: 3000-01-01 | AE63: 0 | AF63: 1 | AG63: 1.342603022 | AH63: 517579819.6 | AI63: 1 | AJ63: MY | AK63: 1 | AL63: BANK ISLAM MALAYSIA BERHAD | AM63: 0 | AN63: MYR | AO63: MY | AP63: 1 | AQ63: RPW | AR63: CSH | AS63: Unlisted | AT63: 0 | AU63: WF | AV63: Malaysia | BL63: =IF(B63="TBI",OFFSET(CshFlagMap!$E$1,MATCH(C63,CshFlagMap!$C:$C,0)-1,0),IF(ISNA(OFFSET(InvestmentType!$D$1,MATCH(AQ63,InvestmentType!$A:$A,0)-1,0)),"",IF(OFFSET(InvestmentType!$D$1,MATCH(AQ63,InvestmentType!$A:$A,0)-1,0) = "Collective Investment Scheme", OFFSET(InvestmentType!$E$1,MATCH(AQ63,InvestmentType!$A:$A,0)-1,0),IF(OFFSET(InvestmentType!$D$1,MATCH(AQ63,InvestmentType!$A:$A,0)-1,0) = "Derivatives",$BT63,OFFSET(InvestmentType!$D$1,MATCH(AQ63,InvestmentType!$A:$A,0)-1,0))))) -> Money Market Instruments | BM63: 6949042.3 | BN63: =OFFSET(Fund!$B$1,MATCH(A63,Fund!$A:$A,0)-1,0) -> C037A00001 | BO63: =OFFSET(FundSdf!$J$1,MATCH(A63,FundSdf!$A:$A,0)-1,0) -> Wholesale Funds | BP63: =OFFSET(FundSdf!$K$1,MATCH(A63,FundSdf!$A:$A,0)-1,0) -> 0 | BQ63: =OFFSET(FundSdf!$D$1,MATCH(A63,FundSdf!$A:$A,0)-1,0) -> 0 | BR63: =OFFSET(FundSdf!$G$1,MATCH(A63,FundSdf!$A:$A,0)-1,0) -> Noorul Azila Kamaruzzaman | BS63: =OFFSET(InvestmentType!$D$1,MATCH(AQ63,InvestmentType!$A:$A,0)-1,0) -> Money Market Instruments | BT63: =IF(OFFSET(InvestmentType!$D$1,MATCH(AQ63,InvestmentType!$A:$A,0)-1,0)= "Derivatives",IF(AW63="OTC","OTC Derivative", "Exchange Traded Derivative"),"") ->  | BU63: Money Market Instruments | BV63: =OFFSET(EXTManageSdf!$C$1,MATCH(BR63,EXTManageSdf!$B:$B,0)-1,0) ->  | BW63: 0 | BX63: 0 | BY63: 0 | BZ63: 6949042.3 | CA63: 0 | CB63: 6949042.3 | CC63: 0 | CD63: 6949042.3 | CE63: 0 | CF63: 0
A64: BIMMF | B64: CSH | C64: RPW*MYR*BISLAM | D64: CSH*170800013 | E64: 0 | F64: 0 | G64: 10766740.98 | H64: 10766740.98 | I64: 2017-12-28 | J64: 10697908 | K64: 0 | L64: 1 | M64: 68832.98 | N64: 0 | O64: 10697908 | P64: 10697908 | Q64: 0 | R64: 0 | S64: MYR | T64: 0.0385 | U64: 2017-08-01 | V64: 0 | W64: 10766740.98 | X64: 2256.82 | Y64: 2017-09-30 | Z64: 0 | AA64: 0 | AB64: 0 | AC64: 3000-01-01 | AD64: 3000-01-01 | AE64: 0 | AF64: 1 | AG64: 2.080208805 | AH64: 517579819.6 | AI64: 1 | AJ64: MY | AK64: 1 | AL64: BANK ISLAM MALAYSIA BERHAD | AM64: 0 | AN64: MYR | AO64: MY | AP64: 1 | AQ64: RPW | AR64: CSH | AS64: Unlisted | AT64: 0 | AU64: WF | AV64: Malaysia | BL64: =IF(B64="TBI",OFFSET(CshFlagMap!$E$1,MATCH(C64,CshFlagMap!$C:$C,0)-1,0),IF(ISNA(OFFSET(InvestmentType!$D$1,MATCH(AQ64,InvestmentType!$A:$A,0)-1,0)),"",IF(OFFSET(InvestmentType!$D$1,MATCH(AQ64,InvestmentType!$A:$A,0)-1,0) = "Collective Investment Scheme", OFFSET(InvestmentType!$E$1,MATCH(AQ64,InvestmentType!$A:$A,0)-1,0),IF(OFFSET(InvestmentType!$D$1,MATCH(AQ64,InvestmentType!$A:$A,0)-1,0) = "Derivatives",$BT64,OFFSET(InvestmentType!$D$1,MATCH(AQ64,InvestmentType!$A:$A,0)-1,0))))) -> Money Market Instruments | BM64: 10766740.98 | BN64: =OFFSET(Fund!$B$1,MATCH(A64,Fund!$A:$A,0)-1,0) -> C037A00001 | BO64: =OFFSET(FundSdf!$J$1,MATCH(A64,FundSdf!$A:$A,0)-1,0) -> Wholesale Funds | BP64: =OFFSET(FundSdf!$K$1,MATCH(A64,FundSdf!$A:$A,0)-1,0) -> 0 | BQ64: =OFFSET(FundSdf!$D$1,MATCH(A64,FundSdf!$A:$A,0)-1,0) -> 0 | BR64: =OFFSET(FundSdf!$G$1,MATCH(A64,FundSdf!$A:$A,0)-1,0) -> Noorul Azila Kamaruzzaman | BS64: =OFFSET(InvestmentType!$D$1,MATCH(AQ64,InvestmentType!$A:$A,0)-1,0) -> Money Market Instruments | BT64: =IF(OFFSET(InvestmentType!$D$1,MATCH(AQ64,InvestmentType!$A:$A,0)-1,0)= "Derivatives",IF(AW64="OTC","OTC Derivative", "Exchange Traded Derivative"),"") ->  | BU64: Money Market Instruments | BV64: =OFFSET(EXTManageSdf!$C$1,MATCH(BR64,EXTManageSdf!$B:$B,0)-1,0) ->  | BW64: 0 | BX64: 0 | BY64: 0 | BZ64: 10766740.98 | CA64: 0 | CB64: 10766740.98 | CC64: 0 | CD64: 10766740.98 | CE64: 0 | CF64: 0
A65: BIMMF | B65: BND | C65: VI120398 | D65: BND*160200001 | E65: 5123.85 | F65: 0 | G65: 10149132.88 | H65: 10149132.88 | I65: 2017-11-23 | J65: 10000000 | K65: 100.027 | L65: 1 | M65: 146432.88 | N65: -21576.15 | O65: 9976000 | P65: 9976000 | Q65: 0 | R65: 0 | S65: MYR | T65: 0.0422 | U65: 2016-02-11 | V65: 0.03827 | W65: 10144009.03 | X65: 2235.61 | Y65: 2017-09-30 | Z65: 0 | AA65: 0 | AB65: 0 | AC65: 2017-05-23 | AD65: 2017-11-23 | AE65: 0 | AF65: 1 | AG65: 1.96088265 | AH65: 517579819.6 | AI65: 1 | AJ65: MY | AK65: 1 | AL65: IMTIAZ IMTN 4.080% 23.11.2017 | AM65: 0 | AN65: MYR | AO65: MY | AP65: 1 | AQ65: Corporate Bond | AR65: BND | AS65: Unlisted | AT65: 700000000 | AU65: WF | AV65: Malaysia | BL65: =IF(B65="TBI",OFFSET(CshFlagMap!$E$1,MATCH(C65,CshFlagMap!$C:$C,0)-1,0),IF(ISNA(OFFSET(InvestmentType!$D$1,MATCH(AQ65,InvestmentType!$A:$A,0)-1,0)),"",IF(OFFSET(InvestmentType!$D$1,MATCH(AQ65,InvestmentType!$A:$A,0)-1,0) = "Collective Investment Scheme", OFFSET(InvestmentType!$E$1,MATCH(AQ65,InvestmentType!$A:$A,0)-1,0),IF(OFFSET(InvestmentType!$D$1,MATCH(AQ65,InvestmentType!$A:$A,0)-1,0) = "Derivatives",$BT65,OFFSET(InvestmentType!$D$1,MATCH(AQ65,InvestmentType!$A:$A,0)-1,0))))) -> Debentures | BM65: 10149132.88 | BN65: =OFFSET(Fund!$B$1,MATCH(A65,Fund!$A:$A,0)-1,0) -> C037A00001 | BO65: =OFFSET(FundSdf!$J$1,MATCH(A65,FundSdf!$A:$A,0)-1,0) -> Wholesale Funds | BP65: =OFFSET(FundSdf!$K$1,MATCH(A65,FundSdf!$A:$A,0)-1,0) -> 0 | BQ65: =OFFSET(FundSdf!$D$1,MATCH(A65,FundSdf!$A:$A,0)-1,0) -> 0 | BR65: =OFFSET(FundSdf!$G$1,MATCH(A65,FundSdf!$A:$A,0)-1,0) -> Noorul Azila Kamaruzzaman | BS65: =OFFSET(InvestmentType!$D$1,MATCH(AQ65,InvestmentType!$A:$A,0)-1,0) -> Debentures | BT65: =IF(OFFSET(InvestmentType!$D$1,MATCH(AQ65,InvestmentType!$A:$A,0)-1,0)= "Derivatives",IF(AW65="OTC","OTC Derivative", "Exchange Traded Derivative"),"") ->  | BU65: Debentures | BV65: =OFFSET(EXTManageSdf!$C$1,MATCH(BR65,EXTManageSdf!$B:$B,0)-1,0) ->  | BW65: 0 | BX65: 0 | BY65: 0 | BZ65: 10149132.88 | CA65: 0 | CB65: 10149132.88 | CC65: 0 | CD65: 10149132.88 | CE65: 0 | CF65: 0
A66: BIW | B66: CSH | C66: RPF*MYR*AFBB | D66: CSH*170700224 | E66: 0 | F66: 0 | G66: 30253232.88 | H66: 30253232.88 | I66: 2017-11-13 | J66: 30000000 | K66: 0 | L66: 1 | M66: 253232.88 | N66: 0 | O66: 30000000 | P66: 30000000 | Q66: 0 | R66: 0 | S66: MYR | T66: 0.039 | U66: 2017-07-14 | V66: 0 | W66: 30253232.88 | X66: 6410.96 | Y66: 2017-09-30 | Z66: 0 | AA66: 0 | AB66: 0 | AC66: 3000-01-01 | AD66: 3000-01-01 | AE66: 0 | AF66: 1 | AG66: 5.144235168 | AH66: 588099725 | AI66: 1 | AJ66: MY | AK66: 1 | AL66: ASIAN FINANCE BANK | AM66: 0 | AN66: MYR | AO66: MY | AP66: 1 | AQ66: RPF | AR66: CSH | AS66: Unlisted | AT66: 0 | AU66: WF | AV66: Malaysia | BL66: =IF(B66="TBI",OFFSET(CshFlagMap!$E$1,MATCH(C66,CshFlagMap!$C:$C,0)-1,0),IF(ISNA(OFFSET(InvestmentType!$D$1,MATCH(AQ66,InvestmentType!$A:$A,0)-1,0)),"",IF(OFFSET(InvestmentType!$D$1,MATCH(AQ66,InvestmentType!$A:$A,0)-1,0) = "Collective Investment Scheme", OFFSET(InvestmentType!$E$1,MATCH(AQ66,InvestmentType!$A:$A,0)-1,0),IF(OFFSET(InvestmentType!$D$1,MATCH(AQ66,InvestmentType!$A:$A,0)-1,0) = "Derivatives",$BT66,OFFSET(InvestmentType!$D$1,MATCH(AQ66,InvestmentType!$A:$A,0)-1,0))))) -> Money Market Instruments | BM66: 30253232.88 | BN66: =OFFSET(Fund!$B$1,MATCH(A66,Fund!$A:$A,0)-1,0) -> C037A00005 | BO66: =OFFSET(FundSdf!$J$1,MATCH(A66,FundSdf!$A:$A,0)-1,0) -> Wholesale Funds | BP66: =OFFSET(FundSdf!$K$1,MATCH(A66,FundSdf!$A:$A,0)-1,0) -> 0 | BQ66: =OFFSET(FundSdf!$D$1,MATCH(A66,FundSdf!$A:$A,0)-1,0) -> 0 | BR66: =OFFSET(FundSdf!$G$1,MATCH(A66,FundSdf!$A:$A,0)-1,0) -> Noorul Azila Kamaruzzaman | BS66: =OFFSET(InvestmentType!$D$1,MATCH(AQ66,InvestmentType!$A:$A,0)-1,0) -> Money Market Instruments | BT66: =IF(OFFSET(InvestmentType!$D$1,MATCH(AQ66,InvestmentType!$A:$A,0)-1,0)= "Derivatives",IF(AW66="OTC","OTC Derivative", "Exchange Traded Derivative"),"") ->  | BU66: Money Market Instruments | BV66: =OFFSET(EXTManageSdf!$C$1,MATCH(BR66,EXTManageSdf!$B:$B,0)-1,0) ->  | BW66: 0 | BX66: 0 | BY66: 0 | BZ66: 30253232.88 | CA66: 0 | CB66: 30253232.88 | CC66: 0 | CD66: 30253232.88 | CE66: 0 | CF66: 0
A67: BIW | B67: CSH | C67: RPF*MYR*AFBB | D67: CSH*170700255 | E67: 0 | F67: 0 | G67: 15029537.97 | H67: 15029537.97 | I67: 2017-11-16 | J67: 14908473 | K67: 0 | L67: 1 | M67: 121064.97 | N67: 0 | O67: 14908473 | P67: 14908473 | Q67: 0 | R67: 0 | S67: MYR | T67: 0.039 | U67: 2017-07-17 | V67: 0 | W67: 15029537.97 | X67: 3185.92 | Y67: 2017-09-30 | Z67: 0 | AA67: 0 | AB67: 0 | AC67: 3000-01-01 | AD67: 3000-01-01 | AE67: 0 | AF67: 1 | AG67: 2.55561044 | AH67: 588099725 | AI67: 1 | AJ67: MY | AK67: 1 | AL67: ASIAN FINANCE BANK | AM67: 0 | AN67: MYR | AO67: MY | AP67: 1 | AQ67: RPF | AR67: CSH | AS67: Unlisted | AT67: 0 | AU67: WF | AV67: Malaysia | BL67: =IF(B67="TBI",OFFSET(CshFlagMap!$E$1,MATCH(C67,CshFlagMap!$C:$C,0)-1,0),IF(ISNA(OFFSET(InvestmentType!$D$1,MATCH(AQ67,InvestmentType!$A:$A,0)-1,0)),"",IF(OFFSET(InvestmentType!$D$1,MATCH(AQ67,InvestmentType!$A:$A,0)-1,0) = "Collective Investment Scheme", OFFSET(InvestmentType!$E$1,MATCH(AQ67,InvestmentType!$A:$A,0)-1,0),IF(OFFSET(InvestmentType!$D$1,MATCH(AQ67,InvestmentType!$A:$A,0)-1,0) = "Derivatives",$BT67,OFFSET(InvestmentType!$D$1,MATCH(AQ67,InvestmentType!$A:$A,0)-1,0))))) -> Money Market Instruments | BM67: =ROUND(H67/AF67,2) -> 15029537.97 | BN67: =OFFSET(Fund!$B$1,MATCH(A67,Fund!$A:$A,0)-1,0) -> C037A00005 | BO67: =OFFSET(FundSdf!$J$1,MATCH(A67,FundSdf!$A:$A,0)-1,0) -> Wholesale Funds | BP67: =OFFSET(FundSdf!$K$1,MATCH(A67,FundSdf!$A:$A,0)-1,0) -> 0 | BQ67: =OFFSET(FundSdf!$D$1,MATCH(A67,FundSdf!$A:$A,0)-1,0) -> 0 | BR67: =OFFSET(FundSdf!$G$1,MATCH(A67,FundSdf!$A:$A,0)-1,0) -> Noorul Azila Kamaruzzaman | BS67: =OFFSET(InvestmentType!$D$1,MATCH(AQ67,InvestmentType!$A:$A,0)-1,0) -> Money Market Instruments | BT67: =IF(OFFSET(InvestmentType!$D$1,MATCH(AQ67,InvestmentType!$A:$A,0)-1,0)= "Derivatives",IF(AW67="OTC","OTC Derivative", "Exchange Traded Derivative"),"") ->  | BU67: =IF(B67="TBI", IF(OR(C67="BankVal-FX",BL67="Interest Receivables",BL67="Other Liabilities ",BL67="Other Receivables",BL67="Profit Receivables"),"Cash","Other investments"),BL67) -> Money Market Instruments | BV67: =OFFSET(EXTManageSdf!$C$1,MATCH(BR67,EXTManageSdf!$B:$B,0)-1,0) ->  | BW67: =IF(AND(AK67=0,BP67= 1),BM67,0) -> 0 | BX67: =IF(AND(AK67=0,BP67= 0),BM67,0) -> 0 | BY67: =IF(AND(AK67=1,BP67= 1),BM67,0) -> 0 | BZ67: =IF(AND(AK67=1,BP67= 0),BM67,0) -> 15029537.97 | CA67: =IF(AK67=0,BM67,0) -> 0 | CB67: =IF(AK67=1,BM67,0) -> 15029537.97 | CC67: =IF(AK67=0,IF(AI67=1,BM67,0),0) -> 0 | CD67: =IF(AK67=1,IF(AI67=1,BM67,0),0) -> 15029537.97 | CE67: =IF(AK67=0,IF(AI67=0,BM67,0),0) -> 0 | CF67: =IF(AK67=1,IF(AI67=0,BM67,0),0) -> 0
A68: BIW | B68: CSH | C68: RPF*MYR*AFBB | D68: CSH*170700306 | E68: 0 | F68: 0 | G68: 15263063 | H68: 15263063 | I68: 2017-11-17 | J68: 15143327 | K68: 0 | L68: 1 | M68: 119736 | N68: 0 | O68: 15143327 | P68: 15143327 | Q68: 0 | R68: 0 | S68: MYR | T68: 0.039 | U68: 2017-07-19 | V68: 0 | W68: 15263063 | X68: 3236.11 | Y68: 2017-09-30 | Z68: 0 | AA68: 0 | AB68: 0 | AC68: 3000-01-01 | AD68: 3000-01-01 | AE68: 0 | AF68: 1 | AG68: 2.595318847 | AH68: 588099725 | AI68: 1 | AJ68: MY | AK68: 1 | AL68: ASIAN FINANCE BANK | AM68: 0 | AN68: MYR | AO68: MY | AP68: 1 | AQ68: RPF | AR68: CSH | AS68: Unlisted | AT68: 0 | AU68: WF | AV68: Malaysia | BL68: =IF(B68="TBI",OFFSET(CshFlagMap!$E$1,MATCH(C68,CshFlagMap!$C:$C,0)-1,0),IF(ISNA(OFFSET(InvestmentType!$D$1,MATCH(AQ68,InvestmentType!$A:$A,0)-1,0)),"",IF(OFFSET(InvestmentType!$D$1,MATCH(AQ68,InvestmentType!$A:$A,0)-1,0) = "Collective Investment Scheme", OFFSET(InvestmentType!$E$1,MATCH(AQ68,InvestmentType!$A:$A,0)-1,0),IF(OFFSET(InvestmentType!$D$1,MATCH(AQ68,InvestmentType!$A:$A,0)-1,0) = "Derivatives",$BT68,OFFSET(InvestmentType!$D$1,MATCH(AQ68,InvestmentType!$A:$A,0)-1,0))))) -> Money Market Instruments | BM68: 15263063 | BN68: =OFFSET(Fund!$B$1,MATCH(A68,Fund!$A:$A,0)-1,0) -> C037A00005 | BO68: =OFFSET(FundSdf!$J$1,MATCH(A68,FundSdf!$A:$A,0)-1,0) -> Wholesale Funds | BP68: =OFFSET(FundSdf!$K$1,MATCH(A68,FundSdf!$A:$A,0)-1,0) -> 0 | BQ68: =OFFSET(FundSdf!$D$1,MATCH(A68,FundSdf!$A:$A,0)-1,0) -> 0 | BR68: =OFFSET(FundSdf!$G$1,MATCH(A68,FundSdf!$A:$A,0)-1,0) -> Noorul Azila Kamaruzzaman | BS68: =OFFSET(InvestmentType!$D$1,MATCH(AQ68,InvestmentType!$A:$A,0)-1,0) -> Money Market Instruments | BT68: =IF(OFFSET(InvestmentType!$D$1,MATCH(AQ68,InvestmentType!$A:$A,0)-1,0)= "Derivatives",IF(AW68="OTC","OTC Derivative", "Exchange Traded Derivative"),"") ->  | BU68: Money Market Instruments | BV68: =OFFSET(EXTManageSdf!$C$1,MATCH(BR68,EXTManageSdf!$B:$B,0)-1,0) ->  | BW68: 0 | BX68: 0 | BY68: 0 | BZ68: 15263063 | CA68: 0 | CB68: 15263063 | CC68: 0 | CD68: 15263063 | CE68: 0 | CF68: 0
A69: BIW | B69: CSH | C69: RPF*MYR*AFBB | D69: CSH*170700354 | E69: 0 | F69: 0 | G69: 15262927.57 | H69: 15262927.57 | I69: 2017-11-20 | J69: 15146404 | K69: 0 | L69: 1 | M69: 116523.57 | N69: 0 | O69: 15146404 | P69: 15146404 | Q69: 0 | R69: 0 | S69: MYR | T69: 0.039 | U69: 2017-07-21 | V69: 0 | W69: 15262927.57 | X69: 3236.76 | Y69: 2017-09-30 | Z69: 0 | AA69: 0 | AB69: 0 | AC69: 3000-01-01 | AD69: 3000-01-01 | AE69: 0 | AF69: 1 | AG69: 2.595295818 | AH69: 588099725 | AI69: 1 | AJ69: MY | AK69: 1 | AL69: ASIAN FINANCE BANK | AM69: 0 | AN69: MYR | AO69: MY | AP69: 1 | AQ69: RPF | AR69: CSH | AS69: Unlisted | AT69: 0 | AU69: WF | AV69: Malaysia | BL69: =IF(B69="TBI",OFFSET(CshFlagMap!$E$1,MATCH(C69,CshFlagMap!$C:$C,0)-1,0),IF(ISNA(OFFSET(InvestmentType!$D$1,MATCH(AQ69,InvestmentType!$A:$A,0)-1,0)),"",IF(OFFSET(InvestmentType!$D$1,MATCH(AQ69,InvestmentType!$A:$A,0)-1,0) = "Collective Investment Scheme", OFFSET(InvestmentType!$E$1,MATCH(AQ69,InvestmentType!$A:$A,0)-1,0),IF(OFFSET(InvestmentType!$D$1,MATCH(AQ69,InvestmentType!$A:$A,0)-1,0) = "Derivatives",$BT69,OFFSET(InvestmentType!$D$1,MATCH(AQ69,InvestmentType!$A:$A,0)-1,0))))) -> Money Market Instruments | BM69: 15262927.57 | BN69: =OFFSET(Fund!$B$1,MATCH(A69,Fund!$A:$A,0)-1,0) -> C037A00005 | BO69: =OFFSET(FundSdf!$J$1,MATCH(A69,FundSdf!$A:$A,0)-1,0) -> Wholesale Funds | BP69: =OFFSET(FundSdf!$K$1,MATCH(A69,FundSdf!$A:$A,0)-1,0) -> 0 | BQ69: =OFFSET(FundSdf!$D$1,MATCH(A69,FundSdf!$A:$A,0)-1,0) -> 0 | BR69: =OFFSET(FundSdf!$G$1,MATCH(A69,FundSdf!$A:$A,0)-1,0) -> Noorul Azila Kamaruzzaman | BS69: =OFFSET(InvestmentType!$D$1,MATCH(AQ69,InvestmentType!$A:$A,0)-1,0) -> Money Market Instruments | BT69: =IF(OFFSET(InvestmentType!$D$1,MATCH(AQ69,InvestmentType!$A:$A,0)-1,0)= "Derivatives",IF(AW69="OTC","OTC Derivative", "Exchange Traded Derivative"),"") ->  | BU69: Money Market Instruments | BV69: =OFFSET(EXTManageSdf!$C$1,MATCH(BR69,EXTManageSdf!$B:$B,0)-1,0) ->  | BW69: 0 | BX69: 0 | BY69: 0 | BZ69: 15262927.57 | CA69: 0 | CB69: 15262927.57 | CC69: 0 | CD69: 15262927.57 | CE69: 0 | CF69: 0
A70: BIW | B70: CSH | C70: RPF*MYR*AFBB | D70: CSH*170700475 | E70: 0 | F70: 0 | G70: 10069452.05 | H70: 10069452.05 | I70: 2017-11-27 | J70: 10000000 | K70: 0 | L70: 1 | M70: 69452.05 | N70: 0 | O70: 10000000 | P70: 10000000 | Q70: 0 | R70: 0 | S70: MYR | T70: 0.039 | U70: 2017-07-28 | V70: 0 | W70: 10069452.05 | X70: 2136.99 | Y70: 2017-09-30 | Z70: 0 | AA70: 0 | AB70: 0 | AC70: 3000-01-01 | AD70: 3000-01-01 | AE70: 0 | AF70: 1 | AG70: 1.712201455 | AH70: 588099725 | AI70: 1 | AJ70: MY | AK70: 1 | AL70: ASIAN FINANCE BANK | AM70: 0 | AN70: MYR | AO70: MY | AP70: 1 | AQ70: RPF | AR70: CSH | AS70: Unlisted | AT70: 0 | AU70: WF | AV70: Malaysia | BL70: =IF(B70="TBI",OFFSET(CshFlagMap!$E$1,MATCH(C70,CshFlagMap!$C:$C,0)-1,0),IF(ISNA(OFFSET(InvestmentType!$D$1,MATCH(AQ70,InvestmentType!$A:$A,0)-1,0)),"",IF(OFFSET(InvestmentType!$D$1,MATCH(AQ70,InvestmentType!$A:$A,0)-1,0) = "Collective Investment Scheme", OFFSET(InvestmentType!$E$1,MATCH(AQ70,InvestmentType!$A:$A,0)-1,0),IF(OFFSET(InvestmentType!$D$1,MATCH(AQ70,InvestmentType!$A:$A,0)-1,0) = "Derivatives",$BT70,OFFSET(InvestmentType!$D$1,MATCH(AQ70,InvestmentType!$A:$A,0)-1,0))))) -> Money Market Instruments | BM70: 10069452.05 | BN70: =OFFSET(Fund!$B$1,MATCH(A70,Fund!$A:$A,0)-1,0) -> C037A00005 | BO70: =OFFSET(FundSdf!$J$1,MATCH(A70,FundSdf!$A:$A,0)-1,0) -> Wholesale Funds | BP70: =OFFSET(FundSdf!$K$1,MATCH(A70,FundSdf!$A:$A,0)-1,0) -> 0 | BQ70: =OFFSET(FundSdf!$D$1,MATCH(A70,FundSdf!$A:$A,0)-1,0) -> 0 | BR70: =OFFSET(FundSdf!$G$1,MATCH(A70,FundSdf!$A:$A,0)-1,0) -> Noorul Azila Kamaruzzaman | BS70: =OFFSET(InvestmentType!$D$1,MATCH(AQ70,InvestmentType!$A:$A,0)-1,0) -> Money Market Instruments | BT70: =IF(OFFSET(InvestmentType!$D$1,MATCH(AQ70,InvestmentType!$A:$A,0)-1,0)= "Derivatives",IF(AW70="OTC","OTC Derivative", "Exchange Traded Derivative"),"") ->  | BU70: Money Market Instruments | BV70: =OFFSET(EXTManageSdf!$C$1,MATCH(BR70,EXTManageSdf!$B:$B,0)-1,0) ->  | BW70: 0 | BX70: 0 | BY70: 0 | BZ70: 10069452.05 | CA70: 0 | CB70: 10069452.05 | CC70: 0 | CD70: 10069452.05 | CE70: 0 | CF70: 0
A71: BIW | B71: CSH | C71: RPF*MYR*AFBB | D71: CSH*170700513 | E71: 0 | F71: 0 | G71: 5008346.23 | H71: 5008346.23 | I71: 2017-11-28 | J71: 4975386 | K71: 0 | L71: 1 | M71: 32960.23 | N71: 0 | O71: 4975386 | P71: 4975386 | Q71: 0 | R71: 0 | S71: MYR | T71: 0.039 | U71: 2017-07-31 | V71: 0 | W71: 5008346.23 | X71: 1063.23 | Y71: 2017-09-30 | Z71: 0 | AA71: 0 | AB71: 0 | AC71: 3000-01-01 | AD71: 3000-01-01 | AE71: 0 | AF71: 1 | AG71: 0.8516151287 | AH71: 588099725 | AI71: 1 | AJ71: MY | AK71: 1 | AL71: ASIAN FINANCE BANK | AM71: 0 | AN71: MYR | AO71: MY | AP71: 1 | AQ71: RPF | AR71: CSH | AS71: Unlisted | AT71: 0 | AU71: WF | AV71: Malaysia | BL71: =IF(B71="TBI",OFFSET(CshFlagMap!$E$1,MATCH(C71,CshFlagMap!$C:$C,0)-1,0),IF(ISNA(OFFSET(InvestmentType!$D$1,MATCH(AQ71,InvestmentType!$A:$A,0)-1,0)),"",IF(OFFSET(InvestmentType!$D$1,MATCH(AQ71,InvestmentType!$A:$A,0)-1,0) = "Collective Investment Scheme", OFFSET(InvestmentType!$E$1,MATCH(AQ71,InvestmentType!$A:$A,0)-1,0),IF(OFFSET(InvestmentType!$D$1,MATCH(AQ71,InvestmentType!$A:$A,0)-1,0) = "Derivatives",$BT71,OFFSET(InvestmentType!$D$1,MATCH(AQ71,InvestmentType!$A:$A,0)-1,0))))) -> Money Market Instruments | BM71: 5008346.23 | BN71: =OFFSET(Fund!$B$1,MATCH(A71,Fund!$A:$A,0)-1,0) -> C037A00005 | BO71: =OFFSET(FundSdf!$J$1,MATCH(A71,FundSdf!$A:$A,0)-1,0) -> Wholesale Funds | BP71: =OFFSET(FundSdf!$K$1,MATCH(A71,FundSdf!$A:$A,0)-1,0) -> 0 | BQ71: =OFFSET(FundSdf!$D$1,MATCH(A71,FundSdf!$A:$A,0)-1,0) -> 0 | BR71: =OFFSET(FundSdf!$G$1,MATCH(A71,FundSdf!$A:$A,0)-1,0) -> Noorul Azila Kamaruzzaman | BS71: =OFFSET(InvestmentType!$D$1,MATCH(AQ71,InvestmentType!$A:$A,0)-1,0) -> Money Market Instruments | BT71: =IF(OFFSET(InvestmentType!$D$1,MATCH(AQ71,InvestmentType!$A:$A,0)-1,0)= "Derivatives",IF(AW71="OTC","OTC Derivative", "Exchange Traded Derivative"),"") ->  | BU71: Money Market Instruments | BV71: =OFFSET(EXTManageSdf!$C$1,MATCH(BR71,EXTManageSdf!$B:$B,0)-1,0) ->  | BW71: 0 | BX71: 0 | BY71: 0 | BZ71: 5008346.23 | CA71: 0 | CB71: 5008346.23 | CC71: 0 | CD71: 5008346.23 | CE71: 0 | CF71: 0
A72: BIW | B72: CSH | C72: RPF*MYR*BKRM | D72: CSH*170800343 | E72: 0 | F72: 0 | G72: 38100975.56 | H72: 38100975.56 | I72: 2017-11-20 | J72: 37934790 | K72: 0 | L72: 1 | M72: 166185.56 | N72: 0 | O72: 37934790 | P72: 37934790 | Q72: 0 | R72: 0 | S72: MYR | T72: 0.039 | U72: 2017-08-21 | V72: 0 | W72: 38100975.56 | X72: 8106.61 | Y72: 2017-09-30 | Z72: 0 | AA72: 0 | AB72: 0 | AC72: 3000-01-01 | AD72: 3000-01-01 | AE72: 0 | AF72: 1 | AG72: 6.478658965 | AH72: 588099725 | AI72: 1 | AJ72: MY | AK72: 1 | AL72: BANK KERJASAMA RAKYAT MALAYSIA BHD | AM72: 0 | AN72: MYR | AO72: MY | AP72: 1 | AQ72: RPF | AR72: CSH | AS72: Unlisted | AT72: 0 | AU72: WF | AV72: Malaysia | BL72: =IF(B72="TBI",OFFSET(CshFlagMap!$E$1,MATCH(C72,CshFlagMap!$C:$C,0)-1,0),IF(ISNA(OFFSET(InvestmentType!$D$1,MATCH(AQ72,InvestmentType!$A:$A,0)-1,0)),"",IF(OFFSET(InvestmentType!$D$1,MATCH(AQ72,InvestmentType!$A:$A,0)-1,0) = "Collective Investment Scheme", OFFSET(InvestmentType!$E$1,MATCH(AQ72,InvestmentType!$A:$A,0)-1,0),IF(OFFSET(InvestmentType!$D$1,MATCH(AQ72,InvestmentType!$A:$A,0)-1,0) = "Derivatives",$BT72,OFFSET(InvestmentType!$D$1,MATCH(AQ72,InvestmentType!$A:$A,0)-1,0))))) -> Money Market Instruments | BM72: 38100975.56 | BN72: =OFFSET(Fund!$B$1,MATCH(A72,Fund!$A:$A,0)-1,0) -> C037A00005 | BO72: =OFFSET(FundSdf!$J$1,MATCH(A72,FundSdf!$A:$A,0)-1,0) -> Wholesale Funds | BP72: =OFFSET(FundSdf!$K$1,MATCH(A72,FundSdf!$A:$A,0)-1,0) -> 0 | BQ72: =OFFSET(FundSdf!$D$1,MATCH(A72,FundSdf!$A:$A,0)-1,0) -> 0 | BR72: =OFFSET(FundSdf!$G$1,MATCH(A72,FundSdf!$A:$A,0)-1,0) -> Noorul Azila Kamaruzzaman | BS72: =OFFSET(InvestmentType!$D$1,MATCH(AQ72,InvestmentType!$A:$A,0)-1,0) -> Money Market Instruments | BT72: =IF(OFFSET(InvestmentType!$D$1,MATCH(AQ72,InvestmentType!$A:$A,0)-1,0)= "Derivatives",IF(AW72="OTC","OTC Derivative", "Exchange Traded Derivative"),"") ->  | BU72: Money Market Instruments | BV72: =OFFSET(EXTManageSdf!$C$1,MATCH(BR72,EXTManageSdf!$B:$B,0)-1,0) ->  | BW72: 0 | BX72: 0 | BY72: 0 | BZ72: 38100975.56 | CA72: 0 | CB72: 38100975.56 | CC72: 0 | CD72: 38100975.56 | CE72: 0 | CF72: 0
A73: BIW | B73: CSH | C73: RPF*MYR*BKRM | D73: CSH*170800446 | E73: 0 | F73: 0 | G73: 47955553.09 | H73: 47955553.09 | I73: 2017-11-24 | J73: 47766711 | K73: 0 | L73: 1 | M73: 188842.09 | N73: 0 | O73: 47766711 | P73: 47766711 | Q73: 0 | R73: 0 | S73: MYR | T73: 0.039 | U73: 2017-08-25 | V73: 0 | W73: 47955553.09 | X73: 10207.68 | Y73: 2017-09-30 | Z73: 0 | AA73: 0 | AB73: 0 | AC73: 3000-01-01 | AD73: 3000-01-01 | AE73: 0 | AF73: 1 | AG73: 8.154323331 | AH73: 588099725 | AI73: 1 | AJ73: MY | AK73: 1 | AL73: BANK KERJASAMA RAKYAT MALAYSIA BHD | AM73: 0 | AN73: MYR | AO73: MY | AP73: 1 | AQ73: RPF | AR73: CSH | AS73: Unlisted | AT73: 0 | AU73: WF | AV73: Malaysia | BL73: =IF(B73="TBI",OFFSET(CshFlagMap!$E$1,MATCH(C73,CshFlagMap!$C:$C,0)-1,0),IF(ISNA(OFFSET(InvestmentType!$D$1,MATCH(AQ73,InvestmentType!$A:$A,0)-1,0)),"",IF(OFFSET(InvestmentType!$D$1,MATCH(AQ73,InvestmentType!$A:$A,0)-1,0) = "Collective Investment Scheme", OFFSET(InvestmentType!$E$1,MATCH(AQ73,InvestmentType!$A:$A,0)-1,0),IF(OFFSET(InvestmentType!$D$1,MATCH(AQ73,InvestmentType!$A:$A,0)-1,0) = "Derivatives",$BT73,OFFSET(InvestmentType!$D$1,MATCH(AQ73,InvestmentType!$A:$A,0)-1,0))))) -> Money Market Instruments | BM73: 47955553.09 | BN73: =OFFSET(Fund!$B$1,MATCH(A73,Fund!$A:$A,0)-1,0) -> C037A00005 | BO73: =OFFSET(FundSdf!$J$1,MATCH(A73,FundSdf!$A:$A,0)-1,0) -> Wholesale Funds | BP73: =OFFSET(FundSdf!$K$1,MATCH(A73,FundSdf!$A:$A,0)-1,0) -> 0 | BQ73: =OFFSET(FundSdf!$D$1,MATCH(A73,FundSdf!$A:$A,0)-1,0) -> 0 | BR73: =OFFSET(FundSdf!$G$1,MATCH(A73,FundSdf!$A:$A,0)-1,0) -> Noorul Azila Kamaruzzaman | BS73: =OFFSET(InvestmentType!$D$1,MATCH(AQ73,InvestmentType!$A:$A,0)-1,0) -> Money Market Instruments | BT73: =IF(OFFSET(InvestmentType!$D$1,MATCH(AQ73,InvestmentType!$A:$A,0)-1,0)= "Derivatives",IF(AW73="OTC","OTC Derivative", "Exchange Traded Derivative"),"") ->  | BU73: Money Market Instruments | BV73: =OFFSET(EXTManageSdf!$C$1,MATCH(BR73,EXTManageSdf!$B:$B,0)-1,0) ->  | BW73: 0 | BX73: 0 | BY73: 0 | BZ73: 47955553.09 | CA73: 0 | CB73: 47955553.09 | CC73: 0 | CD73: 47955553.09 | CE73: 0 | CF73: 0
A74: BIW | B74: CSH | C74: RPF*MYR*BKRM | D74: CSH*170900158 | E74: 0 | F74: 0 | G74: 10017698.63 | H74: 10017698.63 | I74: 2017-10-02 | J74: 10000000 | K74: 0 | L74: 1 | M74: 17698.63 | N74: 0 | O74: 10000000 | P74: 10000000 | Q74: 0 | R74: 0 | S74: MYR | T74: 0.034 | U74: 2017-09-12 | V74: 0 | W74: 10017698.63 | X74: 931.51 | Y74: 2017-09-30 | Z74: 0 | AA74: 0 | AB74: 0 | AC74: 3000-01-01 | AD74: 3000-01-01 | AE74: 0 | AF74: 1 | AG74: 1.703401346 | AH74: 588099725 | AI74: 1 | AJ74: MY | AK74: 1 | AL74: BANK KERJASAMA RAKYAT MALAYSIA BHD | AM74: 0 | AN74: MYR | AO74: MY | AP74: 1 | AQ74: RPF | AR74: CSH | AS74: Unlisted | AT74: 0 | AU74: WF | AV74: Malaysia | BL74: =IF(B74="TBI",OFFSET(CshFlagMap!$E$1,MATCH(C74,CshFlagMap!$C:$C,0)-1,0),IF(ISNA(OFFSET(InvestmentType!$D$1,MATCH(AQ74,InvestmentType!$A:$A,0)-1,0)),"",IF(OFFSET(InvestmentType!$D$1,MATCH(AQ74,InvestmentType!$A:$A,0)-1,0) = "Collective Investment Scheme", OFFSET(InvestmentType!$E$1,MATCH(AQ74,InvestmentType!$A:$A,0)-1,0),IF(OFFSET(InvestmentType!$D$1,MATCH(AQ74,InvestmentType!$A:$A,0)-1,0) = "Derivatives",$BT74,OFFSET(InvestmentType!$D$1,MATCH(AQ74,InvestmentType!$A:$A,0)-1,0))))) -> Money Market Instruments | BM74: 10017698.63 | BN74: =OFFSET(Fund!$B$1,MATCH(A74,Fund!$A:$A,0)-1,0) -> C037A00005 | BO74: =OFFSET(FundSdf!$J$1,MATCH(A74,FundSdf!$A:$A,0)-1,0) -> Wholesale Funds | BP74: =OFFSET(FundSdf!$K$1,MATCH(A74,FundSdf!$A:$A,0)-1,0) -> 0 | BQ74: =OFFSET(FundSdf!$D$1,MATCH(A74,FundSdf!$A:$A,0)-1,0) -> 0 | BR74: =OFFSET(FundSdf!$G$1,MATCH(A74,FundSdf!$A:$A,0)-1,0) -> Noorul Azila Kamaruzzaman | BS74: =OFFSET(InvestmentType!$D$1,MATCH(AQ74,InvestmentType!$A:$A,0)-1,0) -> Money Market Instruments | BT74: =IF(OFFSET(InvestmentType!$D$1,MATCH(AQ74,InvestmentType!$A:$A,0)-1,0)= "Derivatives",IF(AW74="OTC","OTC Derivative", "Exchange Traded Derivative"),"") ->  | BU74: Money Market Instruments | BV74: =OFFSET(EXTManageSdf!$C$1,MATCH(BR74,EXTManageSdf!$B:$B,0)-1,0) ->  | BW74: 0 | BX74: 0 | BY74: 0 | BZ74: 10017698.63 | CA74: 0 | CB74: 10017698.63 | CC74: 0 | CD74: 10017698.63 | CE74: 0 | CF74: 0
A75: BIW | B75: CSH | C75: RPF*MYR*BKRM | D75: CSH*170900363 | E75: 0 | F75: 0 | G75: 10006246.58 | H75: 10006246.58 | I75: 2017-11-27 | J75: 10000000 | K75: 0 | L75: 1 | M75: 6246.58 | N75: 0 | O75: 10000000 | P75: 10000000 | Q75: 0 | R75: 0 | S75: MYR | T75: 0.038 | U75: 2017-09-25 | V75: 0 | W75: 10006246.58 | X75: 2082.19 | Y75: 2017-09-30 | Z75: 0 | AA75: 0 | AB75: 0 | AC75: 3000-01-01 | AD75: 3000-01-01 | AE75: 0 | AF75: 1 | AG75: 1.701454048 | AH75: 588099725 | AI75: 1 | AJ75: MY | AK75: 1 | AL75: BANK KERJASAMA RAKYAT MALAYSIA BHD | AM75: 0 | AN75: MYR | AO75: MY | AP75: 1 | AQ75: RPF | AR75: CSH | AS75: Unlisted | AT75: 0 | AU75: WF | AV75: Malaysia | BL75: =IF(B75="TBI",OFFSET(CshFlagMap!$E$1,MATCH(C75,CshFlagMap!$C:$C,0)-1,0),IF(ISNA(OFFSET(InvestmentType!$D$1,MATCH(AQ75,InvestmentType!$A:$A,0)-1,0)),"",IF(OFFSET(InvestmentType!$D$1,MATCH(AQ75,InvestmentType!$A:$A,0)-1,0) = "Collective Investment Scheme", OFFSET(InvestmentType!$E$1,MATCH(AQ75,InvestmentType!$A:$A,0)-1,0),IF(OFFSET(InvestmentType!$D$1,MATCH(AQ75,InvestmentType!$A:$A,0)-1,0) = "Derivatives",$BT75,OFFSET(InvestmentType!$D$1,MATCH(AQ75,InvestmentType!$A:$A,0)-1,0))))) -> Money Market Instruments | BM75: 10006246.58 | BN75: =OFFSET(Fund!$B$1,MATCH(A75,Fund!$A:$A,0)-1,0) -> C037A00005 | BO75: =OFFSET(FundSdf!$J$1,MATCH(A75,FundSdf!$A:$A,0)-1,0) -> Wholesale Funds | BP75: =OFFSET(FundSdf!$K$1,MATCH(A75,FundSdf!$A:$A,0)-1,0) -> 0 | BQ75: =OFFSET(FundSdf!$D$1,MATCH(A75,FundSdf!$A:$A,0)-1,0) -> 0 | BR75: =OFFSET(FundSdf!$G$1,MATCH(A75,FundSdf!$A:$A,0)-1,0) -> Noorul Azila Kamaruzzaman | BS75: =OFFSET(InvestmentType!$D$1,MATCH(AQ75,InvestmentType!$A:$A,0)-1,0) -> Money Market Instruments | BT75: =IF(OFFSET(InvestmentType!$D$1,MATCH(AQ75,InvestmentType!$A:$A,0)-1,0)= "Derivatives",IF(AW75="OTC","OTC Derivative", "Exchange Traded Derivative"),"") ->  | BU75: Money Market Instruments | BV75: =OFFSET(EXTManageSdf!$C$1,MATCH(BR75,EXTManageSdf!$B:$B,0)-1,0) ->  | BW75: 0 | BX75: 0 | BY75: 0 | BZ75: 10006246.58 | CA75: 0 | CB75: 10006246.58 | CC75: 0 | CD75: 10006246.58 | CE75: 0 | CF75: 0
A76: BIW | B76: CSH | C76: RPF*MYR*MBBISL | D76: CSH*170900481 | E76: 0 | F76: 0 | G76: 30008630.64 | H76: 30008630.64 | I76: 2017-10-02 | J76: 30002465.75 | K76: 0 | L76: 1 | M76: 6164.89 | N76: 0 | O76: 30002465.75 | P76: 30002465.75 | Q76: 0 | R76: 0 | S76: MYR | T76: 0.0375 | U76: 2017-09-29 | V76: 0 | W76: 30008630.64 | X76: -6164.89 | Y76: 2017-09-30 | Z76: 0 | AA76: 0 | AB76: 0 | AC76: 3000-01-01 | AD76: 3000-01-01 | AE76: 0 | AF76: 1 | AG76: 5.102643202 | AH76: 588099725 | AI76: 1 | AJ76: MY | AK76: 1 | AL76: MAYBANK ISLAMIC BANK | AM76: 0 | AN76: MYR | AO76: MY | AP76: 1 | AQ76: RPF | AR76: CSH | AS76: Unlisted | AT76: 0 | AU76: WF | AV76: Malaysia | BL76: =IF(B76="TBI",OFFSET(CshFlagMap!$E$1,MATCH(C76,CshFlagMap!$C:$C,0)-1,0),IF(ISNA(OFFSET(InvestmentType!$D$1,MATCH(AQ76,InvestmentType!$A:$A,0)-1,0)),"",IF(OFFSET(InvestmentType!$D$1,MATCH(AQ76,InvestmentType!$A:$A,0)-1,0) = "Collective Investment Scheme", OFFSET(InvestmentType!$E$1,MATCH(AQ76,InvestmentType!$A:$A,0)-1,0),IF(OFFSET(InvestmentType!$D$1,MATCH(AQ76,InvestmentType!$A:$A,0)-1,0) = "Derivatives",$BT76,OFFSET(InvestmentType!$D$1,MATCH(AQ76,InvestmentType!$A:$A,0)-1,0))))) -> Money Market Instruments | BM76: 30008630.64 | BN76: =OFFSET(Fund!$B$1,MATCH(A76,Fund!$A:$A,0)-1,0) -> C037A00005 | BO76: =OFFSET(FundSdf!$J$1,MATCH(A76,FundSdf!$A:$A,0)-1,0) -> Wholesale Funds | BP76: =OFFSET(FundSdf!$K$1,MATCH(A76,FundSdf!$A:$A,0)-1,0) -> 0 | BQ76: =OFFSET(FundSdf!$D$1,MATCH(A76,FundSdf!$A:$A,0)-1,0) -> 0 | BR76: =OFFSET(FundSdf!$G$1,MATCH(A76,FundSdf!$A:$A,0)-1,0) -> Noorul Azila Kamaruzzaman | BS76: =OFFSET(InvestmentType!$D$1,MATCH(AQ76,InvestmentType!$A:$A,0)-1,0) -> Money Market Instruments | BT76: =IF(OFFSET(InvestmentType!$D$1,MATCH(AQ76,InvestmentType!$A:$A,0)-1,0)= "Derivatives",IF(AW76="OTC","OTC Derivative", "Exchange Traded Derivative"),"") ->  | BU76: Money Market Instruments | BV76: =OFFSET(EXTManageSdf!$C$1,MATCH(BR76,EXTManageSdf!$B:$B,0)-1,0) ->  | BW76: 0 | BX76: 0 | BY76: 0 | BZ76: 30008630.64 | CA76: 0 | CB76: 30008630.64 | CC76: 0 | CD76: 30008630.64 | CE76: 0 | CF76: 0
A77: BIW | B77: CSH | C77: RPF*MYR*MBSB | D77: CSH*170800150 | E77: 0 | F77: 0 | G77: 10055904.11 | H77: 10055904.11 | I77: 2017-11-08 | J77: 10000000 | K77: 0 | L77: 1 | M77: 55904.11 | N77: 0 | O77: 10000000 | P77: 10000000 | Q77: 0 | R77: 0 | S77: MYR | T77: 0.0385 | U77: 2017-08-09 | V77: 0 | W77: 10055904.11 | X77: 2109.59 | Y77: 2017-09-30 | Z77: 0 | AA77: 0 | AB77: 0 | AC77: 3000-01-01 | AD77: 3000-01-01 | AE77: 0 | AF77: 1 | AG77: 1.709897774 | AH77: 588099725 | AI77: 1 | AJ77: MY | AK77: 1 | AL77: MBSB | AM77: 0 | AN77: MYR | AO77: MY | AP77: 1 | AQ77: RPF | AR77: CSH | AS77: Unlisted | AT77: 0 | AU77: WF | AV77: Malaysia | BL77: =IF(B77="TBI",OFFSET(CshFlagMap!$E$1,MATCH(C77,CshFlagMap!$C:$C,0)-1,0),IF(ISNA(OFFSET(InvestmentType!$D$1,MATCH(AQ77,InvestmentType!$A:$A,0)-1,0)),"",IF(OFFSET(InvestmentType!$D$1,MATCH(AQ77,InvestmentType!$A:$A,0)-1,0) = "Collective Investment Scheme", OFFSET(InvestmentType!$E$1,MATCH(AQ77,InvestmentType!$A:$A,0)-1,0),IF(OFFSET(InvestmentType!$D$1,MATCH(AQ77,InvestmentType!$A:$A,0)-1,0) = "Derivatives",$BT77,OFFSET(InvestmentType!$D$1,MATCH(AQ77,InvestmentType!$A:$A,0)-1,0))))) -> Money Market Instruments | BM77: 10055904.11 | BN77: =OFFSET(Fund!$B$1,MATCH(A77,Fund!$A:$A,0)-1,0) -> C037A00005 | BO77: =OFFSET(FundSdf!$J$1,MATCH(A77,FundSdf!$A:$A,0)-1,0) -> Wholesale Funds | BP77: =OFFSET(FundSdf!$K$1,MATCH(A77,FundSdf!$A:$A,0)-1,0) -> 0 | BQ77: =OFFSET(FundSdf!$D$1,MATCH(A77,FundSdf!$A:$A,0)-1,0) -> 0 | BR77: =OFFSET(FundSdf!$G$1,MATCH(A77,FundSdf!$A:$A,0)-1,0) -> Noorul Azila Kamaruzzaman | BS77: =OFFSET(InvestmentType!$D$1,MATCH(AQ77,InvestmentType!$A:$A,0)-1,0) -> Money Market Instruments | BT77: =IF(OFFSET(InvestmentType!$D$1,MATCH(AQ77,InvestmentType!$A:$A,0)-1,0)= "Derivatives",IF(AW77="OTC","OTC Derivative", "Exchange Traded Derivative"),"") ->  | BU77: Money Market Instruments | BV77: =OFFSET(EXTManageSdf!$C$1,MATCH(BR77,EXTManageSdf!$B:$B,0)-1,0) ->  | BW77: 0 | BX77: 0 | BY77: 0 | BZ77: 10055904.11 | CA77: 0 | CB77: 10055904.11 | CC77: 0 | CD77: 10055904.11 | CE77: 0 | CF77: 0
A78: BIW | B78: CSH | C78: RPF*MYR*MBSB | D78: CSH*170800396 | E78: 0 | F78: 0 | G78: 38085912.9 | H78: 38085912.9 | I78: 2017-11-22 | J78: 37931899 | K78: 0 | L78: 1 | M78: 154013.9 | N78: 0 | O78: 37931899 | P78: 37931899 | Q78: 0 | R78: 0 | S78: MYR | T78: 0.038 | U78: 2017-08-23 | V78: 0 | W78: 38085912.9 | X78: 7898.15 | Y78: 2017-09-30 | Z78: 0 | AA78: 0 | AB78: 0 | AC78: 3000-01-01 | AD78: 3000-01-01 | AE78: 0 | AF78: 1 | AG78: 6.476097723 | AH78: 588099725 | AI78: 1 | AJ78: MY | AK78: 1 | AL78: MBSB | AM78: 0 | AN78: MYR | AO78: MY | AP78: 1 | AQ78: RPF | AR78: CSH | AS78: Unlisted | AT78: 0 | AU78: WF | AV78: Malaysia | BL78: =IF(B78="TBI",OFFSET(CshFlagMap!$E$1,MATCH(C78,CshFlagMap!$C:$C,0)-1,0),IF(ISNA(OFFSET(InvestmentType!$D$1,MATCH(AQ78,InvestmentType!$A:$A,0)-1,0)),"",IF(OFFSET(InvestmentType!$D$1,MATCH(AQ78,InvestmentType!$A:$A,0)-1,0) = "Collective Investment Scheme", OFFSET(InvestmentType!$E$1,MATCH(AQ78,InvestmentType!$A:$A,0)-1,0),IF(OFFSET(InvestmentType!$D$1,MATCH(AQ78,InvestmentType!$A:$A,0)-1,0) = "Derivatives",$BT78,OFFSET(InvestmentType!$D$1,MATCH(AQ78,InvestmentType!$A:$A,0)-1,0))))) -> Money Market Instruments | BM78: 38085912.9 | BN78: =OFFSET(Fund!$B$1,MATCH(A78,Fund!$A:$A,0)-1,0) -> C037A00005 | BO78: =OFFSET(FundSdf!$J$1,MATCH(A78,FundSdf!$A:$A,0)-1,0) -> Wholesale Funds | BP78: =OFFSET(FundSdf!$K$1,MATCH(A78,FundSdf!$A:$A,0)-1,0) -> 0 | BQ78: =OFFSET(FundSdf!$D$1,MATCH(A78,FundSdf!$A:$A,0)-1,0) -> 0 | BR78: =OFFSET(FundSdf!$G$1,MATCH(A78,FundSdf!$A:$A,0)-1,0) -> Noorul Azila Kamaruzzaman | BS78: =OFFSET(InvestmentType!$D$1,MATCH(AQ78,InvestmentType!$A:$A,0)-1,0) -> Money Market Instruments | BT78: =IF(OFFSET(InvestmentType!$D$1,MATCH(AQ78,InvestmentType!$A:$A,0)-1,0)= "Derivatives",IF(AW78="OTC","OTC Derivative", "Exchange Traded Derivative"),"") ->  | BU78: Money Market Instruments | BV78: =OFFSET(EXTManageSdf!$C$1,MATCH(BR78,EXTManageSdf!$B:$B,0)-1,0) ->  | BW78: 0 | BX78: 0 | BY78: 0 | BZ78: 38085912.9 | CA78: 0 | CB78: 38085912.9 | CC78: 0 | CD78: 38085912.9 | CE78: 0 | CF78: 0
A79: BIW | B79: CSH | C79: RPF*MYR*MBSB | D79: CSH*170900095 | E79: 0 | F79: 0 | G79: 10023315.07 | H79: 10023315.07 | I79: 2017-11-08 | J79: 10000000 | K79: 0 | L79: 1 | M79: 23315.07 | N79: 0 | O79: 10000000 | P79: 10000000 | Q79: 0 | R79: 0 | S79: MYR | T79: 0.037 | U79: 2017-09-08 | V79: 0 | W79: 10023315.07 | X79: 2027.4 | Y79: 2017-09-30 | Z79: 0 | AA79: 0 | AB79: 0 | AC79: 3000-01-01 | AD79: 3000-01-01 | AE79: 0 | AF79: 1 | AG79: 1.704356361 | AH79: 588099725 | AI79: 1 | AJ79: MY | AK79: 1 | AL79: MBSB | AM79: 0 | AN79: MYR | AO79: MY | AP79: 1 | AQ79: RPF | AR79: CSH | AS79: Unlisted | AT79: 0 | AU79: WF | AV79: Malaysia | BL79: =IF(B79="TBI",OFFSET(CshFlagMap!$E$1,MATCH(C79,CshFlagMap!$C:$C,0)-1,0),IF(ISNA(OFFSET(InvestmentType!$D$1,MATCH(AQ79,InvestmentType!$A:$A,0)-1,0)),"",IF(OFFSET(InvestmentType!$D$1,MATCH(AQ79,InvestmentType!$A:$A,0)-1,0) = "Collective Investment Scheme", OFFSET(InvestmentType!$E$1,MATCH(AQ79,InvestmentType!$A:$A,0)-1,0),IF(OFFSET(InvestmentType!$D$1,MATCH(AQ79,InvestmentType!$A:$A,0)-1,0) = "Derivatives",$BT79,OFFSET(InvestmentType!$D$1,MATCH(AQ79,InvestmentType!$A:$A,0)-1,0))))) -> Money Market Instruments | BM79: 10023315.07 | BN79: =OFFSET(Fund!$B$1,MATCH(A79,Fund!$A:$A,0)-1,0) -> C037A00005 | BO79: =OFFSET(FundSdf!$J$1,MATCH(A79,FundSdf!$A:$A,0)-1,0) -> Wholesale Funds | BP79: =OFFSET(FundSdf!$K$1,MATCH(A79,FundSdf!$A:$A,0)-1,0) -> 0 | BQ79: =OFFSET(FundSdf!$D$1,MATCH(A79,FundSdf!$A:$A,0)-1,0) -> 0 | BR79: =OFFSET(FundSdf!$G$1,MATCH(A79,FundSdf!$A:$A,0)-1,0) -> Noorul Azila Kamaruzzaman | BS79: =OFFSET(InvestmentType!$D$1,MATCH(AQ79,InvestmentType!$A:$A,0)-1,0) -> Money Market Instruments | BT79: =IF(OFFSET(InvestmentType!$D$1,MATCH(AQ79,InvestmentType!$A:$A,0)-1,0)= "Derivatives",IF(AW79="OTC","OTC Derivative", "Exchange Traded Derivative"),"") ->  | BU79: Money Market Instruments | BV79: =OFFSET(EXTManageSdf!$C$1,MATCH(BR79,EXTManageSdf!$B:$B,0)-1,0) ->  | BW79: 0 | BX79: 0 | BY79: 0 | BZ79: 10023315.07 | CA79: 0 | CB79: 10023315.07 | CC79: 0 | CD79: 10023315.07 | CE79: 0 | CF79: 0
A80: BIW | B80: CSH | C80: RPF*MYR*MBSB | D80: CSH*170900153 | E80: 0 | F80: 0 | G80: 10019260.27 | H80: 10019260.27 | I80: 2017-11-13 | J80: 10000000 | K80: 0 | L80: 1 | M80: 19260.27 | N80: 0 | O80: 10000000 | P80: 10000000 | Q80: 0 | R80: 0 | S80: MYR | T80: 0.037 | U80: 2017-09-12 | V80: 0 | W80: 10019260.27 | X80: 2027.4 | Y80: 2017-09-30 | Z80: 0 | AA80: 0 | AB80: 0 | AC80: 3000-01-01 | AD80: 3000-01-01 | AE80: 0 | AF80: 1 | AG80: 1.703666886 | AH80: 588099725 | AI80: 1 | AJ80: MY | AK80: 1 | AL80: MBSB | AM80: 0 | AN80: MYR | AO80: MY | AP80: 1 | AQ80: RPF | AR80: CSH | AS80: Unlisted | AT80: 0 | AU80: WF | AV80: Malaysia | BL80: =IF(B80="TBI",OFFSET(CshFlagMap!$E$1,MATCH(C80,CshFlagMap!$C:$C,0)-1,0),IF(ISNA(OFFSET(InvestmentType!$D$1,MATCH(AQ80,InvestmentType!$A:$A,0)-1,0)),"",IF(OFFSET(InvestmentType!$D$1,MATCH(AQ80,InvestmentType!$A:$A,0)-1,0) = "Collective Investment Scheme", OFFSET(InvestmentType!$E$1,MATCH(AQ80,InvestmentType!$A:$A,0)-1,0),IF(OFFSET(InvestmentType!$D$1,MATCH(AQ80,InvestmentType!$A:$A,0)-1,0) = "Derivatives",$BT80,OFFSET(InvestmentType!$D$1,MATCH(AQ80,InvestmentType!$A:$A,0)-1,0))))) -> Money Market Instruments | BM80: 10019260.27 | BN80: =OFFSET(Fund!$B$1,MATCH(A80,Fund!$A:$A,0)-1,0) -> C037A00005 | BO80: =OFFSET(FundSdf!$J$1,MATCH(A80,FundSdf!$A:$A,0)-1,0) -> Wholesale Funds | BP80: =OFFSET(FundSdf!$K$1,MATCH(A80,FundSdf!$A:$A,0)-1,0) -> 0 | BQ80: =OFFSET(FundSdf!$D$1,MATCH(A80,FundSdf!$A:$A,0)-1,0) -> 0 | BR80: =OFFSET(FundSdf!$G$1,MATCH(A80,FundSdf!$A:$A,0)-1,0) -> Noorul Azila Kamaruzzaman | BS80: =OFFSET(InvestmentType!$D$1,MATCH(AQ80,InvestmentType!$A:$A,0)-1,0) -> Money Market Instruments | BT80: =IF(OFFSET(InvestmentType!$D$1,MATCH(AQ80,InvestmentType!$A:$A,0)-1,0)= "Derivatives",IF(AW80="OTC","OTC Derivative", "Exchange Traded Derivative"),"") ->  | BU80: Money Market Instruments | BV80: =OFFSET(EXTManageSdf!$C$1,MATCH(BR80,EXTManageSdf!$B:$B,0)-1,0) ->  | BW80: 0 | BX80: 0 | BY80: 0 | BZ80: 10019260.27 | CA80: 0 | CB80: 10019260.27 | CC80: 0 | CD80: 10019260.27 | CE80: 0 | CF80: 0
A81: BIW | B81: CSH | C81: RPF*MYR*MBSB | D81: CSH*170900323 | E81: 0 | F81: 0 | G81: 10154757.44 | H81: 10154757.44 | I81: 2017-11-21 | J81: 10144474 | K81: 0 | L81: 1 | M81: 10283.44 | N81: 0 | O81: 10144474 | P81: 10144474 | Q81: 0 | R81: 0 | S81: MYR | T81: 0.037 | U81: 2017-09-21 | V81: 0 | W81: 10154757.44 | X81: 2056.69 | Y81: 2017-09-30 | Z81: 0 | AA81: 0 | AB81: 0 | AC81: 3000-01-01 | AD81: 3000-01-01 | AE81: 0 | AF81: 1 | AG81: 1.726706714 | AH81: 588099725 | AI81: 1 | AJ81: MY | AK81: 1 | AL81: MBSB | AM81: 0 | AN81: MYR | AO81: MY | AP81: 1 | AQ81: RPF | AR81: CSH | AS81: Unlisted | AT81: 0 | AU81: WF | AV81: Malaysia | BL81: =IF(B81="TBI",OFFSET(CshFlagMap!$E$1,MATCH(C81,CshFlagMap!$C:$C,0)-1,0),IF(ISNA(OFFSET(InvestmentType!$D$1,MATCH(AQ81,InvestmentType!$A:$A,0)-1,0)),"",IF(OFFSET(InvestmentType!$D$1,MATCH(AQ81,InvestmentType!$A:$A,0)-1,0) = "Collective Investment Scheme", OFFSET(InvestmentType!$E$1,MATCH(AQ81,InvestmentType!$A:$A,0)-1,0),IF(OFFSET(InvestmentType!$D$1,MATCH(AQ81,InvestmentType!$A:$A,0)-1,0) = "Derivatives",$BT81,OFFSET(InvestmentType!$D$1,MATCH(AQ81,InvestmentType!$A:$A,0)-1,0))))) -> Money Market Instruments | BM81: 10154757.44 | BN81: =OFFSET(Fund!$B$1,MATCH(A81,Fund!$A:$A,0)-1,0) -> C037A00005 | BO81: =OFFSET(FundSdf!$J$1,MATCH(A81,FundSdf!$A:$A,0)-1,0) -> Wholesale Funds | BP81: =OFFSET(FundSdf!$K$1,MATCH(A81,FundSdf!$A:$A,0)-1,0) -> 0 | BQ81: =OFFSET(FundSdf!$D$1,MATCH(A81,FundSdf!$A:$A,0)-1,0) -> 0 | BR81: =OFFSET(FundSdf!$G$1,MATCH(A81,FundSdf!$A:$A,0)-1,0) -> Noorul Azila Kamaruzzaman | BS81: =OFFSET(InvestmentType!$D$1,MATCH(AQ81,InvestmentType!$A:$A,0)-1,0) -> Money Market Instruments | BT81: =IF(OFFSET(InvestmentType!$D$1,MATCH(AQ81,InvestmentType!$A:$A,0)-1,0)= "Derivatives",IF(AW81="OTC","OTC Derivative", "Exchange Traded Derivative"),"") ->  | BU81: Money Market Instruments | BV81: =OFFSET(EXTManageSdf!$C$1,MATCH(BR81,EXTManageSdf!$B:$B,0)-1,0) ->  | BW81: 0 | BX81: 0 | BY81: 0 | BZ81: 10154757.44 | CA81: 0 | CB81: 10154757.44 | CC81: 0 | CD81: 10154757.44 | CE81: 0 | CF81: 0
A82: BIW | B82: CSH | C82: RPF*MYR*RHBISL | D82: CSH*170900418 | E82: 0 | F82: 0 | G82: 5002000 | H82: 5002000 | I82: 2017-11-28 | J82: 5000000 | K82: 0 | L82: 1 | M82: 2000 | N82: 0 | O82: 5000000 | P82: 5000000 | Q82: 0 | R82: 0 | S82: MYR | T82: 0.0365 | U82: 2017-09-27 | V82: 0 | W82: 5002000 | X82: 1000 | Y82: 2017-09-30 | Z82: 0 | AA82: 0 | AB82: 0 | AC82: 3000-01-01 | AD82: 3000-01-01 | AE82: 0 | AF82: 1 | AG82: 0.8505360209 | AH82: 588099725 | AI82: 1 | AJ82: MY | AK82: 1 | AL82: RHB ISLAMIC BANK BHD | AM82: 0 | AN82: MYR | AO82: MY | AP82: 1 | AQ82: RPF | AR82: CSH | AS82: Unlisted | AT82: 0 | AU82: WF | AV82: Malaysia | BL82: =IF(B82="TBI",OFFSET(CshFlagMap!$E$1,MATCH(C82,CshFlagMap!$C:$C,0)-1,0),IF(ISNA(OFFSET(InvestmentType!$D$1,MATCH(AQ82,InvestmentType!$A:$A,0)-1,0)),"",IF(OFFSET(InvestmentType!$D$1,MATCH(AQ82,InvestmentType!$A:$A,0)-1,0) = "Collective Investment Scheme", OFFSET(InvestmentType!$E$1,MATCH(AQ82,InvestmentType!$A:$A,0)-1,0),IF(OFFSET(InvestmentType!$D$1,MATCH(AQ82,InvestmentType!$A:$A,0)-1,0) = "Derivatives",$BT82,OFFSET(InvestmentType!$D$1,MATCH(AQ82,InvestmentType!$A:$A,0)-1,0))))) -> Money Market Instruments | BM82: 5002000 | BN82: =OFFSET(Fund!$B$1,MATCH(A82,Fund!$A:$A,0)-1,0) -> C037A00005 | BO82: =OFFSET(FundSdf!$J$1,MATCH(A82,FundSdf!$A:$A,0)-1,0) -> Wholesale Funds | BP82: =OFFSET(FundSdf!$K$1,MATCH(A82,FundSdf!$A:$A,0)-1,0) -> 0 | BQ82: =OFFSET(FundSdf!$D$1,MATCH(A82,FundSdf!$A:$A,0)-1,0) -> 0 | BR82: =OFFSET(FundSdf!$G$1,MATCH(A82,FundSdf!$A:$A,0)-1,0) -> Noorul Azila Kamaruzzaman | BS82: =OFFSET(InvestmentType!$D$1,MATCH(AQ82,InvestmentType!$A:$A,0)-1,0) -> Money Market Instruments | BT82: =IF(OFFSET(InvestmentType!$D$1,MATCH(AQ82,InvestmentType!$A:$A,0)-1,0)= "Derivatives",IF(AW82="OTC","OTC Derivative", "Exchange Traded Derivative"),"") ->  | BU82: Money Market Instruments | BV82: =OFFSET(EXTManageSdf!$C$1,MATCH(BR82,EXTManageSdf!$B:$B,0)-1,0) ->  | BW82: 0 | BX82: 0 | BY82: 0 | BZ82: 5002000 | CA82: 0 | CB82: 5002000 | CC82: 0 | CD82: 5002000 | CE82: 0 | CF82: 0
A83: BIW | B83: CSH | C83: RPF*MYR*RHBISL | D83: CSH*170900430 | E83: 0 | F83: 0 | G83: 10004054.79 | H83: 10004054.79 | I83: 2017-11-28 | J83: 10000000 | K83: 0 | L83: 1 | M83: 4054.79 | N83: 0 | O83: 10000000 | P83: 10000000 | Q83: 0 | R83: 0 | S83: MYR | T83: 0.037 | U83: 2017-09-27 | V83: 0 | W83: 10004054.79 | X83: 2027.4 | Y83: 2017-09-30 | Z83: 0 | AA83: 0 | AB83: 0 | AC83: 3000-01-01 | AD83: 3000-01-01 | AE83: 0 | AF83: 1 | AG83: 1.701081358 | AH83: 588099725 | AI83: 1 | AJ83: MY | AK83: 1 | AL83: RHB ISLAMIC BANK BHD | AM83: 0 | AN83: MYR | AO83: MY | AP83: 1 | AQ83: RPF | AR83: CSH | AS83: Unlisted | AT83: 0 | AU83: WF | AV83: Malaysia | BL83: =IF(B83="TBI",OFFSET(CshFlagMap!$E$1,MATCH(C83,CshFlagMap!$C:$C,0)-1,0),IF(ISNA(OFFSET(InvestmentType!$D$1,MATCH(AQ83,InvestmentType!$A:$A,0)-1,0)),"",IF(OFFSET(InvestmentType!$D$1,MATCH(AQ83,InvestmentType!$A:$A,0)-1,0) = "Collective Investment Scheme", OFFSET(InvestmentType!$E$1,MATCH(AQ83,InvestmentType!$A:$A,0)-1,0),IF(OFFSET(InvestmentType!$D$1,MATCH(AQ83,InvestmentType!$A:$A,0)-1,0) = "Derivatives",$BT83,OFFSET(InvestmentType!$D$1,MATCH(AQ83,InvestmentType!$A:$A,0)-1,0))))) -> Money Market Instruments | BM83: 10004054.79 | BN83: =OFFSET(Fund!$B$1,MATCH(A83,Fund!$A:$A,0)-1,0) -> C037A00005 | BO83: =OFFSET(FundSdf!$J$1,MATCH(A83,FundSdf!$A:$A,0)-1,0) -> Wholesale Funds | BP83: =OFFSET(FundSdf!$K$1,MATCH(A83,FundSdf!$A:$A,0)-1,0) -> 0 | BQ83: =OFFSET(FundSdf!$D$1,MATCH(A83,FundSdf!$A:$A,0)-1,0) -> 0 | BR83: =OFFSET(FundSdf!$G$1,MATCH(A83,FundSdf!$A:$A,0)-1,0) -> Noorul Azila Kamaruzzaman | BS83: =OFFSET(InvestmentType!$D$1,MATCH(AQ83,InvestmentType!$A:$A,0)-1,0) -> Money Market Instruments | BT83: =IF(OFFSET(InvestmentType!$D$1,MATCH(AQ83,InvestmentType!$A:$A,0)-1,0)= "Derivatives",IF(AW83="OTC","OTC Derivative", "Exchange Traded Derivative"),"") ->  | BU83: Money Market Instruments | BV83: =OFFSET(EXTManageSdf!$C$1,MATCH(BR83,EXTManageSdf!$B:$B,0)-1,0) ->  | BW83: 0 | BX83: 0 | BY83: 0 | BZ83: 10004054.79 | CA83: 0 | CB83: 10004054.79 | CC83: 0 | CD83: 10004054.79 | CE83: 0 | CF83: 0
A84: BIW | B84: CSH | C84: RPW*MYR*BISLAM | D84: CSH*170500250 | E84: 0 | F84: 0 | G84: 10154368.11 | H84: 10154368.11 | I84: 2017-10-09 | J84: 10003480 | K84: 0 | L84: 1 | M84: 150888.11 | N84: 0 | O84: 10003480 | P84: 10003480 | Q84: 0 | R84: 0 | S84: MYR | T84: 0.0385 | U84: 2017-05-11 | V84: 0 | W84: 10154368.11 | X84: 2110.32 | Y84: 2017-09-30 | Z84: 0 | AA84: 0 | AB84: 0 | AC84: 3000-01-01 | AD84: 3000-01-01 | AE84: 0 | AF84: 1 | AG84: 1.726640513 | AH84: 588099725 | AI84: 1 | AJ84: MY | AK84: 1 | AL84: BANK ISLAM MALAYSIA BERHAD | AM84: 0 | AN84: MYR | AO84: MY | AP84: 1 | AQ84: RPW | AR84: CSH | AS84: Unlisted | AT84: 0 | AU84: WF | AV84: Malaysia | BL84: =IF(B84="TBI",OFFSET(CshFlagMap!$E$1,MATCH(C84,CshFlagMap!$C:$C,0)-1,0),IF(ISNA(OFFSET(InvestmentType!$D$1,MATCH(AQ84,InvestmentType!$A:$A,0)-1,0)),"",IF(OFFSET(InvestmentType!$D$1,MATCH(AQ84,InvestmentType!$A:$A,0)-1,0) = "Collective Investment Scheme", OFFSET(InvestmentType!$E$1,MATCH(AQ84,InvestmentType!$A:$A,0)-1,0),IF(OFFSET(InvestmentType!$D$1,MATCH(AQ84,InvestmentType!$A:$A,0)-1,0) = "Derivatives",$BT84,OFFSET(InvestmentType!$D$1,MATCH(AQ84,InvestmentType!$A:$A,0)-1,0))))) -> Money Market Instruments | BM84: 10154368.11 | BN84: =OFFSET(Fund!$B$1,MATCH(A84,Fund!$A:$A,0)-1,0) -> C037A00005 | BO84: =OFFSET(FundSdf!$J$1,MATCH(A84,FundSdf!$A:$A,0)-1,0) -> Wholesale Funds | BP84: =OFFSET(FundSdf!$K$1,MATCH(A84,FundSdf!$A:$A,0)-1,0) -> 0 | BQ84: =OFFSET(FundSdf!$D$1,MATCH(A84,FundSdf!$A:$A,0)-1,0) -> 0 | BR84: =OFFSET(FundSdf!$G$1,MATCH(A84,FundSdf!$A:$A,0)-1,0) -> Noorul Azila Kamaruzzaman | BS84: =OFFSET(InvestmentType!$D$1,MATCH(AQ84,InvestmentType!$A:$A,0)-1,0) -> Money Market Instruments | BT84: =IF(OFFSET(InvestmentType!$D$1,MATCH(AQ84,InvestmentType!$A:$A,0)-1,0)= "Derivatives",IF(AW84="OTC","OTC Derivative", "Exchange Traded Derivative"),"") ->  | BU84: Money Market Instruments | BV84: =OFFSET(EXTManageSdf!$C$1,MATCH(BR84,EXTManageSdf!$B:$B,0)-1,0) ->  | BW84: 0 | BX84: 0 | BY84: 0 | BZ84: 10154368.11 | CA84: 0 | CB84: 10154368.11 | CC84: 0 | CD84: 10154368.11 | CE84: 0 | CF84: 0
A85: BIW | B85: CSH | C85: RPW*MYR*BISLAM | D85: CSH*170500277 | E85: 0 | F85: 0 | G85: 10150716.63 | H85: 10150716.63 | I85: 2017-10-10 | J85: 10000922 | K85: 0 | L85: 1 | M85: 149794.63 | N85: 0 | O85: 10000922 | P85: 10000922 | Q85: 0 | R85: 0 | S85: MYR | T85: 0.0385 | U85: 2017-05-12 | V85: 0 | W85: 10150716.63 | X85: 2109.79 | Y85: 2017-09-30 | Z85: 0 | AA85: 0 | AB85: 0 | AC85: 3000-01-01 | AD85: 3000-01-01 | AE85: 0 | AF85: 1 | AG85: 1.726019618 | AH85: 588099725 | AI85: 1 | AJ85: MY | AK85: 1 | AL85: BANK ISLAM MALAYSIA BERHAD | AM85: 0 | AN85: MYR | AO85: MY | AP85: 1 | AQ85: RPW | AR85: CSH | AS85: Unlisted | AT85: 0 | AU85: WF | AV85: Malaysia | BL85: =IF(B85="TBI",OFFSET(CshFlagMap!$E$1,MATCH(C85,CshFlagMap!$C:$C,0)-1,0),IF(ISNA(OFFSET(InvestmentType!$D$1,MATCH(AQ85,InvestmentType!$A:$A,0)-1,0)),"",IF(OFFSET(InvestmentType!$D$1,MATCH(AQ85,InvestmentType!$A:$A,0)-1,0) = "Collective Investment Scheme", OFFSET(InvestmentType!$E$1,MATCH(AQ85,InvestmentType!$A:$A,0)-1,0),IF(OFFSET(InvestmentType!$D$1,MATCH(AQ85,InvestmentType!$A:$A,0)-1,0) = "Derivatives",$BT85,OFFSET(InvestmentType!$D$1,MATCH(AQ85,InvestmentType!$A:$A,0)-1,0))))) -> Money Market Instruments | BM85: 10150716.63 | BN85: =OFFSET(Fund!$B$1,MATCH(A85,Fund!$A:$A,0)-1,0) -> C037A00005 | BO85: =OFFSET(FundSdf!$J$1,MATCH(A85,FundSdf!$A:$A,0)-1,0) -> Wholesale Funds | BP85: =OFFSET(FundSdf!$K$1,MATCH(A85,FundSdf!$A:$A,0)-1,0) -> 0 | BQ85: =OFFSET(FundSdf!$D$1,MATCH(A85,FundSdf!$A:$A,0)-1,0) -> 0 | BR85: =OFFSET(FundSdf!$G$1,MATCH(A85,FundSdf!$A:$A,0)-1,0) -> Noorul Azila Kamaruzzaman | BS85: =OFFSET(InvestmentType!$D$1,MATCH(AQ85,InvestmentType!$A:$A,0)-1,0) -> Money Market Instruments | BT85: =IF(OFFSET(InvestmentType!$D$1,MATCH(AQ85,InvestmentType!$A:$A,0)-1,0)= "Derivatives",IF(AW85="OTC","OTC Derivative", "Exchange Traded Derivative"),"") ->  | BU85: Money Market Instruments | BV85: =OFFSET(EXTManageSdf!$C$1,MATCH(BR85,EXTManageSdf!$B:$B,0)-1,0) ->  | BW85: 0 | BX85: 0 | BY85: 0 | BZ85: 10150716.63 | CA85: 0 | CB85: 10150716.63 | CC85: 0 | CD85: 10150716.63 | CE85: 0 | CF85: 0
A86: BIW | B86: CSH | C86: RPW*MYR*BISLAM | D86: CSH*170500470 | E86: 0 | F86: 0 | G86: 20274246.58 | H86: 20274246.58 | I86: 2017-11-21 | J86: 20000000 | K86: 0 | L86: 1 | M86: 274246.58 | N86: 0 | O86: 20000000 | P86: 20000000 | Q86: 0 | R86: 0 | S86: MYR | T86: 0.0385 | U86: 2017-05-24 | V86: 0 | W86: 20274246.58 | X86: 4219.17 | Y86: 2017-09-30 | Z86: 0 | AA86: 0 | AB86: 0 | AC86: 3000-01-01 | AD86: 3000-01-01 | AE86: 0 | AF86: 1 | AG86: 3.447416436 | AH86: 588099725 | AI86: 1 | AJ86: MY | AK86: 1 | AL86: BANK ISLAM MALAYSIA BERHAD | AM86: 0 | AN86: MYR | AO86: MY | AP86: 1 | AQ86: RPW | AR86: CSH | AS86: Unlisted | AT86: 0 | AU86: WF | AV86: Malaysia | BL86: =IF(B86="TBI",OFFSET(CshFlagMap!$E$1,MATCH(C86,CshFlagMap!$C:$C,0)-1,0),IF(ISNA(OFFSET(InvestmentType!$D$1,MATCH(AQ86,InvestmentType!$A:$A,0)-1,0)),"",IF(OFFSET(InvestmentType!$D$1,MATCH(AQ86,InvestmentType!$A:$A,0)-1,0) = "Collective Investment Scheme", OFFSET(InvestmentType!$E$1,MATCH(AQ86,InvestmentType!$A:$A,0)-1,0),IF(OFFSET(InvestmentType!$D$1,MATCH(AQ86,InvestmentType!$A:$A,0)-1,0) = "Derivatives",$BT86,OFFSET(InvestmentType!$D$1,MATCH(AQ86,InvestmentType!$A:$A,0)-1,0))))) -> Money Market Instruments | BM86: 20274246.58 | BN86: =OFFSET(Fund!$B$1,MATCH(A86,Fund!$A:$A,0)-1,0) -> C037A00005 | BO86: =OFFSET(FundSdf!$J$1,MATCH(A86,FundSdf!$A:$A,0)-1,0) -> Wholesale Funds | BP86: =OFFSET(FundSdf!$K$1,MATCH(A86,FundSdf!$A:$A,0)-1,0) -> 0 | BQ86: =OFFSET(FundSdf!$D$1,MATCH(A86,FundSdf!$A:$A,0)-1,0) -> 0 | BR86: =OFFSET(FundSdf!$G$1,MATCH(A86,FundSdf!$A:$A,0)-1,0) -> Noorul Azila Kamaruzzaman | BS86: =OFFSET(InvestmentType!$D$1,MATCH(AQ86,InvestmentType!$A:$A,0)-1,0) -> Money Market Instruments | BT86: =IF(OFFSET(InvestmentType!$D$1,MATCH(AQ86,InvestmentType!$A:$A,0)-1,0)= "Derivatives",IF(AW86="OTC","OTC Derivative", "Exchange Traded Derivative"),"") ->  | BU86: Money Market Instruments | BV86: =OFFSET(EXTManageSdf!$C$1,MATCH(BR86,EXTManageSdf!$B:$B,0)-1,0) ->  | BW86: 0 | BX86: 0 | BY86: 0 | BZ86: 20274246.58 | CA86: 0 | CB86: 20274246.58 | CC86: 0 | CD86: 20274246.58 | CE86: 0 | CF86: 0
A87: BIW | B87: CSH | C87: RPW*MYR*BISLAM | D87: CSH*170500471 | E87: 0 | F87: 0 | G87: 20274246.58 | H87: 20274246.58 | I87: 2017-11-21 | J87: 20000000 | K87: 0 | L87: 1 | M87: 274246.58 | N87: 0 | O87: 20000000 | P87: 20000000 | Q87: 0 | R87: 0 | S87: MYR | T87: 0.0385 | U87: 2017-05-24 | V87: 0 | W87: 20274246.58 | X87: 4219.17 | Y87: 2017-09-30 | Z87: 0 | AA87: 0 | AB87: 0 | AC87: 3000-01-01 | AD87: 3000-01-01 | AE87: 0 | AF87: 1 | AG87: 3.447416436 | AH87: 588099725 | AI87: 1 | AJ87: MY | AK87: 1 | AL87: BANK ISLAM MALAYSIA BERHAD | AM87: 0 | AN87: MYR | AO87: MY | AP87: 1 | AQ87: RPW | AR87: CSH | AS87: Unlisted | AT87: 0 | AU87: WF | AV87: Malaysia | BL87: =IF(B87="TBI",OFFSET(CshFlagMap!$E$1,MATCH(C87,CshFlagMap!$C:$C,0)-1,0),IF(ISNA(OFFSET(InvestmentType!$D$1,MATCH(AQ87,InvestmentType!$A:$A,0)-1,0)),"",IF(OFFSET(InvestmentType!$D$1,MATCH(AQ87,InvestmentType!$A:$A,0)-1,0) = "Collective Investment Scheme", OFFSET(InvestmentType!$E$1,MATCH(AQ87,InvestmentType!$A:$A,0)-1,0),IF(OFFSET(InvestmentType!$D$1,MATCH(AQ87,InvestmentType!$A:$A,0)-1,0) = "Derivatives",$BT87,OFFSET(InvestmentType!$D$1,MATCH(AQ87,InvestmentType!$A:$A,0)-1,0))))) -> Money Market Instruments | BM87: 20274246.58 | BN87: =OFFSET(Fund!$B$1,MATCH(A87,Fund!$A:$A,0)-1,0) -> C037A00005 | BO87: =OFFSET(FundSdf!$J$1,MATCH(A87,FundSdf!$A:$A,0)-1,0) -> Wholesale Funds | BP87: =OFFSET(FundSdf!$K$1,MATCH(A87,FundSdf!$A:$A,0)-1,0) -> 0 | BQ87: =OFFSET(FundSdf!$D$1,MATCH(A87,FundSdf!$A:$A,0)-1,0) -> 0 | BR87: =OFFSET(FundSdf!$G$1,MATCH(A87,FundSdf!$A:$A,0)-1,0) -> Noorul Azila Kamaruzzaman | BS87: =OFFSET(InvestmentType!$D$1,MATCH(AQ87,InvestmentType!$A:$A,0)-1,0) -> Money Market Instruments | BT87: =IF(OFFSET(InvestmentType!$D$1,MATCH(AQ87,InvestmentType!$A:$A,0)-1,0)= "Derivatives",IF(AW87="OTC","OTC Derivative", "Exchange Traded Derivative"),"") ->  | BU87: Money Market Instruments | BV87: =OFFSET(EXTManageSdf!$C$1,MATCH(BR87,EXTManageSdf!$B:$B,0)-1,0) ->  | BW87: 0 | BX87: 0 | BY87: 0 | BZ87: 20274246.58 | CA87: 0 | CB87: 20274246.58 | CC87: 0 | CD87: 20274246.58 | CE87: 0 | CF87: 0
A88: BIW | B88: CSH | C88: RPW*MYR*BISLAM | D88: CSH*170600287 | E88: 0 | F88: 0 | G88: 9932198.08 | H88: 9932198.08 | I88: 2017-11-22 | J88: 9819303 | K88: 0 | L88: 1 | M88: 112895.08 | N88: 0 | O88: 9819303 | P88: 9819303 | Q88: 0 | R88: 0 | S88: MYR | T88: 0.0385 | U88: 2017-06-14 | V88: 0 | W88: 9932198.08 | X88: 2071.47 | Y88: 2017-09-30 | Z88: 0 | AA88: 0 | AB88: 0 | AC88: 3000-01-01 | AD88: 3000-01-01 | AE88: 0 | AF88: 1 | AG88: 1.688862902 | AH88: 588099725 | AI88: 1 | AJ88: MY | AK88: 1 | AL88: BANK ISLAM MALAYSIA BERHAD | AM88: 0 | AN88: MYR | AO88: MY | AP88: 1 | AQ88: RPW | AR88: CSH | AS88: Unlisted | AT88: 0 | AU88: WF | AV88: Malaysia | BL88: =IF(B88="TBI",OFFSET(CshFlagMap!$E$1,MATCH(C88,CshFlagMap!$C:$C,0)-1,0),IF(ISNA(OFFSET(InvestmentType!$D$1,MATCH(AQ88,InvestmentType!$A:$A,0)-1,0)),"",IF(OFFSET(InvestmentType!$D$1,MATCH(AQ88,InvestmentType!$A:$A,0)-1,0) = "Collective Investment Scheme", OFFSET(InvestmentType!$E$1,MATCH(AQ88,InvestmentType!$A:$A,0)-1,0),IF(OFFSET(InvestmentType!$D$1,MATCH(AQ88,InvestmentType!$A:$A,0)-1,0) = "Derivatives",$BT88,OFFSET(InvestmentType!$D$1,MATCH(AQ88,InvestmentType!$A:$A,0)-1,0))))) -> Money Market Instruments | BM88: 9932198.08 | BN88: =OFFSET(Fund!$B$1,MATCH(A88,Fund!$A:$A,0)-1,0) -> C037A00005 | BO88: =OFFSET(FundSdf!$J$1,MATCH(A88,FundSdf!$A:$A,0)-1,0) -> Wholesale Funds | BP88: =OFFSET(FundSdf!$K$1,MATCH(A88,FundSdf!$A:$A,0)-1,0) -> 0 | BQ88: =OFFSET(FundSdf!$D$1,MATCH(A88,FundSdf!$A:$A,0)-1,0) -> 0 | BR88: =OFFSET(FundSdf!$G$1,MATCH(A88,FundSdf!$A:$A,0)-1,0) -> Noorul Azila Kamaruzzaman | BS88: =OFFSET(InvestmentType!$D$1,MATCH(AQ88,InvestmentType!$A:$A,0)-1,0) -> Money Market Instruments | BT88: =IF(OFFSET(InvestmentType!$D$1,MATCH(AQ88,InvestmentType!$A:$A,0)-1,0)= "Derivatives",IF(AW88="OTC","OTC Derivative", "Exchange Traded Derivative"),"") ->  | BU88: Money Market Instruments | BV88: =OFFSET(EXTManageSdf!$C$1,MATCH(BR88,EXTManageSdf!$B:$B,0)-1,0) ->  | BW88: 0 | BX88: 0 | BY88: 0 | BZ88: 9932198.08 | CA88: 0 | CB88: 9932198.08 | CC88: 0 | CD88: 9932198.08 | CE88: 0 | CF88: 0
A89: BIW | B89: CSH | C89: RPW*MYR*BISLAM | D89: CSH*170600366 | E89: 0 | F89: 0 | G89: 15180321.1 | H89: 15180321.1 | I89: 2017-11-06 | J89: 15015602 | K89: 0 | L89: 1 | M89: 164719.1 | N89: 0 | O89: 15015602 | P89: 15015602 | Q89: 0 | R89: 0 | S89: MYR | T89: 0.0385 | U89: 2017-06-19 | V89: 0 | W89: 15180321.1 | X89: 3167.67 | Y89: 2017-09-30 | Z89: 0 | AA89: 0 | AB89: 0 | AC89: 3000-01-01 | AD89: 3000-01-01 | AE89: 0 | AF89: 1 | AG89: 2.581249481 | AH89: 588099725 | AI89: 1 | AJ89: MY | AK89: 1 | AL89: BANK ISLAM MALAYSIA BERHAD | AM89: 0 | AN89: MYR | AO89: MY | AP89: 1 | AQ89: RPW | AR89: CSH | AS89: Unlisted | AT89: 0 | AU89: WF | AV89: Malaysia | BL89: =IF(B89="TBI",OFFSET(CshFlagMap!$E$1,MATCH(C89,CshFlagMap!$C:$C,0)-1,0),IF(ISNA(OFFSET(InvestmentType!$D$1,MATCH(AQ89,InvestmentType!$A:$A,0)-1,0)),"",IF(OFFSET(InvestmentType!$D$1,MATCH(AQ89,InvestmentType!$A:$A,0)-1,0) = "Collective Investment Scheme", OFFSET(InvestmentType!$E$1,MATCH(AQ89,InvestmentType!$A:$A,0)-1,0),IF(OFFSET(InvestmentType!$D$1,MATCH(AQ89,InvestmentType!$A:$A,0)-1,0) = "Derivatives",$BT89,OFFSET(InvestmentType!$D$1,MATCH(AQ89,InvestmentType!$A:$A,0)-1,0))))) -> Money Market Instruments | BM89: 15180321.1 | BN89: =OFFSET(Fund!$B$1,MATCH(A89,Fund!$A:$A,0)-1,0) -> C037A00005 | BO89: =OFFSET(FundSdf!$J$1,MATCH(A89,FundSdf!$A:$A,0)-1,0) -> Wholesale Funds | BP89: =OFFSET(FundSdf!$K$1,MATCH(A89,FundSdf!$A:$A,0)-1,0) -> 0 | BQ89: =OFFSET(FundSdf!$D$1,MATCH(A89,FundSdf!$A:$A,0)-1,0) -> 0 | BR89: =OFFSET(FundSdf!$G$1,MATCH(A89,FundSdf!$A:$A,0)-1,0) -> Noorul Azila Kamaruzzaman | BS89: =OFFSET(InvestmentType!$D$1,MATCH(AQ89,InvestmentType!$A:$A,0)-1,0) -> Money Market Instruments | BT89: =IF(OFFSET(InvestmentType!$D$1,MATCH(AQ89,InvestmentType!$A:$A,0)-1,0)= "Derivatives",IF(AW89="OTC","OTC Derivative", "Exchange Traded Derivative"),"") ->  | BU89: Money Market Instruments | BV89: =OFFSET(EXTManageSdf!$C$1,MATCH(BR89,EXTManageSdf!$B:$B,0)-1,0) ->  | BW89: 0 | BX89: 0 | BY89: 0 | BZ89: 15180321.1 | CA89: 0 | CB89: 15180321.1 | CC89: 0 | CD89: 15180321.1 | CE89: 0 | CF89: 0
A90: BIW | B90: CSH | C90: RPW*MYR*BISLAM | D90: CSH*170600430 | E90: 0 | F90: 0 | G90: 15259932.55 | H90: 15259932.55 | I90: 2017-11-08 | J90: 15097500 | K90: 0 | L90: 1 | M90: 162432.55 | N90: 0 | O90: 15097500 | P90: 15097500 | Q90: 0 | R90: 0 | S90: MYR | T90: 0.0385 | U90: 2017-06-21 | V90: 0 | W90: 15259932.55 | X90: 3184.96 | Y90: 2017-09-30 | Z90: 0 | AA90: 0 | AB90: 0 | AC90: 3000-01-01 | AD90: 3000-01-01 | AE90: 0 | AF90: 1 | AG90: 2.594786547 | AH90: 588099725 | AI90: 1 | AJ90: MY | AK90: 1 | AL90: BANK ISLAM MALAYSIA BERHAD | AM90: 0 | AN90: MYR | AO90: MY | AP90: 1 | AQ90: RPW | AR90: CSH | AS90: Unlisted | AT90: 0 | AU90: WF | AV90: Malaysia | BL90: =IF(B90="TBI",OFFSET(CshFlagMap!$E$1,MATCH(C90,CshFlagMap!$C:$C,0)-1,0),IF(ISNA(OFFSET(InvestmentType!$D$1,MATCH(AQ90,InvestmentType!$A:$A,0)-1,0)),"",IF(OFFSET(InvestmentType!$D$1,MATCH(AQ90,InvestmentType!$A:$A,0)-1,0) = "Collective Investment Scheme", OFFSET(InvestmentType!$E$1,MATCH(AQ90,InvestmentType!$A:$A,0)-1,0),IF(OFFSET(InvestmentType!$D$1,MATCH(AQ90,InvestmentType!$A:$A,0)-1,0) = "Derivatives",$BT90,OFFSET(InvestmentType!$D$1,MATCH(AQ90,InvestmentType!$A:$A,0)-1,0))))) -> Money Market Instruments | BM90: 15259932.55 | BN90: =OFFSET(Fund!$B$1,MATCH(A90,Fund!$A:$A,0)-1,0) -> C037A00005 | BO90: =OFFSET(FundSdf!$J$1,MATCH(A90,FundSdf!$A:$A,0)-1,0) -> Wholesale Funds | BP90: =OFFSET(FundSdf!$K$1,MATCH(A90,FundSdf!$A:$A,0)-1,0) -> 0 | BQ90: =OFFSET(FundSdf!$D$1,MATCH(A90,FundSdf!$A:$A,0)-1,0) -> 0 | BR90: =OFFSET(FundSdf!$G$1,MATCH(A90,FundSdf!$A:$A,0)-1,0) -> Noorul Azila Kamaruzzaman | BS90: =OFFSET(InvestmentType!$D$1,MATCH(AQ90,InvestmentType!$A:$A,0)-1,0) -> Money Market Instruments | BT90: =IF(OFFSET(InvestmentType!$D$1,MATCH(AQ90,InvestmentType!$A:$A,0)-1,0)= "Derivatives",IF(AW90="OTC","OTC Derivative", "Exchange Traded Derivative"),"") ->  | BU90: Money Market Instruments | BV90: =OFFSET(EXTManageSdf!$C$1,MATCH(BR90,EXTManageSdf!$B:$B,0)-1,0) ->  | BW90: 0 | BX90: 0 | BY90: 0 | BZ90: 15259932.55 | CA90: 0 | CB90: 15259932.55 | CC90: 0 | CD90: 15259932.55 | CE90: 0 | CF90: 0
A91: BIW | B91: CSH | C91: RPW*MYR*BISLAM | D91: CSH*170600499 | E91: 0 | F91: 0 | G91: 11853199.68 | H91: 11853199.68 | I91: 2017-11-10 | J91: 11727888 | K91: 0 | L91: 1 | M91: 125311.68 | N91: 0 | O91: 11727888 | P91: 11727888 | Q91: 0 | R91: 0 | S91: MYR | T91: 0.039 | U91: 2017-06-23 | V91: 0 | W91: 11853199.68 | X91: 2506.23 | Y91: 2017-09-30 | Z91: 0 | AA91: 0 | AB91: 0 | AC91: 3000-01-01 | AD91: 3000-01-01 | AE91: 0 | AF91: 1 | AG91: 2.015508455 | AH91: 588099725 | AI91: 1 | AJ91: MY | AK91: 1 | AL91: BANK ISLAM MALAYSIA BERHAD | AM91: 0 | AN91: MYR | AO91: MY | AP91: 1 | AQ91: RPW | AR91: CSH | AS91: Unlisted | AT91: 0 | AU91: WF | AV91: Malaysia | BL91: =IF(B91="TBI",OFFSET(CshFlagMap!$E$1,MATCH(C91,CshFlagMap!$C:$C,0)-1,0),IF(ISNA(OFFSET(InvestmentType!$D$1,MATCH(AQ91,InvestmentType!$A:$A,0)-1,0)),"",IF(OFFSET(InvestmentType!$D$1,MATCH(AQ91,InvestmentType!$A:$A,0)-1,0) = "Collective Investment Scheme", OFFSET(InvestmentType!$E$1,MATCH(AQ91,InvestmentType!$A:$A,0)-1,0),IF(OFFSET(InvestmentType!$D$1,MATCH(AQ91,InvestmentType!$A:$A,0)-1,0) = "Derivatives",$BT91,OFFSET(InvestmentType!$D$1,MATCH(AQ91,InvestmentType!$A:$A,0)-1,0))))) -> Money Market Instruments | BM91: 11853199.68 | BN91: =OFFSET(Fund!$B$1,MATCH(A91,Fund!$A:$A,0)-1,0) -> C037A00005 | BO91: =OFFSET(FundSdf!$J$1,MATCH(A91,FundSdf!$A:$A,0)-1,0) -> Wholesale Funds | BP91: =OFFSET(FundSdf!$K$1,MATCH(A91,FundSdf!$A:$A,0)-1,0) -> 0 | BQ91: =OFFSET(FundSdf!$D$1,MATCH(A91,FundSdf!$A:$A,0)-1,0) -> 0 | BR91: =OFFSET(FundSdf!$G$1,MATCH(A91,FundSdf!$A:$A,0)-1,0) -> Noorul Azila Kamaruzzaman | BS91: =OFFSET(InvestmentType!$D$1,MATCH(AQ91,InvestmentType!$A:$A,0)-1,0) -> Money Market Instruments | BT91: =IF(OFFSET(InvestmentType!$D$1,MATCH(AQ91,InvestmentType!$A:$A,0)-1,0)= "Derivatives",IF(AW91="OTC","OTC Derivative", "Exchange Traded Derivative"),"") ->  | BU91: Money Market Instruments | BV91: =OFFSET(EXTManageSdf!$C$1,MATCH(BR91,EXTManageSdf!$B:$B,0)-1,0) ->  | BW91: 0 | BX91: 0 | BY91: 0 | BZ91: 11853199.68 | CA91: 0 | CB91: 11853199.68 | CC91: 0 | CD91: 11853199.68 | CE91: 0 | CF91: 0
A92: BIW | B92: CSH | C92: RPW*MYR*BISLAM | D92: CSH*170600500 | E92: 0 | F92: 0 | G92: 11853199.68 | H92: 11853199.68 | I92: 2017-11-14 | J92: 11727888 | K92: 0 | L92: 1 | M92: 125311.68 | N92: 0 | O92: 11727888 | P92: 11727888 | Q92: 0 | R92: 0 | S92: MYR | T92: 0.039 | U92: 2017-06-23 | V92: 0 | W92: 11853199.68 | X92: 2506.23 | Y92: 2017-09-30 | Z92: 0 | AA92: 0 | AB92: 0 | AC92: 3000-01-01 | AD92: 3000-01-01 | AE92: 0 | AF92: 1 | AG92: 2.015508455 | AH92: 588099725 | AI92: 1 | AJ92: MY | AK92: 1 | AL92: BANK ISLAM MALAYSIA BERHAD | AM92: 0 | AN92: MYR | AO92: MY | AP92: 1 | AQ92: RPW | AR92: CSH | AS92: Unlisted | AT92: 0 | AU92: WF | AV92: Malaysia | BL92: =IF(B92="TBI",OFFSET(CshFlagMap!$E$1,MATCH(C92,CshFlagMap!$C:$C,0)-1,0),IF(ISNA(OFFSET(InvestmentType!$D$1,MATCH(AQ92,InvestmentType!$A:$A,0)-1,0)),"",IF(OFFSET(InvestmentType!$D$1,MATCH(AQ92,InvestmentType!$A:$A,0)-1,0) = "Collective Investment Scheme", OFFSET(InvestmentType!$E$1,MATCH(AQ92,InvestmentType!$A:$A,0)-1,0),IF(OFFSET(InvestmentType!$D$1,MATCH(AQ92,InvestmentType!$A:$A,0)-1,0) = "Derivatives",$BT92,OFFSET(InvestmentType!$D$1,MATCH(AQ92,InvestmentType!$A:$A,0)-1,0))))) -> Money Market Instruments | BM92: 11853199.68 | BN92: =OFFSET(Fund!$B$1,MATCH(A92,Fund!$A:$A,0)-1,0) -> C037A00005 | BO92: =OFFSET(FundSdf!$J$1,MATCH(A92,FundSdf!$A:$A,0)-1,0) -> Wholesale Funds | BP92: =OFFSET(FundSdf!$K$1,MATCH(A92,FundSdf!$A:$A,0)-1,0) -> 0 | BQ92: =OFFSET(FundSdf!$D$1,MATCH(A92,FundSdf!$A:$A,0)-1,0) -> 0 | BR92: =OFFSET(FundSdf!$G$1,MATCH(A92,FundSdf!$A:$A,0)-1,0) -> Noorul Azila Kamaruzzaman | BS92: =OFFSET(InvestmentType!$D$1,MATCH(AQ92,InvestmentType!$A:$A,0)-1,0) -> Money Market Instruments | BT92: =IF(OFFSET(InvestmentType!$D$1,MATCH(AQ92,InvestmentType!$A:$A,0)-1,0)= "Derivatives",IF(AW92="OTC","OTC Derivative", "Exchange Traded Derivative"),"") ->  | BU92: Money Market Instruments | BV92: =OFFSET(EXTManageSdf!$C$1,MATCH(BR92,EXTManageSdf!$B:$B,0)-1,0) ->  | BW92: 0 | BX92: 0 | BY92: 0 | BZ92: 11853199.68 | CA92: 0 | CB92: 11853199.68 | CC92: 0 | CD92: 11853199.68 | CE92: 0 | CF92: 0
A93: BIW | B93: CSH | C93: RPW*MYR*BISLAM | D93: CSH*170600501 | E93: 0 | F93: 0 | G93: 11853199.68 | H93: 11853199.68 | I93: 2017-11-24 | J93: 11727888 | K93: 0 | L93: 1 | M93: 125311.68 | N93: 0 | O93: 11727888 | P93: 11727888 | Q93: 0 | R93: 0 | S93: MYR | T93: 0.039 | U93: 2017-06-23 | V93: 0 | W93: 11853199.68 | X93: 2506.23 | Y93: 2017-09-30 | Z93: 0 | AA93: 0 | AB93: 0 | AC93: 3000-01-01 | AD93: 3000-01-01 | AE93: 0 | AF93: 1 | AG93: 2.015508455 | AH93: 588099725 | AI93: 1 | AJ93: MY | AK93: 1 | AL93: BANK ISLAM MALAYSIA BERHAD | AM93: 0 | AN93: MYR | AO93: MY | AP93: 1 | AQ93: RPW | AR93: CSH | AS93: Unlisted | AT93: 0 | AU93: WF | AV93: Malaysia | BL93: =IF(B93="TBI",OFFSET(CshFlagMap!$E$1,MATCH(C93,CshFlagMap!$C:$C,0)-1,0),IF(ISNA(OFFSET(InvestmentType!$D$1,MATCH(AQ93,InvestmentType!$A:$A,0)-1,0)),"",IF(OFFSET(InvestmentType!$D$1,MATCH(AQ93,InvestmentType!$A:$A,0)-1,0) = "Collective Investment Scheme", OFFSET(InvestmentType!$E$1,MATCH(AQ93,InvestmentType!$A:$A,0)-1,0),IF(OFFSET(InvestmentType!$D$1,MATCH(AQ93,InvestmentType!$A:$A,0)-1,0) = "Derivatives",$BT93,OFFSET(InvestmentType!$D$1,MATCH(AQ93,InvestmentType!$A:$A,0)-1,0))))) -> Money Market Instruments | BM93: 11853199.68 | BN93: =OFFSET(Fund!$B$1,MATCH(A93,Fund!$A:$A,0)-1,0) -> C037A00005 | BO93: =OFFSET(FundSdf!$J$1,MATCH(A93,FundSdf!$A:$A,0)-1,0) -> Wholesale Funds | BP93: =OFFSET(FundSdf!$K$1,MATCH(A93,FundSdf!$A:$A,0)-1,0) -> 0 | BQ93: =OFFSET(FundSdf!$D$1,MATCH(A93,FundSdf!$A:$A,0)-1,0) -> 0 | BR93: =OFFSET(FundSdf!$G$1,MATCH(A93,FundSdf!$A:$A,0)-1,0) -> Noorul Azila Kamaruzzaman | BS93: =OFFSET(InvestmentType!$D$1,MATCH(AQ93,InvestmentType!$A:$A,0)-1,0) -> Money Market Instruments | BT93: =IF(OFFSET(InvestmentType!$D$1,MATCH(AQ93,InvestmentType!$A:$A,0)-1,0)= "Derivatives",IF(AW93="OTC","OTC Derivative", "Exchange Traded Derivative"),"") ->  | BU93: Money Market Instruments | BV93: =OFFSET(EXTManageSdf!$C$1,MATCH(BR93,EXTManageSdf!$B:$B,0)-1,0) ->  | BW93: 0 | BX93: 0 | BY93: 0 | BZ93: 11853199.68 | CA93: 0 | CB93: 11853199.68 | CC93: 0 | CD93: 11853199.68 | CE93: 0 | CF93: 0
A94: BIW | B94: CSH | C94: RPW*MYR*BISLAM | D94: CSH*170600533 | E94: 0 | F94: 0 | G94: 612924.78 | H94: 612924.78 | I94: 2017-11-15 | J94: 606843.87 | K94: 0 | L94: 1 | M94: 6080.91 | N94: 0 | O94: 606843.87 | P94: 606843.87 | Q94: 0 | R94: 0 | S94: MYR | T94: 0.0385 | U94: 2017-06-28 | V94: 0 | W94: 612924.78 | X94: 128.02 | Y94: 2017-09-30 | Z94: 0 | AA94: 0 | AB94: 0 | AC94: 3000-01-01 | AD94: 3000-01-01 | AE94: 0 | AF94: 1 | AG94: 0.1042212322 | AH94: 588099725 | AI94: 1 | AJ94: MY | AK94: 1 | AL94: BANK ISLAM MALAYSIA BERHAD | AM94: 0 | AN94: MYR | AO94: MY | AP94: 1 | AQ94: RPW | AR94: CSH | AS94: Unlisted | AT94: 0 | AU94: WF | AV94: Malaysia | BL94: =IF(B94="TBI",OFFSET(CshFlagMap!$E$1,MATCH(C94,CshFlagMap!$C:$C,0)-1,0),IF(ISNA(OFFSET(InvestmentType!$D$1,MATCH(AQ94,InvestmentType!$A:$A,0)-1,0)),"",IF(OFFSET(InvestmentType!$D$1,MATCH(AQ94,InvestmentType!$A:$A,0)-1,0) = "Collective Investment Scheme", OFFSET(InvestmentType!$E$1,MATCH(AQ94,InvestmentType!$A:$A,0)-1,0),IF(OFFSET(InvestmentType!$D$1,MATCH(AQ94,InvestmentType!$A:$A,0)-1,0) = "Derivatives",$BT94,OFFSET(InvestmentType!$D$1,MATCH(AQ94,InvestmentType!$A:$A,0)-1,0))))) -> Money Market Instruments | BM94: 612924.78 | BN94: =OFFSET(Fund!$B$1,MATCH(A94,Fund!$A:$A,0)-1,0) -> C037A00005 | BO94: =OFFSET(FundSdf!$J$1,MATCH(A94,FundSdf!$A:$A,0)-1,0) -> Wholesale Funds | BP94: =OFFSET(FundSdf!$K$1,MATCH(A94,FundSdf!$A:$A,0)-1,0) -> 0 | BQ94: =OFFSET(FundSdf!$D$1,MATCH(A94,FundSdf!$A:$A,0)-1,0) -> 0 | BR94: =OFFSET(FundSdf!$G$1,MATCH(A94,FundSdf!$A:$A,0)-1,0) -> Noorul Azila Kamaruzzaman | BS94: =OFFSET(InvestmentType!$D$1,MATCH(AQ94,InvestmentType!$A:$A,0)-1,0) -> Money Market Instruments | BT94: =IF(OFFSET(InvestmentType!$D$1,MATCH(AQ94,InvestmentType!$A:$A,0)-1,0)= "Derivatives",IF(AW94="OTC","OTC Derivative", "Exchange Traded Derivative"),"") ->  | BU94: Money Market Instruments | BV94: =OFFSET(EXTManageSdf!$C$1,MATCH(BR94,EXTManageSdf!$B:$B,0)-1,0) ->  | BW94: 0 | BX94: 0 | BY94: 0 | BZ94: 612924.78 | CA94: 0 | CB94: 612924.78 | CC94: 0 | CD94: 612924.78 | CE94: 0 | CF94: 0
A95: BIW | B95: CSH | C95: RPW*MYR*BISLAM | D95: CSH*170600534 | E95: 0 | F95: 0 | G95: 15259390.44 | H95: 15259390.44 | I95: 2017-11-15 | J95: 15108000 | K95: 0 | L95: 1 | M95: 151390.44 | N95: 0 | O95: 15108000 | P95: 15108000 | Q95: 0 | R95: 0 | S95: MYR | T95: 0.0385 | U95: 2017-06-28 | V95: 0 | W95: 15259390.44 | X95: 3187.17 | Y95: 2017-09-30 | Z95: 0 | AA95: 0 | AB95: 0 | AC95: 3000-01-01 | AD95: 3000-01-01 | AE95: 0 | AF95: 1 | AG95: 2.594694367 | AH95: 588099725 | AI95: 1 | AJ95: MY | AK95: 1 | AL95: BANK ISLAM MALAYSIA BERHAD | AM95: 0 | AN95: MYR | AO95: MY | AP95: 1 | AQ95: RPW | AR95: CSH | AS95: Unlisted | AT95: 0 | AU95: WF | AV95: Malaysia | BL95: =IF(B95="TBI",OFFSET(CshFlagMap!$E$1,MATCH(C95,CshFlagMap!$C:$C,0)-1,0),IF(ISNA(OFFSET(InvestmentType!$D$1,MATCH(AQ95,InvestmentType!$A:$A,0)-1,0)),"",IF(OFFSET(InvestmentType!$D$1,MATCH(AQ95,InvestmentType!$A:$A,0)-1,0) = "Collective Investment Scheme", OFFSET(InvestmentType!$E$1,MATCH(AQ95,InvestmentType!$A:$A,0)-1,0),IF(OFFSET(InvestmentType!$D$1,MATCH(AQ95,InvestmentType!$A:$A,0)-1,0) = "Derivatives",$BT95,OFFSET(InvestmentType!$D$1,MATCH(AQ95,InvestmentType!$A:$A,0)-1,0))))) -> Money Market Instruments | BM95: 15259390.44 | BN95: =OFFSET(Fund!$B$1,MATCH(A95,Fund!$A:$A,0)-1,0) -> C037A00005 | BO95: =OFFSET(FundSdf!$J$1,MATCH(A95,FundSdf!$A:$A,0)-1,0) -> Wholesale Funds | BP95: =OFFSET(FundSdf!$K$1,MATCH(A95,FundSdf!$A:$A,0)-1,0) -> 0 | BQ95: =OFFSET(FundSdf!$D$1,MATCH(A95,FundSdf!$A:$A,0)-1,0) -> 0 | BR95: =OFFSET(FundSdf!$G$1,MATCH(A95,FundSdf!$A:$A,0)-1,0) -> Noorul Azila Kamaruzzaman | BS95: =OFFSET(InvestmentType!$D$1,MATCH(AQ95,InvestmentType!$A:$A,0)-1,0) -> Money Market Instruments | BT95: =IF(OFFSET(InvestmentType!$D$1,MATCH(AQ95,InvestmentType!$A:$A,0)-1,0)= "Derivatives",IF(AW95="OTC","OTC Derivative", "Exchange Traded Derivative"),"") ->  | BU95: Money Market Instruments | BV95: =OFFSET(EXTManageSdf!$C$1,MATCH(BR95,EXTManageSdf!$B:$B,0)-1,0) ->  | BW95: 0 | BX95: 0 | BY95: 0 | BZ95: 15259390.44 | CA95: 0 | CB95: 15259390.44 | CC95: 0 | CD95: 15259390.44 | CE95: 0 | CF95: 0
A96: BIW | B96: CSH | C96: RPW*MYR*BISLAM | D96: CSH*170600557 | E96: 0 | F96: 0 | G96: 35347027.4 | H96: 35347027.4 | I96: 2017-11-29 | J96: 35000000 | K96: 0 | L96: 1 | M96: 347027.4 | N96: 0 | O96: 35000000 | P96: 35000000 | Q96: 0 | R96: 0 | S96: MYR | T96: 0.0385 | U96: 2017-06-29 | V96: 0 | W96: 35347027.4 | X96: 7383.56 | Y96: 2017-09-30 | Z96: 0 | AA96: 0 | AB96: 0 | AC96: 3000-01-01 | AD96: 3000-01-01 | AE96: 0 | AF96: 1 | AG96: 6.010379855 | AH96: 588099725 | AI96: 1 | AJ96: MY | AK96: 1 | AL96: BANK ISLAM MALAYSIA BERHAD | AM96: 0 | AN96: MYR | AO96: MY | AP96: 1 | AQ96: RPW | AR96: CSH | AS96: Unlisted | AT96: 0 | AU96: WF | AV96: Malaysia | BL96: =IF(B96="TBI",OFFSET(CshFlagMap!$E$1,MATCH(C96,CshFlagMap!$C:$C,0)-1,0),IF(ISNA(OFFSET(InvestmentType!$D$1,MATCH(AQ96,InvestmentType!$A:$A,0)-1,0)),"",IF(OFFSET(InvestmentType!$D$1,MATCH(AQ96,InvestmentType!$A:$A,0)-1,0) = "Collective Investment Scheme", OFFSET(InvestmentType!$E$1,MATCH(AQ96,InvestmentType!$A:$A,0)-1,0),IF(OFFSET(InvestmentType!$D$1,MATCH(AQ96,InvestmentType!$A:$A,0)-1,0) = "Derivatives",$BT96,OFFSET(InvestmentType!$D$1,MATCH(AQ96,InvestmentType!$A:$A,0)-1,0))))) -> Money Market Instruments | BM96: 35347027.4 | BN96: =OFFSET(Fund!$B$1,MATCH(A96,Fund!$A:$A,0)-1,0) -> C037A00005 | BO96: =OFFSET(FundSdf!$J$1,MATCH(A96,FundSdf!$A:$A,0)-1,0) -> Wholesale Funds | BP96: =OFFSET(FundSdf!$K$1,MATCH(A96,FundSdf!$A:$A,0)-1,0) -> 0 | BQ96: =OFFSET(FundSdf!$D$1,MATCH(A96,FundSdf!$A:$A,0)-1,0) -> 0 | BR96: =OFFSET(FundSdf!$G$1,MATCH(A96,FundSdf!$A:$A,0)-1,0) -> Noorul Azila Kamaruzzaman | BS96: =OFFSET(InvestmentType!$D$1,MATCH(AQ96,InvestmentType!$A:$A,0)-1,0) -> Money Market Instruments | BT96: =IF(OFFSET(InvestmentType!$D$1,MATCH(AQ96,InvestmentType!$A:$A,0)-1,0)= "Derivatives",IF(AW96="OTC","OTC Derivative", "Exchange Traded Derivative"),"") ->  | BU96: Money Market Instruments | BV96: =OFFSET(EXTManageSdf!$C$1,MATCH(BR96,EXTManageSdf!$B:$B,0)-1,0) ->  | BW96: 0 | BX96: 0 | BY96: 0 | BZ96: 35347027.4 | CA96: 0 | CB96: 35347027.4 | CC96: 0 | CD96: 35347027.4 | CE96: 0 | CF96: 0
A97: BIW | B97: CSH | C97: RPW*MYR*BISLAM | D97: CSH*170600590 | E97: 0 | F97: 0 | G97: 25245239.73 | H97: 25245239.73 | I97: 2017-11-30 | J97: 25000000 | K97: 0 | L97: 1 | M97: 245239.73 | N97: 0 | O97: 25000000 | P97: 25000000 | Q97: 0 | R97: 0 | S97: MYR | T97: 0.0385 | U97: 2017-06-30 | V97: 0 | W97: 25245239.73 | X97: 5273.97 | Y97: 2017-09-30 | Z97: 0 | AA97: 0 | AB97: 0 | AC97: 3000-01-01 | AD97: 3000-01-01 | AE97: 0 | AF97: 1 | AG97: 4.292680077 | AH97: 588099725 | AI97: 1 | AJ97: MY | AK97: 1 | AL97: BANK ISLAM MALAYSIA BERHAD | AM97: 0 | AN97: MYR | AO97: MY | AP97: 1 | AQ97: RPW | AR97: CSH | AS97: Unlisted | AT97: 0 | AU97: WF | AV97: Malaysia | BL97: =IF(B97="TBI",OFFSET(CshFlagMap!$E$1,MATCH(C97,CshFlagMap!$C:$C,0)-1,0),IF(ISNA(OFFSET(InvestmentType!$D$1,MATCH(AQ97,InvestmentType!$A:$A,0)-1,0)),"",IF(OFFSET(InvestmentType!$D$1,MATCH(AQ97,InvestmentType!$A:$A,0)-1,0) = "Collective Investment Scheme", OFFSET(InvestmentType!$E$1,MATCH(AQ97,InvestmentType!$A:$A,0)-1,0),IF(OFFSET(InvestmentType!$D$1,MATCH(AQ97,InvestmentType!$A:$A,0)-1,0) = "Derivatives",$BT97,OFFSET(InvestmentType!$D$1,MATCH(AQ97,InvestmentType!$A:$A,0)-1,0))))) -> Money Market Instruments | BM97: 25245239.73 | BN97: =OFFSET(Fund!$B$1,MATCH(A97,Fund!$A:$A,0)-1,0) -> C037A00005 | BO97: =OFFSET(FundSdf!$J$1,MATCH(A97,FundSdf!$A:$A,0)-1,0) -> Wholesale Funds | BP97: =OFFSET(FundSdf!$K$1,MATCH(A97,FundSdf!$A:$A,0)-1,0) -> 0 | BQ97: =OFFSET(FundSdf!$D$1,MATCH(A97,FundSdf!$A:$A,0)-1,0) -> 0 | BR97: =OFFSET(FundSdf!$G$1,MATCH(A97,FundSdf!$A:$A,0)-1,0) -> Noorul Azila Kamaruzzaman | BS97: =OFFSET(InvestmentType!$D$1,MATCH(AQ97,InvestmentType!$A:$A,0)-1,0) -> Money Market Instruments | BT97: =IF(OFFSET(InvestmentType!$D$1,MATCH(AQ97,InvestmentType!$A:$A,0)-1,0)= "Derivatives",IF(AW97="OTC","OTC Derivative", "Exchange Traded Derivative"),"") ->  | BU97: Money Market Instruments | BV97: =OFFSET(EXTManageSdf!$C$1,MATCH(BR97,EXTManageSdf!$B:$B,0)-1,0) ->  | BW97: 0 | BX97: 0 | BY97: 0 | BZ97: 25245239.73 | CA97: 0 | CB97: 25245239.73 | CC97: 0 | CD97: 25245239.73 | CE97: 0 | CF97: 0
A98: BIW | B98: CSH | C98: RPW*MYR*BISLAM | D98: CSH*170700114 | E98: 0 | F98: 0 | G98: 504535.62 | H98: 504535.62 | I98: 2017-11-24 | J98: 500000 | K98: 0 | L98: 1 | M98: 4535.62 | N98: 0 | O98: 500000 | P98: 500000 | Q98: 0 | R98: 0 | S98: MYR | T98: 0.0385 | U98: 2017-07-07 | V98: 0 | W98: 504535.62 | X98: 105.48 | Y98: 2017-09-30 | Z98: 0 | AA98: 0 | AB98: 0 | AC98: 3000-01-01 | AD98: 3000-01-01 | AE98: 0 | AF98: 1 | AG98: 0.08579082739 | AH98: 588099725 | AI98: 1 | AJ98: MY | AK98: 1 | AL98: BANK ISLAM MALAYSIA BERHAD | AM98: 0 | AN98: MYR | AO98: MY | AP98: 1 | AQ98: RPW | AR98: CSH | AS98: Unlisted | AT98: 0 | AU98: WF | AV98: Malaysia | BL98: =IF(B98="TBI",OFFSET(CshFlagMap!$E$1,MATCH(C98,CshFlagMap!$C:$C,0)-1,0),IF(ISNA(OFFSET(InvestmentType!$D$1,MATCH(AQ98,InvestmentType!$A:$A,0)-1,0)),"",IF(OFFSET(InvestmentType!$D$1,MATCH(AQ98,InvestmentType!$A:$A,0)-1,0) = "Collective Investment Scheme", OFFSET(InvestmentType!$E$1,MATCH(AQ98,InvestmentType!$A:$A,0)-1,0),IF(OFFSET(InvestmentType!$D$1,MATCH(AQ98,InvestmentType!$A:$A,0)-1,0) = "Derivatives",$BT98,OFFSET(InvestmentType!$D$1,MATCH(AQ98,InvestmentType!$A:$A,0)-1,0))))) -> Money Market Instruments | BM98: 504535.62 | BN98: =OFFSET(Fund!$B$1,MATCH(A98,Fund!$A:$A,0)-1,0) -> C037A00005 | BO98: =OFFSET(FundSdf!$J$1,MATCH(A98,FundSdf!$A:$A,0)-1,0) -> Wholesale Funds | BP98: =OFFSET(FundSdf!$K$1,MATCH(A98,FundSdf!$A:$A,0)-1,0) -> 0 | BQ98: =OFFSET(FundSdf!$D$1,MATCH(A98,FundSdf!$A:$A,0)-1,0) -> 0 | BR98: =OFFSET(FundSdf!$G$1,MATCH(A98,FundSdf!$A:$A,0)-1,0) -> Noorul Azila Kamaruzzaman | BS98: =OFFSET(InvestmentType!$D$1,MATCH(AQ98,InvestmentType!$A:$A,0)-1,0) -> Money Market Instruments | BT98: =IF(OFFSET(InvestmentType!$D$1,MATCH(AQ98,InvestmentType!$A:$A,0)-1,0)= "Derivatives",IF(AW98="OTC","OTC Derivative", "Exchange Traded Derivative"),"") ->  | BU98: Money Market Instruments | BV98: =OFFSET(EXTManageSdf!$C$1,MATCH(BR98,EXTManageSdf!$B:$B,0)-1,0) ->  | BW98: 0 | BX98: 0 | BY98: 0 | BZ98: 504535.62 | CA98: 0 | CB98: 504535.62 | CC98: 0 | CD98: 504535.62 | CE98: 0 | CF98: 0
A99: BIW | B99: CSH | C99: RPW*MYR*BISLAM | D99: CSH*170800466 | E99: 0 | F99: 0 | G99: 38087776.26 | H99: 38087776.26 | I99: 2017-11-27 | J99: 37953431.51 | K99: 0 | L99: 1 | M99: 134344.75 | N99: 0 | O99: 37953431.51 | P99: 37953431.51 | Q99: 0 | R99: 0 | S99: MYR | T99: 0.038 | U99: 2017-08-28 | V99: 0 | W99: 38087776.26 | X99: 7902.63 | Y99: 2017-09-30 | Z99: 0 | AA99: 0 | AB99: 0 | AC99: 3000-01-01 | AD99: 3000-01-01 | AE99: 0 | AF99: 1 | AG99: 6.476414567 | AH99: 588099725 | AI99: 1 | AJ99: MY | AK99: 1 | AL99: BANK ISLAM MALAYSIA BERHAD | AM99: 0 | AN99: MYR | AO99: MY | AP99: 1 | AQ99: RPW | AR99: CSH | AS99: Unlisted | AT99: 0 | AU99: WF | AV99: Malaysia | BL99: =IF(B99="TBI",OFFSET(CshFlagMap!$E$1,MATCH(C99,CshFlagMap!$C:$C,0)-1,0),IF(ISNA(OFFSET(InvestmentType!$D$1,MATCH(AQ99,InvestmentType!$A:$A,0)-1,0)),"",IF(OFFSET(InvestmentType!$D$1,MATCH(AQ99,InvestmentType!$A:$A,0)-1,0) = "Collective Investment Scheme", OFFSET(InvestmentType!$E$1,MATCH(AQ99,InvestmentType!$A:$A,0)-1,0),IF(OFFSET(InvestmentType!$D$1,MATCH(AQ99,InvestmentType!$A:$A,0)-1,0) = "Derivatives",$BT99,OFFSET(InvestmentType!$D$1,MATCH(AQ99,InvestmentType!$A:$A,0)-1,0))))) -> Money Market Instruments | BM99: 38087776.26 | BN99: =OFFSET(Fund!$B$1,MATCH(A99,Fund!$A:$A,0)-1,0) -> C037A00005 | BO99: =OFFSET(FundSdf!$J$1,MATCH(A99,FundSdf!$A:$A,0)-1,0) -> Wholesale Funds | BP99: =OFFSET(FundSdf!$K$1,MATCH(A99,FundSdf!$A:$A,0)-1,0) -> 0 | BQ99: =OFFSET(FundSdf!$D$1,MATCH(A99,FundSdf!$A:$A,0)-1,0) -> 0 | BR99: =OFFSET(FundSdf!$G$1,MATCH(A99,FundSdf!$A:$A,0)-1,0) -> Noorul Azila Kamaruzzaman | BS99: =OFFSET(InvestmentType!$D$1,MATCH(AQ99,InvestmentType!$A:$A,0)-1,0) -> Money Market Instruments | BT99: =IF(OFFSET(InvestmentType!$D$1,MATCH(AQ99,InvestmentType!$A:$A,0)-1,0)= "Derivatives",IF(AW99="OTC","OTC Derivative", "Exchange Traded Derivative"),"") ->  | BU99: Money Market Instruments | BV99: =OFFSET(EXTManageSdf!$C$1,MATCH(BR99,EXTManageSdf!$B:$B,0)-1,0) ->  | BW99: 0 | BX99: 0 | BY99: 0 | BZ99: 38087776.26 | CA99: 0 | CB99: 38087776.26 | CC99: 0 | CD99: 38087776.26 | CE99: 0 | CF99: 0
A100: BIW | B100: CSH | C100: RPW*MYR*BISLAM | D100: CSH*170800467 | E100: 0 | F100: 0 | G100: 5016767.12 | H100: 5016767.12 | I100: 2017-11-27 | J100: 5000000 | K100: 0 | L100: 1 | M100: 16767.12 | N100: 0 | O100: 5000000 | P100: 5000000 | Q100: 0 | R100: 0 | S100: MYR | T100: 0.036 | U100: 2017-08-28 | V100: 0 | W100: 5016767.12 | X100: 986.3 | Y100: 2017-09-30 | Z100: 0 | AA100: 0 | AB100: 0 | AC100: 3000-01-01 | AD100: 3000-01-01 | AE100: 0 | AF100: 1 | AG100: 0.85304701 | AH100: 588099725 | AI100: 1 | AJ100: MY | AK100: 1 | AL100: BANK ISLAM MALAYSIA BERHAD | AM100: 0 | AN100: MYR | AO100: MY | AP100: 1 | AQ100: RPW | AR100: CSH | AS100: Unlisted | AT100: 0 | AU100: WF | AV100: Malaysia | BL100: =IF(B100="TBI",OFFSET(CshFlagMap!$E$1,MATCH(C100,CshFlagMap!$C:$C,0)-1,0),IF(ISNA(OFFSET(InvestmentType!$D$1,MATCH(AQ100,InvestmentType!$A:$A,0)-1,0)),"",IF(OFFSET(InvestmentType!$D$1,MATCH(AQ100,InvestmentType!$A:$A,0)-1,0) = "Collective Investment Scheme", OFFSET(InvestmentType!$E$1,MATCH(AQ100,InvestmentType!$A:$A,0)-1,0),IF(OFFSET(InvestmentType!$D$1,MATCH(AQ100,InvestmentType!$A:$A,0)-1,0) = "Derivatives",$BT100,OFFSET(InvestmentType!$D$1,MATCH(AQ100,InvestmentType!$A:$A,0)-1,0))))) -> Money Market Instruments | BM100: 5016767.12 | BN100: =OFFSET(Fund!$B$1,MATCH(A100,Fund!$A:$A,0)-1,0) -> C037A00005 | BO100: =OFFSET(FundSdf!$J$1,MATCH(A100,FundSdf!$A:$A,0)-1,0) -> Wholesale Funds | BP100: =OFFSET(FundSdf!$K$1,MATCH(A100,FundSdf!$A:$A,0)-1,0) -> 0 | BQ100: =OFFSET(FundSdf!$D$1,MATCH(A100,FundSdf!$A:$A,0)-1,0) -> 0 | BR100: =OFFSET(FundSdf!$G$1,MATCH(A100,FundSdf!$A:$A,0)-1,0) -> Noorul Azila Kamaruzzaman | BS100: =OFFSET(InvestmentType!$D$1,MATCH(AQ100,InvestmentType!$A:$A,0)-1,0) -> Money Market Instruments | BT100: =IF(OFFSET(InvestmentType!$D$1,MATCH(AQ100,InvestmentType!$A:$A,0)-1,0)= "Derivatives",IF(AW100="OTC","OTC Derivative", "Exchange Traded Derivative"),"") ->  | BU100: Money Market Instruments | BV100: =OFFSET(EXTManageSdf!$C$1,MATCH(BR100,EXTManageSdf!$B:$B,0)-1,0) ->  | BW100: 0 | BX100: 0 | BY100: 0 | BZ100: 5016767.12 | CA100: 0 | CB100: 5016767.12 | CC100: 0 | CD100: 5016767.12 | CE100: 0 | CF100: 0
A101: BIW | B101: CSH | C101: RPW*MYR*BISLAM | D101: CSH*170800510 | E101: 0 | F101: 0 | G101: 601992 | H101: 601992 | I101: 2017-11-29 | J101: 599940.7 | K101: 0 | L101: 1 | M101: 2051.3 | N101: 0 | O101: 599940.7 | P101: 599940.7 | Q101: 0 | R101: 0 | S101: MYR | T101: 0.039 | U101: 2017-08-30 | V101: 0 | W101: 601992 | X101: 128.21 | Y101: 2017-09-30 | Z101: 0 | AA101: 0 | AB101: 0 | AC101: 3000-01-01 | AD101: 3000-01-01 | AE101: 0 | AF101: 1 | AG101: 0.1023622312 | AH101: 588099725 | AI101: 1 | AJ101: MY | AK101: 1 | AL101: BANK ISLAM MALAYSIA BERHAD | AM101: 0 | AN101: MYR | AO101: MY | AP101: 1 | AQ101: RPW | AR101: CSH | AS101: Unlisted | AT101: 0 | AU101: WF | AV101: Malaysia | BL101: =IF(B101="TBI",OFFSET(CshFlagMap!$E$1,MATCH(C101,CshFlagMap!$C:$C,0)-1,0),IF(ISNA(OFFSET(InvestmentType!$D$1,MATCH(AQ101,InvestmentType!$A:$A,0)-1,0)),"",IF(OFFSET(InvestmentType!$D$1,MATCH(AQ101,InvestmentType!$A:$A,0)-1,0) = "Collective Investment Scheme", OFFSET(InvestmentType!$E$1,MATCH(AQ101,InvestmentType!$A:$A,0)-1,0),IF(OFFSET(InvestmentType!$D$1,MATCH(AQ101,InvestmentType!$A:$A,0)-1,0) = "Derivatives",$BT101,OFFSET(InvestmentType!$D$1,MATCH(AQ101,InvestmentType!$A:$A,0)-1,0))))) -> Money Market Instruments | BM101: 601992 | BN101: =OFFSET(Fund!$B$1,MATCH(A101,Fund!$A:$A,0)-1,0) -> C037A00005 | BO101: =OFFSET(FundSdf!$J$1,MATCH(A101,FundSdf!$A:$A,0)-1,0) -> Wholesale Funds | BP101: =OFFSET(FundSdf!$K$1,MATCH(A101,FundSdf!$A:$A,0)-1,0) -> 0 | BQ101: =OFFSET(FundSdf!$D$1,MATCH(A101,FundSdf!$A:$A,0)-1,0) -> 0 | BR101: =OFFSET(FundSdf!$G$1,MATCH(A101,FundSdf!$A:$A,0)-1,0) -> Noorul Azila Kamaruzzaman | BS101: =OFFSET(InvestmentType!$D$1,MATCH(AQ101,InvestmentType!$A:$A,0)-1,0) -> Money Market Instruments | BT101: =IF(OFFSET(InvestmentType!$D$1,MATCH(AQ101,InvestmentType!$A:$A,0)-1,0)= "Derivatives",IF(AW101="OTC","OTC Derivative", "Exchange Traded Derivative"),"") ->  | BU101: Money Market Instruments | BV101: =OFFSET(EXTManageSdf!$C$1,MATCH(BR101,EXTManageSdf!$B:$B,0)-1,0) ->  | BW101: 0 | BX101: 0 | BY101: 0 | BZ101: 601992 | CA101: 0 | CB101: 601992 | CC101: 0 | CD101: 601992 | CE101: 0 | CF101: 0
A102: BIW | B102: CSH | C102: RPW*MYR*BISLAM | D102: CSH*170800530 | E102: 0 | F102: 0 | G102: 11037610.96 | H102: 11037610.96 | I102: 2017-11-29 | J102: 11000000 | K102: 0 | L102: 1 | M102: 37610.96 | N102: 0 | O102: 11000000 | P102: 11000000 | Q102: 0 | R102: 0 | S102: MYR | T102: 0.039 | U102: 2017-08-30 | V102: 0 | W102: 11037610.96 | X102: 2350.68 | Y102: 2017-09-30 | Z102: 0 | AA102: 0 | AB102: 0 | AC102: 3000-01-01 | AD102: 3000-01-01 | AE102: 0 | AF102: 1 | AG102: 1.876826411 | AH102: 588099725 | AI102: 1 | AJ102: MY | AK102: 1 | AL102: BANK ISLAM MALAYSIA BERHAD | AM102: 0 | AN102: MYR | AO102: MY | AP102: 1 | AQ102: RPW | AR102: CSH | AS102: Unlisted | AT102: 0 | AU102: WF | AV102: Malaysia | BL102: =IF(B102="TBI",OFFSET(CshFlagMap!$E$1,MATCH(C102,CshFlagMap!$C:$C,0)-1,0),IF(ISNA(OFFSET(InvestmentType!$D$1,MATCH(AQ102,InvestmentType!$A:$A,0)-1,0)),"",IF(OFFSET(InvestmentType!$D$1,MATCH(AQ102,InvestmentType!$A:$A,0)-1,0) = "Collective Investment Scheme", OFFSET(InvestmentType!$E$1,MATCH(AQ102,InvestmentType!$A:$A,0)-1,0),IF(OFFSET(InvestmentType!$D$1,MATCH(AQ102,InvestmentType!$A:$A,0)-1,0) = "Derivatives",$BT102,OFFSET(InvestmentType!$D$1,MATCH(AQ102,InvestmentType!$A:$A,0)-1,0))))) -> Money Market Instruments | BM102: 11037610.96 | BN102: =OFFSET(Fund!$B$1,MATCH(A102,Fund!$A:$A,0)-1,0) -> C037A00005 | BO102: =OFFSET(FundSdf!$J$1,MATCH(A102,FundSdf!$A:$A,0)-1,0) -> Wholesale Funds | BP102: =OFFSET(FundSdf!$K$1,MATCH(A102,FundSdf!$A:$A,0)-1,0) -> 0 | BQ102: =OFFSET(FundSdf!$D$1,MATCH(A102,FundSdf!$A:$A,0)-1,0) -> 0 | BR102: =OFFSET(FundSdf!$G$1,MATCH(A102,FundSdf!$A:$A,0)-1,0) -> Noorul Azila Kamaruzzaman | BS102: =OFFSET(InvestmentType!$D$1,MATCH(AQ102,InvestmentType!$A:$A,0)-1,0) -> Money Market Instruments | BT102: =IF(OFFSET(InvestmentType!$D$1,MATCH(AQ102,InvestmentType!$A:$A,0)-1,0)= "Derivatives",IF(AW102="OTC","OTC Derivative", "Exchange Traded Derivative"),"") ->  | BU102: Money Market Instruments | BV102: =OFFSET(EXTManageSdf!$C$1,MATCH(BR102,EXTManageSdf!$B:$B,0)-1,0) ->  | BW102: 0 | BX102: 0 | BY102: 0 | BZ102: 11037610.96 | CA102: 0 | CB102: 11037610.96 | CC102: 0 | CD102: 11037610.96 | CE102: 0 | CF102: 0
A103: BMSEF | B103: EQT | C103: 12 | D103: BMSEF*0012 | E103: -19758.01 | F103: 0 | G103: 170730.96 | H103: 170730.96 | I103: 3000-01-01 | J103: 149764 | K103: 1.14 | L103: 1 | M103: 0 | N103: 0 | O103: 190488.97 | P103: 190488.97 | Q103: 0 | R103: 0 | S103: MYR | T103: 0 | U103: 2017-04-11 | V103: 0 | W103: 190488.97 | X103: -2995.28 | Y103: 2017-09-30 | Z103: 0 | AA103: 0 | AB103: 0 | AC103: 3000-01-01 | AD103: 3000-01-01 | AE103: 0 | AF103: 1 | AG103: 0.7150173248 | AH103: 23877877.37 | AI103: 1 | AJ103: MY | AK103: 1 | AL103: 3A | AM103: 0 | AN103: MYR | AO103: MY | AP103: 1 | AQ103: ORD | AR103: EQT | AS103: Listed | AT103: 492000000 | AU103: UTF | AV103: Malaysia | BL103: =IF(B103="TBI",OFFSET(CshFlagMap!$E$1,MATCH(C103,CshFlagMap!$C:$C,0)-1,0),IF(ISNA(OFFSET(InvestmentType!$D$1,MATCH(AQ103,InvestmentType!$A:$A,0)-1,0)),"",IF(OFFSET(InvestmentType!$D$1,MATCH(AQ103,InvestmentType!$A:$A,0)-1,0) = "Collective Investment Scheme", OFFSET(InvestmentType!$E$1,MATCH(AQ103,InvestmentType!$A:$A,0)-1,0),IF(OFFSET(InvestmentType!$D$1,MATCH(AQ103,InvestmentType!$A:$A,0)-1,0) = "Derivatives",$BT103,OFFSET(InvestmentType!$D$1,MATCH(AQ103,InvestmentType!$A:$A,0)-1,0))))) -> Equities | BM103: 170730.96 | BN103: =OFFSET(Fund!$B$1,MATCH(A103,Fund!$A:$A,0)-1,0) -> B037A00007 | BO103: =OFFSET(FundSdf!$J$1,MATCH(A103,FundSdf!$A:$A,0)-1,0) -> Unit Trust Funds | BP103: =OFFSET(FundSdf!$K$1,MATCH(A103,FundSdf!$A:$A,0)-1,0) -> 0 | BQ103: =OFFSET(FundSdf!$D$1,MATCH(A103,FundSdf!$A:$A,0)-1,0) -> 0 | BR103: =OFFSET(FundSdf!$G$1,MATCH(A103,FundSdf!$A:$A,0)-1,0) -> Thong Yong Ling | BS103: =OFFSET(InvestmentType!$D$1,MATCH(AQ103,InvestmentType!$A:$A,0)-1,0) -> Equities | BT103: =IF(OFFSET(InvestmentType!$D$1,MATCH(AQ103,InvestmentType!$A:$A,0)-1,0)= "Derivatives",IF(AW103="OTC","OTC Derivative", "Exchange Traded Derivative"),"") ->  | BU103: Equities | BV103: =OFFSET(EXTManageSdf!$C$1,MATCH(BR103,EXTManageSdf!$B:$B,0)-1,0) ->  | BW103: 0 | BX103: 0 | BY103: 0 | BZ103: 170730.96 | CA103: 0 | CB103: 170730.96 | CC103: 0 | CD103: 170730.96 | CE103: 0 | CF103: 0
A104: BMSEF | B104: EQT | C104: 138 | D104: BMSEF*0138 | E104: -421.15 | F104: 0 | G104: 321440 | H104: 321440 | I104: 3000-01-01 | J104: 156800 | K104: 2.05 | L104: 1 | M104: 0 | N104: 0 | O104: 321861.15 | P104: 321861.15 | Q104: 0 | R104: 0 | S104: MYR | T104: 0 | U104: 2017-04-11 | V104: 0 | W104: 321861.15 | X104: 1568 | Y104: 2017-09-30 | Z104: 0 | AA104: 0 | AB104: 0 | AC104: 3000-01-01 | AD104: 3000-01-01 | AE104: 0 | AF104: 1 | AG104: 1.34618331 | AH104: 23877877.37 | AI104: 1 | AJ104: MY | AK104: 1 | AL104: MYEG | AM104: 35 | AN104: MYR | AO104: MY | AP104: 1 | AQ104: ORD | AR104: EQT | AS104: Listed | AT104: 3606306000 | AU104: UTF | AV104: Malaysia | BL104: =IF(B104="TBI",OFFSET(CshFlagMap!$E$1,MATCH(C104,CshFlagMap!$C:$C,0)-1,0),IF(ISNA(OFFSET(InvestmentType!$D$1,MATCH(AQ104,InvestmentType!$A:$A,0)-1,0)),"",IF(OFFSET(InvestmentType!$D$1,MATCH(AQ104,InvestmentType!$A:$A,0)-1,0) = "Collective Investment Scheme", OFFSET(InvestmentType!$E$1,MATCH(AQ104,InvestmentType!$A:$A,0)-1,0),IF(OFFSET(InvestmentType!$D$1,MATCH(AQ104,InvestmentType!$A:$A,0)-1,0) = "Derivatives",$BT104,OFFSET(InvestmentType!$D$1,MATCH(AQ104,InvestmentType!$A:$A,0)-1,0))))) -> Equities | BM104: 321440 | BN104: =OFFSET(Fund!$B$1,MATCH(A104,Fund!$A:$A,0)-1,0) -> B037A00007 | BO104: =OFFSET(FundSdf!$J$1,MATCH(A104,FundSdf!$A:$A,0)-1,0) -> Unit Trust Funds | BP104: =OFFSET(FundSdf!$K$1,MATCH(A104,FundSdf!$A:$A,0)-1,0) -> 0 | BQ104: =OFFSET(FundSdf!$D$1,MATCH(A104,FundSdf!$A:$A,0)-1,0) -> 0 | BR104: =OFFSET(FundSdf!$G$1,MATCH(A104,FundSdf!$A:$A,0)-1,0) -> Thong Yong Ling | BS104: =OFFSET(InvestmentType!$D$1,MATCH(AQ104,InvestmentType!$A:$A,0)-1,0) -> Equities | BT104: =IF(OFFSET(InvestmentType!$D$1,MATCH(AQ104,InvestmentType!$A:$A,0)-1,0)= "Derivatives",IF(AW104="OTC","OTC Derivative", "Exchange Traded Derivative"),"") ->  | BU104: Equities | BV104: =OFFSET(EXTManageSdf!$C$1,MATCH(BR104,EXTManageSdf!$B:$B,0)-1,0) ->  | BW104: 0 | BX104: 0 | BY104: 0 | BZ104: 321440 | CA104: 0 | CB104: 321440 | CC104: 0 | CD104: 321440 | CE104: 0 | CF104: 0
A105: BMSEF | B105: EQT | C105: 166 | D105: BMSEF*0166 | E105: 57056.51 | F105: 0 | G105: 316486.54 | H105: 316486.54 | I105: 3000-01-01 | J105: 124601 | K105: 2.54 | L105: 1 | M105: 0 | N105: 0 | O105: 259430.03 | P105: 259430.03 | Q105: 0 | R105: 0 | S105: MYR | T105: 0 | U105: 2017-04-11 | V105: 0 | W105: 259430.03 | X105: 1246.01 | Y105: 2017-09-30 | Z105: 0 | AA105: 0 | AB105: 0 | AC105: 3000-01-01 | AD105: 3000-01-01 | AE105: 0 | AF105: 1 | AG105: 1.325438334 | AH105: 23877877.37 | AI105: 1 | AJ105: MY | AK105: 1 | AL105: INARI | AM105: 0 | AN105: MYR | AO105: MY | AP105: 1 | AQ105: ORD | AR105: EQT | AS105: Listed | AT105: 2024415000 | AU105: UTF | AV105: Malaysia | BL105: =IF(B105="TBI",OFFSET(CshFlagMap!$E$1,MATCH(C105,CshFlagMap!$C:$C,0)-1,0),IF(ISNA(OFFSET(InvestmentType!$D$1,MATCH(AQ105,InvestmentType!$A:$A,0)-1,0)),"",IF(OFFSET(InvestmentType!$D$1,MATCH(AQ105,InvestmentType!$A:$A,0)-1,0) = "Collective Investment Scheme", OFFSET(InvestmentType!$E$1,MATCH(AQ105,InvestmentType!$A:$A,0)-1,0),IF(OFFSET(InvestmentType!$D$1,MATCH(AQ105,InvestmentType!$A:$A,0)-1,0) = "Derivatives",$BT105,OFFSET(InvestmentType!$D$1,MATCH(AQ105,InvestmentType!$A:$A,0)-1,0))))) -> Equities | BM105: 316486.54 | BN105: =OFFSET(Fund!$B$1,MATCH(A105,Fund!$A:$A,0)-1,0) -> B037A00007 | BO105: =OFFSET(FundSdf!$J$1,MATCH(A105,FundSdf!$A:$A,0)-1,0) -> Unit Trust Funds | BP105: =OFFSET(FundSdf!$K$1,MATCH(A105,FundSdf!$A:$A,0)-1,0) -> 0 | BQ105: =OFFSET(FundSdf!$D$1,MATCH(A105,FundSdf!$A:$A,0)-1,0) -> 0 | BR105: =OFFSET(FundSdf!$G$1,MATCH(A105,FundSdf!$A:$A,0)-1,0) -> Thong Yong Ling | BS105: =OFFSET(InvestmentType!$D$1,MATCH(AQ105,InvestmentType!$A:$A,0)-1,0) -> Equities | BT105: =IF(OFFSET(InvestmentType!$D$1,MATCH(AQ105,InvestmentType!$A:$A,0)-1,0)= "Derivatives",IF(AW105="OTC","OTC Derivative", "Exchange Traded Derivative"),"") ->  | BU105: Equities | BV105: =OFFSET(EXTManageSdf!$C$1,MATCH(BR105,EXTManageSdf!$B:$B,0)-1,0) ->  | BW105: 0 | BX105: 0 | BY105: 0 | BZ105: 316486.54 | CA105: 0 | CB105: 316486.54 | CC105: 0 | CD105: 316486.54 | CE105: 0 | CF105: 0
A106: BMSEF | B106: EQT | C106: 176 | D106: BMSEF*0176 | E106: 10551.19 | F106: 0 | G106: 106374.08 | H106: 106374.08 | I106: 3000-01-01 | J106: 114999 | K106: 0.925 | L106: 1 | M106: 0 | N106: 0 | O106: 95822.89 | P106: 95822.89 | Q106: 0 | R106: 0 | S106: MYR | T106: 0 | U106: 2017-08-08 | V106: 0 | W106: 95822.89 | X106: 574.99 | Y106: 2017-09-30 | Z106: 0 | AA106: 0 | AB106: 0 | AC106: 3000-01-01 | AD106: 3000-01-01 | AE106: 0 | AF106: 1 | AG106: 0.4454921949 | AH106: 23877877.37 | AI106: 1 | AJ106: MY | AK106: 1 | AL106: KRONO | AM106: 0 | AN106: MYR | AO106: MY | AP106: 1 | AQ106: ORD | AR106: EQT | AS106: Listed | AT106: 297372900 | AU106: UTF | AV106: Malaysia | BL106: =IF(B106="TBI",OFFSET(CshFlagMap!$E$1,MATCH(C106,CshFlagMap!$C:$C,0)-1,0),IF(ISNA(OFFSET(InvestmentType!$D$1,MATCH(AQ106,InvestmentType!$A:$A,0)-1,0)),"",IF(OFFSET(InvestmentType!$D$1,MATCH(AQ106,InvestmentType!$A:$A,0)-1,0) = "Collective Investment Scheme", OFFSET(InvestmentType!$E$1,MATCH(AQ106,InvestmentType!$A:$A,0)-1,0),IF(OFFSET(InvestmentType!$D$1,MATCH(AQ106,InvestmentType!$A:$A,0)-1,0) = "Derivatives",$BT106,OFFSET(InvestmentType!$D$1,MATCH(AQ106,InvestmentType!$A:$A,0)-1,0))))) -> Equities | BM106: 106374.08 | BN106: =OFFSET(Fund!$B$1,MATCH(A106,Fund!$A:$A,0)-1,0) -> B037A00007 | BO106: =OFFSET(FundSdf!$J$1,MATCH(A106,FundSdf!$A:$A,0)-1,0) -> Unit Trust Funds | BP106: =OFFSET(FundSdf!$K$1,MATCH(A106,FundSdf!$A:$A,0)-1,0) -> 0 | BQ106: =OFFSET(FundSdf!$D$1,MATCH(A106,FundSdf!$A:$A,0)-1,0) -> 0 | BR106: =OFFSET(FundSdf!$G$1,MATCH(A106,FundSdf!$A:$A,0)-1,0) -> Thong Yong Ling | BS106: =OFFSET(InvestmentType!$D$1,MATCH(AQ106,InvestmentType!$A:$A,0)-1,0) -> Equities | BT106: =IF(OFFSET(InvestmentType!$D$1,MATCH(AQ106,InvestmentType!$A:$A,0)-1,0)= "Derivatives",IF(AW106="OTC","OTC Derivative", "Exchange Traded Derivative"),"") ->  | BU106: Equities | BV106: =OFFSET(EXTManageSdf!$C$1,MATCH(BR106,EXTManageSdf!$B:$B,0)-1,0) ->  | BW106: 0 | BX106: 0 | BY106: 0 | BZ106: 106374.08 | CA106: 0 | CB106: 106374.08 | CC106: 0 | CD106: 106374.08 | CE106: 0 | CF106: 0
A107: BMSEF | B107: EQT | C107: 179 | D107: BMSEF*0179 | E107: 2686.83 | F107: 0 | G107: 124820.54 | H107: 124820.54 | I107: 3000-01-01 | J107: 480079 | K107: 0.26 | L107: 1 | M107: 0 | N107: 0 | O107: 122133.71 | P107: 122133.71 | Q107: 0 | R107: 0 | S107: MYR | T107: 0 | U107: 2017-04-11 | V107: 0 | W107: 122133.71 | X107: 0 | Y107: 2017-09-30 | Z107: 0 | AA107: 0 | AB107: 0 | AC107: 3000-01-01 | AD107: 3000-01-01 | AE107: 0 | AF107: 1 | AG107: 0.5227455442 | AH107: 23877877.37 | AI107: 1 | AJ107: MY | AK107: 1 | AL107: BIOHLDG | AM107: 20 | AN107: MYR | AO107: MY | AP107: 1 | AQ107: ORD | AR107: EQT | AS107: Unlisted | AT107: 808249100 | AU107: UTF | AV107: Malaysia | BL107: =IF(B107="TBI",OFFSET(CshFlagMap!$E$1,MATCH(C107,CshFlagMap!$C:$C,0)-1,0),IF(ISNA(OFFSET(InvestmentType!$D$1,MATCH(AQ107,InvestmentType!$A:$A,0)-1,0)),"",IF(OFFSET(InvestmentType!$D$1,MATCH(AQ107,InvestmentType!$A:$A,0)-1,0) = "Collective Investment Scheme", OFFSET(InvestmentType!$E$1,MATCH(AQ107,InvestmentType!$A:$A,0)-1,0),IF(OFFSET(InvestmentType!$D$1,MATCH(AQ107,InvestmentType!$A:$A,0)-1,0) = "Derivatives",$BT107,OFFSET(InvestmentType!$D$1,MATCH(AQ107,InvestmentType!$A:$A,0)-1,0))))) -> Equities | BM107: 124820.54 | BN107: =OFFSET(Fund!$B$1,MATCH(A107,Fund!$A:$A,0)-1,0) -> B037A00007 | BO107: =OFFSET(FundSdf!$J$1,MATCH(A107,FundSdf!$A:$A,0)-1,0) -> Unit Trust Funds | BP107: =OFFSET(FundSdf!$K$1,MATCH(A107,FundSdf!$A:$A,0)-1,0) -> 0 | BQ107: =OFFSET(FundSdf!$D$1,MATCH(A107,FundSdf!$A:$A,0)-1,0) -> 0 | BR107: =OFFSET(FundSdf!$G$1,MATCH(A107,FundSdf!$A:$A,0)-1,0) -> Thong Yong Ling | BS107: =OFFSET(InvestmentType!$D$1,MATCH(AQ107,InvestmentType!$A:$A,0)-1,0) -> Equities | BT107: =IF(OFFSET(InvestmentType!$D$1,MATCH(AQ107,InvestmentType!$A:$A,0)-1,0)= "Derivatives",IF(AW107="OTC","OTC Derivative", "Exchange Traded Derivative"),"") ->  | BU107: Equities | BV107: =OFFSET(EXTManageSdf!$C$1,MATCH(BR107,EXTManageSdf!$B:$B,0)-1,0) ->  | BW107: 0 | BX107: 0 | BY107: 0 | BZ107: 124820.54 | CA107: 0 | CB107: 124820.54 | CC107: 0 | CD107: 124820.54 | CE107: 0 | CF107: 0
A108: BMSEF | B108: EQT | C108: 183 | D108: BMSEF*0183 | E108: 818.06 | F108: 0 | G108: 183480 | H108: 183480 | I108: 3000-01-01 | J108: 132000 | K108: 1.39 | L108: 1 | M108: 0 | N108: 0 | O108: 182661.94 | P108: 182661.94 | Q108: 0 | R108: 0 | S108: MYR | T108: 0 | U108: 2017-09-08 | V108: 0 | W108: 182661.94 | X108: -2640 | Y108: 2017-09-30 | Z108: 0 | AA108: 0 | AB108: 0 | AC108: 3000-01-01 | AD108: 3000-01-01 | AE108: 0 | AF108: 1 | AG108: 0.7684100105 | AH108: 23877877.37 | AI108: 1 | AJ108: MY | AK108: 1 | AL108: SALUTE | AM108: 38 | AN108: MYR | AO108: MY | AP108: 1 | AQ108: ORD | AR108: EQT | AS108: Listed | AT108: 388000000 | AU108: UTF | AV108: Malaysia | BL108: =IF(B108="TBI",OFFSET(CshFlagMap!$E$1,MATCH(C108,CshFlagMap!$C:$C,0)-1,0),IF(ISNA(OFFSET(InvestmentType!$D$1,MATCH(AQ108,InvestmentType!$A:$A,0)-1,0)),"",IF(OFFSET(InvestmentType!$D$1,MATCH(AQ108,InvestmentType!$A:$A,0)-1,0) = "Collective Investment Scheme", OFFSET(InvestmentType!$E$1,MATCH(AQ108,InvestmentType!$A:$A,0)-1,0),IF(OFFSET(InvestmentType!$D$1,MATCH(AQ108,InvestmentType!$A:$A,0)-1,0) = "Derivatives",$BT108,OFFSET(InvestmentType!$D$1,MATCH(AQ108,InvestmentType!$A:$A,0)-1,0))))) -> Equities | BM108: 183480 | BN108: =OFFSET(Fund!$B$1,MATCH(A108,Fund!$A:$A,0)-1,0) -> B037A00007 | BO108: =OFFSET(FundSdf!$J$1,MATCH(A108,FundSdf!$A:$A,0)-1,0) -> Unit Trust Funds | BP108: =OFFSET(FundSdf!$K$1,MATCH(A108,FundSdf!$A:$A,0)-1,0) -> 0 | BQ108: =OFFSET(FundSdf!$D$1,MATCH(A108,FundSdf!$A:$A,0)-1,0) -> 0 | BR108: =OFFSET(FundSdf!$G$1,MATCH(A108,FundSdf!$A:$A,0)-1,0) -> Thong Yong Ling | BS108: =OFFSET(InvestmentType!$D$1,MATCH(AQ108,InvestmentType!$A:$A,0)-1,0) -> Equities | BT108: =IF(OFFSET(InvestmentType!$D$1,MATCH(AQ108,InvestmentType!$A:$A,0)-1,0)= "Derivatives",IF(AW108="OTC","OTC Derivative", "Exchange Traded Derivative"),"") ->  | BU108: Equities | BV108: =OFFSET(EXTManageSdf!$C$1,MATCH(BR108,EXTManageSdf!$B:$B,0)-1,0) ->  | BW108: 0 | BX108: 0 | BY108: 0 | BZ108: 183480 | CA108: 0 | CB108: 183480 | CC108: 0 | CD108: 183480 | CE108: 0 | CF108: 0
A109: BMSEF | B109: EQT | C109: 187 | D109: BMSEF*0187 | E109: -2016.25 | F109: 0 | G109: 94500 | H109: 94500 | I109: 3000-01-01 | J109: 540000 | K109: 0.175 | L109: 1 | M109: 0 | N109: 0 | O109: 96516.25 | P109: 96516.25 | Q109: 0 | R109: 0 | S109: MYR | T109: 0 | U109: 2017-09-08 | V109: 0 | W109: 96516.25 | X109: -2700 | Y109: 2017-09-30 | Z109: 0 | AA109: 0 | AB109: 0 | AC109: 3000-01-01 | AD109: 3000-01-01 | AE109: 0 | AF109: 1 | AG109: 0.3957638216 | AH109: 23877877.37 | AI109: 1 | AJ109: MY | AK109: 1 | AL109: BCMALL | AM109: 38 | AN109: MYR | AO109: MY | AP109: 1 | AQ109: ORD | AR109: EQT | AS109: Listed | AT109: 421250200 | AU109: UTF | AV109: Malaysia | BL109: =IF(B109="TBI",OFFSET(CshFlagMap!$E$1,MATCH(C109,CshFlagMap!$C:$C,0)-1,0),IF(ISNA(OFFSET(InvestmentType!$D$1,MATCH(AQ109,InvestmentType!$A:$A,0)-1,0)),"",IF(OFFSET(InvestmentType!$D$1,MATCH(AQ109,InvestmentType!$A:$A,0)-1,0) = "Collective Investment Scheme", OFFSET(InvestmentType!$E$1,MATCH(AQ109,InvestmentType!$A:$A,0)-1,0),IF(OFFSET(InvestmentType!$D$1,MATCH(AQ109,InvestmentType!$A:$A,0)-1,0) = "Derivatives",$BT109,OFFSET(InvestmentType!$D$1,MATCH(AQ109,InvestmentType!$A:$A,0)-1,0))))) -> Equities | BM109: 94500 | BN109: =OFFSET(Fund!$B$1,MATCH(A109,Fund!$A:$A,0)-1,0) -> B037A00007 | BO109: =OFFSET(FundSdf!$J$1,MATCH(A109,FundSdf!$A:$A,0)-1,0) -> Unit Trust Funds | BP109: =OFFSET(FundSdf!$K$1,MATCH(A109,FundSdf!$A:$A,0)-1,0) -> 0 | BQ109: =OFFSET(FundSdf!$D$1,MATCH(A109,FundSdf!$A:$A,0)-1,0) -> 0 | BR109: =OFFSET(FundSdf!$G$1,MATCH(A109,FundSdf!$A:$A,0)-1,0) -> Thong Yong Ling | BS109: =OFFSET(InvestmentType!$D$1,MATCH(AQ109,InvestmentType!$A:$A,0)-1,0) -> Equities | BT109: =IF(OFFSET(InvestmentType!$D$1,MATCH(AQ109,InvestmentType!$A:$A,0)-1,0)= "Derivatives",IF(AW109="OTC","OTC Derivative", "Exchange Traded Derivative"),"") ->  | BU109: Equities | BV109: =OFFSET(EXTManageSdf!$C$1,MATCH(BR109,EXTManageSdf!$B:$B,0)-1,0) ->  | BW109: 0 | BX109: 0 | BY109: 0 | BZ109: 94500 | CA109: 0 | CB109: 94500 | CC109: 0 | CD109: 94500 | CE109: 0 | CF109: 0
A110: BMSEF | B110: EQT | C110: 1368 | D110: BMSEF*1368 | E110: 278.11 | F110: 0 | G110: 36045 | H110: 36045 | I110: 3000-01-01 | J110: 13500 | K110: 2.67 | L110: 1 | M110: 0 | N110: 0 | O110: 35766.89 | P110: 35766.89 | Q110: 0 | R110: 0 | S110: MYR | T110: 0 | U110: 2017-09-08 | V110: 0 | W110: 35766.89 | X110: 0 | Y110: 2017-09-30 | Z110: 0 | AA110: 0 | AB110: 0 | AC110: 3000-01-01 | AD110: 3000-01-01 | AE110: 0 | AF110: 1 | AG110: 0.1509556291 | AH110: 23877877.37 | AI110: 1 | AJ110: MY | AK110: 1 | AL110: EDGENTA | AM110: 32 | AN110: MYR | AO110: MY | AP110: 0 | AQ110: ORD | AR110: EQT | AS110: Listed | AT110: 831624000 | AU110: UTF | AV110: Malaysia | BL110: =IF(B110="TBI",OFFSET(CshFlagMap!$E$1,MATCH(C110,CshFlagMap!$C:$C,0)-1,0),IF(ISNA(OFFSET(InvestmentType!$D$1,MATCH(AQ110,InvestmentType!$A:$A,0)-1,0)),"",IF(OFFSET(InvestmentType!$D$1,MATCH(AQ110,InvestmentType!$A:$A,0)-1,0) = "Collective Investment Scheme", OFFSET(InvestmentType!$E$1,MATCH(AQ110,InvestmentType!$A:$A,0)-1,0),IF(OFFSET(InvestmentType!$D$1,MATCH(AQ110,InvestmentType!$A:$A,0)-1,0) = "Derivatives",$BT110,OFFSET(InvestmentType!$D$1,MATCH(AQ110,InvestmentType!$A:$A,0)-1,0))))) -> Equities | BM110: 36045 | BN110: =OFFSET(Fund!$B$1,MATCH(A110,Fund!$A:$A,0)-1,0) -> B037A00007 | BO110: =OFFSET(FundSdf!$J$1,MATCH(A110,FundSdf!$A:$A,0)-1,0) -> Unit Trust Funds | BP110: =OFFSET(FundSdf!$K$1,MATCH(A110,FundSdf!$A:$A,0)-1,0) -> 0 | BQ110: =OFFSET(FundSdf!$D$1,MATCH(A110,FundSdf!$A:$A,0)-1,0) -> 0 | BR110: =OFFSET(FundSdf!$G$1,MATCH(A110,FundSdf!$A:$A,0)-1,0) -> Thong Yong Ling | BS110: =OFFSET(InvestmentType!$D$1,MATCH(AQ110,InvestmentType!$A:$A,0)-1,0) -> Equities | BT110: =IF(OFFSET(InvestmentType!$D$1,MATCH(AQ110,InvestmentType!$A:$A,0)-1,0)= "Derivatives",IF(AW110="OTC","OTC Derivative", "Exchange Traded Derivative"),"") ->  | BU110: Equities | BV110: =OFFSET(EXTManageSdf!$C$1,MATCH(BR110,EXTManageSdf!$B:$B,0)-1,0) ->  | BW110: 0 | BX110: 0 | BY110: 0 | BZ110: 36045 | CA110: 0 | CB110: 36045 | CC110: 0 | CD110: 36045 | CE110: 0 | CF110: 0
A111: BMSEF | B111: EQT | C111: 1961 | D111: BMSEF*1961 | E111: -1591.64 | F111: 0 | G111: 199760 | H111: 199760 | I111: 3000-01-01 | J111: 44000 | K111: 4.54 | L111: 1 | M111: 0 | N111: 0 | O111: 201351.64 | P111: 201351.64 | Q111: 0 | R111: 0 | S111: MYR | T111: 0 | U111: 2017-09-08 | V111: 0 | W111: 201351.64 | X111: -440 | Y111: 2017-09-30 | Z111: 0 | AA111: 0 | AB111: 0 | AC111: 3000-01-01 | AD111: 3000-01-01 | AE111: 0 | AF111: 1 | AG111: 0.8365902752 | AH111: 23877877.37 | AI111: 1 | AJ111: MY | AK111: 1 | AL111: IOICORP | AM111: 30 | AN111: MYR | AO111: MY | AP111: 1 | AQ111: ORD | AR111: EQT | AS111: Listed | AT111: 6283860000 | AU111: UTF | AV111: Malaysia | BL111: =IF(B111="TBI",OFFSET(CshFlagMap!$E$1,MATCH(C111,CshFlagMap!$C:$C,0)-1,0),IF(ISNA(OFFSET(InvestmentType!$D$1,MATCH(AQ111,InvestmentType!$A:$A,0)-1,0)),"",IF(OFFSET(InvestmentType!$D$1,MATCH(AQ111,InvestmentType!$A:$A,0)-1,0) = "Collective Investment Scheme", OFFSET(InvestmentType!$E$1,MATCH(AQ111,InvestmentType!$A:$A,0)-1,0),IF(OFFSET(InvestmentType!$D$1,MATCH(AQ111,InvestmentType!$A:$A,0)-1,0) = "Derivatives",$BT111,OFFSET(InvestmentType!$D$1,MATCH(AQ111,InvestmentType!$A:$A,0)-1,0))))) -> Equities | BM111: 199760 | BN111: =OFFSET(Fund!$B$1,MATCH(A111,Fund!$A:$A,0)-1,0) -> B037A00007 | BO111: =OFFSET(FundSdf!$J$1,MATCH(A111,FundSdf!$A:$A,0)-1,0) -> Unit Trust Funds | BP111: =OFFSET(FundSdf!$K$1,MATCH(A111,FundSdf!$A:$A,0)-1,0) -> 0 | BQ111: =OFFSET(FundSdf!$D$1,MATCH(A111,FundSdf!$A:$A,0)-1,0) -> 0 | BR111: =OFFSET(FundSdf!$G$1,MATCH(A111,FundSdf!$A:$A,0)-1,0) -> Thong Yong Ling | BS111: =OFFSET(InvestmentType!$D$1,MATCH(AQ111,InvestmentType!$A:$A,0)-1,0) -> Equities | BT111: =IF(OFFSET(InvestmentType!$D$1,MATCH(AQ111,InvestmentType!$A:$A,0)-1,0)= "Derivatives",IF(AW111="OTC","OTC Derivative", "Exchange Traded Derivative"),"") ->  | BU111: Equities | BV111: =OFFSET(EXTManageSdf!$C$1,MATCH(BR111,EXTManageSdf!$B:$B,0)-1,0) ->  | BW111: 0 | BX111: 0 | BY111: 0 | BZ111: 199760 | CA111: 0 | CB111: 199760 | CC111: 0 | CD111: 199760 | CE111: 0 | CF111: 0
A112: BMSEF | B112: EQT | C112: 1996 | D112: BMSEF*1996 | E112: -2642.55 | F112: 0 | G112: 78229.33 | H112: 78229.33 | I112: 3000-01-01 | J112: 138459 | K112: 0.565 | L112: 1 | M112: 0 | N112: 0 | O112: 80871.88 | P112: 80871.88 | Q112: 0 | R112: 0 | S112: MYR | T112: 0 | U112: 2017-04-11 | V112: 0 | W112: 80871.88 | X112: 692.3 | Y112: 2017-09-30 | Z112: 0 | AA112: 0 | AB112: 0 | AC112: 3000-01-01 | AD112: 3000-01-01 | AE112: 0 | AF112: 1 | AG112: 0.3276226307 | AH112: 23877877.37 | AI112: 1 | AJ112: MY | AK112: 1 | AL112: KRETAM | AM112: 0 | AN112: MYR | AO112: MY | AP112: 1 | AQ112: ORD | AR112: EQT | AS112: Listed | AT112: 2327627000 | AU112: UTF | AV112: Malaysia | BL112: =IF(B112="TBI",OFFSET(CshFlagMap!$E$1,MATCH(C112,CshFlagMap!$C:$C,0)-1,0),IF(ISNA(OFFSET(InvestmentType!$D$1,MATCH(AQ112,InvestmentType!$A:$A,0)-1,0)),"",IF(OFFSET(InvestmentType!$D$1,MATCH(AQ112,InvestmentType!$A:$A,0)-1,0) = "Collective Investment Scheme", OFFSET(InvestmentType!$E$1,MATCH(AQ112,InvestmentType!$A:$A,0)-1,0),IF(OFFSET(InvestmentType!$D$1,MATCH(AQ112,InvestmentType!$A:$A,0)-1,0) = "Derivatives",$BT112,OFFSET(InvestmentType!$D$1,MATCH(AQ112,InvestmentType!$A:$A,0)-1,0))))) -> Equities | BM112: 78229.33 | BN112: =OFFSET(Fund!$B$1,MATCH(A112,Fund!$A:$A,0)-1,0) -> B037A00007 | BO112: =OFFSET(FundSdf!$J$1,MATCH(A112,FundSdf!$A:$A,0)-1,0) -> Unit Trust Funds | BP112: =OFFSET(FundSdf!$K$1,MATCH(A112,FundSdf!$A:$A,0)-1,0) -> 0 | BQ112: =OFFSET(FundSdf!$D$1,MATCH(A112,FundSdf!$A:$A,0)-1,0) -> 0 | BR112: =OFFSET(FundSdf!$G$1,MATCH(A112,FundSdf!$A:$A,0)-1,0) -> Thong Yong Ling | BS112: =OFFSET(InvestmentType!$D$1,MATCH(AQ112,InvestmentType!$A:$A,0)-1,0) -> Equities | BT112: =IF(OFFSET(InvestmentType!$D$1,MATCH(AQ112,InvestmentType!$A:$A,0)-1,0)= "Derivatives",IF(AW112="OTC","OTC Derivative", "Exchange Traded Derivative"),"") ->  | BU112: Equities | BV112: =OFFSET(EXTManageSdf!$C$1,MATCH(BR112,EXTManageSdf!$B:$B,0)-1,0) ->  | BW112: 0 | BX112: 0 | BY112: 0 | BZ112: 78229.33 | CA112: 0 | CB112: 78229.33 | CC112: 0 | CD112: 78229.33 | CE112: 0 | CF112: 0
A113: BMSEF | B113: EQT | C113: 2089 | D113: BMSEF*2089 | E113: -5834.09 | F113: 0 | G113: 143133.9 | H113: 143133.9 | I113: 3000-01-01 | J113: 5243 | K113: 27.3 | L113: 1 | M113: 0 | N113: 0 | O113: 148967.99 | P113: 148967.99 | Q113: 0 | R113: 0 | S113: MYR | T113: 0 | U113: 2017-04-11 | V113: 0 | W113: 148967.99 | X113: -419.44 | Y113: 2017-09-30 | Z113: 0 | AA113: 0 | AB113: 0 | AC113: 3000-01-01 | AD113: 3000-01-01 | AE113: 0 | AF113: 1 | AG113: 0.5994414737 | AH113: 23877877.37 | AI113: 1 | AJ113: MY | AK113: 1 | AL113: UTDPLT | AM113: 30 | AN113: MYR | AO113: MY | AP113: 1 | AQ113: ORD | AR113: EQT | AS113: Listed | AT113: 207792500 | AU113: UTF | AV113: Malaysia | BL113: =IF(B113="TBI",OFFSET(CshFlagMap!$E$1,MATCH(C113,CshFlagMap!$C:$C,0)-1,0),IF(ISNA(OFFSET(InvestmentType!$D$1,MATCH(AQ113,InvestmentType!$A:$A,0)-1,0)),"",IF(OFFSET(InvestmentType!$D$1,MATCH(AQ113,InvestmentType!$A:$A,0)-1,0) = "Collective Investment Scheme", OFFSET(InvestmentType!$E$1,MATCH(AQ113,InvestmentType!$A:$A,0)-1,0),IF(OFFSET(InvestmentType!$D$1,MATCH(AQ113,InvestmentType!$A:$A,0)-1,0) = "Derivatives",$BT113,OFFSET(InvestmentType!$D$1,MATCH(AQ113,InvestmentType!$A:$A,0)-1,0))))) -> Equities | BM113: 143133.9 | BN113: =OFFSET(Fund!$B$1,MATCH(A113,Fund!$A:$A,0)-1,0) -> B037A00007 | BO113: =OFFSET(FundSdf!$J$1,MATCH(A113,FundSdf!$A:$A,0)-1,0) -> Unit Trust Funds | BP113: =OFFSET(FundSdf!$K$1,MATCH(A113,FundSdf!$A:$A,0)-1,0) -> 0 | BQ113: =OFFSET(FundSdf!$D$1,MATCH(A113,FundSdf!$A:$A,0)-1,0) -> 0 | BR113: =OFFSET(FundSdf!$G$1,MATCH(A113,FundSdf!$A:$A,0)-1,0) -> Thong Yong Ling | BS113: =OFFSET(InvestmentType!$D$1,MATCH(AQ113,InvestmentType!$A:$A,0)-1,0) -> Equities | BT113: =IF(OFFSET(InvestmentType!$D$1,MATCH(AQ113,InvestmentType!$A:$A,0)-1,0)= "Derivatives",IF(AW113="OTC","OTC Derivative", "Exchange Traded Derivative"),"") ->  | BU113: Equities | BV113: =OFFSET(EXTManageSdf!$C$1,MATCH(BR113,EXTManageSdf!$B:$B,0)-1,0) ->  | BW113: 0 | BX113: 0 | BY113: 0 | BZ113: 143133.9 | CA113: 0 | CB113: 143133.9 | CC113: 0 | CD113: 143133.9 | CE113: 0 | CF113: 0
A114: BMSEF | B114: EQT | C114: 2127 | D114: BMSEF*2127 | E114: 25985.71 | F114: 0 | G114: 165504.7 | H114: 165504.7 | I114: 3000-01-01 | J114: 178924 | K114: 0.925 | L114: 1 | M114: 0 | N114: 0 | O114: 139518.99 | P114: 139518.99 | Q114: 0 | R114: 0 | S114: MYR | T114: 0 | U114: 2017-04-11 | V114: 0 | W114: 139518.99 | X114: -2683.86 | Y114: 2017-09-30 | Z114: 0 | AA114: 0 | AB114: 0 | AC114: 3000-01-01 | AD114: 3000-01-01 | AE114: 0 | AF114: 1 | AG114: 0.6931298684 | AH114: 23877877.37 | AI114: 1 | AJ114: MY | AK114: 1 | AL114: COMFORT | AM114: 0 | AN114: MYR | AO114: MY | AP114: 1 | AQ114: ORD | AR114: EQT | AS114: Listed | AT114: 558790400 | AU114: UTF | AV114: Malaysia | BL114: =IF(B114="TBI",OFFSET(CshFlagMap!$E$1,MATCH(C114,CshFlagMap!$C:$C,0)-1,0),IF(ISNA(OFFSET(InvestmentType!$D$1,MATCH(AQ114,InvestmentType!$A:$A,0)-1,0)),"",IF(OFFSET(InvestmentType!$D$1,MATCH(AQ114,InvestmentType!$A:$A,0)-1,0) = "Collective Investment Scheme", OFFSET(InvestmentType!$E$1,MATCH(AQ114,InvestmentType!$A:$A,0)-1,0),IF(OFFSET(InvestmentType!$D$1,MATCH(AQ114,InvestmentType!$A:$A,0)-1,0) = "Derivatives",$BT114,OFFSET(InvestmentType!$D$1,MATCH(AQ114,InvestmentType!$A:$A,0)-1,0))))) -> Equities | BM114: 165504.7 | BN114: =OFFSET(Fund!$B$1,MATCH(A114,Fund!$A:$A,0)-1,0) -> B037A00007 | BO114: =OFFSET(FundSdf!$J$1,MATCH(A114,FundSdf!$A:$A,0)-1,0) -> Unit Trust Funds | BP114: =OFFSET(FundSdf!$K$1,MATCH(A114,FundSdf!$A:$A,0)-1,0) -> 0 | BQ114: =OFFSET(FundSdf!$D$1,MATCH(A114,FundSdf!$A:$A,0)-1,0) -> 0 | BR114: =OFFSET(FundSdf!$G$1,MATCH(A114,FundSdf!$A:$A,0)-1,0) -> Thong Yong Ling | BS114: =OFFSET(InvestmentType!$D$1,MATCH(AQ114,InvestmentType!$A:$A,0)-1,0) -> Equities | BT114: =IF(OFFSET(InvestmentType!$D$1,MATCH(AQ114,InvestmentType!$A:$A,0)-1,0)= "Derivatives",IF(AW114="OTC","OTC Derivative", "Exchange Traded Derivative"),"") ->  | BU114: Equities | BV114: =OFFSET(EXTManageSdf!$C$1,MATCH(BR114,EXTManageSdf!$B:$B,0)-1,0) ->  | BW114: 0 | BX114: 0 | BY114: 0 | BZ114: 165504.7 | CA114: 0 | CB114: 165504.7 | CC114: 0 | CD114: 165504.7 | CE114: 0 | CF114: 0
A115: BMSEF | B115: EQT | C115: 2291 | D115: BMSEF*2291 | E115: -12305.24 | F115: 0 | G115: 319300 | H115: 319300 | I115: 3000-01-01 | J115: 31000 | K115: 10.3 | L115: 1 | M115: 0 | N115: 0 | O115: 331605.24 | P115: 331605.24 | Q115: 0 | R115: 0 | S115: MYR | T115: 0 | U115: 2017-09-11 | V115: 0 | W115: 331605.24 | X115: 620 | Y115: 2017-09-30 | Z115: 0 | AA115: 0 | AB115: 0 | AC115: 3000-01-01 | AD115: 3000-01-01 | AE115: 0 | AF115: 1 | AG115: 1.33722104 | AH115: 23877877.37 | AI115: 1 | AJ115: MY | AK115: 1 | AL115: GENP | AM115: 30 | AN115: MYR | AO115: MY | AP115: 0 | AQ115: ORD | AR115: EQT | AS115: Listed | AT115: 803214200 | AU115: UTF | AV115: Malaysia | BL115: =IF(B115="TBI",OFFSET(CshFlagMap!$E$1,MATCH(C115,CshFlagMap!$C:$C,0)-1,0),IF(ISNA(OFFSET(InvestmentType!$D$1,MATCH(AQ115,InvestmentType!$A:$A,0)-1,0)),"",IF(OFFSET(InvestmentType!$D$1,MATCH(AQ115,InvestmentType!$A:$A,0)-1,0) = "Collective Investment Scheme", OFFSET(InvestmentType!$E$1,MATCH(AQ115,InvestmentType!$A:$A,0)-1,0),IF(OFFSET(InvestmentType!$D$1,MATCH(AQ115,InvestmentType!$A:$A,0)-1,0) = "Derivatives",$BT115,OFFSET(InvestmentType!$D$1,MATCH(AQ115,InvestmentType!$A:$A,0)-1,0))))) -> Equities | BM115: 319300 | BN115: =OFFSET(Fund!$B$1,MATCH(A115,Fund!$A:$A,0)-1,0) -> B037A00007 | BO115: =OFFSET(FundSdf!$J$1,MATCH(A115,FundSdf!$A:$A,0)-1,0) -> Unit Trust Funds | BP115: =OFFSET(FundSdf!$K$1,MATCH(A115,FundSdf!$A:$A,0)-1,0) -> 0 | BQ115: =OFFSET(FundSdf!$D$1,MATCH(A115,FundSdf!$A:$A,0)-1,0) -> 0 | BR115: =OFFSET(FundSdf!$G$1,MATCH(A115,FundSdf!$A:$A,0)-1,0) -> Thong Yong Ling | BS115: =OFFSET(InvestmentType!$D$1,MATCH(AQ115,InvestmentType!$A:$A,0)-1,0) -> Equities | BT115: =IF(OFFSET(InvestmentType!$D$1,MATCH(AQ115,InvestmentType!$A:$A,0)-1,0)= "Derivatives",IF(AW115="OTC","OTC Derivative", "Exchange Traded Derivative"),"") ->  | BU115: Equities | BV115: =OFFSET(EXTManageSdf!$C$1,MATCH(BR115,EXTManageSdf!$B:$B,0)-1,0) ->  | BW115: 0 | BX115: 0 | BY115: 0 | BZ115: 319300 | CA115: 0 | CB115: 319300 | CC115: 0 | CD115: 319300 | CE115: 0 | CF115: 0
A116: BMSEF | B116: EQT | C116: 2445 | D116: BMSEF*2445 | E116: -187.17 | F116: 0 | G116: 278092.88 | H116: 278092.88 | I116: 3000-01-01 | J116: 11323 | K116: 24.56 | L116: 1 | M116: 0 | N116: 0 | O116: 278280.05 | P116: 278280.05 | Q116: 0 | R116: 0 | S116: MYR | T116: 0 | U116: 2017-04-11 | V116: 0 | W116: 278280.05 | X116: 679.38 | Y116: 2017-09-30 | Z116: 0 | AA116: 0 | AB116: 0 | AC116: 3000-01-01 | AD116: 3000-01-01 | AE116: 0 | AF116: 1 | AG116: 1.164646571 | AH116: 23877877.37 | AI116: 1 | AJ116: MY | AK116: 1 | AL116: KLK | AM116: 0 | AN116: MYR | AO116: MY | AP116: 1 | AQ116: ORD | AR116: EQT | AS116: Listed | AT116: 1064966000 | AU116: UTF | AV116: Malaysia | BL116: =IF(B116="TBI",OFFSET(CshFlagMap!$E$1,MATCH(C116,CshFlagMap!$C:$C,0)-1,0),IF(ISNA(OFFSET(InvestmentType!$D$1,MATCH(AQ116,InvestmentType!$A:$A,0)-1,0)),"",IF(OFFSET(InvestmentType!$D$1,MATCH(AQ116,InvestmentType!$A:$A,0)-1,0) = "Collective Investment Scheme", OFFSET(InvestmentType!$E$1,MATCH(AQ116,InvestmentType!$A:$A,0)-1,0),IF(OFFSET(InvestmentType!$D$1,MATCH(AQ116,InvestmentType!$A:$A,0)-1,0) = "Derivatives",$BT116,OFFSET(InvestmentType!$D$1,MATCH(AQ116,InvestmentType!$A:$A,0)-1,0))))) -> Equities | BM116: 278092.88 | BN116: =OFFSET(Fund!$B$1,MATCH(A116,Fund!$A:$A,0)-1,0) -> B037A00007 | BO116: =OFFSET(FundSdf!$J$1,MATCH(A116,FundSdf!$A:$A,0)-1,0) -> Unit Trust Funds | BP116: =OFFSET(FundSdf!$K$1,MATCH(A116,FundSdf!$A:$A,0)-1,0) -> 0 | BQ116: =OFFSET(FundSdf!$D$1,MATCH(A116,FundSdf!$A:$A,0)-1,0) -> 0 | BR116: =OFFSET(FundSdf!$G$1,MATCH(A116,FundSdf!$A:$A,0)-1,0) -> Thong Yong Ling | BS116: =OFFSET(InvestmentType!$D$1,MATCH(AQ116,InvestmentType!$A:$A,0)-1,0) -> Equities | BT116: =IF(OFFSET(InvestmentType!$D$1,MATCH(AQ116,InvestmentType!$A:$A,0)-1,0)= "Derivatives",IF(AW116="OTC","OTC Derivative", "Exchange Traded Derivative"),"") ->  | BU116: Equities | BV116: =OFFSET(EXTManageSdf!$C$1,MATCH(BR116,EXTManageSdf!$B:$B,0)-1,0) ->  | BW116: 0 | BX116: 0 | BY116: 0 | BZ116: 278092.88 | CA116: 0 | CB116: 278092.88 | CC116: 0 | CD116: 278092.88 | CE116: 0 | CF116: 0
A117: BMSEF | B117: EQT | C117: 2852 | D117: BMSEF*2852 | E117: -16162.08 | F117: 0 | G117: 249422 | H117: 249422 | I117: 3000-01-01 | J117: 62200 | K117: 4.01 | L117: 1 | M117: 0 | N117: 0 | O117: 265584.08 | P117: 265584.08 | Q117: 0 | R117: 0 | S117: MYR | T117: 0 | U117: 2017-04-11 | V117: 0 | W117: 265584.08 | X117: -3732 | Y117: 2017-09-30 | Z117: 0 | AA117: 0 | AB117: 0 | AC117: 3000-01-01 | AD117: 3000-01-01 | AE117: 0 | AF117: 1 | AG117: 1.044573586 | AH117: 23877877.37 | AI117: 1 | AJ117: MY | AK117: 1 | AL117: CMSB | AM117: 38 | AN117: MYR | AO117: MY | AP117: 1 | AQ117: ORD | AR117: EQT | AS117: Listed | AT117: 1074376000 | AU117: UTF | AV117: Malaysia | BL117: =IF(B117="TBI",OFFSET(CshFlagMap!$E$1,MATCH(C117,CshFlagMap!$C:$C,0)-1,0),IF(ISNA(OFFSET(InvestmentType!$D$1,MATCH(AQ117,InvestmentType!$A:$A,0)-1,0)),"",IF(OFFSET(InvestmentType!$D$1,MATCH(AQ117,InvestmentType!$A:$A,0)-1,0) = "Collective Investment Scheme", OFFSET(InvestmentType!$E$1,MATCH(AQ117,InvestmentType!$A:$A,0)-1,0),IF(OFFSET(InvestmentType!$D$1,MATCH(AQ117,InvestmentType!$A:$A,0)-1,0) = "Derivatives",$BT117,OFFSET(InvestmentType!$D$1,MATCH(AQ117,InvestmentType!$A:$A,0)-1,0))))) -> Equities | BM117: 249422 | BN117: =OFFSET(Fund!$B$1,MATCH(A117,Fund!$A:$A,0)-1,0) -> B037A00007 | BO117: =OFFSET(FundSdf!$J$1,MATCH(A117,FundSdf!$A:$A,0)-1,0) -> Unit Trust Funds | BP117: =OFFSET(FundSdf!$K$1,MATCH(A117,FundSdf!$A:$A,0)-1,0) -> 0 | BQ117: =OFFSET(FundSdf!$D$1,MATCH(A117,FundSdf!$A:$A,0)-1,0) -> 0 | BR117: =OFFSET(FundSdf!$G$1,MATCH(A117,FundSdf!$A:$A,0)-1,0) -> Thong Yong Ling | BS117: =OFFSET(InvestmentType!$D$1,MATCH(AQ117,InvestmentType!$A:$A,0)-1,0) -> Equities | BT117: =IF(OFFSET(InvestmentType!$D$1,MATCH(AQ117,InvestmentType!$A:$A,0)-1,0)= "Derivatives",IF(AW117="OTC","OTC Derivative", "Exchange Traded Derivative"),"") ->  | BU117: Equities | BV117: =OFFSET(EXTManageSdf!$C$1,MATCH(BR117,EXTManageSdf!$B:$B,0)-1,0) ->  | BW117: 0 | BX117: 0 | BY117: 0 | BZ117: 249422 | CA117: 0 | CB117: 249422 | CC117: 0 | CD117: 249422 | CE117: 0 | CF117: 0
A118: BMSEF | B118: EQT | C118: 3026 | D118: BMSEF*3026 | E118: 6088.55 | F118: 0 | G118: 114684 | H118: 114684 | I118: 3000-01-01 | J118: 1900 | K118: 60.36 | L118: 1 | M118: 0 | N118: 0 | O118: 108595.45 | P118: 108595.45 | Q118: 0 | R118: 0 | S118: MYR | T118: 0 | U118: 2017-04-11 | V118: 0 | W118: 108595.45 | X118: -1824 | Y118: 2017-09-30 | Z118: 0 | AA118: 0 | AB118: 0 | AC118: 3000-01-01 | AD118: 3000-01-01 | AE118: 0 | AF118: 1 | AG118: 0.4802939483 | AH118: 23877877.37 | AI118: 1 | AJ118: MY | AK118: 1 | AL118: DLADY | AM118: 30 | AN118: MYR | AO118: MY | AP118: 1 | AQ118: ORD | AR118: EQT | AS118: Listed | AT118: 64000000 | AU118: UTF | AV118: Malaysia | BL118: =IF(B118="TBI",OFFSET(CshFlagMap!$E$1,MATCH(C118,CshFlagMap!$C:$C,0)-1,0),IF(ISNA(OFFSET(InvestmentType!$D$1,MATCH(AQ118,InvestmentType!$A:$A,0)-1,0)),"",IF(OFFSET(InvestmentType!$D$1,MATCH(AQ118,InvestmentType!$A:$A,0)-1,0) = "Collective Investment Scheme", OFFSET(InvestmentType!$E$1,MATCH(AQ118,InvestmentType!$A:$A,0)-1,0),IF(OFFSET(InvestmentType!$D$1,MATCH(AQ118,InvestmentType!$A:$A,0)-1,0) = "Derivatives",$BT118,OFFSET(InvestmentType!$D$1,MATCH(AQ118,InvestmentType!$A:$A,0)-1,0))))) -> Equities | BM118: 114684 | BN118: =OFFSET(Fund!$B$1,MATCH(A118,Fund!$A:$A,0)-1,0) -> B037A00007 | BO118: =OFFSET(FundSdf!$J$1,MATCH(A118,FundSdf!$A:$A,0)-1,0) -> Unit Trust Funds | BP118: =OFFSET(FundSdf!$K$1,MATCH(A118,FundSdf!$A:$A,0)-1,0) -> 0 | BQ118: =OFFSET(FundSdf!$D$1,MATCH(A118,FundSdf!$A:$A,0)-1,0) -> 0 | BR118: =OFFSET(FundSdf!$G$1,MATCH(A118,FundSdf!$A:$A,0)-1,0) -> Thong Yong Ling | BS118: =OFFSET(InvestmentType!$D$1,MATCH(AQ118,InvestmentType!$A:$A,0)-1,0) -> Equities | BT118: =IF(OFFSET(InvestmentType!$D$1,MATCH(AQ118,InvestmentType!$A:$A,0)-1,0)= "Derivatives",IF(AW118="OTC","OTC Derivative", "Exchange Traded Derivative"),"") ->  | BU118: Equities | BV118: =OFFSET(EXTManageSdf!$C$1,MATCH(BR118,EXTManageSdf!$B:$B,0)-1,0) ->  | BW118: 0 | BX118: 0 | BY118: 0 | BZ118: 114684 | CA118: 0 | CB118: 114684 | CC118: 0 | CD118: 114684 | CE118: 0 | CF118: 0
